Workbook

Sheet metalog
B2: Metalog distributions. Prepared by Thomas Keelin, August, 2022. | AB2: reference probabilities y in use for quantile parameters
C3: To generate metalog distributions, sort your (x,y) data from lowest to highest, and paste it into the yellow-highlighed cells in B31:C10030 below. Your data may contain 2-10,000 entries (all cells below your last entry must be blank). The metalog panel dispalys feasible metalog distributions for 2-16 terms (a blank graph is infeasible or not applicable). This workbook is licensed under the Creative Commons Attribution 4.0. International License, CC-BY. So long as you provide attribution to Thomas Keelin and www.metalogs.org, you may copy it, make derivative works, and use it freely, including for commercial purposes. This workbook contains no macros or named ranges. This worksheet may be safely copied into other Excel workbooks while retaining full functionality by right-clicking "metalog" sheet name at bottom. While we believe all calculations are correct, we assume no liability for errors. | AB3: n=2 | AC3: n=3 | AD3: n=4 | AE3: n=5 | AF3: n=6 | AG3: n=7 | AH3: n=8 | AI3: n=9 | AJ3: n=10 | AK3: n=11 | AL3: n=12 | AM3: n=13 | AN3: n=14 | AO3: n=15 | AP3: n=16
AB4: 0.25 | AC4: 0.1 | AD4: 0.1 | AE4: 0.1 | AF4: 0.01 | AG4: 0.01 | AH4: 0.001 | AI4: 0.001 | AJ4: 0.001 | AK4: 0.001 | AL4: 0.001 | AM4: 0.001 | AN4: 0.001 | AO4: 0.001 | AP4: 0.001
AB5: 0.75 | AC5: 0.5 | AD5: 0.25 | AE5: 0.25 | AF5: 0.1 | AG5: 0.1 | AH5: 0.02 | AI5: 0.02 | AJ5: 0.01 | AK5: 0.01 | AL5: 0.01 | AM5: 0.01 | AN5: 0.01 | AO5: 0.005 | AP5: 0.005
B6: light yellow: required inputs | J6: light blue: optional inputs | S6: light green: do not modify cell contents | AC6: 0.9 | AD6: 0.5 | AE6: 0.5 | AF6: 0.25 | AG6: 0.25 | AH6: 0.1 | AI6: 0.1 | AJ6: 0.05 | AK6: 0.05 | AL6: 0.05 | AM6: 0.05 | AN6: 0.03 | AO6: 0.01 | AP6: 0.01
AD7: 0.75 | AE7: 0.75 | AF7: 0.5 | AG7: 0.5 | AH7: 0.25 | AI7: 0.25 | AJ7: 0.1 | AK7: 0.1 | AL7: 0.1 | AM7: 0.1 | AN7: 0.05 | AO7: 0.05 | AP7: 0.05
B8: random variable name | N8: messages | X8: information | AE8: 0.9 | AF8: 0.75 | AG8: 0.75 | AH8: 0.5 | AI8: 0.5 | AJ8: 0.25 | AK8: 0.25 | AL8: 0.25 | AM8: 0.25 | AN8: 0.1 | AO8: 0.1 | AP8: 0.1
B9: var 1 | N9: =EB40 -> (none) | X9: quantile parameters | AF9: 0.99 | AG9: 0.9 | AH9: 0.75 | AI9: 0.75 | AJ9: 0.5 | AK9: 0.5 | AL9: 0.35 | AM9: 0.35 | AN9: 0.25 | AO9: 0.25 | AP9: 0.25
X10: y | Y10: x | AG10: 0.99 | AH10: 0.9 | AI10: 0.9 | AJ10: 0.75 | AK10: 0.66 | AL10: 0.5 | AM10: 0.5 | AN10: 0.35 | AO10: 0.35 | AP10: 0.35
B11: bounds (u = unbounded, sl = semibounded lower, su = semibounded upper, b = bounded). | N11: metalog panel | X11: =IF(ROW()-ROW(X$10)>$C$20,"",INDEX($AB$4:$AP$19,ROW()-ROW(X$10),$C$20-1)) -> 0.1 | Y11: =IF(Z11="","",IF($B$14="u",Z11,IF($B$14="sl",$C$22+EXP(Z11),IF($B$14="su",$C$23-EXP(-Z11),IF($B$14="b",($C$22+$C$23*EXP(Z11))/(1+EXP(Z11)),""))))) -> 25 | Z11: =IF(OR($N$9<>"(none)",ROW()-ROW(Z$10)>$C$20),"",$Y$28+$Y$29*LN(X11/(1-X11))+$Y$30*(X11-0.5)*LN(X11/(1-X11))+$Y$31*(X11-0.5)+$Y$32*(X11-0.5)^2+$Y$33*(X11-0.5)^2*LN(X11/(1-X11))+$Y$34*(X11-0.5)^3+$Y$35*(X11-0.5)^3*LN(X11/(1-X11))+$Y$36*(X11-0.5)^4+$Y$37*(X11-0.5)^4*LN(X11/(1-X11))+$Y$38*(X11-0.5)^5+Y$39*(X11-0.5)^5*LN(X11/(1-X11))+$Y$40*(X11-0.5)^6+$Y$41*(X11-0.5)^6*LN(X11/(1-X11))+$Y$42*(X11-0.5)^7+$Y$43*(X11-0.5)^7*LN(X11/(1-X11))) -> 25 | AH11: 0.99 | AI11: 0.98 | AJ11: 0.9 | AK11: 0.75 | AL11: 0.65 | AM11: 0.65 | AN11: 0.5 | AO11: 0.5 | AP11: 0.5
X12: =IF(ROW()-ROW(X$10)>$C$20,"",INDEX($AB$4:$AP$19,ROW()-ROW(X$10),$C$20-1)) -> 0.25 | Y12: 32.25740546 | Z12: 32.25740546 | AI12: 0.999 | AJ12: 0.95 | AK12: 0.9 | AL12: 0.75 | AM12: 0.75 | AN12: 0.65 | AO12: 0.65 | AP12: 0.65
X13: =IF(ROW()-ROW(X$10)>$C$20,"",INDEX($AB$4:$AP$19,ROW()-ROW(X$10),$C$20-1)) -> 0.5 | Y13: 40 | Z13: 40 | AJ13: 0.999 | AK13: 0.95 | AL13: 0.9 | AM13: 0.9 | AN13: 0.75 | AO13: 0.75 | AP13: 0.75
B14: u | X14: =IF(ROW()-ROW(X$10)>$C$20,"",INDEX($AB$4:$AP$19,ROW()-ROW(X$10),$C$20-1)) -> 0.75 | Y14: 48.77575216 | Z14: 48.77575216 | AK14: 0.999 | AL14: 0.95 | AM14: 0.95 | AN14: 0.8 | AO14: 0.9 | AP14: 0.9
B15: boundedness | X15: =IF(ROW()-ROW(X$10)>$C$20,"",INDEX($AB$4:$AP$19,ROW()-ROW(X$10),$C$20-1)) -> 0.9 | Y15: 60 | Z15: 60 | AL15: 0.999 | AM15: 0.98 | AN15: 0.9 | AO15: 0.95 | AP15: 0.95
B16: metalog specifications | X16: =IF(ROW()-ROW(X$10)>$C$20,"",INDEX($AB$4:$AP$19,ROW()-ROW(X$10),$C$20-1)) ->  | AM16: 0.999 | AN16: 0.95 | AO16: 0.97 | AP16: 0.97
B17: m | C17: n terms | X17: =IF(ROW()-ROW(X$10)>$C$20,"",INDEX($AB$4:$AP$19,ROW()-ROW(X$10),$C$20-1)) ->  | AN17: 0.999 | AO17: 0.99 | AP17: 0.99
B18: parameters | C18: for display | X18: =IF(ROW()-ROW(X$10)>$C$20,"",INDEX($AB$4:$AP$19,ROW()-ROW(X$10),$C$20-1)) ->  | AO18: 0.999 | AP18: 0.995
B19: ="(2-" & ROWS(B30:C10029) & ")" -> (2-10000) | C19: (2-16) | X19: =IF(ROW()-ROW(X$10)>$C$20,"",INDEX($AB$4:$AP$19,ROW()-ROW(X$10),$C$20-1)) ->  | Y19: =IF(Z19="","",IF($B$14="u",Z19,IF($B$14="sl",$C$22+EXP(Z19),IF($B$14="su",$C$23-EXP(-Z19),IF($B$14="b",($C$22+$C$23*EXP(Z19))/(1+EXP(Z19)),""))))) ->  | AP19: 0.999
B20: =SUM(IF(ISNUMBER(C30:C10029),1,0)) -> 5 | C20: 5 | X20: =IF(ROW()-ROW(X$10)>$C$20,"",INDEX($AB$4:$AP$19,ROW()-ROW(X$10),$C$20-1)) -> 
C21: terms | X21: =IF(ROW()-ROW(X$10)>$C$20,"",INDEX($AB$4:$AP$19,ROW()-ROW(X$10),$C$20-1)) ->  | AB21: intermediate calcualations (do not modify)
B22: =IF(OR(B14="b",B14="sl"),"lower bound","") ->  | C22: 0 | D22: bl | X22: =IF(ROW()-ROW(X$10)>$C$20,"",INDEX($AB$4:$AP$19,ROW()-ROW(X$10),$C$20-1)) -> 
B23: =IF(OR(B14="su",B14="b"),"upper bound","") ->  | C23: 100 | D23: bu | X23: =IF(ROW()-ROW(X$10)>$C$20,"",INDEX($AB$4:$AP$19,ROW()-ROW(X$10),$C$20-1)) -> 
X24: =IF(ROW()-ROW(X$10)>$C$20,"",INDEX($AB$4:$AP$19,ROW()-ROW(X$10),$C$20-1)) ->  | AB24: metalog distributions (y = probability, Mn = x = quantile function, mn = y' = probability density function)
B25: regularization | X25: =IF(ROW()-ROW(X$10)>$C$20,"",INDEX($AB$4:$AP$19,ROW()-ROW(X$10),$C$20-1)) ->  | AE25: metalog quantile functions Mn and density functions mn with user-specified bounds | BJ25: unbounded metalog | CO25: feasibility requirement (mn>0 for all yi) satisfied | DF25: matrix inversion successful | DW25: validity of input data | DZ25: messages
B26: (0,1, …, 10) | C26: 0 | X26: =IF(ROW()-ROW(X$10)>$C$20,"",INDEX($AB$4:$AP$19,ROW()-ROW(X$10),$C$20-1)) ->  | AC26: ="large plots (n = " & C20 & ")" -> large plots (n = 5) | AE26: =IF($B$14="u","",IF($B$14="sl"," log",IF($B$14="b"," logit",""))) ->  | BJ26: quantile functons | BY26: density functions | CO26: =IF(OR(DF26="",DF26="no"),"",IF(AND(DF26="yes",MIN(CO31:CO135)>0),"yes","no")) -> yes | CP26: yes | CQ26: yes | CR26: yes | DF26: =IF(EA90="","",IF(OR(EA90="determ",EA90="error"),"no","yes")) -> yes | DG26: yes | DH26: yes | DI26: yes | DQ26: =IF(EL90="","",IF(OR(EL90="determ",EL90="error"),"no","yes")) ->  | DR26: =IF(EM90="","",IF(OR(EM90="determ",EM90="error"),"no","yes")) ->  | DS26: =IF(EN90="","",IF(OR(EN90="determ",EN90="error"),"no","yes")) ->  | DT26: =IF(EO90="","",IF(OR(EO90="determ",EO90="error"),"no","yes")) ->  | DW26: (values below should be equal) | DZ26: condition | EA26: global | EB26: content
X27: coefficients | AB27: y | AC27: cdf | AD27: pdf | AE27: M2 | AF27: M3 | AG27: M4 | AH27: M5 | AI27: M6 | AJ27: M7 | AK27: M8 | AL27: M9 | AM27: M10 | AN27: M11 | AO27: M12 | AP27: M13 | AQ27: M14 | AR27: M15 | AS27: M16 | AT27: m2 | AU27: m3 | AV27: m4 | AW27: m5 | AX27: m6 | AY27: m7 | AZ27: m8 | BA27: m9 | BB27: m10 | BC27: m11 | BD27: m12 | BE27: m13 | BF27: m14 | BG27: m15 | BH27: m16 | BJ27: M2 | BK27: M3 | BL27: M4 | BM27: M5 | BN27: M6 | BO27: M7 | BP27: M8 | BQ27: M9 | BR27: M10 | BS27: M11 | BT27: M12 | BU27: M13 | BV27: M14 | BW27: M15 | BX27: M16 | BY27: m2 | BZ27: m3 | CA27: m4 | CB27: m5 | CC27: m6 | CD27: m7 | CE27: m8 | CF27: m9 | CG27: m10 | CH27: m11 | CI27: m12 | CJ27: m13 | CK27: m14 | CL27: m15 | CM27: m16 | CO27: (if "no", inputs (x,y) are not feasible for this n) | DE27: dererminant | DF27: =MDETERM(MMULT(TRANSPOSE(INDEX($DE$30:$DN$10029,1,1):INDEX($DE$30:$DN$10029,$B$20,EA89)),INDEX($DE$30:$DN$10029,1,1):INDEX($DE$30:$DN$10029,$B$20,EA89))) -> 259.4292228 | DG27: =MDETERM(MMULT(TRANSPOSE(INDEX($DE$30:$DN$10029,1,1):INDEX($DE$30:$DN$10029,$B$20,EB89)),INDEX($DE$30:$DN$10029,1,1):INDEX($DE$30:$DN$10029,$B$20,EB89))) -> 997.3396928 | DH27: =MDETERM(MMULT(TRANSPOSE(INDEX($DE$30:$DN$10029,1,1):INDEX($DE$30:$DN$10029,$B$20,EC89)),INDEX($DE$30:$DN$10029,1,1):INDEX($DE$30:$DN$10029,$B$20,EC89))) -> 44.57475437 | DI27: =MDETERM(MMULT(TRANSPOSE(INDEX($DE$30:$DN$10029,1,1):INDEX($DE$30:$DN$10029,$B$20,ED89)),INDEX($DE$30:$DN$10029,1,1):INDEX($DE$30:$DN$10029,$B$20,ED89))) -> 0.206586355 | DJ27: =MDETERM(MMULT(TRANSPOSE(INDEX($DE$30:$DN$10029,1,1):INDEX($DE$30:$DN$10029,$B$20,EE89)),INDEX($DE$30:$DN$10029,1,1):INDEX($DE$30:$DN$10029,$B$20,EE89))) -> -1.141930241e-16 | DK27: =MDETERM(MMULT(TRANSPOSE(INDEX($DE$30:$DN$10029,1,1):INDEX($DE$30:$DN$10029,$B$20,EF89)),INDEX($DE$30:$DN$10029,1,1):INDEX($DE$30:$DN$10029,$B$20,EF89))) -> -3.130493492e-34 | DL27: =MDETERM(MMULT(TRANSPOSE(INDEX($DE$30:$DN$10029,1,1):INDEX($DE$30:$DN$10029,$B$20,EG89)),INDEX($DE$30:$DN$10029,1,1):INDEX($DE$30:$DN$10029,$B$20,EG89))) -> -8.804606059e-50 | DM27: =MDETERM(MMULT(TRANSPOSE(INDEX($DE$30:$DN$10029,1,1):INDEX($DE$30:$DN$10029,$B$20,EH89)),INDEX($DE$30:$DN$10029,1,1):INDEX($DE$30:$DN$10029,$B$20,EH89))) -> -1.447829647e-67 | DN27: =MDETERM(MMULT(TRANSPOSE(INDEX($DE$30:$DT$10029,1,1):INDEX($DE$30:$DT$10029,$B$20,EI89)),INDEX($DE$30:$DT$10029,1,1):INDEX($DE$30:$DT$10029,$B$20,EI89))) -> 4.943768928e-84 | DO27: =MDETERM(MMULT(TRANSPOSE(INDEX($DE$30:$DT$10029,1,1):INDEX($DE$30:$DT$10029,$B$20,EJ89)),INDEX($DE$30:$DT$10029,1,1):INDEX($DE$30:$DT$10029,$B$20,EJ89))) -> 5.573644971e-102 | DP27: =MDETERM(MMULT(TRANSPOSE(INDEX($DE$30:$DT$10029,1,1):INDEX($DE$30:$DT$10029,$B$20,EK89)),INDEX($DE$30:$DT$10029,1,1):INDEX($DE$30:$DT$10029,$B$20,EK89))) -> 3.635295157e-119 | DQ27: =MDETERM(MMULT(TRANSPOSE(INDEX($DE$30:$DT$10029,1,1):INDEX($DE$30:$DT$10029,$B$20,EL89)),INDEX($DE$30:$DT$10029,1,1):INDEX($DE$30:$DT$10029,$B$20,EL89))) -> 1.291385814e-138 | DR27: =MDETERM(MMULT(TRANSPOSE(INDEX($DE$30:$DT$10029,1,1):INDEX($DE$30:$DT$10029,$B$20,EM89)),INDEX($DE$30:$DT$10029,1,1):INDEX($DE$30:$DT$10029,$B$20,EM89))) -> 2.265606037e-156 | DS27: =MDETERM(MMULT(TRANSPOSE(INDEX($DE$30:$DT$10029,1,1):INDEX($DE$30:$DT$10029,$B$20,EN89)),INDEX($DE$30:$DT$10029,1,1):INDEX($DE$30:$DT$10029,$B$20,EN89))) -> -1.599039465e-175 | DT27: =MDETERM(MMULT(TRANSPOSE(INDEX($DE$30:$DT$10029,1,1):INDEX($DE$30:$DT$10029,$B$20,EO89)),INDEX($DE$30:$DT$10029,1,1):INDEX($DE$30:$DT$10029,$B$20,EO89))) -> -7.364716469e-195 | DX27: x data | DZ27: =IF(AND(B14<>"u",B14<>"sl",B14<>"su",B14<>"b"),1,0) -> 0 | EA27: =DZ27 -> 0 | EB27: you must enter either u, sl, sb, or b for metalog bounds.
B28: input parameters | X28: a1 | Y28: =INDEX(EA90:EO90,C$20-1) -> 40 | AB28: =IF(OR($B$14="b",$B$14="sl"),0,NA()) ->  | AC28: =IF(OR($B$14="b",$B$14="sl"),IF(INDEX(AE28:AS28,1,$C$20-1)="",NA(),INDEX(AE28:AS28,1,$C$20-1)),NA()) ->  | AD28: =IF(OR($B$14="b",$B$14="sl"),IF(INDEX(AT28:BH28,1,$C$20-1)="",NA(),INDEX(AT28:BH28,1,$C$20-1)),NA()) ->  | AE28: =IF(OR($B$14="b",$B$14="sl"),IF(BJ29="",NA(),$C$22),NA()) ->  | AT28: =IF(OR($B$14="b",$B$14="sl"),IF(BY29="",NA(),0),NA()) ->  | DW28: total | DX28: =COUNTA(INDEX(C30:C10029,1,1):INDEX(C30:C10029,B20,1)) -> 5 | DZ28: =IF(AND(OR(B14="sl",B14="b"),NOT(ISNUMBER(C22))),1,0) -> 0 | EA28: 0 | EB28: you must enter a numeric lower bound | EK28: regularization
B29: y | C29: x | X29: a2 | Y29: =INDEX(EA91:EO91,C$20-1) -> 9.751671906 | AB29: 0.001 | AC29: =INDEX(AE29:AS29,1,$C$20-1) -> -4.637896531 | AD29: =INDEX(AT29:BH29,1,$C$20-1) -> 0.0001567331724 | AE29: =IF(BJ29="",NA(),IF($B$14="u",BJ29,IF($B$14="sl",$C$22+EXP(BJ29),IF($B$14="su",$C$23-EXP(-BJ29),IF($B$14="b",($C$22+$C$23*EXP(BJ29))/(1+EXP(BJ29)),NA()))))) -> -14.1710225 | AF29: =IF(BK29="",NA(),IF($B$14="u",BK29,IF($B$14="sl",$C$22+EXP(BK29),IF($B$14="su",$C$23-EXP(-BK29),IF($B$14="b",($C$22+$C$23*EXP(BK29))/(1+EXP(BK29)),NA()))))) -> -3.827617036 | AG29: =IF(BL29="",NA(),IF($B$14="u",BL29,IF($B$14="sl",$C$22+EXP(BL29),IF($B$14="su",$C$23-EXP(-BL29),IF($B$14="b",($C$22+$C$23*EXP(BL29))/(1+EXP(BL29)),NA()))))) -> -7.11055113 | AH29: =IF(BM29="",NA(),IF($B$14="u",BM29,IF($B$14="sl",$C$22+EXP(BM29),IF($B$14="su",$C$23-EXP(-BM29),IF($B$14="b",($C$22+$C$23*EXP(BM29))/(1+EXP(BM29)),NA()))))) -> -4.637896531 | AI29: =IF(BN29="",NA(),IF($B$14="u",BN29,IF($B$14="sl",$C$22+EXP(BN29),IF($B$14="su",$C$23-EXP(-BN29),IF($B$14="b",($C$22+$C$23*EXP(BN29))/(1+EXP(BN29)),NA()))))) ->  | AJ29: =IF(BO29="",NA(),IF($B$14="u",BO29,IF($B$14="sl",$C$22+EXP(BO29),IF($B$14="su",$C$23-EXP(-BO29),IF($B$14="b",($C$22+$C$23*EXP(BO29))/(1+EXP(BO29)),NA()))))) ->  | AK29: =IF(BP29="",NA(),IF($B$14="u",BP29,IF($B$14="sl",$C$22+EXP(BP29),IF($B$14="su",$C$23-EXP(-BP29),IF($B$14="b",($C$22+$C$23*EXP(BP29))/(1+EXP(BP29)),NA()))))) ->  | AL29: =IF(BQ29="",NA(),IF($B$14="u",BQ29,IF($B$14="sl",$C$22+EXP(BQ29),IF($B$14="su",$C$23-EXP(-BQ29),IF($B$14="b",($C$22+$C$23*EXP(BQ29))/(1+EXP(BQ29)),NA()))))) ->  | AM29: =IF(BR29="",NA(),IF($B$14="u",BR29,IF($B$14="sl",$C$22+EXP(BR29),IF($B$14="su",$C$23-EXP(-BR29),IF($B$14="b",($C$22+$C$23*EXP(BR29))/(1+EXP(BR29)),NA()))))) ->  | AN29: =IF(BS29="",NA(),IF($B$14="u",BS29,IF($B$14="sl",$C$22+EXP(BS29),IF($B$14="su",$C$23-EXP(-BS29),IF($B$14="b",($C$22+$C$23*EXP(BS29))/(1+EXP(BS29)),NA()))))) ->  | AO29: =IF(BT29="",NA(),IF($B$14="u",BT29,IF($B$14="sl",$C$22+EXP(BT29),IF($B$14="su",$C$23-EXP(-BT29),IF($B$14="b",($C$22+$C$23*EXP(BT29))/(1+EXP(BT29)),NA()))))) ->  | AP29: =IF(BU29="",NA(),IF($B$14="u",BU29,IF($B$14="sl",$C$22+EXP(BU29),IF($B$14="su",$C$23-EXP(-BU29),IF($B$14="b",($C$22+$C$23*EXP(BU29))/(1+EXP(BU29)),NA()))))) ->  | AQ29: =IF(BV29="",NA(),IF($B$14="u",BV29,IF($B$14="sl",$C$22+EXP(BV29),IF($B$14="su",$C$23-EXP(-BV29),IF($B$14="b",($C$22+$C$23*EXP(BV29))/(1+EXP(BV29)),NA()))))) ->  | AR29: =IF(BW29="",NA(),IF($B$14="u",BW29,IF($B$14="sl",$C$22+EXP(BW29),IF($B$14="su",$C$23-EXP(-BW29),IF($B$14="b",($C$22+$C$23*EXP(BW29))/(1+EXP(BW29)),NA()))))) ->  | AS29: =IF(BX29="",NA(),IF($B$14="u",BX29,IF($B$14="sl",$C$22+EXP(BX29),IF($B$14="su",$C$23-EXP(-BX29),IF($B$14="b",($C$22+$C$23*EXP(BX29))/(1+EXP(BX29)),NA()))))) ->  | AT29: =IF(BY29="",NA(),IF($B$14="u",BY29,IF($B$14="sl",BY29*EXP(-BJ29),IF($B$14="su",BY29*EXP(BJ29),IF($B$14="b",BY29*(1+EXP(BJ29))^2/(($C$23-$C$22)*EXP(BJ29)),NA()))))) -> 0.000116608565 | AU29: =IF(BZ29="",NA(),IF($B$14="u",BZ29,IF($B$14="sl",BZ29*EXP(-BK29),IF($B$14="su",BZ29*EXP(BK29),IF($B$14="b",BZ29*(1+EXP(BK29))^2/(($C$23-$C$22)*EXP(BK29)),NA()))))) -> 0.0001615876937 | AV29: =IF(CA29="",NA(),IF($B$14="u",CA29,IF($B$14="sl",CA29*EXP(-BL29),IF($B$14="su",CA29*EXP(BL29),IF($B$14="b",CA29*(1+EXP(BL29))^2/(($C$23-$C$22)*EXP(BL29)),NA()))))) -> 0.0001357864052 | AW29: =IF(CB29="",NA(),IF($B$14="u",CB29,IF($B$14="sl",CB29*EXP(-BM29),IF($B$14="su",CB29*EXP(BM29),IF($B$14="b",CB29*(1+EXP(BM29))^2/(($C$23-$C$22)*EXP(BM29)),NA()))))) -> 0.0001567331724 | AX29: =IF(CC29="",NA(),IF($B$14="u",CC29,IF($B$14="sl",CC29*EXP(-BN29),IF($B$14="su",CC29*EXP(BN29),IF($B$14="b",CC29*(1+EXP(BN29))^2/(($C$23-$C$22)*EXP(BN29)),NA()))))) ->  | AY29: =IF(CD29="",NA(),IF($B$14="u",CD29,IF($B$14="sl",CD29*EXP(-BO29),IF($B$14="su",CD29*EXP(BO29),IF($B$14="b",CD29*(1+EXP(BO29))^2/(($C$23-$C$22)*EXP(BO29)),NA()))))) ->  | AZ29: =IF(CE29="",NA(),IF($B$14="u",CE29,IF($B$14="sl",CE29*EXP(-BP29),IF($B$14="su",CE29*EXP(BP29),IF($B$14="b",CE29*(1+EXP(BP29))^2/(($C$23-$C$22)*EXP(BP29)),NA()))))) ->  | BA29: =IF(CF29="",NA(),IF($B$14="u",CF29,IF($B$14="sl",CF29*EXP(-BQ29),IF($B$14="su",CF29*EXP(BQ29),IF($B$14="b",CF29*(1+EXP(BQ29))^2/(($C$23-$C$22)*EXP(BQ29)),NA()))))) ->  | BB29: =IF(CG29="",NA(),IF($B$14="u",CG29,IF($B$14="sl",CG29*EXP(-BR29),IF($B$14="su",CG29*EXP(BR29),IF($B$14="b",CG29*(1+EXP(BR29))^2/(($C$23-$C$22)*EXP(BR29)),NA()))))) ->  | BC29: =IF(CH29="",NA(),IF($B$14="u",CH29,IF($B$14="sl",CH29*EXP(-BS29),IF($B$14="su",CH29*EXP(BS29),IF($B$14="b",CH29*(1+EXP(BS29))^2/(($C$23-$C$22)*EXP(BS29)),NA()))))) ->  | BD29: =IF(CI29="",NA(),IF($B$14="u",CI29,IF($B$14="sl",CI29*EXP(-BT29),IF($B$14="su",CI29*EXP(BT29),IF($B$14="b",CI29*(1+EXP(BT29))^2/(($C$23-$C$22)*EXP(BT29)),NA()))))) ->  | BE29: =IF(CJ29="",NA(),IF($B$14="u",CJ29,IF($B$14="sl",CJ29*EXP(-BU29),IF($B$14="su",CJ29*EXP(BU29),IF($B$14="b",CJ29*(1+EXP(BU29))^2/(($C$23-$C$22)*EXP(BU29)),NA()))))) ->  | BF29: =IF(CK29="",NA(),IF($B$14="u",CK29,IF($B$14="sl",CK29*EXP(-BV29),IF($B$14="su",CK29*EXP(BV29),IF($B$14="b",CK29*(1+EXP(BV29))^2/(($C$23-$C$22)*EXP(BV29)),NA()))))) ->  | BG29: =IF(CL29="",NA(),IF($B$14="u",CL29,IF($B$14="sl",CL29*EXP(-BW29),IF($B$14="su",CL29*EXP(BW29),IF($B$14="b",CL29*(1+EXP(BW29))^2/(($C$23-$C$22)*EXP(BW29)),NA()))))) ->  | BH29: =IF(CM29="",NA(),IF($B$14="u",CM29,IF($B$14="sl",CM29*EXP(-BX29),IF($B$14="su",CM29*EXP(BX29),IF($B$14="b",CM29*(1+EXP(BX29))^2/(($C$23-$C$22)*EXP(BX29)),NA()))))) ->  | BJ29: =IF(BY29="","",EA$90+EA$91*LN($AB29/(1-$AB29))) -> -14.1710225 | BK29: =IF(BZ29="","",EB$90+EB$91*LN($AB29/(1-$AB29))+EB$92*($AB29-0.5)*LN($AB29/(1-$AB29))) -> -3.827617036 | BL29: =IF(CA29="","",EC$90+EC$91*LN($AB29/(1-$AB29))+EC$92*($AB29-0.5)*LN($AB29/(1-$AB29))+EC$93*($AB29-0.5)) -> -7.11055113 | BM29: =IF(CB29="","",ED$90+ED$91*LN($AB29/(1-$AB29))+ED$92*($AB29-0.5)*LN($AB29/(1-$AB29))+ED$93*($AB29-0.5)+ED$94*($AB29-0.5)^2) -> -4.637896531 | BN29: =IF(CC29="","",EE$90+EE$91*LN($AB29/(1-$AB29))+EE$92*($AB29-0.5)*LN($AB29/(1-$AB29))+EE$93*($AB29-0.5)+EE$94*($AB29-0.5)^2+EE$95*($AB29-0.5)^2*LN($AB29/(1-$AB29))) ->  | BO29: =IF(CD29="","",EF$90+EF$91*LN($AB29/(1-$AB29))+EF$92*($AB29-0.5)*LN($AB29/(1-$AB29))+EF$93*($AB29-0.5)+EF$94*($AB29-0.5)^2+EF$95*($AB29-0.5)^2*LN($AB29/(1-$AB29))+EF$96*($AB29-0.5)^3) ->  | BP29: =IF(CE29="","",EG$90+EG$91*LN($AB29/(1-$AB29))+EG$92*($AB29-0.5)*LN($AB29/(1-$AB29))+EG$93*($AB29-0.5)+EG$94*($AB29-0.5)^2+EG$95*($AB29-0.5)^2*LN($AB29/(1-$AB29))+EG$96*($AB29-0.5)^3+EG$97*($AB29-0.5)^3*LN($AB29/(1-$AB29))) ->  | BQ29: =IF(CF29="","",EH$90+EH$91*LN($AB29/(1-$AB29))+EH$92*($AB29-0.5)*LN($AB29/(1-$AB29))+EH$93*($AB29-0.5)+EH$94*($AB29-0.5)^2+EH$95*($AB29-0.5)^2*LN($AB29/(1-$AB29))+EH$96*($AB29-0.5)^3+EH$97*($AB29-0.5)^3*LN($AB29/(1-$AB29))+EH$98*($AB29-0.5)^4) ->  | BR29: =IF(CG29="","",EI$90+EI$91*LN($AB29/(1-$AB29))+EI$92*($AB29-0.5)*LN($AB29/(1-$AB29))+EI$93*($AB29-0.5)+EI$94*($AB29-0.5)^2+EI$95*($AB29-0.5)^2*LN($AB29/(1-$AB29))+EI$96*($AB29-0.5)^3+EI$97*($AB29-0.5)^3*LN($AB29/(1-$AB29))+EI$98*($AB29-0.5)^4+EI$99*($AB29-0.5)^4*LN($AB29/(1-$AB29))+EI$100*($AB29-0.5)^5+EI$101*($AB29-0.5)^5*LN($AB29/(1-$AB29))+EI$102*($AB29-0.5)^6+EI$103*($AB29-0.5)^6*LN($AB29/(1-$AB29))+EI$104*($AB29-0.5)^7+EI$105*($AB29-0.5)^7*LN($AB29/(1-$AB29))) ->  | BU29: =IF(CJ29="","",EL$90+EL$91*LN($AB29/(1-$AB29))+EL$92*($AB29-0.5)*LN($AB29/(1-$AB29))+EL$93*($AB29-0.5)+EL$94*($AB29-0.5)^2+EL$95*($AB29-0.5)^2*LN($AB29/(1-$AB29))+EL$96*($AB29-0.5)^3+EL$97*($AB29-0.5)^3*LN($AB29/(1-$AB29))+EL$98*($AB29-0.5)^4+EL$99*($AB29-0.5)^4*LN($AB29/(1-$AB29))+EL$100*($AB29-0.5)^5+EL$101*($AB29-0.5)^5*LN($AB29/(1-$AB29))+EL$102*($AB29-0.5)^6+EL$103*($AB29-0.5)^6*LN($AB29/(1-$AB29))+EL$104*($AB29-0.5)^7+EL$105*($AB29-0.5)^7*LN($AB29/(1-$AB29))) ->  | BV29: =IF(CK29="","",EM$90+EM$91*LN($AB29/(1-$AB29))+EM$92*($AB29-0.5)*LN($AB29/(1-$AB29))+EM$93*($AB29-0.5)+EM$94*($AB29-0.5)^2+EM$95*($AB29-0.5)^2*LN($AB29/(1-$AB29))+EM$96*($AB29-0.5)^3+EM$97*($AB29-0.5)^3*LN($AB29/(1-$AB29))+EM$98*($AB29-0.5)^4+EM$99*($AB29-0.5)^4*LN($AB29/(1-$AB29))+EM$100*($AB29-0.5)^5+EM$101*($AB29-0.5)^5*LN($AB29/(1-$AB29))+EM$102*($AB29-0.5)^6+EM$103*($AB29-0.5)^6*LN($AB29/(1-$AB29))+EM$104*($AB29-0.5)^7+EM$105*($AB29-0.5)^7*LN($AB29/(1-$AB29))) ->  | BW29: =IF(CL29="","",EN$90+EN$91*LN($AB29/(1-$AB29))+EN$92*($AB29-0.5)*LN($AB29/(1-$AB29))+EN$93*($AB29-0.5)+EN$94*($AB29-0.5)^2+EN$95*($AB29-0.5)^2*LN($AB29/(1-$AB29))+EN$96*($AB29-0.5)^3+EN$97*($AB29-0.5)^3*LN($AB29/(1-$AB29))+EN$98*($AB29-0.5)^4+EN$99*($AB29-0.5)^4*LN($AB29/(1-$AB29))+EN$100*($AB29-0.5)^5+EN$101*($AB29-0.5)^5*LN($AB29/(1-$AB29))+EN$102*($AB29-0.5)^6+EN$103*($AB29-0.5)^6*LN($AB29/(1-$AB29))+EN$104*($AB29-0.5)^7+EN$105*($AB29-0.5)^7*LN($AB29/(1-$AB29))) ->  | BX29: =IF(CM29="","",EO$90+EO$91*LN($AB29/(1-$AB29))+EO$92*($AB29-0.5)*LN($AB29/(1-$AB29))+EO$93*($AB29-0.5)+EO$94*($AB29-0.5)^2+EO$95*($AB29-0.5)^2*LN($AB29/(1-$AB29))+EO$96*($AB29-0.5)^3+EO$97*($AB29-0.5)^3*LN($AB29/(1-$AB29))+EO$98*($AB29-0.5)^4+EO$99*($AB29-0.5)^4*LN($AB29/(1-$AB29))+EO$100*($AB29-0.5)^5+EO$101*($AB29-0.5)^5*LN($AB29/(1-$AB29))+EO$102*($AB29-0.5)^6+EO$103*($AB29-0.5)^6*LN($AB29/(1-$AB29))+EO$104*($AB29-0.5)^7+EO$105*($AB29-0.5)^7*LN($AB29/(1-$AB29))) ->  | BY29: =IF(AND($EA$41=0,CO$26="yes"),CO31,"") -> 0.000116608565 | BZ29: 0.0001615876937 | CA29: 0.0001357864052 | CB29: 0.0001567331724 | CO29: m2 | CP29: m3 | CQ29: m4 | CR29: m5 | CS29: m6 | CT29: m7 | CU29: m8 | CV29: m9 | CW29: m10 | CX29: m11 | CY29: m12 | CZ29: m13 | DA29: m14 | DB29: m15 | DC29: m16 | DE29: Y16 | DU29: z | DW29: numeric | DX29: =SUM(IF(ISNUMBER(C30:C10029),1,0)) -> 5 | DZ29: =IF(AND(OR(B14="su",B14="b"),NOT(ISNUMBER(C23))),1,0) -> 0 | EA29: 0 | EB29: you must enter a numeric upper bound | EK29: l list
B30: 0.1 | C30: 25 | X30: a3 | Y30: =INDEX(EA92:EO92,C$20-1) -> 6.699123197 | AB30: 0.003 | AC30: 2.360496437 | AD30: 0.0004718068273 | AE30: -4.741906542 | AF30: 2.957893769 | AG30: 0.9590596785 | AH30: 2.360496437 | AT30: 0.0003491253433 | AU30: 0.0004869358572 | AV30: 0.000409856296 | AW30: 0.0004718068273 | BJ30: -4.741906542 | BK30: 2.957893769 | BL30: 0.9590596785 | BM30: 2.360496437 | BY30: 0.0003491253433 | BZ30: 0.0004869358572 | CA30: 0.000409856296 | CB30: 0.0004718068273 | DE30: =IF(B30="","",1) -> 1 | DF30: =IF(B30="","",LN(B30/(1-B30))) -> -2.197224577 | DG30: =IF(B30="","",(B30-0.5)*DF30) -> 0.8788898309 | DH30: =IF(B30="","",B30-0.5) -> -0.4 | DI30: =IF(B30="","",DH30^2) -> 0.16 | DJ30: =IF(B30="","",DF30*DI30) -> -0.3515559324 | DK30: =IF(B30="","",DH30^3) -> -0.064 | DL30: =IF(B30="","",DF30*DK30) -> 0.1406223729 | DM30: =IF(B30="","",DH30^4) -> 0.0256 | DN30: =IF($B30="","",$DF30*DM30) -> -0.05624894918 | DO30: =IF(B30="","",DH30^5) -> -0.01024 | DP30: =IF($B30="","",DF30*DO30) -> 0.02249957967 | DQ30: =IF(B30="","",DH30^6) -> 0.004096 | DR30: =IF($B30="","",DF30*DQ30) -> -0.008999831869 | DS30: =IF(B30="","",DH30^7) -> -0.0016384 | DT30: =IF($B30="","",DF30*DS30) -> 0.003599932748 | DU30: =IF(B30="","",IF($B$14="u",C30,IF($B$14="sl",LN(C30-$C$22),IF($B$14="su",-LN($C$23-C30),IF($B$14="b",LN((C30-$C$22)/($C$23-C30)),""))))) -> 25 | DW30: contiguous | DZ30: =IF(DX28<>DX29,1,0) -> 0 | EA30: 0 | EB30: invalid input parameters: x data must be numeric | EK30: 0
B31: 0.5 | C31: 40 | X31: a4 | Y31: =INDEX(EA93:EO93,C$20-1) -> -9.816532957 | AB31: 0.006 | AC31: 6.762187997 | AD31: 0.0009460116741 | AE31: 1.22218866 | AF31: 7.218781958 | AG31: 6.015134234 | AH31: 6.762187997 | AT31: 0.0006961496314 | AU31: 0.0009785331018 | AV31: 0.0008259427267 | AW31: 0.0009460116741 | BJ31: 1.22218866 | BK31: 7.218781958 | BL31: 6.015134234 | BM31: 6.762187997 | BY31: 0.0006961496314 | BZ31: 0.0009785331018 | CA31: 0.0008259427267 | CB31: 0.0009460116741 | CO31: =IF(OR(DF$26="",DF$26="no"),"",(EA$91/($AB29*(1-$AB29)))^-1) -> 0.000116608565 | CP31: =IF(OR(DG$26="",DG$26="no"),"",(EB$91/($AB29*(1-$AB29))+EB$92*(($AB29-0.5)/($AB29*(1-$AB29))+LN($AB29/(1-$AB29))))^-1) -> 0.0001615876937 | CQ31: =IF(OR(DH$26="",DH$26="no"),"",(EC$91/($AB29*(1-$AB29))+EC$92*(($AB29-0.5)/($AB29*(1-$AB29))+LN($AB29/(1-$AB29)))+EC$93)^-1) -> 0.0001357864052 | CR31: =IF(OR(DI$26="",DI$26="no"),"",(ED$91/($AB29*(1-$AB29))+ED$92*(($AB29-0.5)/($AB29*(1-$AB29))+LN($AB29/(1-$AB29)))+ED$93+2*ED$94*($AB29-0.5))^-1) -> 0.0001567331724 | CS31: =IF(OR(DJ$26="",DJ$26="no"),"",(EE$91/($AB29*(1-$AB29))+EE$92*(($AB29-0.5)/($AB29*(1-$AB29))+LN($AB29/(1-$AB29)))+EE$93+2*EE$94*($AB29-0.5)+EE$95*(($AB29-0.5)^2/($AB29*(1-$AB29))+2*($AB29-0.5)*LN($AB29/(1-$AB29))))^-1) ->  | CT31: =IF(OR(DK$26="",DK$26="no"),"",(EF$91/($AB29*(1-$AB29))+EF$92*(($AB29-0.5)/($AB29*(1-$AB29))+LN($AB29/(1-$AB29)))+EF$93+2*EF$94*($AB29-0.5)+EF$95*(($AB29-0.5)^2/($AB29*(1-$AB29))+2*($AB29-0.5)*LN($AB29/(1-$AB29)))+3*EF$96*($AB29-0.5)^2)^-1) ->  | CU31: =IF(OR(DL$26="",DL$26="no"),"",(EG$91/($AB29*(1-$AB29))+EG$92*(($AB29-0.5)/($AB29*(1-$AB29))+LN($AB29/(1-$AB29)))+EG$93+2*EG$94*($AB29-0.5)+EG$95*(($AB29-0.5)^2/($AB29*(1-$AB29))+2*($AB29-0.5)*LN($AB29/(1-$AB29)))+3*EG$96*($AB29-0.5)^2+EG$97*(($AB29-0.5)^3/($AB29*(1-$AB29))+3*($AB29-0.5)^2*LN($AB29/(1-$AB29))))^-1) ->  | CV31: =IF(OR(DM$26="",DM$26="no"),"",(EH$91/($AB29*(1-$AB29))+EH$92*(($AB29-0.5)/($AB29*(1-$AB29))+LN($AB29/(1-$AB29)))+EH$93+2*EH$94*($AB29-0.5)+EH$95*(($AB29-0.5)^2/($AB29*(1-$AB29))+2*($AB29-0.5)*LN($AB29/(1-$AB29)))+3*EH$96*($AB29-0.5)^2+EH$97*(($AB29-0.5)^3/($AB29*(1-$AB29))+3*($AB29-0.5)^2*LN($AB29/(1-$AB29)))+4*EH$98*($AB29-0.5)^3)^-1) ->  | CW31: =IF(OR(DN$26="",DN$26="no"),"",(EI$91/($AB29*(1-$AB29))+EI$92*(($AB29-0.5)/($AB29*(1-$AB29))+LN($AB29/(1-$AB29)))+EI$93+2*EI$94*($AB29-0.5)+EI$95*(($AB29-0.5)^2/($AB29*(1-$AB29))+2*($AB29-0.5)*LN($AB29/(1-$AB29)))+3*EI$96*($AB29-0.5)^2+EI$97*(($AB29-0.5)^3/($AB29*(1-$AB29))+3*($AB29-0.5)^2*LN($AB29/(1-$AB29)))+4*EI$98*($AB29-0.5)^3+EI$99*(($AB29-0.5)^4/($AB29*(1-$AB29))+4*($AB29-0.5)^3*LN($AB29/(1-$AB29)))+5*EI$100*($AB29-0.5)^4+EI$101*(($AB29-0.5)^5/($AB29*(1-$AB29))+5*($AB29-0.5)^4*LN($AB29/(1-$AB29)))+6*EI$102*($AB29-0.5)^5+EI$103*(($AB29-0.5)^6/($AB29*(1-$AB29))+6*($AB29-0.5)^5*LN($AB29/(1-$AB29)))+7*EI$104*($AB29-0.5)^6+EI$105*(($AB29-0.5)^7/($AB29*(1-$AB29))+7*($AB29-0.5)^6*LN($AB29/(1-$AB29))))^-1) ->  | CZ31: =IF(OR(DQ$26="",DQ$26="no"),"",(EL$91/($AB29*(1-$AB29))+EL$92*(($AB29-0.5)/($AB29*(1-$AB29))+LN($AB29/(1-$AB29)))+EL$93+2*EL$94*($AB29-0.5)+EL$95*(($AB29-0.5)^2/($AB29*(1-$AB29))+2*($AB29-0.5)*LN($AB29/(1-$AB29)))+3*EL$96*($AB29-0.5)^2+EL$97*(($AB29-0.5)^3/($AB29*(1-$AB29))+3*($AB29-0.5)^2*LN($AB29/(1-$AB29)))+4*EL$98*($AB29-0.5)^3+EL$99*(($AB29-0.5)^4/($AB29*(1-$AB29))+4*($AB29-0.5)^3*LN($AB29/(1-$AB29)))+5*EL$100*($AB29-0.5)^4+EL$101*(($AB29-0.5)^5/($AB29*(1-$AB29))+5*($AB29-0.5)^4*LN($AB29/(1-$AB29)))+6*EL$102*($AB29-0.5)^5+EL$103*(($AB29-0.5)^6/($AB29*(1-$AB29))+6*($AB29-0.5)^5*LN($AB29/(1-$AB29)))+7*EL$104*($AB29-0.5)^6+EL$105*(($AB29-0.5)^7/($AB29*(1-$AB29))+7*($AB29-0.5)^6*LN($AB29/(1-$AB29))))^-1) ->  | DA31: =IF(OR(DR$26="",DR$26="no"),"",(EM$91/($AB29*(1-$AB29))+EM$92*(($AB29-0.5)/($AB29*(1-$AB29))+LN($AB29/(1-$AB29)))+EM$93+2*EM$94*($AB29-0.5)+EM$95*(($AB29-0.5)^2/($AB29*(1-$AB29))+2*($AB29-0.5)*LN($AB29/(1-$AB29)))+3*EM$96*($AB29-0.5)^2+EM$97*(($AB29-0.5)^3/($AB29*(1-$AB29))+3*($AB29-0.5)^2*LN($AB29/(1-$AB29)))+4*EM$98*($AB29-0.5)^3+EM$99*(($AB29-0.5)^4/($AB29*(1-$AB29))+4*($AB29-0.5)^3*LN($AB29/(1-$AB29)))+5*EM$100*($AB29-0.5)^4+EM$101*(($AB29-0.5)^5/($AB29*(1-$AB29))+5*($AB29-0.5)^4*LN($AB29/(1-$AB29)))+6*EM$102*($AB29-0.5)^5+EM$103*(($AB29-0.5)^6/($AB29*(1-$AB29))+6*($AB29-0.5)^5*LN($AB29/(1-$AB29)))+7*EM$104*($AB29-0.5)^6+EM$105*(($AB29-0.5)^7/($AB29*(1-$AB29))+7*($AB29-0.5)^6*LN($AB29/(1-$AB29))))^-1) ->  | DB31: =IF(OR(DS$26="",DS$26="no"),"",(EN$91/($AB29*(1-$AB29))+EN$92*(($AB29-0.5)/($AB29*(1-$AB29))+LN($AB29/(1-$AB29)))+EN$93+2*EN$94*($AB29-0.5)+EN$95*(($AB29-0.5)^2/($AB29*(1-$AB29))+2*($AB29-0.5)*LN($AB29/(1-$AB29)))+3*EN$96*($AB29-0.5)^2+EN$97*(($AB29-0.5)^3/($AB29*(1-$AB29))+3*($AB29-0.5)^2*LN($AB29/(1-$AB29)))+4*EN$98*($AB29-0.5)^3+EN$99*(($AB29-0.5)^4/($AB29*(1-$AB29))+4*($AB29-0.5)^3*LN($AB29/(1-$AB29)))+5*EN$100*($AB29-0.5)^4+EN$101*(($AB29-0.5)^5/($AB29*(1-$AB29))+5*($AB29-0.5)^4*LN($AB29/(1-$AB29)))+6*EN$102*($AB29-0.5)^5+EN$103*(($AB29-0.5)^6/($AB29*(1-$AB29))+6*($AB29-0.5)^5*LN($AB29/(1-$AB29)))+7*EN$104*($AB29-0.5)^6+EN$105*(($AB29-0.5)^7/($AB29*(1-$AB29))+7*($AB29-0.5)^6*LN($AB29/(1-$AB29))))^-1) ->  | DC31: =IF(OR(DT$26="",DT$26="no"),"",(EO$91/($AB29*(1-$AB29))+EO$92*(($AB29-0.5)/($AB29*(1-$AB29))+LN($AB29/(1-$AB29)))+EO$93+2*EO$94*($AB29-0.5)+EO$95*(($AB29-0.5)^2/($AB29*(1-$AB29))+2*($AB29-0.5)*LN($AB29/(1-$AB29)))+3*EO$96*($AB29-0.5)^2+EO$97*(($AB29-0.5)^3/($AB29*(1-$AB29))+3*($AB29-0.5)^2*LN($AB29/(1-$AB29)))+4*EO$98*($AB29-0.5)^3+EO$99*(($AB29-0.5)^4/($AB29*(1-$AB29))+4*($AB29-0.5)^3*LN($AB29/(1-$AB29)))+5*EO$100*($AB29-0.5)^4+EO$101*(($AB29-0.5)^5/($AB29*(1-$AB29))+5*($AB29-0.5)^4*LN($AB29/(1-$AB29)))+6*EO$102*($AB29-0.5)^5+EO$103*(($AB29-0.5)^6/($AB29*(1-$AB29))+6*($AB29-0.5)^5*LN($AB29/(1-$AB29)))+7*EO$104*($AB29-0.5)^6+EO$105*(($AB29-0.5)^7/($AB29*(1-$AB29))+7*($AB29-0.5)^6*LN($AB29/(1-$AB29))))^-1) ->  | DE31: 1 | DF31: 0 | DG31: 0 | DH31: 0 | DI31: 0 | DJ31: 0 | DK31: 0 | DL31: 0 | DM31: 0 | DN31: =IF(B31="","",DF31*DM31) -> 0 | DO31: 0 | DP31: 0 | DQ31: 0 | DR31: 0 | DS31: 0 | DT31: 0 | DU31: 40 | DW31: numeric | DX31: =SUM(IF(ISNUMBER(INDEX(C30:C10029,1,1):INDEX(C30:C10029,B20,1)),1,0)) -> 5 | DZ31: =IF(DX29<>DX31,1,0) -> 0 | EA31: 0 | EB31: invalid input parameters: x data must be contiguous and start in row 21 | EK31: 1e-08
B32: 0.9 | C32: 60 | X32: a5 | Y32: =INDEX(EA94:EO94,C$20-1) -> -21.17369534 | AB32: 0.01 | AC32: 10 | AD32: 0.001578295247 | AE32: 5.633039864 | AF32: 10.34407813 | AG32: 9.711038269 | AH32: 10 | AT32: 0.001155580374 | AU32: 0.00163828332 | AV32: 0.001388445677 | AW32: 0.001578295247 | BJ32: 5.633039864 | BK32: 10.34407813 | BL32: 9.711038269 | BM32: 10 | BY32: 0.001155580374 | BZ32: 0.00163828332 | CA32: 0.001388445677 | CB32: 0.001578295247 | CO32: 0.0003491253433 | CP32: 0.0004869358572 | CQ32: 0.000409856296 | CR32: 0.0004718068273 | DE32: 1 | DF32: 2.197224577 | DG32: 0.8788898309 | DH32: 0.4 | DI32: 0.16 | DJ32: 0.3515559324 | DK32: 0.064 | DL32: 0.1406223729 | DM32: 0.0256 | DN32: 0.05624894918 | DO32: 0.01024 | DP32: 0.02249957967 | DQ32: 0.004096 | DR32: 0.008999831869 | DS32: 0.0016384 | DT32: 0.003599932748 | DU32: 60 | DZ32: 0 | EA32: 0 | EB32: invalid input parameters: x data must be non-decreasing | EK32: 5e-08
B33: 0.01 | C33: 10 | X33: a6 | Y33: =INDEX(EA95:EO95,C$20-1) -> 0 | AB33: 0.02 | AC33: 14.39621789 | AD33: 0.003145519087 | AE33: 11.65829412 | AF33: 14.56141647 | AG33: 14.66330351 | AH33: 14.39621789 | AT33: 0.00228781569 | AU33: 0.003296932554 | AV33: 0.002825402759 | AW33: 0.003145519087 | BJ33: 11.65829412 | BK33: 14.56141647 | BL33: 14.66330351 | BM33: 14.39621789 | BY33: 0.00228781569 | BZ33: 0.003296932554 | CA33: 0.002825402759 | CB33: 0.003145519087 | CO33: 0.0006961496314 | CP33: 0.0009785331018 | CQ33: 0.0008259427267 | CR33: 0.0009460116741 | DE33: 1 | DF33: -4.59511985 | DG33: 2.251608727 | DH33: -0.49 | DI33: 0.2401 | DJ33: -1.103288276 | DK33: -0.117649 | DL33: 0.5406112552 | DM33: 0.05764801 | DN33: -0.2648995151 | DO33: -0.0282475249 | DP33: 0.1298007624 | DQ33: 0.0138412872 | DR33: -0.06360237357 | DS33: -0.006782230728 | DT33: 0.03116516305 | DU33: 10 | DW33: count of | DZ33: =IF(B20<2,1,0) -> 0 | EA33: 0 | EB33: at least two x input parameters are required | EK33: 2.5e-07
B34: 0.99 | C34: 90 | X34: a7 | Y34: =INDEX(EA96:EO96,C$20-1) -> 0 | AB34: 0.03 | AC34: 16.98352954 | AD34: 0.004679237552 | AE34: 15.21983256 | AF34: 17.01847156 | AG34: 17.51463556 | AH34: 16.98352954 | AT34: 0.003396705948 | AU34: 0.004953357776 | AV34: 0.004296033701 | AW34: 0.004679237552 | BJ34: 15.21983256 | BK34: 17.01847156 | BL34: 17.51463556 | BM34: 16.98352954 | BY34: 0.003396705948 | BZ34: 0.004953357776 | CA34: 0.004296033701 | CB34: 0.004679237552 | CO34: 0.001155580374 | CP34: 0.00163828332 | CQ34: 0.001388445677 | CR34: 0.001578295247 | DE34: 1 | DF34: 4.59511985 | DG34: 2.251608727 | DH34: 0.49 | DI34: 0.2401 | DJ34: 1.103288276 | DK34: 0.117649 | DL34: 0.5406112552 | DM34: 0.05764801 | DN34: 0.2648995151 | DO34: 0.0282475249 | DP34: 0.1298007624 | DQ34: 0.0138412872 | DR34: 0.06360237357 | DS34: 0.006782230728 | DT34: 0.03116516305 | DU34: 90 | DW34: non-decreasing | DZ34: =IF(AND(OR(B14="sl",B14="b"),C22>=MIN(INDEX(C30:C10029,1,1):INDEX(C30:C10029,B20,1))),1,0) -> 0 | EA34: 0 | EB34: lower bound must be strictly less than all x input data | EK34: 1.25e-06
X35: a8 | Y35: =INDEX(EA97:EO97,C$20-1) -> 0 | AB35: 0.04 | AC35: 18.83739308 | AD35: 0.006170060368 | AE35: 17.77321974 | AF35: 18.76173352 | AG35: 19.51278069 | AH35: 18.83739308 | AT35: 0.004482251148 | AU35: 0.006593969067 | AV35: 0.005790897431 | AW35: 0.006170060368 | BJ35: 17.77321974 | BK35: 18.76173352 | BL35: 19.51278069 | BM35: 18.83739308 | BY35: 0.004482251148 | BZ35: 0.006593969067 | CA35: 0.005790897431 | CB35: 0.006170060368 | CO35: 0.00228781569 | CP35: 0.003296932554 | CQ35: 0.002825402759 | CR35: 0.003145519087 | DW35: x input data | DZ35: =IF(AND(OR(B14="su",B14="b"),C23<=MAX(INDEX(C30:C10029,1,1):INDEX(C30:C10029,B20,1))),1,0) -> 0 | EA35: 0 | EB35: upper bound must be strictly greater than all x input data | EK35: 6.25e-06
X36: a9 | Y36: =INDEX(EA98:EO98,C$20-1) -> 0 | AB36: 0.05 | AC36: 20.29288541 | AD36: 0.007613385485 | AE36: 19.77462706 | AF36: 20.11778448 | AG36: 21.04739438 | AH36: 20.29288541 | AT36: 0.005544451289 | AU36: 0.008208585563 | AV36: 0.007302202046 | AW36: 0.007613385485 | BJ36: 19.77462706 | BK36: 20.11778448 | BL36: 21.04739438 | BM36: 20.29288541 | BY36: 0.005544451289 | BZ36: 0.008208585563 | CA36: 0.007302202046 | CB36: 0.007613385485 | CO36: 0.003396705948 | CP36: 0.004953357776 | CQ36: 0.004296033701 | CR36: 0.004679237552 | DW36: =IF(B20<2,0,SUM(IF(INDEX(C30:C10029,1,1):INDEX(C30:C10029,B20-1,1)>INDEX(C30:C10029,2,1):INDEX(C30:C10029,B20,1),1,0))) -> 1 | DZ36: =IF(OR(C20<2,C20>16),1,0) -> 0 | EA36: 0 | EB36: n must be in the range of 2 to 16 | EK36: 3.125e-05
X37: a10 | Y37: =INDEX(EA99:EO99,C$20-1) -> 0 | AB37: 0.06 | AC37: 21.49844205 | AD37: 0.009007161663 | AE37: 21.42725663 | AF37: 21.2315204 | AG37: 22.29146866 | AH37: 21.49844205 | AT37: 0.006583306373 | AU37: 0.00978908408 | AV37: 0.008822956062 | AW37: 0.009007161663 | BJ37: 21.42725663 | BK37: 21.2315204 | BL37: 22.29146866 | BM37: 21.49844205 | BY37: 0.006583306373 | BZ37: 0.00978908408 | CA37: 0.008822956062 | CB37: 0.009007161663 | CO37: 0.004482251148 | CP37: 0.006593969067 | CQ37: 0.005790897431 | CR37: 0.006170060368 | DZ37: =IF(C20>B20,1,0) -> 0 | EB37: n must less than or equal to m | EK37: 0.00015625
X38: a11 | Y38: =INDEX(EA100:EO100,C$20-1) -> 0 | AB38: 0.07 | AC38: 22.53282385 | AD38: 0.01035085668 | AE38: 22.83951244 | AF38: 22.1799402 | AG38: 23.33699113 | AH38: 22.53282385 | AT38: 0.007598816399 | AU38: 0.01132882618 | AV38: 0.01034664461 | AW38: 0.01035085668 | BJ38: 22.83951244 | BK38: 22.1799402 | BL38: 23.33699113 | BM38: 22.53282385 | BY38: 0.007598816399 | BZ38: 0.01132882618 | CA38: 0.01034664461 | CB38: 0.01035085668 | CO38: 0.005544451289 | CP38: 0.008208585563 | CQ38: 0.007302202046 | CR38: 0.007613385485 | DZ38: =IF(DZ36<>0,"",IF(INDEX(DF26:DT26,1,C20-1)<>"yes",1,0)) -> 0 | EB38: matrix did not invert for this n (see documentation sheet) | EK38: 0.00078125
X39: a12 | Y39: =INDEX(EA101:EO101,C$20-1) -> 0 | AB39: 0.08 | AC39: 23.44280216 | AD39: 0.01164488176 | AE39: 24.07611085 | AF39: 23.00883696 | AG39: 24.23870298 | AH39: 23.44280216 | AT39: 0.008590981366 | AU39: 0.0128223516 | AV39: 0.0118670858 | AW39: 0.01164488176 | BJ39: 24.07611085 | BK39: 23.00883696 | BL39: 24.23870298 | BM39: 23.44280216 | BY39: 0.008590981366 | BZ39: 0.0128223516 | CA39: 0.0118670858 | CB39: 0.01164488176 | CO39: 0.006583306373 | CP39: 0.00978908408 | CQ39: 0.008822956062 | CR39: 0.009007161663 | DW39: input data (large plot) | DZ39: =IF(DZ36<>0,"",IF(INDEX(CO26:DC26,1,C20-1)<>"yes",1,0)) -> 0 | EB39: inputs (x,y) not feasible for this n | EK39: 0.00390625
X40: a13 | Y40: =INDEX(EA102:EO102,C$20-1) -> 0 | AB40: 0.09 | AC40: 24.25839501 | AD40: 0.01289023733 | AE40: 25.17880338 | AF40: 23.7476439 | AG40: 25.03181029 | AH40: 24.25839501 | AT40: 0.009559801276 | AU40: 0.01426518697 | AV40: 0.01337836603 | AW40: 0.01289023733 | BJ40: 25.17880338 | BK40: 23.7476439 | BL40: 25.03181029 | BM40: 24.25839501 | BY40: 0.009559801276 | BZ40: 0.01426518697 | CA40: 0.01337836603 | CB40: 0.01289023733 | CO40: 0.007598816399 | CP40: 0.01132882618 | CQ40: 0.01034664461 | CR40: 0.01035085668 | DW40: y | DX40: x | DZ40: =SUM(DZ27:DZ39) -> 0 | EA40: =SUM(EA27:EA39) -> 0 | EB40: =IF(DZ40=0,"(none)",VLOOKUP(1,DZ27:EI39,3,0)) -> (none) | EK40: 0.01953125
X41: a14 | Y41: =INDEX(EA103:EO103,C$20-1) -> 0 | AB41: 0.1 | AC41: 25 | AD41: 0.01408828223 | AE41: 26.17610527 | AF41: 24.41639003 | AG41: 25.74028477 | AH41: 25 | AT41: 0.01050527613 | AU41: 0.0156537116 | AV41: 0.014874815 | AW41: 0.01408828223 | BJ41: 26.17610527 | BK41: 24.41639003 | BL41: 25.74028477 | BM41: 25 | BY41: 0.01050527613 | BZ41: 0.0156537116 | CA41: 0.014874815 | CB41: 0.01408828223 | CO41: 0.008590981366 | CP41: 0.0128223516 | CQ41: 0.0118670858 | CR41: 0.01164488176 | DW41: =IF(OR($B$14="sl",$B$14="b"),0,NA()) ->  | DX41: =IF(OR($B$14="sl",$B$14="b"),C$22,NA()) -> 
X42: a15 | Y42: =INDEX(EA104:EO104,C$20-1) -> 0 | AB42: 0.11 | AC42: 25.68209912 | AD42: 0.01524057853 | AE42: 27.08836241 | AF42: 25.02931565 | AG42: 26.38117988 | AH42: 25.68209912 | AT42: 0.01142740592 | AU42: 0.01698505445 | AV42: 0.01635100243 | AW42: 0.01524057853 | BJ42: 27.08836241 | BK42: 25.02931565 | BL42: 26.38117988 | BM42: 25.68209912 | BY42: 0.01142740592 | BZ42: 0.01698505445 | CA42: 0.01635100243 | CB42: 0.01524057853 | CO42: 0.009559801276 | CP42: 0.01426518697 | CQ42: 0.01337836603 | CR42: 0.01289023733 | DW42: =IF(B30="",NA(),B30) -> 0.1 | DX42: =IF(C30="",NA(),C30) -> 25 | DZ42: regularization (lI)
X43: a16 | Y43: =INDEX(EA105:EO105,C$20-1) -> 0 | AB43: 0.12 | AC43: 26.31533901 | AD43: 0.01634878499 | AE43: 27.93060433 | AF43: 25.59690403 | AG43: 26.96705696 | AH43: 26.31533901 | AT43: 0.01232619066 | AU43: 0.01825700947 | AV43: 0.01780174675 | AW43: 0.01634878499 | BJ43: 27.93060433 | BK43: 25.59690403 | BL43: 26.96705696 | BM43: 26.31533901 | BY43: 0.01232619066 | BZ43: 0.01825700947 | CA43: 0.01780174675 | CB43: 0.01634878499 | CO43: 0.01050527613 | CP43: 0.0156537116 | CQ43: 0.014874815 | CR43: 0.01408828223 | DW43: 0.5 | DX43: 40 | DZ43: 0 | EA43: =IF(COLUMN()-COLUMN($DZ42)+1=ROW()-ROW(EA$42),INDEX($EK$30:$EK$40,$C$26+1,1),0) -> 0 | EB43: =IF(COLUMN()-COLUMN($DZ42)+1=ROW()-ROW(EB$42),INDEX($EK$30:$EK$40,$C$26+1,1),0) -> 0 | EC43: =IF(COLUMN()-COLUMN($DZ42)+1=ROW()-ROW(EC$42),INDEX($EK$30:$EK$40,$C$26+1,1),0) -> 0 | ED43: =IF(COLUMN()-COLUMN($DZ42)+1=ROW()-ROW(ED$42),INDEX($EK$30:$EK$40,$C$26+1,1),0) -> 0 | EE43: =IF(COLUMN()-COLUMN($DZ42)+1=ROW()-ROW(EE$42),INDEX($EK$30:$EK$40,$C$26+1,1),0) -> 0 | EF43: =IF(COLUMN()-COLUMN($DZ42)+1=ROW()-ROW(EF$42),INDEX($EK$30:$EK$40,$C$26+1,1),0) -> 0 | EG43: =IF(COLUMN()-COLUMN($DZ42)+1=ROW()-ROW(EG$42),INDEX($EK$30:$EK$40,$C$26+1,1),0) -> 0 | EH43: =IF(COLUMN()-COLUMN($DZ42)+1=ROW()-ROW(EH$42),INDEX($EK$30:$EK$40,$C$26+1,1),0) -> 0 | EI43: =IF(COLUMN()-COLUMN($DZ42)+1=ROW()-ROW(EI$42),INDEX($EK$30:$EK$40,$C$26+1,1),0) -> 0 | EJ43: =IF(COLUMN()-COLUMN($DZ42)+1=ROW()-ROW(EJ$42),INDEX($EK$30:$EK$40,$C$26+1,1),0) -> 0 | EK43: =IF(COLUMN()-COLUMN($DZ42)+1=ROW()-ROW(EK$42),INDEX($EK$30:$EK$40,$C$26+1,1),0) -> 0 | EL43: =IF(COLUMN()-COLUMN($DZ42)+1=ROW()-ROW(EL$42),INDEX($EK$30:$EK$40,$C$26+1,1),0) -> 0 | EM43: =IF(COLUMN()-COLUMN($DZ42)+1=ROW()-ROW(EM$42),INDEX($EK$30:$EK$40,$C$26+1,1),0) -> 0 | EN43: =IF(COLUMN()-COLUMN($DZ42)+1=ROW()-ROW(EN$42),INDEX($EK$30:$EK$40,$C$26+1,1),0) -> 0 | EO43: =IF(COLUMN()-COLUMN($DZ42)+1=ROW()-ROW(EO$42),INDEX($EK$30:$EK$40,$C$26+1,1),0) -> 0
Y44: moments | AB44: 0.13 | AC44: 26.90777222 | AD44: 0.01741458352 | AE44: 28.71425116 | AF44: 26.12709464 | AG44: 27.50743453 | AH44: 26.90777222 | AT44: 0.01320163033 | AU44: 0.01946796251 | AV44: 0.01922213046 | AW44: 0.01741458352 | BJ44: 28.71425116 | BK44: 26.12709464 | BL44: 27.50743453 | BM44: 26.90777222 | BY44: 0.01320163033 | BZ44: 0.01946796251 | CA44: 0.01922213046 | CB44: 0.01741458352 | CO44: 0.01142740592 | CP44: 0.01698505445 | CQ44: 0.01635100243 | CR44: 0.01524057853 | DW44: 0.9 | DX44: 60 | DZ44: =IF(COLUMN()-COLUMN($DZ43)+1=ROW()-ROW(DZ$42),INDEX($EK$30:$EK$40,$C$26+1,1),0) -> 0 | EA44: =IF(COLUMN()-COLUMN($DZ43)+1=ROW()-ROW(EA$42),INDEX($EK$30:$EK$40,$C$26+1,1),0) -> 0 | EB44: =IF(COLUMN()-COLUMN($DZ43)+1=ROW()-ROW(EB$42),INDEX($EK$30:$EK$40,$C$26+1,1),0) -> 0 | EC44: =IF(COLUMN()-COLUMN($DZ43)+1=ROW()-ROW(EC$42),INDEX($EK$30:$EK$40,$C$26+1,1),0) -> 0 | ED44: =IF(COLUMN()-COLUMN($DZ43)+1=ROW()-ROW(ED$42),INDEX($EK$30:$EK$40,$C$26+1,1),0) -> 0 | EE44: =IF(COLUMN()-COLUMN($DZ43)+1=ROW()-ROW(EE$42),INDEX($EK$30:$EK$40,$C$26+1,1),0) -> 0 | EF44: =IF(COLUMN()-COLUMN($DZ43)+1=ROW()-ROW(EF$42),INDEX($EK$30:$EK$40,$C$26+1,1),0) -> 0 | EG44: =IF(COLUMN()-COLUMN($DZ43)+1=ROW()-ROW(EG$42),INDEX($EK$30:$EK$40,$C$26+1,1),0) -> 0 | EH44: =IF(COLUMN()-COLUMN($DZ43)+1=ROW()-ROW(EH$42),INDEX($EK$30:$EK$40,$C$26+1,1),0) -> 0 | EI44: =IF(COLUMN()-COLUMN($DZ43)+1=ROW()-ROW(EI$42),INDEX($EK$30:$EK$40,$C$26+1,1),0) -> 0 | EJ44: =IF(COLUMN()-COLUMN($DZ43)+1=ROW()-ROW(EJ$42),INDEX($EK$30:$EK$40,$C$26+1,1),0) -> 0 | EK44: =IF(COLUMN()-COLUMN($DZ43)+1=ROW()-ROW(EK$42),INDEX($EK$30:$EK$40,$C$26+1,1),0) -> 0 | EL44: =IF(COLUMN()-COLUMN($DZ43)+1=ROW()-ROW(EL$42),INDEX($EK$30:$EK$40,$C$26+1,1),0) -> 0 | EM44: =IF(COLUMN()-COLUMN($DZ43)+1=ROW()-ROW(EM$42),INDEX($EK$30:$EK$40,$C$26+1,1),0) -> 0 | EN44: =IF(COLUMN()-COLUMN($DZ43)+1=ROW()-ROW(EN$42),INDEX($EK$30:$EK$40,$C$26+1,1),0) -> 0 | EO44: =IF(COLUMN()-COLUMN($DZ43)+1=ROW()-ROW(EO$42),INDEX($EK$30:$EK$40,$C$26+1,1),0) -> 0
Y45: (unbounded only) | AB45: 0.14 | AC45: 27.46563518 | AD45: 0.01843962821 | AE45: 29.44818632 | AF45: 26.62604407 | AG45: 28.00969744 | AH45: 27.46563518 | AT45: 0.01405372495 | AU45: 0.02061682624 | AV45: 0.02060751864 | AW45: 0.01843962821 | BJ45: 29.44818632 | BK45: 26.62604407 | BL45: 28.00969744 | BM45: 27.46563518 | BY45: 0.01405372495 | BZ45: 0.02061682624 | CA45: 0.02060751864 | CB45: 0.01843962821 | CO45: 0.01232619066 | CP45: 0.01825700947 | CQ45: 0.01780174675 | CR45: 0.01634878499 | DW45: 0.01 | DX45: 10 | DZ45: =IF(COLUMN()-COLUMN($DZ44)+1=ROW()-ROW(DZ$42),INDEX($EK$30:$EK$40,$C$26+1,1),0) -> 0 | EA45: =IF(COLUMN()-COLUMN($DZ44)+1=ROW()-ROW(EA$42),INDEX($EK$30:$EK$40,$C$26+1,1),0) -> 0 | EB45: =IF(COLUMN()-COLUMN($DZ44)+1=ROW()-ROW(EB$42),INDEX($EK$30:$EK$40,$C$26+1,1),0) -> 0 | EC45: =IF(COLUMN()-COLUMN($DZ44)+1=ROW()-ROW(EC$42),INDEX($EK$30:$EK$40,$C$26+1,1),0) -> 0 | ED45: =IF(COLUMN()-COLUMN($DZ44)+1=ROW()-ROW(ED$42),INDEX($EK$30:$EK$40,$C$26+1,1),0) -> 0 | EE45: =IF(COLUMN()-COLUMN($DZ44)+1=ROW()-ROW(EE$42),INDEX($EK$30:$EK$40,$C$26+1,1),0) -> 0 | EF45: =IF(COLUMN()-COLUMN($DZ44)+1=ROW()-ROW(EF$42),INDEX($EK$30:$EK$40,$C$26+1,1),0) -> 0 | EG45: =IF(COLUMN()-COLUMN($DZ44)+1=ROW()-ROW(EG$42),INDEX($EK$30:$EK$40,$C$26+1,1),0) -> 0 | EH45: =IF(COLUMN()-COLUMN($DZ44)+1=ROW()-ROW(EH$42),INDEX($EK$30:$EK$40,$C$26+1,1),0) -> 0 | EI45: =IF(COLUMN()-COLUMN($DZ44)+1=ROW()-ROW(EI$42),INDEX($EK$30:$EK$40,$C$26+1,1),0) -> 0 | EJ45: =IF(COLUMN()-COLUMN($DZ44)+1=ROW()-ROW(EJ$42),INDEX($EK$30:$EK$40,$C$26+1,1),0) -> 0 | EK45: =IF(COLUMN()-COLUMN($DZ44)+1=ROW()-ROW(EK$42),INDEX($EK$30:$EK$40,$C$26+1,1),0) -> 0 | EL45: =IF(COLUMN()-COLUMN($DZ44)+1=ROW()-ROW(EL$42),INDEX($EK$30:$EK$40,$C$26+1,1),0) -> 0 | EM45: =IF(COLUMN()-COLUMN($DZ44)+1=ROW()-ROW(EM$42),INDEX($EK$30:$EK$40,$C$26+1,1),0) -> 0 | EN45: =IF(COLUMN()-COLUMN($DZ44)+1=ROW()-ROW(EN$42),INDEX($EK$30:$EK$40,$C$26+1,1),0) -> 0 | EO45: =IF(COLUMN()-COLUMN($DZ44)+1=ROW()-ROW(EO$42),INDEX($EK$30:$EK$40,$C$26+1,1),0) -> 0
N46: chart titles | X46: mean | Y46: =INDEX(EA109:EO109,C$20-1) -> 41.58508699 | AB46: 0.15 | AC46: 27.99385563 | AD46: 0.01942551039 | AE46: 30.1394582 | AF46: 27.09862277 | AG46: 28.47969073 | AH46: 27.99385563 | AT46: 0.01488247451 | AU46: 0.02170298097 | AV46: 0.02195357826 | AW46: 0.01942551039 | BJ46: 30.1394582 | BK46: 27.09862277 | BL46: 28.47969073 | BM46: 27.99385563 | BY46: =IF(AND($EA$41=0,CO$26="yes"),CO48,"") -> 0.01488247451 | BZ46: 0.02170298097 | CA46: 0.02195357826 | CB46: 0.01942551039 | CO46: 0.01320163033 | CP46: 0.01946796251 | CQ46: 0.01922213046 | CR46: 0.01741458352 | DW46: 0.99 | DX46: 90 | DZ46: =IF(COLUMN()-COLUMN($DZ45)+1=ROW()-ROW(DZ$42),INDEX($EK$30:$EK$40,$C$26+1,1),0) -> 0 | EA46: =IF(COLUMN()-COLUMN($DZ45)+1=ROW()-ROW(EA$42),INDEX($EK$30:$EK$40,$C$26+1,1),0) -> 0 | EB46: =IF(COLUMN()-COLUMN($DZ45)+1=ROW()-ROW(EB$42),INDEX($EK$30:$EK$40,$C$26+1,1),0) -> 0 | EC46: =IF(COLUMN()-COLUMN($DZ45)+1=ROW()-ROW(EC$42),INDEX($EK$30:$EK$40,$C$26+1,1),0) -> 0 | ED46: =IF(COLUMN()-COLUMN($DZ45)+1=ROW()-ROW(ED$42),INDEX($EK$30:$EK$40,$C$26+1,1),0) -> 0 | EE46: =IF(COLUMN()-COLUMN($DZ45)+1=ROW()-ROW(EE$42),INDEX($EK$30:$EK$40,$C$26+1,1),0) -> 0 | EF46: =IF(COLUMN()-COLUMN($DZ45)+1=ROW()-ROW(EF$42),INDEX($EK$30:$EK$40,$C$26+1,1),0) -> 0 | EG46: =IF(COLUMN()-COLUMN($DZ45)+1=ROW()-ROW(EG$42),INDEX($EK$30:$EK$40,$C$26+1,1),0) -> 0 | EH46: =IF(COLUMN()-COLUMN($DZ45)+1=ROW()-ROW(EH$42),INDEX($EK$30:$EK$40,$C$26+1,1),0) -> 0 | EI46: =IF(COLUMN()-COLUMN($DZ45)+1=ROW()-ROW(EI$42),INDEX($EK$30:$EK$40,$C$26+1,1),0) -> 0 | EJ46: =IF(COLUMN()-COLUMN($DZ45)+1=ROW()-ROW(EJ$42),INDEX($EK$30:$EK$40,$C$26+1,1),0) -> 0 | EK46: =IF(COLUMN()-COLUMN($DZ45)+1=ROW()-ROW(EK$42),INDEX($EK$30:$EK$40,$C$26+1,1),0) -> 0 | EL46: =IF(COLUMN()-COLUMN($DZ45)+1=ROW()-ROW(EL$42),INDEX($EK$30:$EK$40,$C$26+1,1),0) -> 0 | EM46: =IF(COLUMN()-COLUMN($DZ45)+1=ROW()-ROW(EM$42),INDEX($EK$30:$EK$40,$C$26+1,1),0) -> 0 | EN46: =IF(COLUMN()-COLUMN($DZ45)+1=ROW()-ROW(EN$42),INDEX($EK$30:$EK$40,$C$26+1,1),0) -> 0 | EO46: =IF(COLUMN()-COLUMN($DZ45)+1=ROW()-ROW(EO$42),INDEX($EK$30:$EK$40,$C$26+1,1),0) -> 0
N47: =B9 & " cumulative" -> var 1 cumulative | R47: =B9 & " density" -> var 1 density | X47: std dev | Y47: =INDEX(EA110:EO110,C$20-1) -> 15.2271748 | AB47: 0.16 | AC47: 28.49639509 | AD47: 0.02037373511 | AE47: 30.79375496 | AF47: 27.54875056 | AG47: 28.92212066 | AH47: 28.49639509 | AT47: 0.01568787902 | AU47: 0.02272622031 | AV47: 0.02325629671 | AW47: 0.02037373511 | BJ47: 30.79375496 | BK47: 27.54875056 | BL47: 28.92212066 | BM47: 28.49639509 | BY47: 0.01568787902 | BZ47: 0.02272622031 | CA47: 0.02325629671 | CB47: 0.02037373511 | CO47: 0.01405372495 | CP47: 0.02061682624 | CQ47: 0.02060751864 | CR47: 0.01843962821 | CW47: =IF(OR(DN$26="",DN$26="no"),"",(EI$91/($AB45*(1-$AB45))+EI$92*(($AB45-0.5)/($AB45*(1-$AB45))+LN($AB45/(1-$AB45)))+EI$93+2*EI$94*($AB45-0.5)+EI$95*(($AB45-0.5)^2/($AB45*(1-$AB45))+2*($AB45-0.5)*LN($AB45/(1-$AB45)))+3*EI$96*($AB45-0.5)^2+EI$97*(($AB45-0.5)^3/($AB45*(1-$AB45))+3*($AB45-0.5)^2*LN($AB45/(1-$AB45)))+4*EI$98*($AB45-0.5)^3+EI$99*(($AB45-0.5)^4/($AB45*(1-$AB45))+4*($AB45-0.5)^3*LN($AB45/(1-$AB45)))+5*EI$100*($AB45-0.5)^4+EI$101*(($AB45-0.5)^5/($AB45*(1-$AB45))+5*($AB45-0.5)^4*LN($AB45/(1-$AB45)))+6*EI$102*($AB45-0.5)^5+EI$103*(($AB45-0.5)^6/($AB45*(1-$AB45))+6*($AB45-0.5)^5*LN($AB45/(1-$AB45)))+7*EI$104*($AB45-0.5)^6+EI$105*(($AB45-0.5)^7/($AB45*(1-$AB45))+7*($AB45-0.5)^6*LN($AB45/(1-$AB45))))^-1) ->  | DZ47: =IF(COLUMN()-COLUMN($DZ46)+1=ROW()-ROW(DZ$42),INDEX($EK$30:$EK$40,$C$26+1,1),0) -> 0 | EA47: =IF(COLUMN()-COLUMN($DZ46)+1=ROW()-ROW(EA$42),INDEX($EK$30:$EK$40,$C$26+1,1),0) -> 0 | EB47: =IF(COLUMN()-COLUMN($DZ46)+1=ROW()-ROW(EB$42),INDEX($EK$30:$EK$40,$C$26+1,1),0) -> 0 | EC47: =IF(COLUMN()-COLUMN($DZ46)+1=ROW()-ROW(EC$42),INDEX($EK$30:$EK$40,$C$26+1,1),0) -> 0 | ED47: =IF(COLUMN()-COLUMN($DZ46)+1=ROW()-ROW(ED$42),INDEX($EK$30:$EK$40,$C$26+1,1),0) -> 0 | EE47: =IF(COLUMN()-COLUMN($DZ46)+1=ROW()-ROW(EE$42),INDEX($EK$30:$EK$40,$C$26+1,1),0) -> 0 | EF47: =IF(COLUMN()-COLUMN($DZ46)+1=ROW()-ROW(EF$42),INDEX($EK$30:$EK$40,$C$26+1,1),0) -> 0 | EG47: =IF(COLUMN()-COLUMN($DZ46)+1=ROW()-ROW(EG$42),INDEX($EK$30:$EK$40,$C$26+1,1),0) -> 0 | EH47: =IF(COLUMN()-COLUMN($DZ46)+1=ROW()-ROW(EH$42),INDEX($EK$30:$EK$40,$C$26+1,1),0) -> 0 | EI47: =IF(COLUMN()-COLUMN($DZ46)+1=ROW()-ROW(EI$42),INDEX($EK$30:$EK$40,$C$26+1,1),0) -> 0 | EJ47: =IF(COLUMN()-COLUMN($DZ46)+1=ROW()-ROW(EJ$42),INDEX($EK$30:$EK$40,$C$26+1,1),0) -> 0 | EK47: =IF(COLUMN()-COLUMN($DZ46)+1=ROW()-ROW(EK$42),INDEX($EK$30:$EK$40,$C$26+1,1),0) -> 0 | EL47: =IF(COLUMN()-COLUMN($DZ46)+1=ROW()-ROW(EL$42),INDEX($EK$30:$EK$40,$C$26+1,1),0) -> 0 | EM47: =IF(COLUMN()-COLUMN($DZ46)+1=ROW()-ROW(EM$42),INDEX($EK$30:$EK$40,$C$26+1,1),0) -> 0 | EN47: =IF(COLUMN()-COLUMN($DZ46)+1=ROW()-ROW(EN$42),INDEX($EK$30:$EK$40,$C$26+1,1),0) -> 0 | EO47: =IF(COLUMN()-COLUMN($DZ46)+1=ROW()-ROW(EO$42),INDEX($EK$30:$EK$40,$C$26+1,1),0) -> 0
X48: skewness | Y48: =INDEX(EA111:EO111,C$20-1) -> 0.993095236 | AB48: 0.17 | AC48: 28.9764867 | AD48: 0.02128570573 | AE48: 31.4157351 | AF48: 27.97962974 | AG48: 29.34083367 | AH48: 28.9764867 | AT48: 0.01646993846 | AU48: 0.02368670092 | AV48: 0.02451199843 | AW48: 0.02128570573 | BJ48: 31.4157351 | BK48: 27.97962974 | BL48: 29.34083367 | BM48: 28.9764867 | BY48: 0.01646993846 | BZ48: 0.02368670092 | CA48: 0.02451199843 | CB48: 0.02128570573 | CO48: 0.01488247451 | CP48: 0.02170298097 | CQ48: 0.02195357826 | CR48: 0.01942551039 | DZ48: =IF(COLUMN()-COLUMN($DZ47)+1=ROW()-ROW(DZ$42),INDEX($EK$30:$EK$40,$C$26+1,1),0) -> 0 | EA48: =IF(COLUMN()-COLUMN($DZ47)+1=ROW()-ROW(EA$42),INDEX($EK$30:$EK$40,$C$26+1,1),0) -> 0 | EB48: =IF(COLUMN()-COLUMN($DZ47)+1=ROW()-ROW(EB$42),INDEX($EK$30:$EK$40,$C$26+1,1),0) -> 0 | EC48: =IF(COLUMN()-COLUMN($DZ47)+1=ROW()-ROW(EC$42),INDEX($EK$30:$EK$40,$C$26+1,1),0) -> 0 | ED48: =IF(COLUMN()-COLUMN($DZ47)+1=ROW()-ROW(ED$42),INDEX($EK$30:$EK$40,$C$26+1,1),0) -> 0 | EE48: =IF(COLUMN()-COLUMN($DZ47)+1=ROW()-ROW(EE$42),INDEX($EK$30:$EK$40,$C$26+1,1),0) -> 0 | EF48: =IF(COLUMN()-COLUMN($DZ47)+1=ROW()-ROW(EF$42),INDEX($EK$30:$EK$40,$C$26+1,1),0) -> 0 | EG48: =IF(COLUMN()-COLUMN($DZ47)+1=ROW()-ROW(EG$42),INDEX($EK$30:$EK$40,$C$26+1,1),0) -> 0 | EH48: =IF(COLUMN()-COLUMN($DZ47)+1=ROW()-ROW(EH$42),INDEX($EK$30:$EK$40,$C$26+1,1),0) -> 0 | EI48: =IF(COLUMN()-COLUMN($DZ47)+1=ROW()-ROW(EI$42),INDEX($EK$30:$EK$40,$C$26+1,1),0) -> 0 | EJ48: =IF(COLUMN()-COLUMN($DZ47)+1=ROW()-ROW(EJ$42),INDEX($EK$30:$EK$40,$C$26+1,1),0) -> 0 | EK48: =IF(COLUMN()-COLUMN($DZ47)+1=ROW()-ROW(EK$42),INDEX($EK$30:$EK$40,$C$26+1,1),0) -> 0 | EL48: =IF(COLUMN()-COLUMN($DZ47)+1=ROW()-ROW(EL$42),INDEX($EK$30:$EK$40,$C$26+1,1),0) -> 0 | EM48: =IF(COLUMN()-COLUMN($DZ47)+1=ROW()-ROW(EM$42),INDEX($EK$30:$EK$40,$C$26+1,1),0) -> 0 | EN48: =IF(COLUMN()-COLUMN($DZ47)+1=ROW()-ROW(EN$42),INDEX($EK$30:$EK$40,$C$26+1,1),0) -> 0 | EO48: =IF(COLUMN()-COLUMN($DZ47)+1=ROW()-ROW(EO$42),INDEX($EK$30:$EK$40,$C$26+1,1),0) -> 0
E49: metalog quantile function (QF) | K49: example | X49: kurtosis | Y49: =INDEX(EA115:EO115,C$20-1) -> 6.310429609 | AB49: 0.18 | AC49: 29.4368045 | AD49: 0.02216271438 | AE49: 32.0092635 | AF49: 28.39391126 | AG49: 29.73901509 | AH49: 29.4368045 | AT49: 0.01722865285 | AU49: 0.02458489608 | AV49: 0.02571735883 | AW49: 0.02216271438 | BJ49: 32.0092635 | BK49: 28.39391126 | BL49: 29.73901509 | BM49: 29.4368045 | BY49: 0.01722865285 | BZ49: 0.02458489608 | CA49: 0.02571735883 | CB49: 0.02216271438 | CO49: 0.01568787902 | CP49: 0.02272622031 | CQ49: 0.02325629671 | CR49: 0.02037373511 | DZ49: =IF(COLUMN()-COLUMN($DZ48)+1=ROW()-ROW(DZ$42),INDEX($EK$30:$EK$40,$C$26+1,1),0) -> 0 | EA49: =IF(COLUMN()-COLUMN($DZ48)+1=ROW()-ROW(EA$42),INDEX($EK$30:$EK$40,$C$26+1,1),0) -> 0 | EB49: =IF(COLUMN()-COLUMN($DZ48)+1=ROW()-ROW(EB$42),INDEX($EK$30:$EK$40,$C$26+1,1),0) -> 0 | EC49: =IF(COLUMN()-COLUMN($DZ48)+1=ROW()-ROW(EC$42),INDEX($EK$30:$EK$40,$C$26+1,1),0) -> 0 | ED49: =IF(COLUMN()-COLUMN($DZ48)+1=ROW()-ROW(ED$42),INDEX($EK$30:$EK$40,$C$26+1,1),0) -> 0 | EE49: =IF(COLUMN()-COLUMN($DZ48)+1=ROW()-ROW(EE$42),INDEX($EK$30:$EK$40,$C$26+1,1),0) -> 0 | EF49: =IF(COLUMN()-COLUMN($DZ48)+1=ROW()-ROW(EF$42),INDEX($EK$30:$EK$40,$C$26+1,1),0) -> 0 | EG49: =IF(COLUMN()-COLUMN($DZ48)+1=ROW()-ROW(EG$42),INDEX($EK$30:$EK$40,$C$26+1,1),0) -> 0 | EH49: =IF(COLUMN()-COLUMN($DZ48)+1=ROW()-ROW(EH$42),INDEX($EK$30:$EK$40,$C$26+1,1),0) -> 0 | EI49: =IF(COLUMN()-COLUMN($DZ48)+1=ROW()-ROW(EI$42),INDEX($EK$30:$EK$40,$C$26+1,1),0) -> 0 | EJ49: =IF(COLUMN()-COLUMN($DZ48)+1=ROW()-ROW(EJ$42),INDEX($EK$30:$EK$40,$C$26+1,1),0) -> 0 | EK49: =IF(COLUMN()-COLUMN($DZ48)+1=ROW()-ROW(EK$42),INDEX($EK$30:$EK$40,$C$26+1,1),0) -> 0 | EL49: =IF(COLUMN()-COLUMN($DZ48)+1=ROW()-ROW(EL$42),INDEX($EK$30:$EK$40,$C$26+1,1),0) -> 0 | EM49: =IF(COLUMN()-COLUMN($DZ48)+1=ROW()-ROW(EM$42),INDEX($EK$30:$EK$40,$C$26+1,1),0) -> 0 | EN49: =IF(COLUMN()-COLUMN($DZ48)+1=ROW()-ROW(EN$42),INDEX($EK$30:$EK$40,$C$26+1,1),0) -> 0 | EO49: =IF(COLUMN()-COLUMN($DZ48)+1=ROW()-ROW(EO$42),INDEX($EK$30:$EK$40,$C$26+1,1),0) -> 0
E50: To make functions that correspond to the above graphs, click button above. To use formulas, 1) replace y with reference to a cumulative-probability cell and then 2) remove initial apostrophe. Formula is valid for 0<y<1; and for y=0 and y=1 when corresponding bounds have been specified. To plot the PDF above, plot the quantile function on the x-axis and the density function on the y-axis, varying y over its valid range. | X50: (skewness, kurtosis standardized) | AB50: 0.19 | AC50: 29.87958661 | AD50: 0.02300593678 | AE50: 32.57758347 | AF50: 28.79381557 | AG50: 30.11933383 | AH50: 29.87958661 | AT50: 0.01796402218 | AU50: 0.02542155276 | AV50: 0.02686941485 | AW50: 0.02300593678 | BJ50: 32.57758347 | BK50: 28.79381557 | BL50: 30.11933383 | BM50: 29.87958661 | BY50: 0.01796402218 | BZ50: 0.02542155276 | CA50: 0.02686941485 | CB50: 0.02300593678 | CO50: 0.01646993846 | CP50: 0.02368670092 | CQ50: 0.02451199843 | CR50: 0.02128570573 | DZ50: =IF(COLUMN()-COLUMN($DZ49)+1=ROW()-ROW(DZ$42),INDEX($EK$30:$EK$40,$C$26+1,1),0) -> 0 | EA50: =IF(COLUMN()-COLUMN($DZ49)+1=ROW()-ROW(EA$42),INDEX($EK$30:$EK$40,$C$26+1,1),0) -> 0 | EB50: =IF(COLUMN()-COLUMN($DZ49)+1=ROW()-ROW(EB$42),INDEX($EK$30:$EK$40,$C$26+1,1),0) -> 0 | EC50: =IF(COLUMN()-COLUMN($DZ49)+1=ROW()-ROW(EC$42),INDEX($EK$30:$EK$40,$C$26+1,1),0) -> 0 | ED50: =IF(COLUMN()-COLUMN($DZ49)+1=ROW()-ROW(ED$42),INDEX($EK$30:$EK$40,$C$26+1,1),0) -> 0 | EE50: =IF(COLUMN()-COLUMN($DZ49)+1=ROW()-ROW(EE$42),INDEX($EK$30:$EK$40,$C$26+1,1),0) -> 0 | EF50: =IF(COLUMN()-COLUMN($DZ49)+1=ROW()-ROW(EF$42),INDEX($EK$30:$EK$40,$C$26+1,1),0) -> 0 | EG50: =IF(COLUMN()-COLUMN($DZ49)+1=ROW()-ROW(EG$42),INDEX($EK$30:$EK$40,$C$26+1,1),0) -> 0 | EH50: =IF(COLUMN()-COLUMN($DZ49)+1=ROW()-ROW(EH$42),INDEX($EK$30:$EK$40,$C$26+1,1),0) -> 0 | EI50: =IF(COLUMN()-COLUMN($DZ49)+1=ROW()-ROW(EI$42),INDEX($EK$30:$EK$40,$C$26+1,1),0) -> 0 | EJ50: =IF(COLUMN()-COLUMN($DZ49)+1=ROW()-ROW(EJ$42),INDEX($EK$30:$EK$40,$C$26+1,1),0) -> 0 | EK50: =IF(COLUMN()-COLUMN($DZ49)+1=ROW()-ROW(EK$42),INDEX($EK$30:$EK$40,$C$26+1,1),0) -> 0 | EL50: =IF(COLUMN()-COLUMN($DZ49)+1=ROW()-ROW(EL$42),INDEX($EK$30:$EK$40,$C$26+1,1),0) -> 0 | EM50: =IF(COLUMN()-COLUMN($DZ49)+1=ROW()-ROW(EM$42),INDEX($EK$30:$EK$40,$C$26+1,1),0) -> 0 | EN50: =IF(COLUMN()-COLUMN($DZ49)+1=ROW()-ROW(EN$42),INDEX($EK$30:$EK$40,$C$26+1,1),0) -> 0 | EO50: =IF(COLUMN()-COLUMN($DZ49)+1=ROW()-ROW(EO$42),INDEX($EK$30:$EK$40,$C$26+1,1),0) -> 0
L51: QF | M51: PDF | X51: simulate | AB51: 0.2 | AC51: 30.30672655 | AD51: 0.02381643003 | AE51: 33.12344473 | AF51: 29.18122241 | AG51: 30.48404979 | AH51: 30.30672655 | AT51: 0.01867604645 | AU51: 0.02619765209 | AV51: 0.027965572 | AW51: 0.02381643003 | BJ51: 33.12344473 | BK51: 29.18122241 | BL51: 30.48404979 | BM51: 30.30672655 | BY51: 0.01867604645 | BZ51: 0.02619765209 | CA51: 0.027965572 | CB51: 0.02381643003 | CO51: 0.01722865285 | CP51: 0.02458489608 | CQ51: 0.02571735883 | CR51: 0.02216271438 | DZ51: =IF(COLUMN()-COLUMN($DZ50)+1=ROW()-ROW(DZ$42),INDEX($EK$30:$EK$40,$C$26+1,1),0) -> 0 | EA51: =IF(COLUMN()-COLUMN($DZ50)+1=ROW()-ROW(EA$42),INDEX($EK$30:$EK$40,$C$26+1,1),0) -> 0 | EB51: =IF(COLUMN()-COLUMN($DZ50)+1=ROW()-ROW(EB$42),INDEX($EK$30:$EK$40,$C$26+1,1),0) -> 0 | EC51: =IF(COLUMN()-COLUMN($DZ50)+1=ROW()-ROW(EC$42),INDEX($EK$30:$EK$40,$C$26+1,1),0) -> 0 | ED51: =IF(COLUMN()-COLUMN($DZ50)+1=ROW()-ROW(ED$42),INDEX($EK$30:$EK$40,$C$26+1,1),0) -> 0 | EE51: =IF(COLUMN()-COLUMN($DZ50)+1=ROW()-ROW(EE$42),INDEX($EK$30:$EK$40,$C$26+1,1),0) -> 0 | EF51: =IF(COLUMN()-COLUMN($DZ50)+1=ROW()-ROW(EF$42),INDEX($EK$30:$EK$40,$C$26+1,1),0) -> 0 | EG51: =IF(COLUMN()-COLUMN($DZ50)+1=ROW()-ROW(EG$42),INDEX($EK$30:$EK$40,$C$26+1,1),0) -> 0 | EH51: =IF(COLUMN()-COLUMN($DZ50)+1=ROW()-ROW(EH$42),INDEX($EK$30:$EK$40,$C$26+1,1),0) -> 0 | EI51: =IF(COLUMN()-COLUMN($DZ50)+1=ROW()-ROW(EI$42),INDEX($EK$30:$EK$40,$C$26+1,1),0) -> 0 | EJ51: =IF(COLUMN()-COLUMN($DZ50)+1=ROW()-ROW(EJ$42),INDEX($EK$30:$EK$40,$C$26+1,1),0) -> 0 | EK51: =IF(COLUMN()-COLUMN($DZ50)+1=ROW()-ROW(EK$42),INDEX($EK$30:$EK$40,$C$26+1,1),0) -> 0 | EL51: =IF(COLUMN()-COLUMN($DZ50)+1=ROW()-ROW(EL$42),INDEX($EK$30:$EK$40,$C$26+1,1),0) -> 0 | EM51: =IF(COLUMN()-COLUMN($DZ50)+1=ROW()-ROW(EM$42),INDEX($EK$30:$EK$40,$C$26+1,1),0) -> 0 | EN51: =IF(COLUMN()-COLUMN($DZ50)+1=ROW()-ROW(EN$42),INDEX($EK$30:$EK$40,$C$26+1,1),0) -> 0 | EO51: =IF(COLUMN()-COLUMN($DZ50)+1=ROW()-ROW(EO$42),INDEX($EK$30:$EK$40,$C$26+1,1),0) -> 0
K52: y | L52: x | M52: y' | X52: y | Y52: x | AB52: 0.21 | AC52: 30.71984202 | AD52: 0.02459513264 | AE52: 33.64920009 | AF52: 29.55773843 | AG52: 30.83509495 | AH52: 30.71984202 | AT52: 0.01936472566 | AU52: 0.02691437316 | AV52: 0.02900360751 | AW52: 0.02459513264 | BJ52: 33.64920009 | BK52: 29.55773843 | BL52: 30.83509495 | BM52: 30.71984202 | BY52: 0.01936472566 | BZ52: 0.02691437316 | CA52: 0.02900360751 | CB52: 0.02459513264 | CO52: 0.01796402218 | CP52: 0.02542155276 | CQ52: 0.02686941485 | CR52: 0.02300593678 | DZ52: =IF(COLUMN()-COLUMN($DZ51)+1=ROW()-ROW(DZ$42),INDEX($EK$30:$EK$40,$C$26+1,1),0) -> 0 | EA52: =IF(COLUMN()-COLUMN($DZ51)+1=ROW()-ROW(EA$42),INDEX($EK$30:$EK$40,$C$26+1,1),0) -> 0 | EB52: =IF(COLUMN()-COLUMN($DZ51)+1=ROW()-ROW(EB$42),INDEX($EK$30:$EK$40,$C$26+1,1),0) -> 0 | EC52: =IF(COLUMN()-COLUMN($DZ51)+1=ROW()-ROW(EC$42),INDEX($EK$30:$EK$40,$C$26+1,1),0) -> 0 | ED52: =IF(COLUMN()-COLUMN($DZ51)+1=ROW()-ROW(ED$42),INDEX($EK$30:$EK$40,$C$26+1,1),0) -> 0 | EE52: =IF(COLUMN()-COLUMN($DZ51)+1=ROW()-ROW(EE$42),INDEX($EK$30:$EK$40,$C$26+1,1),0) -> 0 | EF52: =IF(COLUMN()-COLUMN($DZ51)+1=ROW()-ROW(EF$42),INDEX($EK$30:$EK$40,$C$26+1,1),0) -> 0 | EG52: =IF(COLUMN()-COLUMN($DZ51)+1=ROW()-ROW(EG$42),INDEX($EK$30:$EK$40,$C$26+1,1),0) -> 0 | EH52: =IF(COLUMN()-COLUMN($DZ51)+1=ROW()-ROW(EH$42),INDEX($EK$30:$EK$40,$C$26+1,1),0) -> 0 | EI52: =IF(COLUMN()-COLUMN($DZ51)+1=ROW()-ROW(EI$42),INDEX($EK$30:$EK$40,$C$26+1,1),0) -> 0 | EJ52: =IF(COLUMN()-COLUMN($DZ51)+1=ROW()-ROW(EJ$42),INDEX($EK$30:$EK$40,$C$26+1,1),0) -> 0 | EK52: =IF(COLUMN()-COLUMN($DZ51)+1=ROW()-ROW(EK$42),INDEX($EK$30:$EK$40,$C$26+1,1),0) -> 0 | EL52: =IF(COLUMN()-COLUMN($DZ51)+1=ROW()-ROW(EL$42),INDEX($EK$30:$EK$40,$C$26+1,1),0) -> 0 | EM52: =IF(COLUMN()-COLUMN($DZ51)+1=ROW()-ROW(EM$42),INDEX($EK$30:$EK$40,$C$26+1,1),0) -> 0 | EN52: =IF(COLUMN()-COLUMN($DZ51)+1=ROW()-ROW(EN$42),INDEX($EK$30:$EK$40,$C$26+1,1),0) -> 0 | EO52: =IF(COLUMN()-COLUMN($DZ51)+1=ROW()-ROW(EO$42),INDEX($EK$30:$EK$40,$C$26+1,1),0) -> 0
K53: 0.25 | L53: =IF(AND(K53>0,K53<1),39.9999999999996+9.75167190635093*LN(K53/(1-K53))+6.69912319684877*(K53-0.5)*LN(K53/(1-K53))+-9.81653295688336*(K53-0.5)+-21.1736953367968*(K53-0.5)^2,"n/a") -> 32.25740546 | M53: =IF(AND(K53>0,K53<1),(9.75167190635093/(K53*(1-K53))+6.69912319684877*((K53-0.5)/(K53*(1-K53))+LN(K53/(1-K53)))+-9.81653295688336+2*-21.1736953367968*(K53-0.5))^-1,"n/a") -> 0.02740677514 | X53: =RAND() -> 0.2784446361 | Y53: =IF(Z53="","",IF($B$14="u",Z53,IF($B$14="sl",$C$22+EXP(Z53),IF($B$14="su",$C$23-EXP(-Z53),IF($B$14="b",($C$22+$C$23*EXP(Z53))/(1+EXP(Z53)),""))))) -> 33.26337948 | Z53: =IF($N$9<>"(none)","",$Y$28+$Y$29*LN(X53/(1-X53))+$Y$30*(X53-0.5)*LN(X53/(1-X53))+$Y$31*(X53-0.5)+$Y$32*(X53-0.5)^2+$Y$33*(X53-0.5)^2*LN(X53/(1-X53))+$Y$34*(X53-0.5)^3+$Y$35*(X53-0.5)^3*LN(X53/(1-X53))+$Y$36*(X53-0.5)^4+$Y$37*(X53-0.5)^4*LN(X53/(1-X53))+$Y$38*(X53-0.5)^5+Y$39*(X53-0.5)^5*LN(X53/(1-X53))+$Y$40*(X53-0.5)^6+$Y$41*(X53-0.5)^6*LN(X53/(1-X53))+$Y$42*(X53-0.5)^7+$Y$43*(X53-0.5)^7*LN(X53/(1-X53))) -> 33.26337948 | AB53: 0.22 | AC53: 31.12032769 | AD53: 0.02534286612 | AE53: 34.15687963 | AF53: 29.92474908 | AG53: 31.17413547 | AH53: 31.12032769 | AT53: 0.02003005982 | AU53: 0.02757305995 | AV53: 0.02998166968 | AW53: 0.02534286612 | BJ53: 34.15687963 | BK53: 29.92474908 | BL53: 31.17413547 | BM53: 31.12032769 | BY53: 0.02003005982 | BZ53: 0.02757305995 | CA53: 0.02998166968 | CB53: 0.02534286612 | CO53: 0.01867604645 | CP53: 0.02619765209 | CQ53: 0.027965572 | CR53: 0.02381643003 | DZ53: =IF(COLUMN()-COLUMN($DZ52)+1=ROW()-ROW(DZ$42),INDEX($EK$30:$EK$40,$C$26+1,1),0) -> 0 | EA53: =IF(COLUMN()-COLUMN($DZ52)+1=ROW()-ROW(EA$42),INDEX($EK$30:$EK$40,$C$26+1,1),0) -> 0 | EB53: =IF(COLUMN()-COLUMN($DZ52)+1=ROW()-ROW(EB$42),INDEX($EK$30:$EK$40,$C$26+1,1),0) -> 0 | EC53: =IF(COLUMN()-COLUMN($DZ52)+1=ROW()-ROW(EC$42),INDEX($EK$30:$EK$40,$C$26+1,1),0) -> 0 | ED53: =IF(COLUMN()-COLUMN($DZ52)+1=ROW()-ROW(ED$42),INDEX($EK$30:$EK$40,$C$26+1,1),0) -> 0 | EE53: =IF(COLUMN()-COLUMN($DZ52)+1=ROW()-ROW(EE$42),INDEX($EK$30:$EK$40,$C$26+1,1),0) -> 0 | EF53: =IF(COLUMN()-COLUMN($DZ52)+1=ROW()-ROW(EF$42),INDEX($EK$30:$EK$40,$C$26+1,1),0) -> 0 | EG53: =IF(COLUMN()-COLUMN($DZ52)+1=ROW()-ROW(EG$42),INDEX($EK$30:$EK$40,$C$26+1,1),0) -> 0 | EH53: =IF(COLUMN()-COLUMN($DZ52)+1=ROW()-ROW(EH$42),INDEX($EK$30:$EK$40,$C$26+1,1),0) -> 0 | EI53: =IF(COLUMN()-COLUMN($DZ52)+1=ROW()-ROW(EI$42),INDEX($EK$30:$EK$40,$C$26+1,1),0) -> 0 | EJ53: =IF(COLUMN()-COLUMN($DZ52)+1=ROW()-ROW(EJ$42),INDEX($EK$30:$EK$40,$C$26+1,1),0) -> 0 | EK53: =IF(COLUMN()-COLUMN($DZ52)+1=ROW()-ROW(EK$42),INDEX($EK$30:$EK$40,$C$26+1,1),0) -> 0 | EL53: =IF(COLUMN()-COLUMN($DZ52)+1=ROW()-ROW(EL$42),INDEX($EK$30:$EK$40,$C$26+1,1),0) -> 0 | EM53: =IF(COLUMN()-COLUMN($DZ52)+1=ROW()-ROW(EM$42),INDEX($EK$30:$EK$40,$C$26+1,1),0) -> 0 | EN53: =IF(COLUMN()-COLUMN($DZ52)+1=ROW()-ROW(EN$42),INDEX($EK$30:$EK$40,$C$26+1,1),0) -> 0 | EO53: =IF(COLUMN()-COLUMN($DZ52)+1=ROW()-ROW(EO$42),INDEX($EK$30:$EK$40,$C$26+1,1),0) -> 0
E54: =IF(AND(y>0,y<1),39.9999999999996+9.75167190635093*LN(y/(1-y))+6.69912319684877*(y-0.5)*LN(y/(1-y))+-9.81653295688336*(y-0.5)+-21.1736953367968*(y-0.5)^2,"n/a") | L54: m_QF | M54: m_PDF | X54: calculate y given x | AB54: 0.23 | AC54: 31.50939599 | AD54: 0.02606033776 | AE54: 34.64824844 | AF54: 30.28345886 | AG54: 31.50261988 | AH54: 31.50939599 | AT54: 0.02067204891 | AU54: 0.02817519127 | AV54: 0.03089827348 | AW54: 0.02606033776 | BJ54: 34.64824844 | BK54: 30.28345886 | BL54: 31.50261988 | BM54: 31.50939599 | BY54: 0.02067204891 | BZ54: 0.02817519127 | CA54: 0.03089827348 | CB54: 0.02606033776 | CO54: 0.01936472566 | CP54: 0.02691437316 | CQ54: 0.02900360751 | CR54: 0.02459513264 | DZ54: =IF(COLUMN()-COLUMN($DZ53)+1=ROW()-ROW(DZ$42),INDEX($EK$30:$EK$40,$C$26+1,1),0) -> 0 | EA54: =IF(COLUMN()-COLUMN($DZ53)+1=ROW()-ROW(EA$42),INDEX($EK$30:$EK$40,$C$26+1,1),0) -> 0 | EB54: =IF(COLUMN()-COLUMN($DZ53)+1=ROW()-ROW(EB$42),INDEX($EK$30:$EK$40,$C$26+1,1),0) -> 0 | EC54: =IF(COLUMN()-COLUMN($DZ53)+1=ROW()-ROW(EC$42),INDEX($EK$30:$EK$40,$C$26+1,1),0) -> 0 | ED54: =IF(COLUMN()-COLUMN($DZ53)+1=ROW()-ROW(ED$42),INDEX($EK$30:$EK$40,$C$26+1,1),0) -> 0 | EE54: =IF(COLUMN()-COLUMN($DZ53)+1=ROW()-ROW(EE$42),INDEX($EK$30:$EK$40,$C$26+1,1),0) -> 0 | EF54: =IF(COLUMN()-COLUMN($DZ53)+1=ROW()-ROW(EF$42),INDEX($EK$30:$EK$40,$C$26+1,1),0) -> 0 | EG54: =IF(COLUMN()-COLUMN($DZ53)+1=ROW()-ROW(EG$42),INDEX($EK$30:$EK$40,$C$26+1,1),0) -> 0 | EH54: =IF(COLUMN()-COLUMN($DZ53)+1=ROW()-ROW(EH$42),INDEX($EK$30:$EK$40,$C$26+1,1),0) -> 0 | EI54: =IF(COLUMN()-COLUMN($DZ53)+1=ROW()-ROW(EI$42),INDEX($EK$30:$EK$40,$C$26+1,1),0) -> 0 | EJ54: =IF(COLUMN()-COLUMN($DZ53)+1=ROW()-ROW(EJ$42),INDEX($EK$30:$EK$40,$C$26+1,1),0) -> 0 | EK54: =IF(COLUMN()-COLUMN($DZ53)+1=ROW()-ROW(EK$42),INDEX($EK$30:$EK$40,$C$26+1,1),0) -> 0 | EL54: =IF(COLUMN()-COLUMN($DZ53)+1=ROW()-ROW(EL$42),INDEX($EK$30:$EK$40,$C$26+1,1),0) -> 0 | EM54: =IF(COLUMN()-COLUMN($DZ53)+1=ROW()-ROW(EM$42),INDEX($EK$30:$EK$40,$C$26+1,1),0) -> 0 | EN54: =IF(COLUMN()-COLUMN($DZ53)+1=ROW()-ROW(EN$42),INDEX($EK$30:$EK$40,$C$26+1,1),0) -> 0 | EO54: =IF(COLUMN()-COLUMN($DZ53)+1=ROW()-ROW(EO$42),INDEX($EK$30:$EK$40,$C$26+1,1),0) -> 0
L55: (range names) | X55: y | Y55: x | AB55: 0.24 | AC55: 31.8881093 | AD55: 0.02674814413 | AE55: 35.12485206 | AF55: 30.63492297 | AG55: 31.82181708 | AH55: 31.8881093 | AT55: 0.02129069295 | AU55: 0.02872235369 | AV55: 0.0317522926 | AW55: 0.02674814413 | BJ55: 35.12485206 | BK55: 30.63492297 | BL55: 31.82181708 | BM55: 31.8881093 | BY55: 0.02129069295 | BZ55: 0.02872235369 | CA55: 0.0317522926 | CB55: 0.02674814413 | CO55: 0.02003005982 | CP55: 0.02757305995 | CQ55: 0.02998166968 | CR55: 0.02534286612 | DZ55: =IF(COLUMN()-COLUMN($DZ54)+1=ROW()-ROW(DZ$42),INDEX($EK$30:$EK$40,$C$26+1,1),0) -> 0 | EA55: =IF(COLUMN()-COLUMN($DZ54)+1=ROW()-ROW(EA$42),INDEX($EK$30:$EK$40,$C$26+1,1),0) -> 0 | EB55: =IF(COLUMN()-COLUMN($DZ54)+1=ROW()-ROW(EB$42),INDEX($EK$30:$EK$40,$C$26+1,1),0) -> 0 | EC55: =IF(COLUMN()-COLUMN($DZ54)+1=ROW()-ROW(EC$42),INDEX($EK$30:$EK$40,$C$26+1,1),0) -> 0 | ED55: =IF(COLUMN()-COLUMN($DZ54)+1=ROW()-ROW(ED$42),INDEX($EK$30:$EK$40,$C$26+1,1),0) -> 0 | EE55: =IF(COLUMN()-COLUMN($DZ54)+1=ROW()-ROW(EE$42),INDEX($EK$30:$EK$40,$C$26+1,1),0) -> 0 | EF55: =IF(COLUMN()-COLUMN($DZ54)+1=ROW()-ROW(EF$42),INDEX($EK$30:$EK$40,$C$26+1,1),0) -> 0 | EG55: =IF(COLUMN()-COLUMN($DZ54)+1=ROW()-ROW(EG$42),INDEX($EK$30:$EK$40,$C$26+1,1),0) -> 0 | EH55: =IF(COLUMN()-COLUMN($DZ54)+1=ROW()-ROW(EH$42),INDEX($EK$30:$EK$40,$C$26+1,1),0) -> 0 | EI55: =IF(COLUMN()-COLUMN($DZ54)+1=ROW()-ROW(EI$42),INDEX($EK$30:$EK$40,$C$26+1,1),0) -> 0 | EJ55: =IF(COLUMN()-COLUMN($DZ54)+1=ROW()-ROW(EJ$42),INDEX($EK$30:$EK$40,$C$26+1,1),0) -> 0 | EK55: =IF(COLUMN()-COLUMN($DZ54)+1=ROW()-ROW(EK$42),INDEX($EK$30:$EK$40,$C$26+1,1),0) -> 0 | EL55: =IF(COLUMN()-COLUMN($DZ54)+1=ROW()-ROW(EL$42),INDEX($EK$30:$EK$40,$C$26+1,1),0) -> 0 | EM55: =IF(COLUMN()-COLUMN($DZ54)+1=ROW()-ROW(EM$42),INDEX($EK$30:$EK$40,$C$26+1,1),0) -> 0 | EN55: =IF(COLUMN()-COLUMN($DZ54)+1=ROW()-ROW(EN$42),INDEX($EK$30:$EK$40,$C$26+1,1),0) -> 0 | EO55: =IF(COLUMN()-COLUMN($DZ54)+1=ROW()-ROW(EO$42),INDEX($EK$30:$EK$40,$C$26+1,1),0) -> 0
X56: =IF(ISERROR(EA138),"",EA138) -> 0.01 | Y56: 10 | AB56: 0.25 | AC56: 32.25740546 | AD56: 0.02740677514 | AE56: 35.58805263 | AF56: 30.98007245 | AG56: 32.13284646 | AH56: 32.25740546 | AT56: 0.02188599193 | AU56: 0.02921621725 | AV56: 0.03254294823 | AW56: 0.02740677514 | BJ56: 35.58805263 | BK56: 30.98007245 | BL56: 32.13284646 | BM56: 32.25740546 | BY56: 0.02188599193 | BZ56: 0.02921621725 | CA56: 0.03254294823 | CB56: 0.02740677514 | CO56: 0.02067204891 | CP56: 0.02817519127 | CQ56: 0.03089827348 | CR56: 0.02606033776 | DZ56: =IF(COLUMN()-COLUMN($DZ55)+1=ROW()-ROW(DZ$42),INDEX($EK$30:$EK$40,$C$26+1,1),0) -> 0 | EA56: =IF(COLUMN()-COLUMN($DZ55)+1=ROW()-ROW(EA$42),INDEX($EK$30:$EK$40,$C$26+1,1),0) -> 0 | EB56: =IF(COLUMN()-COLUMN($DZ55)+1=ROW()-ROW(EB$42),INDEX($EK$30:$EK$40,$C$26+1,1),0) -> 0 | EC56: =IF(COLUMN()-COLUMN($DZ55)+1=ROW()-ROW(EC$42),INDEX($EK$30:$EK$40,$C$26+1,1),0) -> 0 | ED56: =IF(COLUMN()-COLUMN($DZ55)+1=ROW()-ROW(ED$42),INDEX($EK$30:$EK$40,$C$26+1,1),0) -> 0 | EE56: =IF(COLUMN()-COLUMN($DZ55)+1=ROW()-ROW(EE$42),INDEX($EK$30:$EK$40,$C$26+1,1),0) -> 0 | EF56: =IF(COLUMN()-COLUMN($DZ55)+1=ROW()-ROW(EF$42),INDEX($EK$30:$EK$40,$C$26+1,1),0) -> 0 | EG56: =IF(COLUMN()-COLUMN($DZ55)+1=ROW()-ROW(EG$42),INDEX($EK$30:$EK$40,$C$26+1,1),0) -> 0 | EH56: =IF(COLUMN()-COLUMN($DZ55)+1=ROW()-ROW(EH$42),INDEX($EK$30:$EK$40,$C$26+1,1),0) -> 0 | EI56: =IF(COLUMN()-COLUMN($DZ55)+1=ROW()-ROW(EI$42),INDEX($EK$30:$EK$40,$C$26+1,1),0) -> 0 | EJ56: =IF(COLUMN()-COLUMN($DZ55)+1=ROW()-ROW(EJ$42),INDEX($EK$30:$EK$40,$C$26+1,1),0) -> 0 | EK56: =IF(COLUMN()-COLUMN($DZ55)+1=ROW()-ROW(EK$42),INDEX($EK$30:$EK$40,$C$26+1,1),0) -> 0 | EL56: =IF(COLUMN()-COLUMN($DZ55)+1=ROW()-ROW(EL$42),INDEX($EK$30:$EK$40,$C$26+1,1),0) -> 0 | EM56: =IF(COLUMN()-COLUMN($DZ55)+1=ROW()-ROW(EM$42),INDEX($EK$30:$EK$40,$C$26+1,1),0) -> 0 | EN56: =IF(COLUMN()-COLUMN($DZ55)+1=ROW()-ROW(EN$42),INDEX($EK$30:$EK$40,$C$26+1,1),0) -> 0 | EO56: =IF(COLUMN()-COLUMN($DZ55)+1=ROW()-ROW(EO$42),INDEX($EK$30:$EK$40,$C$26+1,1),0) -> 0
AB57: 0.26 | AC57: 32.61811821 | AD57: 0.02803661855 | AE57: 36.03905801 | AF57: 31.31973441 | AG57: 32.43670214 | AH57: 32.61811821 | AT57: 0.02245794585 | AU57: 0.02965851371 | AV57: 0.03326979489 | AW57: 0.02803661855 | BJ57: 36.03905801 | BK57: 31.31973441 | BL57: 32.43670214 | BM57: 32.61811821 | BY57: 0.02245794585 | BZ57: 0.02965851371 | CA57: 0.03326979489 | CB57: 0.02803661855 | CO57: 0.02129069295 | CP57: 0.02872235369 | CQ57: 0.0317522926 | CR57: 0.02674814413 | DZ57: =IF(COLUMN()-COLUMN($DZ56)+1=ROW()-ROW(DZ$42),INDEX($EK$30:$EK$40,$C$26+1,1),0) -> 0 | EA57: =IF(COLUMN()-COLUMN($DZ56)+1=ROW()-ROW(EA$42),INDEX($EK$30:$EK$40,$C$26+1,1),0) -> 0 | EB57: =IF(COLUMN()-COLUMN($DZ56)+1=ROW()-ROW(EB$42),INDEX($EK$30:$EK$40,$C$26+1,1),0) -> 0 | EC57: =IF(COLUMN()-COLUMN($DZ56)+1=ROW()-ROW(EC$42),INDEX($EK$30:$EK$40,$C$26+1,1),0) -> 0 | ED57: =IF(COLUMN()-COLUMN($DZ56)+1=ROW()-ROW(ED$42),INDEX($EK$30:$EK$40,$C$26+1,1),0) -> 0 | EE57: =IF(COLUMN()-COLUMN($DZ56)+1=ROW()-ROW(EE$42),INDEX($EK$30:$EK$40,$C$26+1,1),0) -> 0 | EF57: =IF(COLUMN()-COLUMN($DZ56)+1=ROW()-ROW(EF$42),INDEX($EK$30:$EK$40,$C$26+1,1),0) -> 0 | EG57: =IF(COLUMN()-COLUMN($DZ56)+1=ROW()-ROW(EG$42),INDEX($EK$30:$EK$40,$C$26+1,1),0) -> 0 | EH57: =IF(COLUMN()-COLUMN($DZ56)+1=ROW()-ROW(EH$42),INDEX($EK$30:$EK$40,$C$26+1,1),0) -> 0 | EI57: =IF(COLUMN()-COLUMN($DZ56)+1=ROW()-ROW(EI$42),INDEX($EK$30:$EK$40,$C$26+1,1),0) -> 0 | EJ57: =IF(COLUMN()-COLUMN($DZ56)+1=ROW()-ROW(EJ$42),INDEX($EK$30:$EK$40,$C$26+1,1),0) -> 0 | EK57: =IF(COLUMN()-COLUMN($DZ56)+1=ROW()-ROW(EK$42),INDEX($EK$30:$EK$40,$C$26+1,1),0) -> 0 | EL57: =IF(COLUMN()-COLUMN($DZ56)+1=ROW()-ROW(EL$42),INDEX($EK$30:$EK$40,$C$26+1,1),0) -> 0 | EM57: =IF(COLUMN()-COLUMN($DZ56)+1=ROW()-ROW(EM$42),INDEX($EK$30:$EK$40,$C$26+1,1),0) -> 0 | EN57: =IF(COLUMN()-COLUMN($DZ56)+1=ROW()-ROW(EN$42),INDEX($EK$30:$EK$40,$C$26+1,1),0) -> 0 | EO57: =IF(COLUMN()-COLUMN($DZ56)+1=ROW()-ROW(EO$42),INDEX($EK$30:$EK$40,$C$26+1,1),0) -> 0
AB58: 0.27 | AC58: 32.97099388 | AD58: 0.02863796471 | AE58: 36.47894537 | AF58: 31.65464843 | AG58: 32.73427261 | AH58: 32.97099388 | AT58: 0.02300655472 | AU58: 0.03005101744 | AV58: 0.03393270368 | AW58: 0.02863796471 | BJ58: 36.47894537 | BK58: 31.65464843 | BL58: 32.73427261 | BM58: 32.97099388 | BY58: 0.02300655472 | BZ58: 0.03005101744 | CA58: 0.03393270368 | CB58: 0.02863796471 | CO58: 0.02188599193 | CP58: 0.02921621725 | CQ58: 0.03254294823 | CR58: 0.02740677514 | DZ58: =IF(COLUMN()-COLUMN($DZ57)+1=ROW()-ROW(DZ$42),INDEX($EK$30:$EK$40,$C$26+1,1),0) -> 0 | EA58: =IF(COLUMN()-COLUMN($DZ57)+1=ROW()-ROW(EA$42),INDEX($EK$30:$EK$40,$C$26+1,1),0) -> 0 | EB58: =IF(COLUMN()-COLUMN($DZ57)+1=ROW()-ROW(EB$42),INDEX($EK$30:$EK$40,$C$26+1,1),0) -> 0 | EC58: =IF(COLUMN()-COLUMN($DZ57)+1=ROW()-ROW(EC$42),INDEX($EK$30:$EK$40,$C$26+1,1),0) -> 0 | ED58: =IF(COLUMN()-COLUMN($DZ57)+1=ROW()-ROW(ED$42),INDEX($EK$30:$EK$40,$C$26+1,1),0) -> 0 | EE58: =IF(COLUMN()-COLUMN($DZ57)+1=ROW()-ROW(EE$42),INDEX($EK$30:$EK$40,$C$26+1,1),0) -> 0 | EF58: =IF(COLUMN()-COLUMN($DZ57)+1=ROW()-ROW(EF$42),INDEX($EK$30:$EK$40,$C$26+1,1),0) -> 0 | EG58: =IF(COLUMN()-COLUMN($DZ57)+1=ROW()-ROW(EG$42),INDEX($EK$30:$EK$40,$C$26+1,1),0) -> 0 | EH58: =IF(COLUMN()-COLUMN($DZ57)+1=ROW()-ROW(EH$42),INDEX($EK$30:$EK$40,$C$26+1,1),0) -> 0 | EI58: =IF(COLUMN()-COLUMN($DZ57)+1=ROW()-ROW(EI$42),INDEX($EK$30:$EK$40,$C$26+1,1),0) -> 0 | EJ58: =IF(COLUMN()-COLUMN($DZ57)+1=ROW()-ROW(EJ$42),INDEX($EK$30:$EK$40,$C$26+1,1),0) -> 0 | EK58: =IF(COLUMN()-COLUMN($DZ57)+1=ROW()-ROW(EK$42),INDEX($EK$30:$EK$40,$C$26+1,1),0) -> 0 | EL58: =IF(COLUMN()-COLUMN($DZ57)+1=ROW()-ROW(EL$42),INDEX($EK$30:$EK$40,$C$26+1,1),0) -> 0 | EM58: =IF(COLUMN()-COLUMN($DZ57)+1=ROW()-ROW(EM$42),INDEX($EK$30:$EK$40,$C$26+1,1),0) -> 0 | EN58: =IF(COLUMN()-COLUMN($DZ57)+1=ROW()-ROW(EN$42),INDEX($EK$30:$EK$40,$C$26+1,1),0) -> 0 | EO58: =IF(COLUMN()-COLUMN($DZ57)+1=ROW()-ROW(EO$42),INDEX($EK$30:$EK$40,$C$26+1,1),0) -> 0
AB59: 0.28 | AC59: 33.31670489 | AD59: 0.02921101148 | AE59: 36.90868057 | AF59: 31.98547991 | AG59: 33.02635685 | AH59: 33.31670489 | AT59: 0.02353181852 | AU59: 0.03039552841 | AV59: 0.03453184346 | AW59: 0.02921101148 | BJ59: 36.90868057 | BK59: 31.98547991 | BL59: 33.02635685 | BM59: 33.31670489 | BY59: 0.02353181852 | BZ59: 0.03039552841 | CA59: 0.03453184346 | CB59: 0.02921101148 | CO59: 0.02245794585 | CP59: 0.02965851371 | CQ59: 0.03326979489 | CR59: 0.02803661855
AB60: 0.29 | AC60: 33.65586099 | AD60: 0.02975586942 | AE60: 37.32913412 | AF60: 32.31283119 | AG60: 33.31367754 | AH60: 33.65586099 | AT60: 0.02403373727 | AU60: 0.03069385751 | AV60: 0.03506766019 | AW60: 0.02975586942 | BJ60: 37.32913412 | BK60: 32.31283119 | BL60: 33.31367754 | BM60: 33.65586099 | BY60: 0.02403373727 | BZ60: 0.03069385751 | CA60: 0.03506766019 | CB60: 0.02975586942 | CO60: 0.02300655472 | CP60: 0.03005101744 | CQ60: 0.03393270368 | CR60: 0.02863796471 | EA60: quantiles
AB61: 0.3 | AC61: =INDEX(AE61:AS61,1,$C$20-1) -> 33.98901859 | AD61: =INDEX(AT61:BH61,1,$C$20-1) -> 0.03027256694 | AE61: =IF(BJ61="",NA(),IF($B$14="u",BJ61,IF($B$14="sl",$C$22+EXP(BJ61),IF($B$14="su",$C$23-EXP(-BJ61),IF($B$14="b",($C$22+$C$23*EXP(BJ61))/(1+EXP(BJ61)),NA()))))) -> 37.74109443 | AF61: =IF(BK61="",NA(),IF($B$14="u",BK61,IF($B$14="sl",$C$22+EXP(BK61),IF($B$14="su",$C$23-EXP(-BK61),IF($B$14="b",($C$22+$C$23*EXP(BK61))/(1+EXP(BK61)),NA()))))) -> 32.63725073 | AG61: =IF(BL61="",NA(),IF($B$14="u",BL61,IF($B$14="sl",$C$22+EXP(BL61),IF($B$14="su",$C$23-EXP(-BL61),IF($B$14="b",($C$22+$C$23*EXP(BL61))/(1+EXP(BL61)),NA()))))) -> 33.59689215 | AH61: =IF(BM61="",NA(),IF($B$14="u",BM61,IF($B$14="sl",$C$22+EXP(BM61),IF($B$14="su",$C$23-EXP(-BM61),IF($B$14="b",($C$22+$C$23*EXP(BM61))/(1+EXP(BM61)),NA()))))) -> 33.98901859 | AI61: =IF(BN61="",NA(),IF($B$14="u",BN61,IF($B$14="sl",$C$22+EXP(BN61),IF($B$14="su",$C$23-EXP(-BN61),IF($B$14="b",($C$22+$C$23*EXP(BN61))/(1+EXP(BN61)),NA()))))) ->  | AJ61: =IF(BO61="",NA(),IF($B$14="u",BO61,IF($B$14="sl",$C$22+EXP(BO61),IF($B$14="su",$C$23-EXP(-BO61),IF($B$14="b",($C$22+$C$23*EXP(BO61))/(1+EXP(BO61)),NA()))))) ->  | AK61: =IF(BP61="",NA(),IF($B$14="u",BP61,IF($B$14="sl",$C$22+EXP(BP61),IF($B$14="su",$C$23-EXP(-BP61),IF($B$14="b",($C$22+$C$23*EXP(BP61))/(1+EXP(BP61)),NA()))))) ->  | AL61: =IF(BQ61="",NA(),IF($B$14="u",BQ61,IF($B$14="sl",$C$22+EXP(BQ61),IF($B$14="su",$C$23-EXP(-BQ61),IF($B$14="b",($C$22+$C$23*EXP(BQ61))/(1+EXP(BQ61)),NA()))))) ->  | AM61: =IF(BR61="",NA(),IF($B$14="u",BR61,IF($B$14="sl",$C$22+EXP(BR61),IF($B$14="su",$C$23-EXP(-BR61),IF($B$14="b",($C$22+$C$23*EXP(BR61))/(1+EXP(BR61)),NA()))))) ->  | AN61: =IF(BS61="",NA(),IF($B$14="u",BS61,IF($B$14="sl",$C$22+EXP(BS61),IF($B$14="su",$C$23-EXP(-BS61),IF($B$14="b",($C$22+$C$23*EXP(BS61))/(1+EXP(BS61)),NA()))))) ->  | AO61: =IF(BT61="",NA(),IF($B$14="u",BT61,IF($B$14="sl",$C$22+EXP(BT61),IF($B$14="su",$C$23-EXP(-BT61),IF($B$14="b",($C$22+$C$23*EXP(BT61))/(1+EXP(BT61)),NA()))))) ->  | AP61: =IF(BU61="",NA(),IF($B$14="u",BU61,IF($B$14="sl",$C$22+EXP(BU61),IF($B$14="su",$C$23-EXP(-BU61),IF($B$14="b",($C$22+$C$23*EXP(BU61))/(1+EXP(BU61)),NA()))))) ->  | AQ61: =IF(BV61="",NA(),IF($B$14="u",BV61,IF($B$14="sl",$C$22+EXP(BV61),IF($B$14="su",$C$23-EXP(-BV61),IF($B$14="b",($C$22+$C$23*EXP(BV61))/(1+EXP(BV61)),NA()))))) ->  | AR61: =IF(BW61="",NA(),IF($B$14="u",BW61,IF($B$14="sl",$C$22+EXP(BW61),IF($B$14="su",$C$23-EXP(-BW61),IF($B$14="b",($C$22+$C$23*EXP(BW61))/(1+EXP(BW61)),NA()))))) ->  | AS61: =IF(BX61="",NA(),IF($B$14="u",BX61,IF($B$14="sl",$C$22+EXP(BX61),IF($B$14="su",$C$23-EXP(-BX61),IF($B$14="b",($C$22+$C$23*EXP(BX61))/(1+EXP(BX61)),NA()))))) ->  | AT61: =IF(BY61="",NA(),IF($B$14="u",BY61,IF($B$14="sl",BY61*EXP(-BJ61),IF($B$14="su",BY61*EXP(BJ61),IF($B$14="b",BY61*(1+EXP(BJ61))^2/(($C$23-$C$22)*EXP(BJ61)),NA()))))) -> 0.02451231096 | AU61: =IF(BZ61="",NA(),IF($B$14="u",BZ61,IF($B$14="sl",BZ61*EXP(-BK61),IF($B$14="su",BZ61*EXP(BK61),IF($B$14="b",BZ61*(1+EXP(BK61))^2/(($C$23-$C$22)*EXP(BK61)),NA()))))) -> 0.0309478137 | AV61: =IF(CA61="",NA(),IF($B$14="u",CA61,IF($B$14="sl",CA61*EXP(-BL61),IF($B$14="su",CA61*EXP(BL61),IF($B$14="b",CA61*(1+EXP(BL61))^2/(($C$23-$C$22)*EXP(BL61)),NA()))))) -> 0.03554085513 | AW61: =IF(CB61="",NA(),IF($B$14="u",CB61,IF($B$14="sl",CB61*EXP(-BM61),IF($B$14="su",CB61*EXP(BM61),IF($B$14="b",CB61*(1+EXP(BM61))^2/(($C$23-$C$22)*EXP(BM61)),NA()))))) -> 0.03027256694 | AX61: =IF(CC61="",NA(),IF($B$14="u",CC61,IF($B$14="sl",CC61*EXP(-BN61),IF($B$14="su",CC61*EXP(BN61),IF($B$14="b",CC61*(1+EXP(BN61))^2/(($C$23-$C$22)*EXP(BN61)),NA()))))) ->  | AY61: =IF(CD61="",NA(),IF($B$14="u",CD61,IF($B$14="sl",CD61*EXP(-BO61),IF($B$14="su",CD61*EXP(BO61),IF($B$14="b",CD61*(1+EXP(BO61))^2/(($C$23-$C$22)*EXP(BO61)),NA()))))) ->  | AZ61: =IF(CE61="",NA(),IF($B$14="u",CE61,IF($B$14="sl",CE61*EXP(-BP61),IF($B$14="su",CE61*EXP(BP61),IF($B$14="b",CE61*(1+EXP(BP61))^2/(($C$23-$C$22)*EXP(BP61)),NA()))))) ->  | BA61: =IF(CF61="",NA(),IF($B$14="u",CF61,IF($B$14="sl",CF61*EXP(-BQ61),IF($B$14="su",CF61*EXP(BQ61),IF($B$14="b",CF61*(1+EXP(BQ61))^2/(($C$23-$C$22)*EXP(BQ61)),NA()))))) ->  | BB61: =IF(CG61="",NA(),IF($B$14="u",CG61,IF($B$14="sl",CG61*EXP(-BR61),IF($B$14="su",CG61*EXP(BR61),IF($B$14="b",CG61*(1+EXP(BR61))^2/(($C$23-$C$22)*EXP(BR61)),NA()))))) ->  | BC61: =IF(CH61="",NA(),IF($B$14="u",CH61,IF($B$14="sl",CH61*EXP(-BS61),IF($B$14="su",CH61*EXP(BS61),IF($B$14="b",CH61*(1+EXP(BS61))^2/(($C$23-$C$22)*EXP(BS61)),NA()))))) ->  | BD61: =IF(CI61="",NA(),IF($B$14="u",CI61,IF($B$14="sl",CI61*EXP(-BT61),IF($B$14="su",CI61*EXP(BT61),IF($B$14="b",CI61*(1+EXP(BT61))^2/(($C$23-$C$22)*EXP(BT61)),NA()))))) ->  | BE61: =IF(CJ61="",NA(),IF($B$14="u",CJ61,IF($B$14="sl",CJ61*EXP(-BU61),IF($B$14="su",CJ61*EXP(BU61),IF($B$14="b",CJ61*(1+EXP(BU61))^2/(($C$23-$C$22)*EXP(BU61)),NA()))))) ->  | BF61: =IF(CK61="",NA(),IF($B$14="u",CK61,IF($B$14="sl",CK61*EXP(-BV61),IF($B$14="su",CK61*EXP(BV61),IF($B$14="b",CK61*(1+EXP(BV61))^2/(($C$23-$C$22)*EXP(BV61)),NA()))))) ->  | BG61: =IF(CL61="",NA(),IF($B$14="u",CL61,IF($B$14="sl",CL61*EXP(-BW61),IF($B$14="su",CL61*EXP(BW61),IF($B$14="b",CL61*(1+EXP(BW61))^2/(($C$23-$C$22)*EXP(BW61)),NA()))))) ->  | BH61: =IF(CM61="",NA(),IF($B$14="u",CM61,IF($B$14="sl",CM61*EXP(-BX61),IF($B$14="su",CM61*EXP(BX61),IF($B$14="b",CM61*(1+EXP(BX61))^2/(($C$23-$C$22)*EXP(BX61)),NA()))))) ->  | BJ61: 37.74109443 | BK61: 32.63725073 | BL61: 33.59689215 | BM61: 33.98901859 | BR61: =IF(CG61="","",EI$90+EI$91*LN($AB61/(1-$AB61))+EI$92*($AB61-0.5)*LN($AB61/(1-$AB61))+EI$93*($AB61-0.5)+EI$94*($AB61-0.5)^2+EI$95*($AB61-0.5)^2*LN($AB61/(1-$AB61))+EI$96*($AB61-0.5)^3+EI$97*($AB61-0.5)^3*LN($AB61/(1-$AB61))+EI$98*($AB61-0.5)^4+EI$99*($AB61-0.5)^4*LN($AB61/(1-$AB61))+EI$100*($AB61-0.5)^5+EI$101*($AB61-0.5)^5*LN($AB61/(1-$AB61))+EI$102*($AB61-0.5)^6+EI$103*($AB61-0.5)^6*LN($AB61/(1-$AB61))+EI$104*($AB61-0.5)^7+EI$105*($AB61-0.5)^7*LN($AB61/(1-$AB61))) ->  | BU61: =IF(CJ61="","",EL$90+EL$91*LN($AB61/(1-$AB61))+EL$92*($AB61-0.5)*LN($AB61/(1-$AB61))+EL$93*($AB61-0.5)+EL$94*($AB61-0.5)^2+EL$95*($AB61-0.5)^2*LN($AB61/(1-$AB61))+EL$96*($AB61-0.5)^3+EL$97*($AB61-0.5)^3*LN($AB61/(1-$AB61))+EL$98*($AB61-0.5)^4+EL$99*($AB61-0.5)^4*LN($AB61/(1-$AB61))+EL$100*($AB61-0.5)^5+EL$101*($AB61-0.5)^5*LN($AB61/(1-$AB61))+EL$102*($AB61-0.5)^6+EL$103*($AB61-0.5)^6*LN($AB61/(1-$AB61))+EL$104*($AB61-0.5)^7+EL$105*($AB61-0.5)^7*LN($AB61/(1-$AB61))) ->  | BV61: =IF(CK61="","",EM$90+EM$91*LN($AB61/(1-$AB61))+EM$92*($AB61-0.5)*LN($AB61/(1-$AB61))+EM$93*($AB61-0.5)+EM$94*($AB61-0.5)^2+EM$95*($AB61-0.5)^2*LN($AB61/(1-$AB61))+EM$96*($AB61-0.5)^3+EM$97*($AB61-0.5)^3*LN($AB61/(1-$AB61))+EM$98*($AB61-0.5)^4+EM$99*($AB61-0.5)^4*LN($AB61/(1-$AB61))+EM$100*($AB61-0.5)^5+EM$101*($AB61-0.5)^5*LN($AB61/(1-$AB61))+EM$102*($AB61-0.5)^6+EM$103*($AB61-0.5)^6*LN($AB61/(1-$AB61))+EM$104*($AB61-0.5)^7+EM$105*($AB61-0.5)^7*LN($AB61/(1-$AB61))) ->  | BW61: =IF(CL61="","",EN$90+EN$91*LN($AB61/(1-$AB61))+EN$92*($AB61-0.5)*LN($AB61/(1-$AB61))+EN$93*($AB61-0.5)+EN$94*($AB61-0.5)^2+EN$95*($AB61-0.5)^2*LN($AB61/(1-$AB61))+EN$96*($AB61-0.5)^3+EN$97*($AB61-0.5)^3*LN($AB61/(1-$AB61))+EN$98*($AB61-0.5)^4+EN$99*($AB61-0.5)^4*LN($AB61/(1-$AB61))+EN$100*($AB61-0.5)^5+EN$101*($AB61-0.5)^5*LN($AB61/(1-$AB61))+EN$102*($AB61-0.5)^6+EN$103*($AB61-0.5)^6*LN($AB61/(1-$AB61))+EN$104*($AB61-0.5)^7+EN$105*($AB61-0.5)^7*LN($AB61/(1-$AB61))) ->  | BX61: =IF(CM61="","",EO$90+EO$91*LN($AB61/(1-$AB61))+EO$92*($AB61-0.5)*LN($AB61/(1-$AB61))+EO$93*($AB61-0.5)+EO$94*($AB61-0.5)^2+EO$95*($AB61-0.5)^2*LN($AB61/(1-$AB61))+EO$96*($AB61-0.5)^3+EO$97*($AB61-0.5)^3*LN($AB61/(1-$AB61))+EO$98*($AB61-0.5)^4+EO$99*($AB61-0.5)^4*LN($AB61/(1-$AB61))+EO$100*($AB61-0.5)^5+EO$101*($AB61-0.5)^5*LN($AB61/(1-$AB61))+EO$102*($AB61-0.5)^6+EO$103*($AB61-0.5)^6*LN($AB61/(1-$AB61))+EO$104*($AB61-0.5)^7+EO$105*($AB61-0.5)^7*LN($AB61/(1-$AB61))) ->  | BY61: 0.02451231096 | BZ61: 0.0309478137 | CA61: 0.03554085513 | CB61: 0.03027256694 | CO61: 0.02353181852 | CP61: 0.03039552841 | CQ61: 0.03453184346 | CR61: 0.02921101148 | EA61: =IF($B$14="u","",IF($B$14="sl"," log",IF($B$14="b"," logit",""))) -> 
AB62: 0.31 | AC62: 34.31668853 | AD62: 0.03076105573 | AE62: 38.14527899 | AF62: 32.95924081 | AG62: 33.87660219 | AH62: 34.31668853 | AT62: 0.0249675396 | AU62: 0.03115919301 | AV62: 0.03595236199 | AW62: 0.03076105573 | BJ62: 38.14527899 | BK62: 32.95924081 | BL62: 33.87660219 | BM62: 34.31668853 | BY62: 0.0249675396 | BZ62: 0.03115919301 | CA62: 0.03595236199 | CB62: 0.03076105573 | CO62: 0.02403373727 | CP62: 0.03069385751 | CQ62: 0.03506766019 | CR62: 0.02975586942 | DZ62: y | EA62: M2 | EB62: M3 | EC62: M4 | ED62: M5 | EE62: M6 | EF62: M7 | EG62: M8 | EH62: M9 | EI62: M10 | EJ62: M11 | EK62: M12 | EL62: M13 | EM62: M14 | EN62: M15 | EO62: M16
AB63: 0.32 | AC63: 34.63934272 | AD63: 0.03122121621 | AE63: 38.54234373 | AF63: 33.27926405 | AG63: 34.15336094 | AH63: 34.63934272 | AT63: 0.02539942317 | AU63: 0.03132976918 | AV63: 0.03630332371 | AW63: 0.03122121621 | BJ63: 38.54234373 | BK63: 33.27926405 | BL63: 34.15336094 | BM63: 34.63934272 | BY63: =IF(AND($EA$41=0,CO$26="yes"),CO65,"") -> 0.02539942317 | BZ63: 0.03132976918 | CA63: 0.03630332371 | CB63: 0.03122121621 | CO63: 0.02451231096 | CP63: 0.0309478137 | CQ63: 0.03554085513 | CR63: 0.03027256694 | CW63: =IF(OR(DN$26="",DN$26="no"),"",(EI$91/($AB61*(1-$AB61))+EI$92*(($AB61-0.5)/($AB61*(1-$AB61))+LN($AB61/(1-$AB61)))+EI$93+2*EI$94*($AB61-0.5)+EI$95*(($AB61-0.5)^2/($AB61*(1-$AB61))+2*($AB61-0.5)*LN($AB61/(1-$AB61)))+3*EI$96*($AB61-0.5)^2+EI$97*(($AB61-0.5)^3/($AB61*(1-$AB61))+3*($AB61-0.5)^2*LN($AB61/(1-$AB61)))+4*EI$98*($AB61-0.5)^3+EI$99*(($AB61-0.5)^4/($AB61*(1-$AB61))+4*($AB61-0.5)^3*LN($AB61/(1-$AB61)))+5*EI$100*($AB61-0.5)^4+EI$101*(($AB61-0.5)^5/($AB61*(1-$AB61))+5*($AB61-0.5)^4*LN($AB61/(1-$AB61)))+6*EI$102*($AB61-0.5)^5+EI$103*(($AB61-0.5)^6/($AB61*(1-$AB61))+6*($AB61-0.5)^5*LN($AB61/(1-$AB61)))+7*EI$104*($AB61-0.5)^6+EI$105*(($AB61-0.5)^7/($AB61*(1-$AB61))+7*($AB61-0.5)^6*LN($AB61/(1-$AB61))))^-1) ->  | CZ63: =IF(OR(DQ$26="",DQ$26="no"),"",(EL$91/($AB61*(1-$AB61))+EL$92*(($AB61-0.5)/($AB61*(1-$AB61))+LN($AB61/(1-$AB61)))+EL$93+2*EL$94*($AB61-0.5)+EL$95*(($AB61-0.5)^2/($AB61*(1-$AB61))+2*($AB61-0.5)*LN($AB61/(1-$AB61)))+3*EL$96*($AB61-0.5)^2+EL$97*(($AB61-0.5)^3/($AB61*(1-$AB61))+3*($AB61-0.5)^2*LN($AB61/(1-$AB61)))+4*EL$98*($AB61-0.5)^3+EL$99*(($AB61-0.5)^4/($AB61*(1-$AB61))+4*($AB61-0.5)^3*LN($AB61/(1-$AB61)))+5*EL$100*($AB61-0.5)^4+EL$101*(($AB61-0.5)^5/($AB61*(1-$AB61))+5*($AB61-0.5)^4*LN($AB61/(1-$AB61)))+6*EL$102*($AB61-0.5)^5+EL$103*(($AB61-0.5)^6/($AB61*(1-$AB61))+6*($AB61-0.5)^5*LN($AB61/(1-$AB61)))+7*EL$104*($AB61-0.5)^6+EL$105*(($AB61-0.5)^7/($AB61*(1-$AB61))+7*($AB61-0.5)^6*LN($AB61/(1-$AB61))))^-1) ->  | DA63: =IF(OR(DR$26="",DR$26="no"),"",(EM$91/($AB61*(1-$AB61))+EM$92*(($AB61-0.5)/($AB61*(1-$AB61))+LN($AB61/(1-$AB61)))+EM$93+2*EM$94*($AB61-0.5)+EM$95*(($AB61-0.5)^2/($AB61*(1-$AB61))+2*($AB61-0.5)*LN($AB61/(1-$AB61)))+3*EM$96*($AB61-0.5)^2+EM$97*(($AB61-0.5)^3/($AB61*(1-$AB61))+3*($AB61-0.5)^2*LN($AB61/(1-$AB61)))+4*EM$98*($AB61-0.5)^3+EM$99*(($AB61-0.5)^4/($AB61*(1-$AB61))+4*($AB61-0.5)^3*LN($AB61/(1-$AB61)))+5*EM$100*($AB61-0.5)^4+EM$101*(($AB61-0.5)^5/($AB61*(1-$AB61))+5*($AB61-0.5)^4*LN($AB61/(1-$AB61)))+6*EM$102*($AB61-0.5)^5+EM$103*(($AB61-0.5)^6/($AB61*(1-$AB61))+6*($AB61-0.5)^5*LN($AB61/(1-$AB61)))+7*EM$104*($AB61-0.5)^6+EM$105*(($AB61-0.5)^7/($AB61*(1-$AB61))+7*($AB61-0.5)^6*LN($AB61/(1-$AB61))))^-1) ->  | DB63: =IF(OR(DS$26="",DS$26="no"),"",(EN$91/($AB61*(1-$AB61))+EN$92*(($AB61-0.5)/($AB61*(1-$AB61))+LN($AB61/(1-$AB61)))+EN$93+2*EN$94*($AB61-0.5)+EN$95*(($AB61-0.5)^2/($AB61*(1-$AB61))+2*($AB61-0.5)*LN($AB61/(1-$AB61)))+3*EN$96*($AB61-0.5)^2+EN$97*(($AB61-0.5)^3/($AB61*(1-$AB61))+3*($AB61-0.5)^2*LN($AB61/(1-$AB61)))+4*EN$98*($AB61-0.5)^3+EN$99*(($AB61-0.5)^4/($AB61*(1-$AB61))+4*($AB61-0.5)^3*LN($AB61/(1-$AB61)))+5*EN$100*($AB61-0.5)^4+EN$101*(($AB61-0.5)^5/($AB61*(1-$AB61))+5*($AB61-0.5)^4*LN($AB61/(1-$AB61)))+6*EN$102*($AB61-0.5)^5+EN$103*(($AB61-0.5)^6/($AB61*(1-$AB61))+6*($AB61-0.5)^5*LN($AB61/(1-$AB61)))+7*EN$104*($AB61-0.5)^6+EN$105*(($AB61-0.5)^7/($AB61*(1-$AB61))+7*($AB61-0.5)^6*LN($AB61/(1-$AB61))))^-1) ->  | DC63: =IF(OR(DT$26="",DT$26="no"),"",(EO$91/($AB61*(1-$AB61))+EO$92*(($AB61-0.5)/($AB61*(1-$AB61))+LN($AB61/(1-$AB61)))+EO$93+2*EO$94*($AB61-0.5)+EO$95*(($AB61-0.5)^2/($AB61*(1-$AB61))+2*($AB61-0.5)*LN($AB61/(1-$AB61)))+3*EO$96*($AB61-0.5)^2+EO$97*(($AB61-0.5)^3/($AB61*(1-$AB61))+3*($AB61-0.5)^2*LN($AB61/(1-$AB61)))+4*EO$98*($AB61-0.5)^3+EO$99*(($AB61-0.5)^4/($AB61*(1-$AB61))+4*($AB61-0.5)^3*LN($AB61/(1-$AB61)))+5*EO$100*($AB61-0.5)^4+EO$101*(($AB61-0.5)^5/($AB61*(1-$AB61))+5*($AB61-0.5)^4*LN($AB61/(1-$AB61)))+6*EO$102*($AB61-0.5)^5+EO$103*(($AB61-0.5)^6/($AB61*(1-$AB61))+6*($AB61-0.5)^5*LN($AB61/(1-$AB61)))+7*EO$104*($AB61-0.5)^6+EO$105*(($AB61-0.5)^7/($AB61*(1-$AB61))+7*($AB61-0.5)^6*LN($AB61/(1-$AB61))))^-1) ->  | DZ63: 0.01 | EA63: =IF(EA71="","",IF($B$14="u",EA71,IF($B$14="sl",$C$22+EXP(EA71),IF($B$14="su",$C$23-EXP(-EA71),IF($B$14="b",($C$22+$C$23*EXP(EA71))/(1+EXP(EA71)),""))))) -> 5.633039864 | EB63: 10.34407813 | EC63: 9.711038269 | ED63: 10
AB64: 0.33 | AC64: 34.95741969 | AD64: 0.03165286317 | AE64: 38.93289101 | AF64: 33.59774893 | AG64: 34.42768019 | AH64: 34.95741969 | AT64: 0.02580796169 | AU64: 0.03146128576 | AV64: 0.03659506907 | AW64: 0.03165286317 | BJ64: 38.93289101 | BK64: 33.59774893 | BL64: 34.42768019 | BM64: 34.95741969 | BY64: 0.02580796169 | BZ64: 0.03146128576 | CA64: 0.03659506907 | CB64: 0.03165286317 | CO64: 0.0249675396 | CP64: 0.03115919301 | CQ64: 0.03595236199 | CR64: 0.03076105573 | DZ64: 0.05 | EA64: =IF(EA72="","",IF($B$14="u",EA72,IF($B$14="sl",$C$22+EXP(EA72),IF($B$14="su",$C$23-EXP(-EA72),IF($B$14="b",($C$22+$C$23*EXP(EA72))/(1+EXP(EA72)),""))))) -> 19.77462706 | EB64: 20.11778448 | EC64: 21.04739438 | ED64: 20.29288541
AB65: 0.34 | AC65: 35.27132944 | AD65: 0.0320557515 | AE65: 39.3174764 | AF65: 33.91509454 | AG65: 34.70003583 | AH65: 35.27132944 | AT65: 0.02619315514 | AU65: 0.03155544954 | AV65: 0.03682908947 | AW65: 0.0320557515 | BJ65: 39.3174764 | BK65: 33.91509454 | BL65: 34.70003583 | BM65: 35.27132944 | BY65: 0.02619315514 | BZ65: 0.03155544954 | CA65: 0.03682908947 | CB65: 0.0320557515 | CO65: 0.02539942317 | CP65: 0.03132976918 | CQ65: 0.03630332371 | CR65: 0.03122121621 | DZ65: 0.5 | EA65: =IF(EA73="","",IF($B$14="u",EA73,IF($B$14="sl",$C$22+EXP(EA73),IF($B$14="su",$C$23-EXP(-EA73),IF($B$14="b",($C$22+$C$23*EXP(EA73))/(1+EXP(EA73)),""))))) -> 45 | EB65: 39.09735393 | EC65: 39.09735393 | ED65: 40
AB66: 0.35 | AC66: 35.58145753 | AD66: 0.03242958216 | AE66: 39.69661453 | AF66: 34.23167462 | AG66: 34.97087277 | AH66: 35.58145753 | AT66: 0.02655500354 | AU66: 0.03161392517 | AV66: 0.03700701627 | AW66: 0.03242958216 | BJ66: 39.69661453 | BK66: 34.23167462 | BL66: 34.97087277 | BM66: 35.58145753 | BY66: 0.02655500354 | BZ66: 0.03161392517 | CA66: 0.03700701627 | CB66: 0.03242958216 | CO66: 0.02580796169 | CP66: 0.03146128576 | CQ66: 0.03659506907 | CR66: 0.03165286317 | DZ66: 0.95 | EA66: =IF(EA74="","",IF($B$14="u",EA74,IF($B$14="sl",$C$22+EXP(EA74),IF($B$14="su",$C$23-EXP(-EA74),IF($B$14="b",($C$22+$C$23*EXP(EA74))/(1+EXP(EA74)),""))))) -> 70.22537294 | EB66: 70.56853036 | EC66: 69.63892046 | ED66: 68.8844115
AB67: 0.36 | AC67: 35.88816876 | AD67: 0.03277400824 | AE67: 40.0707842 | AF67: 34.54784117 | AG67: 35.24060921 | AH67: 35.88816876 | AT67: 0.02689350689 | AU67: 0.03163833083 | AV67: 0.03713059879 | AW67: 0.03277400824 | BJ67: 40.0707842 | BK67: 34.54784117 | BL67: 35.24060921 | BM67: 35.88816876 | BY67: 0.02689350689 | BZ67: 0.03163833083 | CA67: 0.03713059879 | CB67: 0.03277400824 | CO67: 0.02619315514 | CP67: 0.03155544954 | CQ67: 0.03682908947 | CR67: 0.0320557515 | DZ67: 0.99 | EA67: =IF(EA75="","",IF($B$14="u",EA75,IF($B$14="sl",$C$22+EXP(EA75),IF($B$14="su",$C$23-EXP(-EA75),IF($B$14="b",($C$22+$C$23*EXP(EA75))/(1+EXP(EA75)),""))))) -> 84.36696014 | EB67: 89.07799841 | EC67: 89.71103827 | ED67: 90
AB68: 0.37 | AC68: 36.19181026 | AD68: 0.03308864129 | AE68: 40.44043273 | AF68: 34.86392749 | AG68: 35.5096403 | AH68: 36.19181026 | AT68: 0.02720866517 | AU68: 0.03163023482 | AV68: 0.03720168328 | AW68: 0.03308864129 | BJ68: 40.44043273 | BK68: 34.86392749 | BL68: 35.5096403 | BM68: 36.19181026 | BY68: 0.02720866517 | BZ68: 0.03163023482 | CA68: 0.03720168328 | CB68: 0.03308864129 | CO68: 0.02655500354 | CP68: 0.03161392517 | CQ68: 0.03700701627 | CR68: 0.03242958216 | EA68: intermediate calculations
AB69: 0.38 | AC69: 36.49271433 | AD69: 0.0333730578 | AE69: 40.8059798 | AF69: 35.18025095 | AG69: 35.77834143 | AH69: 36.49271433 | AT69: 0.02750047839 | AU69: 0.03159115299 | AV69: 0.03722219306 | AW69: 0.0333730578 | BJ69: 40.8059798 | BK69: 35.18025095 | BL69: 35.77834143 | BM69: 36.49271433 | BY69: 0.02750047839 | BZ69: 0.03159115299 | CA69: 0.03722219306 | CB69: 0.0333730578 | CO69: 0.02689350689 | CP69: 0.03163833083 | CQ69: 0.03713059879 | CR69: 0.03277400824
AB70: 0.39 | AC70: 36.79120088 | AD70: 0.03362680591 | AE70: 41.1678209 | AF70: 35.49711538 | AG70: 36.04707111 | AH70: 36.79120088 | AT70: 0.02776894656 | AU70: 0.03152254683 | AV70: 0.03719410978 | AW70: 0.03362680591 | BJ70: 41.1678209 | BK70: 35.49711538 | BL70: 36.04707111 | BM70: 36.79120088 | BY70: 0.02776894656 | BZ70: 0.03152254683 | CA70: 0.03719410978 | CB70: 0.03362680591 | CO70: 0.02720866517 | CP70: 0.03163023482 | CQ70: 0.03720168328 | CR70: 0.03308864129 | EA70: M2 | EB70: M3 | EC70: M4 | ED70: M5 | EE70: M6 | EF70: M7 | EG70: M8 | EH70: M9 | EI70: M10 | EJ70: M11 | EK70: M12 | EL70: M13 | EM70: M14 | EN70: M15 | EO70: M16
AB71: 0.4 | AC71: 37.08757971 | AD71: 0.03384941237 | AE71: 41.52633027 | AF71: 35.81481325 | AG71: 36.31617358 | AH71: 37.08757971 | AT71: 0.02801406967 | AU71: 0.03142582228 | AV71: 0.03711945613 | AW71: 0.03384941237 | BJ71: 41.52633027 | BK71: 35.81481325 | BL71: 36.31617358 | BM71: 37.08757971 | BY71: 0.02801406967 | BZ71: 0.03142582228 | CA71: 0.03711945613 | CB71: 0.03384941237 | CO71: 0.02750047839 | CP71: 0.03159115299 | CQ71: 0.03722219306 | CR71: 0.0333730578 | EA71: =IF(BY$29="","",EA$90+EA$91*LN($DZ63/(1-$DZ63))) -> 5.633039864 | EB71: =IF(BZ$29="","",EB$90+EB$91*LN($DZ63/(1-$DZ63))+EB$92*($DZ63-0.5)*LN($DZ63/(1-$DZ63))) -> 10.34407813 | EC71: =IF(CA$29="","",EC$90+EC$91*LN($DZ63/(1-$DZ63))+EC$92*($DZ63-0.5)*LN($DZ63/(1-$DZ63))+EC$93*($DZ63-0.5)) -> 9.711038269 | ED71: =IF(CB$29="","",ED$90+ED$91*LN($DZ63/(1-$DZ63))+ED$92*($DZ63-0.5)*LN($DZ63/(1-$DZ63))+ED$93*($DZ63-0.5)+ED$94*($DZ63-0.5)^2) -> 10 | EE71: =IF(CC$29="","",EE$90+EE$91*LN($DZ63/(1-$DZ63))+EE$92*($DZ63-0.5)*LN($DZ63/(1-$DZ63))+EE$93*($DZ63-0.5)+EE$94*($DZ63-0.5)^2+EE$95*($DZ63-0.5)^2*LN($DZ63/(1-$DZ63))) ->  | EF71: =IF(CD$29="","",EF$90+EF$91*LN($DZ63/(1-$DZ63))+EF$92*($DZ63-0.5)*LN($DZ63/(1-$DZ63))+EF$93*($DZ63-0.5)+EF$94*($DZ63-0.5)^2+EF$95*($DZ63-0.5)^2*LN($DZ63/(1-$DZ63))+EF$96*($DZ63-0.5)^3) ->  | EG71: =IF(CE$29="","",EG$90+EG$91*LN($DZ63/(1-$DZ63))+EG$92*($DZ63-0.5)*LN($DZ63/(1-$DZ63))+EG$93*($DZ63-0.5)+EG$94*($DZ63-0.5)^2+EG$95*($DZ63-0.5)^2*LN($DZ63/(1-$DZ63))+EG$96*($DZ63-0.5)^3+EG$97*($DZ63-0.5)^3*LN($DZ63/(1-$DZ63))) ->  | EH71: =IF(CF$29="","",EH$90+EH$91*LN($DZ63/(1-$DZ63))+EH$92*($DZ63-0.5)*LN($DZ63/(1-$DZ63))+EH$93*($DZ63-0.5)+EH$94*($DZ63-0.5)^2+EH$95*($DZ63-0.5)^2*LN($DZ63/(1-$DZ63))+EH$96*($DZ63-0.5)^3+EH$97*($DZ63-0.5)^3*LN($DZ63/(1-$DZ63))+EH$98*($DZ63-0.5)^4) ->  | EI71: =IF(CG$29="","",EI$90+EI$91*LN($DZ63/(1-$DZ63))+EI$92*($DZ63-0.5)*LN($DZ63/(1-$DZ63))+EI$93*($DZ63-0.5)+EI$94*($DZ63-0.5)^2+EI$95*($DZ63-0.5)^2*LN($DZ63/(1-$DZ63))+EI$96*($DZ63-0.5)^3+EI$97*($DZ63-0.5)^3*LN($DZ63/(1-$DZ63))+EI$98*($DZ63-0.5)^4+EI$99*($DZ63-0.5)^4*LN($DZ63/(1-$DZ63))+EI$100*($DZ63-0.5)^5+EI$101*($DZ63-0.5)^5*LN($DZ63/(1-$DZ63))+EI$102*($DZ63-0.5)^6+EI$103*($DZ63-0.5)^6*LN($DZ63/(1-$DZ63))+EI$104*($DZ63-0.5)^7+EI$105*($DZ63-0.5)^7*LN($DZ63/(1-$DZ63))) ->  | EL71: =IF(CJ$29="","",EL$90+EL$91*LN($DZ63/(1-$DZ63))+EL$92*($DZ63-0.5)*LN($DZ63/(1-$DZ63))+EL$93*($DZ63-0.5)+EL$94*($DZ63-0.5)^2+EL$95*($DZ63-0.5)^2*LN($DZ63/(1-$DZ63))+EL$96*($DZ63-0.5)^3+EL$97*($DZ63-0.5)^3*LN($DZ63/(1-$DZ63))+EL$98*($DZ63-0.5)^4+EL$99*($DZ63-0.5)^4*LN($DZ63/(1-$DZ63))+EL$100*($DZ63-0.5)^5+EL$101*($DZ63-0.5)^5*LN($DZ63/(1-$DZ63))+EL$102*($DZ63-0.5)^6+EL$103*($DZ63-0.5)^6*LN($DZ63/(1-$DZ63))+EL$104*($DZ63-0.5)^7+EL$105*($DZ63-0.5)^7*LN($DZ63/(1-$DZ63))) -> 
AB72: 0.41 | AC72: 37.38215249 | AD72: 0.03404038966 | AE72: 41.88186359 | AF72: 36.13362766 | AG72: 36.58598109 | AH72: 37.38215249 | AT72: 0.02823584772 | AU72: 0.03130232895 | AV72: 0.03700027985 | AW72: 0.03404038966 | BJ72: 41.88186359 | BK72: 36.13362766 | BL72: 36.58598109 | BM72: 37.38215249 | BY72: 0.02823584772 | BZ72: 0.03130232895 | CA72: 0.03700027985 | CB72: 0.03404038966 | CO72: 0.02776894656 | CP72: 0.03152254683 | CQ72: 0.03719410978 | CR72: 0.03362680591 | EA72: =IF(BY$29="","",EA$90+EA$91*LN($DZ64/(1-$DZ64))) -> 19.77462706 | EB72: =IF(BZ$29="","",EB$90+EB$91*LN($DZ64/(1-$DZ64))+EB$92*($DZ64-0.5)*LN($DZ64/(1-$DZ64))) -> 20.11778448 | EC72: =IF(CA$29="","",EC$90+EC$91*LN($DZ64/(1-$DZ64))+EC$92*($DZ64-0.5)*LN($DZ64/(1-$DZ64))+EC$93*($DZ64-0.5)) -> 21.04739438 | ED72: =IF(CB$29="","",ED$90+ED$91*LN($DZ64/(1-$DZ64))+ED$92*($DZ64-0.5)*LN($DZ64/(1-$DZ64))+ED$93*($DZ64-0.5)+ED$94*($DZ64-0.5)^2) -> 20.29288541 | EE72: =IF(CC$29="","",EE$90+EE$91*LN($DZ64/(1-$DZ64))+EE$92*($DZ64-0.5)*LN($DZ64/(1-$DZ64))+EE$93*($DZ64-0.5)+EE$94*($DZ64-0.5)^2+EE$95*($DZ64-0.5)^2*LN($DZ64/(1-$DZ64))) ->  | EF72: =IF(CD$29="","",EF$90+EF$91*LN($DZ64/(1-$DZ64))+EF$92*($DZ64-0.5)*LN($DZ64/(1-$DZ64))+EF$93*($DZ64-0.5)+EF$94*($DZ64-0.5)^2+EF$95*($DZ64-0.5)^2*LN($DZ64/(1-$DZ64))+EF$96*($DZ64-0.5)^3) ->  | EG72: =IF(CE$29="","",EG$90+EG$91*LN($DZ64/(1-$DZ64))+EG$92*($DZ64-0.5)*LN($DZ64/(1-$DZ64))+EG$93*($DZ64-0.5)+EG$94*($DZ64-0.5)^2+EG$95*($DZ64-0.5)^2*LN($DZ64/(1-$DZ64))+EG$96*($DZ64-0.5)^3+EG$97*($DZ64-0.5)^3*LN($DZ64/(1-$DZ64))) ->  | EH72: =IF(CF$29="","",EH$90+EH$91*LN($DZ64/(1-$DZ64))+EH$92*($DZ64-0.5)*LN($DZ64/(1-$DZ64))+EH$93*($DZ64-0.5)+EH$94*($DZ64-0.5)^2+EH$95*($DZ64-0.5)^2*LN($DZ64/(1-$DZ64))+EH$96*($DZ64-0.5)^3+EH$97*($DZ64-0.5)^3*LN($DZ64/(1-$DZ64))+EH$98*($DZ64-0.5)^4) -> 
AB73: 0.42 | AC73: 37.67521466 | AD73: 0.03419924337 | AE73: 42.23476042 | AF73: 36.45383407 | AG73: 36.85681606 | AH73: 37.67521466 | AT73: 0.02843428072 | AU73: 0.03115335985 | AV73: 0.03683863923 | AW73: 0.03419924337 | BJ73: 42.23476042 | BK73: 36.45383407 | BL73: 36.85681606 | BM73: 37.67521466 | BY73: 0.02843428072 | BZ73: 0.03115335985 | CA73: 0.03683863923 | CB73: 0.03419924337 | CO73: 0.02801406967 | CP73: 0.03142582228 | CQ73: 0.03711945613 | CR73: 0.03384941237 | EA73: =IF(BY$29="","",EA$90+EA$91*LN($DZ65/(1-$DZ65))) -> 45 | EB73: =IF(BZ$29="","",EB$90+EB$91*LN($DZ65/(1-$DZ65))+EB$92*($DZ65-0.5)*LN($DZ65/(1-$DZ65))) -> 39.09735393 | EC73: =IF(CA$29="","",EC$90+EC$91*LN($DZ65/(1-$DZ65))+EC$92*($DZ65-0.5)*LN($DZ65/(1-$DZ65))+EC$93*($DZ65-0.5)) -> 39.09735393 | ED73: =IF(CB$29="","",ED$90+ED$91*LN($DZ65/(1-$DZ65))+ED$92*($DZ65-0.5)*LN($DZ65/(1-$DZ65))+ED$93*($DZ65-0.5)+ED$94*($DZ65-0.5)^2) -> 40 | EE73: =IF(CC$29="","",EE$90+EE$91*LN($DZ65/(1-$DZ65))+EE$92*($DZ65-0.5)*LN($DZ65/(1-$DZ65))+EE$93*($DZ65-0.5)+EE$94*($DZ65-0.5)^2+EE$95*($DZ65-0.5)^2*LN($DZ65/(1-$DZ65))) ->  | EF73: =IF(CD$29="","",EF$90+EF$91*LN($DZ65/(1-$DZ65))+EF$92*($DZ65-0.5)*LN($DZ65/(1-$DZ65))+EF$93*($DZ65-0.5)+EF$94*($DZ65-0.5)^2+EF$95*($DZ65-0.5)^2*LN($DZ65/(1-$DZ65))+EF$96*($DZ65-0.5)^3) ->  | EG73: =IF(CE$29="","",EG$90+EG$91*LN($DZ65/(1-$DZ65))+EG$92*($DZ65-0.5)*LN($DZ65/(1-$DZ65))+EG$93*($DZ65-0.5)+EG$94*($DZ65-0.5)^2+EG$95*($DZ65-0.5)^2*LN($DZ65/(1-$DZ65))+EG$96*($DZ65-0.5)^3+EG$97*($DZ65-0.5)^3*LN($DZ65/(1-$DZ65))) ->  | EH73: =IF(CF$29="","",EH$90+EH$91*LN($DZ65/(1-$DZ65))+EH$92*($DZ65-0.5)*LN($DZ65/(1-$DZ65))+EH$93*($DZ65-0.5)+EH$94*($DZ65-0.5)^2+EH$95*($DZ65-0.5)^2*LN($DZ65/(1-$DZ65))+EH$96*($DZ65-0.5)^3+EH$97*($DZ65-0.5)^3*LN($DZ65/(1-$DZ65))+EH$98*($DZ65-0.5)^4) -> 
AB74: 0.43 | AC74: 37.96705713 | AD74: 0.03432547974 | AE74: 42.58534632 | AF74: 36.77570199 | AG74: 37.12899302 | AH74: 37.96705713 | AT74: 0.02860936865 | AU74: 0.03098015157 | AV74: 0.03663658992 | AW74: 0.03432547974 | BJ74: 42.58534632 | BK74: 36.77570199 | BL74: 37.12899302 | BM74: 37.96705713 | BY74: 0.02860936865 | BZ74: 0.03098015157 | CA74: 0.03663658992 | CB74: 0.03432547974 | CO74: 0.02823584772 | CP74: 0.03130232895 | CQ74: 0.03700027985 | CR74: 0.03404038966 | EA74: =IF(BY$29="","",EA$90+EA$91*LN($DZ66/(1-$DZ66))) -> 70.22537294 | EB74: =IF(BZ$29="","",EB$90+EB$91*LN($DZ66/(1-$DZ66))+EB$92*($DZ66-0.5)*LN($DZ66/(1-$DZ66))) -> 70.56853036 | EC74: =IF(CA$29="","",EC$90+EC$91*LN($DZ66/(1-$DZ66))+EC$92*($DZ66-0.5)*LN($DZ66/(1-$DZ66))+EC$93*($DZ66-0.5)) -> 69.63892046 | ED74: =IF(CB$29="","",ED$90+ED$91*LN($DZ66/(1-$DZ66))+ED$92*($DZ66-0.5)*LN($DZ66/(1-$DZ66))+ED$93*($DZ66-0.5)+ED$94*($DZ66-0.5)^2) -> 68.8844115 | EE74: =IF(CC$29="","",EE$90+EE$91*LN($DZ66/(1-$DZ66))+EE$92*($DZ66-0.5)*LN($DZ66/(1-$DZ66))+EE$93*($DZ66-0.5)+EE$94*($DZ66-0.5)^2+EE$95*($DZ66-0.5)^2*LN($DZ66/(1-$DZ66))) ->  | EF74: =IF(CD$29="","",EF$90+EF$91*LN($DZ66/(1-$DZ66))+EF$92*($DZ66-0.5)*LN($DZ66/(1-$DZ66))+EF$93*($DZ66-0.5)+EF$94*($DZ66-0.5)^2+EF$95*($DZ66-0.5)^2*LN($DZ66/(1-$DZ66))+EF$96*($DZ66-0.5)^3) ->  | EG74: =IF(CE$29="","",EG$90+EG$91*LN($DZ66/(1-$DZ66))+EG$92*($DZ66-0.5)*LN($DZ66/(1-$DZ66))+EG$93*($DZ66-0.5)+EG$94*($DZ66-0.5)^2+EG$95*($DZ66-0.5)^2*LN($DZ66/(1-$DZ66))+EG$96*($DZ66-0.5)^3+EG$97*($DZ66-0.5)^3*LN($DZ66/(1-$DZ66))) ->  | EH74: =IF(CF$29="","",EH$90+EH$91*LN($DZ66/(1-$DZ66))+EH$92*($DZ66-0.5)*LN($DZ66/(1-$DZ66))+EH$93*($DZ66-0.5)+EH$94*($DZ66-0.5)^2+EH$95*($DZ66-0.5)^2*LN($DZ66/(1-$DZ66))+EH$96*($DZ66-0.5)^3+EH$97*($DZ66-0.5)^3*LN($DZ66/(1-$DZ66))+EH$98*($DZ66-0.5)^4) -> 
AB75: 0.44 | AC75: 38.25796788 | AD75: 0.03441861338 | AE75: 42.93393483 | AF75: 37.09949647 | AG75: 37.40282036 | AH75: 38.25796788 | AT75: 0.02876111153 | AU75: 0.03078388465 | AV75: 0.03639617328 | AW75: 0.03441861338 | BJ75: 42.93393483 | BK75: 37.09949647 | BL75: 37.40282036 | BM75: 38.25796788 | BY75: 0.02876111153 | BZ75: 0.03078388465 | CA75: 0.03639617328 | CB75: 0.03441861338 | CO75: 0.02843428072 | CP75: 0.03115335985 | CQ75: 0.03683863923 | CR75: 0.03419924337 | EA75: =IF(BY$29="","",EA$90+EA$91*LN($DZ67/(1-$DZ67))) -> 84.36696014 | EB75: =IF(BZ$29="","",EB$90+EB$91*LN($DZ67/(1-$DZ67))+EB$92*($DZ67-0.5)*LN($DZ67/(1-$DZ67))) -> 89.07799841 | EC75: =IF(CA$29="","",EC$90+EC$91*LN($DZ67/(1-$DZ67))+EC$92*($DZ67-0.5)*LN($DZ67/(1-$DZ67))+EC$93*($DZ67-0.5)) -> 89.71103827 | ED75: =IF(CB$29="","",ED$90+ED$91*LN($DZ67/(1-$DZ67))+ED$92*($DZ67-0.5)*LN($DZ67/(1-$DZ67))+ED$93*($DZ67-0.5)+ED$94*($DZ67-0.5)^2) -> 90 | EE75: =IF(CC$29="","",EE$90+EE$91*LN($DZ67/(1-$DZ67))+EE$92*($DZ67-0.5)*LN($DZ67/(1-$DZ67))+EE$93*($DZ67-0.5)+EE$94*($DZ67-0.5)^2+EE$95*($DZ67-0.5)^2*LN($DZ67/(1-$DZ67))) ->  | EF75: =IF(CD$29="","",EF$90+EF$91*LN($DZ67/(1-$DZ67))+EF$92*($DZ67-0.5)*LN($DZ67/(1-$DZ67))+EF$93*($DZ67-0.5)+EF$94*($DZ67-0.5)^2+EF$95*($DZ67-0.5)^2*LN($DZ67/(1-$DZ67))+EF$96*($DZ67-0.5)^3) ->  | EG75: =IF(CE$29="","",EG$90+EG$91*LN($DZ67/(1-$DZ67))+EG$92*($DZ67-0.5)*LN($DZ67/(1-$DZ67))+EG$93*($DZ67-0.5)+EG$94*($DZ67-0.5)^2+EG$95*($DZ67-0.5)^2*LN($DZ67/(1-$DZ67))+EG$96*($DZ67-0.5)^3+EG$97*($DZ67-0.5)^3*LN($DZ67/(1-$DZ67))) ->  | EH75: =IF(CF$29="","",EH$90+EH$91*LN($DZ67/(1-$DZ67))+EH$92*($DZ67-0.5)*LN($DZ67/(1-$DZ67))+EH$93*($DZ67-0.5)+EH$94*($DZ67-0.5)^2+EH$95*($DZ67-0.5)^2*LN($DZ67/(1-$DZ67))+EH$96*($DZ67-0.5)^3+EH$97*($DZ67-0.5)^3*LN($DZ67/(1-$DZ67))+EH$98*($DZ67-0.5)^4) -> 
E76: m_QF_formula | AB76: 0.45 | AC76: 38.54823351 | AD76: 0.03447817515 | AE76: 43.28082933 | AF76: 37.42547956 | AG76: 37.67860209 | AH76: 38.54823351 | AT76: 0.02888950935 | AU76: 0.0305656843 | AV76: 0.03611940598 | AW76: 0.03447817515 | BJ76: 43.28082933 | BK76: 37.42547956 | BL76: 37.67860209 | BM76: 38.54823351 | BY76: 0.02888950935 | BZ76: 0.0305656843 | CA76: 0.03611940598 | CB76: 0.03447817515 | CO76: 0.02860936865 | CP76: 0.03098015157 | CQ76: 0.03663658992 | CR76: 0.03432547974
E77: metalog probability density function (PDF) | AB77: 0.46 | AC77: 38.8381407 | AD77: 0.03450372006 | AE77: 43.62632468 | AF77: 37.75391168 | AG77: 37.9566394 | AH77: 38.8381407 | AT77: 0.02899456211 | AU77: 0.03032662137 | AV77: 0.03580827095 | AW77: 0.03450372006 | BJ77: 43.62632468 | BK77: 37.75391168 | BL77: 37.9566394 | BM77: 38.8381407 | BY77: 0.02899456211 | BZ77: 0.03032662137 | CA77: 0.03580827095 | CB77: 0.03450372006 | CO77: 0.02876111153 | CP77: 0.03078388465 | CQ77: 0.03639617328 | CR77: 0.03441861338 | EA77: simulation
E78: =IF(AND(y>0,y<1),(9.75167190635093/(y*(1-y))+6.69912319684877*((y-0.5)/(y*(1-y))+LN(y/(1-y)))+-9.81653295688336+2*-21.1736953367968*(y-0.5))^-1,"n/a") | AB78: 0.47 | AC78: 39.1279776 | AD78: 0.03449483537 | AE78: 43.97070882 | AF78: 38.08505291 | AG78: 38.23723217 | AH78: 39.1279776 | AT78: 0.02907626981 | AU78: 0.03006771342 | AV78: 0.03546470959 | AW78: 0.03449483537 | BJ78: 43.97070882 | BK78: 38.08505291 | BL78: 38.23723217 | BM78: 39.1279776 | BY78: 0.02907626981 | BZ78: 0.03006771342 | CA78: 0.03546470959 | CB78: 0.03449483537 | CO78: 0.02888950935 | CP78: 0.0305656843 | CQ78: 0.03611940598 | CR78: 0.03447817515 | EA78: =IF($B$14="u","",IF($B$14="sl"," log",IF($B$14="b"," logit",""))) -> 
AB79: 0.48 | AC79: 39.41803528 | AD79: 0.03445114848 | AE79: 44.31426422 | AF79: 38.41916429 | AG79: 38.5206805 | AH79: 39.41803528 | AT79: 0.02913463246 | AU79: 0.02978992596 | AV79: 0.03509061507 | AW79: 0.03445114848 | BJ79: 44.31426422 | BK79: 38.41916429 | BL79: 38.5206805 | BM79: 39.41803528 | BY79: 0.02913463246 | BZ79: 0.02978992596 | CA79: 0.03509061507 | CB79: 0.03445114848 | CO79: 0.02899456211 | CP79: 0.03032662137 | CQ79: 0.03580827095 | CR79: 0.03450372006 | CW79: =IF(OR(DN$26="",DN$26="no"),"",(EI$91/($AB77*(1-$AB77))+EI$92*(($AB77-0.5)/($AB77*(1-$AB77))+LN($AB77/(1-$AB77)))+EI$93+2*EI$94*($AB77-0.5)+EI$95*(($AB77-0.5)^2/($AB77*(1-$AB77))+2*($AB77-0.5)*LN($AB77/(1-$AB77)))+3*EI$96*($AB77-0.5)^2+EI$97*(($AB77-0.5)^3/($AB77*(1-$AB77))+3*($AB77-0.5)^2*LN($AB77/(1-$AB77)))+4*EI$98*($AB77-0.5)^3+EI$99*(($AB77-0.5)^4/($AB77*(1-$AB77))+4*($AB77-0.5)^3*LN($AB77/(1-$AB77)))+5*EI$100*($AB77-0.5)^4+EI$101*(($AB77-0.5)^5/($AB77*(1-$AB77))+5*($AB77-0.5)^4*LN($AB77/(1-$AB77)))+6*EI$102*($AB77-0.5)^5+EI$103*(($AB77-0.5)^6/($AB77*(1-$AB77))+6*($AB77-0.5)^5*LN($AB77/(1-$AB77)))+7*EI$104*($AB77-0.5)^6+EI$105*(($AB77-0.5)^7/($AB77*(1-$AB77))+7*($AB77-0.5)^6*LN($AB77/(1-$AB77))))^-1) ->  | DZ79: y | EA79: M2 | EB79: M3 | EC79: M4 | ED79: M5 | EE79: M6 | EF79: M7 | EG79: M8 | EH79: M9 | EI79: M10 | EJ79: M11 | EK79: M12 | EL79: M13 | EM79: M14 | EN79: M15 | EO79: M16
AB80: 0.49 | AC80: 39.70860907 | AD80: 0.03437233492 | AE80: 44.65726935 | AF80: 38.75650906 | AG80: 38.80728614 | AH80: 39.70860907 | AT80: 0.02916965005 | AU80: 0.02949417382 | AV80: 0.03468782687 | AW80: 0.03437233492 | BJ80: 44.65726935 | BK80: 38.75650906 | BL80: 38.80728614 | BM80: 39.70860907 | BY80: =IF(AND($EA$41=0,CO$26="yes"),CO82,"") -> 0.02916965005 | BZ80: 0.02949417382 | CA80: 0.03468782687 | CB80: 0.03437233492 | CO80: 0.02907626981 | CP80: 0.03006771342 | CQ80: 0.03546470959 | CR80: 0.03449483537 | DZ80: =RAND() -> 0.8938710477 | EA80: =IF(EA84="","",IF($B$14="u",EA84,IF($B$14="sl",$C$22+EXP(EA84),IF($B$14="b",($C$22+$C$23*EXP(EA84))/(1+EXP(EA84)),"")))) -> 63.25574073 | EB80: 61.30941751 | EC80: 59.96713104 | ED80: 59.25127607
AB81: 0.5 | AC81: 40 | AD81: 0.03425812612 | AE81: 45 | AF81: 39.09735393 | AG81: 39.09735393 | AH81: 40 | AT81: 0.02918132258 | AU81: 0.02918132258 | AV81: 0.03425812612 | AW81: 0.03425812612 | BJ81: 45 | BK81: 39.09735393 | BL81: 39.09735393 | BM81: 40 | BY81: 0.02918132258 | BZ81: 0.02918132258 | CA81: 0.03425812612 | CB81: 0.03425812612 | CO81: 0.02913463246 | CP81: 0.02978992596 | CQ81: 0.03509061507 | CR81: 0.03445114848 | EA81: intermediate calculations
AB82: 0.51 | AC82: 40.29251621 | AD82: 0.03410831693 | AE82: 45.34273065 | AF82: 39.44197036 | AG82: 39.39119327 | AH82: 40.29251621 | AT82: 0.02916965005 | AU82: 0.02885219 | AV82: 0.03380323206 | AW82: 0.03410831693 | BJ82: 45.34273065 | BK82: 39.44197036 | BL82: 39.39119327 | BM82: 40.29251621 | BY82: 0.02916965005 | BZ82: 0.02885219 | CA82: 0.03380323206 | CB82: 0.03410831693 | CO82: 0.02916965005 | CP82: 0.02949417382 | CQ82: 0.03468782687 | CR82: 0.03437233492
AB83: 0.52 | AC83: 40.58647441 | AD83: 0.03392277289 | AE83: 45.68573578 | AF83: 39.79063585 | AG83: 39.68911963 | AH83: 40.58647441 | AT83: 0.02913463246 | AU83: 0.02850754763 | AV83: 0.03332479922 | AW83: 0.03392277289 | BJ83: 45.68573578 | BK83: 39.79063585 | BL83: 39.68911963 | BM83: 40.58647441 | BY83: 0.02913463246 | BZ83: 0.02850754763 | CA83: 0.03332479922 | CB83: 0.03392277289 | CO83: 0.02918132258 | CP83: 0.02918132258 | CQ83: 0.03425812612 | CR83: 0.03425812612 | EA83: M2 | EB83: M3 | EC83: M4 | ED83: M5 | EE83: M6 | EF83: M7 | EG83: M8 | EH83: M9 | EI83: M10 | EJ83: M11 | EK83: M12 | EL83: M13 | EM83: M14 | EN83: M15 | EO83: M16
AB84: 0.53 | AC84: 40.88220144 | AD84: 0.03370143707 | AE84: 46.02929118 | AF84: 40.14363528 | AG84: 39.99145602 | AH84: 40.88220144 | AT84: 0.02907626981 | AU84: 0.02814812222 | AV84: 0.03282441535 | AW84: 0.03370143707 | BJ84: 46.02929118 | BK84: 40.14363528 | BL84: 39.99145602 | BM84: 40.88220144 | BY84: 0.02907626981 | BZ84: 0.02814812222 | CA84: 0.03282441535 | CB84: 0.03370143707 | CO84: 0.02916965005 | CP84: 0.02885219 | CQ84: 0.03380323206 | CR84: 0.03410831693 | EA84: =IF(BY$29="","",EA$90+EA$91*LN($DZ80/(1-$DZ80))) -> 63.25574073 | EB84: =IF(BZ$29="","",EB$90+EB$91*LN($DZ80/(1-$DZ80))+EB$92*($DZ80-0.5)*LN($DZ80/(1-$DZ80))) -> 61.30941751 | EC84: =IF(CA$29="","",EC$90+EC$91*LN($DZ80/(1-$DZ80))+EC$92*($DZ80-0.5)*LN($DZ80/(1-$DZ80))+EC$93*($DZ80-0.5)) -> 59.96713104 | ED84: =IF(CB$29="","",ED$90+ED$91*LN($DZ80/(1-$DZ80))+ED$92*($DZ80-0.5)*LN($DZ80/(1-$DZ80))+ED$93*($DZ80-0.5)+ED$94*($DZ80-0.5)^2) -> 59.25127607 | EE84: =IF(CC$29="","",EE$90+EE$91*LN($DZ80/(1-$DZ80))+EE$92*($DZ80-0.5)*LN($DZ80/(1-$DZ80))+EE$93*($DZ80-0.5)+EE$94*($DZ80-0.5)^2+EE$95*($DZ80-0.5)^2*LN($DZ80/(1-$DZ80))) ->  | EF84: =IF(CD$29="","",EF$90+EF$91*LN($DZ80/(1-$DZ80))+EF$92*($DZ80-0.5)*LN($DZ80/(1-$DZ80))+EF$93*($DZ80-0.5)+EF$94*($DZ80-0.5)^2+EF$95*($DZ80-0.5)^2*LN($DZ80/(1-$DZ80))+EF$96*($DZ80-0.5)^3) ->  | EG84: =IF(CE$29="","",EG$90+EG$91*LN($DZ80/(1-$DZ80))+EG$92*($DZ80-0.5)*LN($DZ80/(1-$DZ80))+EG$93*($DZ80-0.5)+EG$94*($DZ80-0.5)^2+EG$95*($DZ80-0.5)^2*LN($DZ80/(1-$DZ80))+EG$96*($DZ80-0.5)^3+EG$97*($DZ80-0.5)^3*LN($DZ80/(1-$DZ80))) ->  | EH84: =IF(CF$29="","",EH$90+EH$91*LN($DZ80/(1-$DZ80))+EH$92*($DZ80-0.5)*LN($DZ80/(1-$DZ80))+EH$93*($DZ80-0.5)+EH$94*($DZ80-0.5)^2+EH$95*($DZ80-0.5)^2*LN($DZ80/(1-$DZ80))+EH$96*($DZ80-0.5)^3+EH$97*($DZ80-0.5)^3*LN($DZ80/(1-$DZ80))+EH$98*($DZ80-0.5)^4) ->  | EI84: =IF(CG$29="","",EI$90+EI$91*LN($DZ80/(1-$DZ80))+EI$92*($DZ80-0.5)*LN($DZ80/(1-$DZ80))+EI$93*($DZ80-0.5)+EI$94*($DZ80-0.5)^2+EI$95*($DZ80-0.5)^2*LN($DZ80/(1-$DZ80))+EI$96*($DZ80-0.5)^3+EI$97*($DZ80-0.5)^3*LN($DZ80/(1-$DZ80))+EI$98*($DZ80-0.5)^4+EI$99*($DZ80-0.5)^4*LN($DZ80/(1-$DZ80))+EI$100*($DZ80-0.5)^5+EI$101*($DZ80-0.5)^5*LN($DZ80/(1-$DZ80))+EI$102*($DZ80-0.5)^6+EI$103*($DZ80-0.5)^6*LN($DZ80/(1-$DZ80))+EI$104*($DZ80-0.5)^7+EI$105*($DZ80-0.5)^7*LN($DZ80/(1-$DZ80))) ->  | EL84: =IF(CJ$29="","",EL$90+EL$91*LN($DZ80/(1-$DZ80))+EL$92*($DZ80-0.5)*LN($DZ80/(1-$DZ80))+EL$93*($DZ80-0.5)+EL$94*($DZ80-0.5)^2+EL$95*($DZ80-0.5)^2*LN($DZ80/(1-$DZ80))+EL$96*($DZ80-0.5)^3+EL$97*($DZ80-0.5)^3*LN($DZ80/(1-$DZ80))+EL$98*($DZ80-0.5)^4+EL$99*($DZ80-0.5)^4*LN($DZ80/(1-$DZ80))+EL$100*($DZ80-0.5)^5+EL$101*($DZ80-0.5)^5*LN($DZ80/(1-$DZ80))+EL$102*($DZ80-0.5)^6+EL$103*($DZ80-0.5)^6*LN($DZ80/(1-$DZ80))+EL$104*($DZ80-0.5)^7+EL$105*($DZ80-0.5)^7*LN($DZ80/(1-$DZ80))) ->  | EM84: =IF(CK$29="","",EM$90+EM$91*LN($DZ80/(1-$DZ80))+EM$92*($DZ80-0.5)*LN($DZ80/(1-$DZ80))+EM$93*($DZ80-0.5)+EM$94*($DZ80-0.5)^2+EM$95*($DZ80-0.5)^2*LN($DZ80/(1-$DZ80))+EM$96*($DZ80-0.5)^3+EM$97*($DZ80-0.5)^3*LN($DZ80/(1-$DZ80))+EM$98*($DZ80-0.5)^4+EM$99*($DZ80-0.5)^4*LN($DZ80/(1-$DZ80))+EM$100*($DZ80-0.5)^5+EM$101*($DZ80-0.5)^5*LN($DZ80/(1-$DZ80))+EM$102*($DZ80-0.5)^6+EM$103*($DZ80-0.5)^6*LN($DZ80/(1-$DZ80))+EM$104*($DZ80-0.5)^7+EM$105*($DZ80-0.5)^7*LN($DZ80/(1-$DZ80))) ->  | EN84: =IF(CL$29="","",EN$90+EN$91*LN($DZ80/(1-$DZ80))+EN$92*($DZ80-0.5)*LN($DZ80/(1-$DZ80))+EN$93*($DZ80-0.5)+EN$94*($DZ80-0.5)^2+EN$95*($DZ80-0.5)^2*LN($DZ80/(1-$DZ80))+EN$96*($DZ80-0.5)^3+EN$97*($DZ80-0.5)^3*LN($DZ80/(1-$DZ80))+EN$98*($DZ80-0.5)^4+EN$99*($DZ80-0.5)^4*LN($DZ80/(1-$DZ80))+EN$100*($DZ80-0.5)^5+EN$101*($DZ80-0.5)^5*LN($DZ80/(1-$DZ80))+EN$102*($DZ80-0.5)^6+EN$103*($DZ80-0.5)^6*LN($DZ80/(1-$DZ80))+EN$104*($DZ80-0.5)^7+EN$105*($DZ80-0.5)^7*LN($DZ80/(1-$DZ80))) ->  | EO84: =IF(CM$29="","",EO$90+EO$91*LN($DZ80/(1-$DZ80))+EO$92*($DZ80-0.5)*LN($DZ80/(1-$DZ80))+EO$93*($DZ80-0.5)+EO$94*($DZ80-0.5)^2+EO$95*($DZ80-0.5)^2*LN($DZ80/(1-$DZ80))+EO$96*($DZ80-0.5)^3+EO$97*($DZ80-0.5)^3*LN($DZ80/(1-$DZ80))+EO$98*($DZ80-0.5)^4+EO$99*($DZ80-0.5)^4*LN($DZ80/(1-$DZ80))+EO$100*($DZ80-0.5)^5+EO$101*($DZ80-0.5)^5*LN($DZ80/(1-$DZ80))+EO$102*($DZ80-0.5)^6+EO$103*($DZ80-0.5)^6*LN($DZ80/(1-$DZ80))+EO$104*($DZ80-0.5)^7+EO$105*($DZ80-0.5)^7*LN($DZ80/(1-$DZ80))) -> 
AB85: 0.54 | AC85: 41.18003589 | AD85: 0.03344433641 | AE85: 46.37367532 | AF85: 40.50126231 | AG85: 40.2985346 | AH85: 41.18003589 | AT85: 0.02899456211 | AU85: 0.02777459734 | AV85: 0.03230360011 | AW85: 0.03344433641 | BJ85: 46.37367532 | BK85: 40.50126231 | BL85: 40.2985346 | BM85: 41.18003589 | BY85: 0.02899456211 | BZ85: 0.02777459734 | CA85: 0.03230360011 | CB85: 0.03344433641 | CO85: 0.02913463246 | CP85: 0.02850754763 | CQ85: 0.03332479922 | CR85: 0.03392277289
AB86: 0.55 | AC86: 41.48032978 | AD86: 0.03315158748 | AE86: 46.71917067 | AF86: 40.8638209 | AG86: 40.61069837 | AH86: 41.48032978 | AT86: 0.02888950935 | AU86: 0.02738761482 | AV86: 0.03176380424 | AW86: 0.03315158748 | BJ86: 46.71917067 | BK86: 40.8638209 | BL86: 40.61069837 | BM86: 41.48032978 | BY86: 0.02888950935 | BZ86: 0.02738761482 | CA86: 0.03176380424 | CB86: 0.03315158748 | CO86: 0.02907626981 | CP86: 0.02814812222 | CQ86: 0.03282441535 | CR86: 0.03370143707 | DZ86: Press "Recalculate" (F9) for new simulation.
AB87: 0.56 | AC87: 41.78345043 | AD87: 0.03282340159 | AE87: 47.06606517 | AF87: 41.23162681 | AG87: 40.92830291 | AH87: 41.78345043 | AT87: 0.02876111153 | AU87: 0.02698777626 | AV87: 0.03120640934 | AW87: 0.03282340159 | BJ87: 47.06606517 | BK87: 41.23162681 | BL87: 40.92830291 | BM87: 41.78345043 | BY87: 0.02876111153 | BZ87: 0.02698777626 | CA87: 0.03120640934 | CB87: 0.03282340159 | CO87: 0.02899456211 | CP87: 0.02777459734 | CQ87: 0.03230360011 | CR87: 0.03344433641
AB88: 0.57 | AC88: 42.08978244 | AD88: 0.03246008915 | AE88: 47.41465368 | AF88: 41.60500935 | AG88: 41.25171833 | AH88: 42.08978244 | AT88: 0.02860936865 | AU88: 0.02657564445 | AV88: 0.03063272805 | AW88: 0.03246008915 | BJ88: 47.41465368 | BK88: 41.60500935 | BL88: 41.25171833 | BM88: 42.08978244 | BY88: 0.02860936865 | BZ88: 0.02657564445 | CA88: 0.03063272805 | CB88: 0.03246008915 | CO88: 0.02888950935 | CP88: 0.02738761482 | CQ88: 0.03176380424 | CR88: 0.03315158748 | DZ88: ceofficients
AB89: 0.58 | AC89: 42.39972983 | AD89: 0.03206206309 | AE89: 47.76523958 | AF89: 41.98431323 | AG89: 41.58133123 | AH89: 42.39972983 | AT89: 0.02843428072 | AU89: 0.02615174477 | AV89: 0.03004400465 | AW89: 0.03206206309 | BJ89: 47.76523958 | BK89: 41.98431323 | BL89: 41.58133123 | BM89: 42.39972983 | BY89: 0.02843428072 | BZ89: 0.02615174477 | CA89: 0.03004400465 | CB89: 0.03206206309 | CO89: 0.02876111153 | CP89: 0.02698777626 | CQ89: 0.03120640934 | CR89: 0.03282340159 | DZ89: n --> | EA89: 2 | EB89: 3 | EC89: 4 | ED89: 5 | EE89: 6 | EF89: 7 | EG89: 8 | EH89: 9 | EI89: 10 | EJ89: 11 | EK89: 12 | EL89: 13 | EM89: 14 | EN89: 15 | EO89: 16
AB90: 0.59 | AC90: 42.71371845 | AD90: 0.03162984152 | AE90: 48.11813641 | AF90: 42.36990047 | AG90: 41.91754705 | AH90: 42.71371845 | AT90: 0.02823584772 | AU90: 0.02571656654 | AV90: 0.02944141596 | AW90: 0.03162984152 | BJ90: 48.11813641 | BK90: 42.36990047 | BL90: 41.91754705 | BM90: 42.71371845 | BY90: 0.02823584772 | BZ90: 0.02571656654 | CA90: 0.02944141596 | CB90: 0.03162984152 | CO90: 0.02860936865 | CP90: 0.02657564445 | CQ90: 0.03063272805 | CR90: 0.03246008915 | DZ90: a1 | EA90: =IF(OR(EA40<>0,B20<EA89),"",IF(DF27=0,"determ",IFERROR(MMULT(MMULT(MINVERSE(INDEX(DZ43:EO58,1,1):INDEX(DZ43:EO58,2,2)+MMULT(TRANSPOSE(INDEX(DE30:DN10029,1,1):INDEX(DE30:DN10029,$B$20,2)),INDEX(DE30:DN10029,1,1):INDEX(DE30:DN10029,$B$20,2))),TRANSPOSE(INDEX(DE30:DN10029,1,1):INDEX(DE30:DN10029,$B$20,2))),INDEX(DU30:DU10029,1,1):INDEX(DU30:DU10029,$B$20,1)),"error"))) -> 45 | EB90: =IF(OR(EA40<>0,B20<EB89),"",IF(DG27=0,"determ",IFERROR(MMULT(MMULT(MINVERSE(INDEX(DZ43:EO58,1,1):INDEX(DZ43:EO58,3,3)+MMULT(TRANSPOSE(INDEX(DE30:DN10029,1,1):INDEX(DE30:DN10029,$B$20,3)),INDEX(DE30:DN10029,1,1):INDEX(DE30:DN10029,$B$20,3))),TRANSPOSE(INDEX(DE30:DN10029,1,1):INDEX(DE30:DN10029,$B$20,3))),INDEX(DU30:DU10029,1,1):INDEX(DU30:DU10029,$B$20,1)),"error"))) -> 39.09735393 | EC90: =IF(OR(EA40<>0,B20<EC89),"",IF(DH27=0,"determ",IFERROR(MMULT(MMULT(MINVERSE(INDEX(DZ43:EO58,1,1):INDEX(DZ43:EO58,4,4)+MMULT(TRANSPOSE(INDEX(DE30:DN10029,1,1):INDEX(DE30:DN10029,$B$20,4)),INDEX(DE30:DN10029,1,1):INDEX(DE30:DN10029,$B$20,4))),TRANSPOSE(INDEX(DE30:DN10029,1,1):INDEX(DE30:DN10029,$B$20,4))),INDEX(DU30:DU10029,1,1):INDEX(DU30:DU10029,$B$20,1)),"error"))) -> 39.09735393 | ED90: =IF(OR(EA40<>0,B20<ED89),"",IF(DI27=0,"determ",IFERROR(MMULT(MMULT(MINVERSE(INDEX(DZ43:EO58,1,1):INDEX(DZ43:EO58,5,5)+MMULT(TRANSPOSE(INDEX(DE30:DN10029,1,1):INDEX(DE30:DN10029,$B$20,5)),INDEX(DE30:DN10029,1,1):INDEX(DE30:DN10029,$B$20,5))),TRANSPOSE(INDEX(DE30:DN10029,1,1):INDEX(DE30:DN10029,$B$20,5))),INDEX(DU30:DU10029,1,1):INDEX(DU30:DU10029,$B$20,1)),"error"))) -> 40 | EE90: =IF(OR(EA40<>0,B20<EE89),"",IF(DJ27=0,"determ",IFERROR(MMULT(MMULT(MINVERSE(INDEX(DZ43:EO58,1,1):INDEX(DZ43:EO58,6,6)+MMULT(TRANSPOSE(INDEX(DE30:DN10029,1,1):INDEX(DE30:DN10029,$B$20,6)),INDEX(DE30:DN10029,1,1):INDEX(DE30:DN10029,$B$20,6))),TRANSPOSE(INDEX(DE30:DN10029,1,1):INDEX(DE30:DN10029,$B$20,6))),INDEX(DU30:DU10029,1,1):INDEX(DU30:DU10029,$B$20,1)),"error"))) ->  | EF90: =IF(OR(EA40<>0,B20<EF89),"",IF(DK27=0,"determ",IFERROR(MMULT(MMULT(MINVERSE(INDEX(DZ43:EO58,1,1):INDEX(DZ43:EO58,7,7)+MMULT(TRANSPOSE(INDEX(DE30:DN10029,1,1):INDEX(DE30:DN10029,$B$20,7)),INDEX(DE30:DN10029,1,1):INDEX(DE30:DN10029,$B$20,7))),TRANSPOSE(INDEX(DE30:DN10029,1,1):INDEX(DE30:DN10029,$B$20,7))),INDEX(DU30:DU10029,1,1):INDEX(DU30:DU10029,$B$20,1)),"error"))) ->  | EG90: =IF(OR(EA40<>0,B20<EG89),"",IF(DL27=0,"determ",IFERROR(MMULT(MMULT(MINVERSE(INDEX(DZ43:EO58,1,1):INDEX(DZ43:EO58,8,8)+MMULT(TRANSPOSE(INDEX(DE30:DN10029,1,1):INDEX(DE30:DN10029,$B$20,8)),INDEX(DE30:DN10029,1,1):INDEX(DE30:DN10029,$B$20,8))),TRANSPOSE(INDEX(DE30:DN10029,1,1):INDEX(DE30:DN10029,$B$20,8))),INDEX(DU30:DU10029,1,1):INDEX(DU30:DU10029,$B$20,1)),"error"))) ->  | EH90: =IF(OR(EA40<>0,B20<EH89),"",IF(DM27=0,"determ",IFERROR(MMULT(MMULT(MINVERSE(INDEX(DZ43:EO58,1,1):INDEX(DZ43:EO58,9,9)+MMULT(TRANSPOSE(INDEX(DE30:DN10029,1,1):INDEX(DE30:DN10029,$B$20,9)),INDEX(DE30:DN10029,1,1):INDEX(DE30:DN10029,$B$20,9))),TRANSPOSE(INDEX(DE30:DN10029,1,1):INDEX(DE30:DN10029,$B$20,9))),INDEX(DU30:DU10029,1,1):INDEX(DU30:DU10029,$B$20,1)),"error"))) ->  | EI90: =IF(OR($EA$40<>0,$B$20<10),"",IF(DN27=0,"determ",IFERROR(MMULT(MMULT(MINVERSE(INDEX(DZ43:EO58,1,1):INDEX(DZ43:EO58,10,10)+MMULT(TRANSPOSE(INDEX($DE$30:$DT$10029,1,1):INDEX($DE$30:$DT$10029,$B$20,10)),INDEX($DE$30:$DT$10029,1,1):INDEX($DE$30:$DT$10029,$B$20,10))),TRANSPOSE(INDEX($DE$30:$DT$10029,1,1):INDEX($DE$30:$DT$10029,$B$20,10))),INDEX($DU$30:$DU$10029,1,1):INDEX($DU$30:$DU$10029,$B$20,1)),"error"))) ->  | EJ90: =IF(OR($EA$40<>0,$B$20<11),"",IF(DO27=0,"determ",IFERROR(MMULT(MMULT(MINVERSE(INDEX(DZ43:EO58,1,1):INDEX(DZ43:EO58,11,11)+MMULT(TRANSPOSE(INDEX($DE$30:$DT$10029,1,1):INDEX($DE$30:$DT$10029,$B$20,11)),INDEX($DE$30:$DT$10029,1,1):INDEX($DE$30:$DT$10029,$B$20,11))),TRANSPOSE(INDEX($DE$30:$DT$10029,1,1):INDEX($DE$30:$DT$10029,$B$20,11))),INDEX($DU$30:$DU$10029,1,1):INDEX($DU$30:$DU$10029,$B$20,1)),"error"))) ->  | EK90: =IF(OR($EA$40<>0,$B$20<12),"",IF(DP27=0,"determ",IFERROR(MMULT(MMULT(MINVERSE(INDEX(DZ43:EO58,1,1):INDEX(DZ43:EO58,12,12)+MMULT(TRANSPOSE(INDEX($DE$30:$DT$10029,1,1):INDEX($DE$30:$DT$10029,$B$20,12)),INDEX($DE$30:$DT$10029,1,1):INDEX($DE$30:$DT$10029,$B$20,12))),TRANSPOSE(INDEX($DE$30:$DT$10029,1,1):INDEX($DE$30:$DT$10029,$B$20,12))),INDEX($DU$30:$DU$10029,1,1):INDEX($DU$30:$DU$10029,$B$20,1)),"error"))) ->  | EL90: =IF(OR($EA$40<>0,$B$20<13),"",IF(DQ27=0,"determ",IFERROR(MMULT(MMULT(MINVERSE(INDEX(DZ43:EO58,1,1):INDEX(DZ43:EO58,13,13)+MMULT(TRANSPOSE(INDEX($DE$30:$DT$10029,1,1):INDEX($DE$30:$DT$10029,$B$20,13)),INDEX($DE$30:$DT$10029,1,1):INDEX($DE$30:$DT$10029,$B$20,13))),TRANSPOSE(INDEX($DE$30:$DT$10029,1,1):INDEX($DE$30:$DT$10029,$B$20,13))),INDEX($DU$30:$DU$10029,1,1):INDEX($DU$30:$DU$10029,$B$20,1)),"error"))) ->  | EM90: =IF(OR($EA$40<>0,$B$20<14),"",IF(DR27=0,"determ",IFERROR(MMULT(MMULT(MINVERSE(INDEX(DZ43:EO58,1,1):INDEX(DZ43:EO58,14,14)+MMULT(TRANSPOSE(INDEX($DE$30:$DT$10029,1,1):INDEX($DE$30:$DT$10029,$B$20,14)),INDEX($DE$30:$DT$10029,1,1):INDEX($DE$30:$DT$10029,$B$20,14))),TRANSPOSE(INDEX($DE$30:$DT$10029,1,1):INDEX($DE$30:$DT$10029,$B$20,14))),INDEX($DU$30:$DU$10029,1,1):INDEX($DU$30:$DU$10029,$B$20,1)),"error"))) ->  | EN90: =IF(OR($EA$40<>0,$B$20<15),"",IF(DS27=0,"determ",IFERROR(MMULT(MMULT(MINVERSE(INDEX(DZ43:EO58,1,1):INDEX(DZ43:EO58,15,15)+MMULT(TRANSPOSE(INDEX($DE$30:$DT$10029,1,1):INDEX($DE$30:$DT$10029,$B$20,15)),INDEX($DE$30:$DT$10029,1,1):INDEX($DE$30:$DT$10029,$B$20,15))),TRANSPOSE(INDEX($DE$30:$DT$10029,1,1):INDEX($DE$30:$DT$10029,$B$20,15))),INDEX($DU$30:$DU$10029,1,1):INDEX($DU$30:$DU$10029,$B$20,1)),"error"))) ->  | EO90: =IF(OR($EA$40<>0,$B$20<16),"",IF(DT27=0,"determ",IFERROR(MMULT(MMULT(MINVERSE(INDEX(DZ43:EO58,1,1):INDEX(DZ43:EO58,16,16)+MMULT(TRANSPOSE(INDEX($DE$30:$DT$10029,1,1):INDEX($DE$30:$DT$10029,$B$20,16)),INDEX($DE$30:$DT$10029,1,1):INDEX($DE$30:$DT$10029,$B$20,16))),TRANSPOSE(INDEX($DE$30:$DT$10029,1,1):INDEX($DE$30:$DT$10029,$B$20,16))),INDEX($DU$30:$DU$10029,1,1):INDEX($DU$30:$DU$10029,$B$20,1)),"error"))) -> 
AB91: 0.6 | AC91: 43.03219853 | AD91: 0.03116404926 | AE91: 48.47366973 | AF91: 42.76215272 | AG91: 42.2607924 | AH91: 43.03219853 | AT91: 0.02801406967 | AU91: 0.02527056426 | AV91: 0.02882607254 | AW91: 0.03116404926 | BJ91: 48.47366973 | BK91: 42.76215272 | BL91: 42.2607924 | BM91: 43.03219853 | BY91: 0.02801406967 | BZ91: 0.02527056426 | CA91: 0.02882607254 | CB91: 0.03116404926 | CO91: 0.02843428072 | CP91: 0.02615174477 | CQ91: 0.03004400465 | CR91: 0.03206206309 | DZ91: a2 | EA91: 8.567123692 | EB91: 8.567123692 | EC91: 9.751671906 | ED91: 9.751671906
AB92: 0.61 | AC92: 43.35564761 | AD92: 0.03066541847 | AE92: 48.8321791 | AF92: 43.16147358 | AG92: 42.61151784 | AH92: 43.35564761 | AT92: 0.02776894656 | AU92: 0.02481415887 | AV92: 0.02819902006 | AW92: 0.03066541847 | BJ92: 48.8321791 | BK92: 43.16147358 | BL92: 42.61151784 | BM92: 43.35564761 | BY92: 0.02776894656 | BZ92: 0.02481415887 | CA92: 0.02819902006 | CB92: 0.03066541847 | CO92: 0.02823584772 | CP92: 0.02571656654 | CQ92: 0.02944141596 | CR92: 0.03162984152 | DZ92: a3 | EA92: 0 | EB92: 4.713822708 | EC92: 4.713822708 | ED92: 6.699123197
AB93: 0.62 | AC93: =INDEX(AE93:AS93,1,$C$20-1) -> 43.68457377 | AD93: =INDEX(AT93:BH93,1,$C$20-1) -> 0.03013478808 | AE93: =IF(BJ93="",NA(),IF($B$14="u",BJ93,IF($B$14="sl",$C$22+EXP(BJ93),IF($B$14="su",$C$23-EXP(-BJ93),IF($B$14="b",($C$22+$C$23*EXP(BJ93))/(1+EXP(BJ93)),NA()))))) -> 49.1940202 | AF93: =IF(BK93="",NA(),IF($B$14="u",BK93,IF($B$14="sl",$C$22+EXP(BK93),IF($B$14="su",$C$23-EXP(-BK93),IF($B$14="b",($C$22+$C$23*EXP(BK93))/(1+EXP(BK93)),NA()))))) -> 43.56829135 | AG93: =IF(BL93="",NA(),IF($B$14="u",BL93,IF($B$14="sl",$C$22+EXP(BL93),IF($B$14="su",$C$23-EXP(-BL93),IF($B$14="b",($C$22+$C$23*EXP(BL93))/(1+EXP(BL93)),NA()))))) -> 42.97020087 | AH93: =IF(BM93="",NA(),IF($B$14="u",BM93,IF($B$14="sl",$C$22+EXP(BM93),IF($B$14="su",$C$23-EXP(-BM93),IF($B$14="b",($C$22+$C$23*EXP(BM93))/(1+EXP(BM93)),NA()))))) -> 43.68457377 | AI93: =IF(BN93="",NA(),IF($B$14="u",BN93,IF($B$14="sl",$C$22+EXP(BN93),IF($B$14="su",$C$23-EXP(-BN93),IF($B$14="b",($C$22+$C$23*EXP(BN93))/(1+EXP(BN93)),NA()))))) ->  | AJ93: =IF(BO93="",NA(),IF($B$14="u",BO93,IF($B$14="sl",$C$22+EXP(BO93),IF($B$14="su",$C$23-EXP(-BO93),IF($B$14="b",($C$22+$C$23*EXP(BO93))/(1+EXP(BO93)),NA()))))) ->  | AK93: =IF(BP93="",NA(),IF($B$14="u",BP93,IF($B$14="sl",$C$22+EXP(BP93),IF($B$14="su",$C$23-EXP(-BP93),IF($B$14="b",($C$22+$C$23*EXP(BP93))/(1+EXP(BP93)),NA()))))) ->  | AL93: =IF(BQ93="",NA(),IF($B$14="u",BQ93,IF($B$14="sl",$C$22+EXP(BQ93),IF($B$14="su",$C$23-EXP(-BQ93),IF($B$14="b",($C$22+$C$23*EXP(BQ93))/(1+EXP(BQ93)),NA()))))) ->  | AM93: =IF(BR93="",NA(),IF($B$14="u",BR93,IF($B$14="sl",$C$22+EXP(BR93),IF($B$14="su",$C$23-EXP(-BR93),IF($B$14="b",($C$22+$C$23*EXP(BR93))/(1+EXP(BR93)),NA()))))) ->  | AN93: =IF(BS93="",NA(),IF($B$14="u",BS93,IF($B$14="sl",$C$22+EXP(BS93),IF($B$14="su",$C$23-EXP(-BS93),IF($B$14="b",($C$22+$C$23*EXP(BS93))/(1+EXP(BS93)),NA()))))) ->  | AO93: =IF(BT93="",NA(),IF($B$14="u",BT93,IF($B$14="sl",$C$22+EXP(BT93),IF($B$14="su",$C$23-EXP(-BT93),IF($B$14="b",($C$22+$C$23*EXP(BT93))/(1+EXP(BT93)),NA()))))) ->  | AP93: =IF(BU93="",NA(),IF($B$14="u",BU93,IF($B$14="sl",$C$22+EXP(BU93),IF($B$14="su",$C$23-EXP(-BU93),IF($B$14="b",($C$22+$C$23*EXP(BU93))/(1+EXP(BU93)),NA()))))) ->  | AQ93: =IF(BV93="",NA(),IF($B$14="u",BV93,IF($B$14="sl",$C$22+EXP(BV93),IF($B$14="su",$C$23-EXP(-BV93),IF($B$14="b",($C$22+$C$23*EXP(BV93))/(1+EXP(BV93)),NA()))))) ->  | AR93: =IF(BW93="",NA(),IF($B$14="u",BW93,IF($B$14="sl",$C$22+EXP(BW93),IF($B$14="su",$C$23-EXP(-BW93),IF($B$14="b",($C$22+$C$23*EXP(BW93))/(1+EXP(BW93)),NA()))))) ->  | AS93: =IF(BX93="",NA(),IF($B$14="u",BX93,IF($B$14="sl",$C$22+EXP(BX93),IF($B$14="su",$C$23-EXP(-BX93),IF($B$14="b",($C$22+$C$23*EXP(BX93))/(1+EXP(BX93)),NA()))))) ->  | AT93: =IF(BY93="",NA(),IF($B$14="u",BY93,IF($B$14="sl",BY93*EXP(-BJ93),IF($B$14="su",BY93*EXP(BJ93),IF($B$14="b",BY93*(1+EXP(BJ93))^2/(($C$23-$C$22)*EXP(BJ93)),NA()))))) -> 0.02750047839 | AU93: =IF(BZ93="",NA(),IF($B$14="u",BZ93,IF($B$14="sl",BZ93*EXP(-BK93),IF($B$14="su",BZ93*EXP(BK93),IF($B$14="b",BZ93*(1+EXP(BK93))^2/(($C$23-$C$22)*EXP(BK93)),NA()))))) -> 0.02434773887 | AV93: =IF(CA93="",NA(),IF($B$14="u",CA93,IF($B$14="sl",CA93*EXP(-BL93),IF($B$14="su",CA93*EXP(BL93),IF($B$14="b",CA93*(1+EXP(BL93))^2/(($C$23-$C$22)*EXP(BL93)),NA()))))) -> 0.02756124096 | AW93: =IF(CB93="",NA(),IF($B$14="u",CB93,IF($B$14="sl",CB93*EXP(-BM93),IF($B$14="su",CB93*EXP(BM93),IF($B$14="b",CB93*(1+EXP(BM93))^2/(($C$23-$C$22)*EXP(BM93)),NA()))))) -> 0.03013478808 | AX93: =IF(CC93="",NA(),IF($B$14="u",CC93,IF($B$14="sl",CC93*EXP(-BN93),IF($B$14="su",CC93*EXP(BN93),IF($B$14="b",CC93*(1+EXP(BN93))^2/(($C$23-$C$22)*EXP(BN93)),NA()))))) ->  | AY93: =IF(CD93="",NA(),IF($B$14="u",CD93,IF($B$14="sl",CD93*EXP(-BO93),IF($B$14="su",CD93*EXP(BO93),IF($B$14="b",CD93*(1+EXP(BO93))^2/(($C$23-$C$22)*EXP(BO93)),NA()))))) ->  | AZ93: =IF(CE93="",NA(),IF($B$14="u",CE93,IF($B$14="sl",CE93*EXP(-BP93),IF($B$14="su",CE93*EXP(BP93),IF($B$14="b",CE93*(1+EXP(BP93))^2/(($C$23-$C$22)*EXP(BP93)),NA()))))) ->  | BA93: =IF(CF93="",NA(),IF($B$14="u",CF93,IF($B$14="sl",CF93*EXP(-BQ93),IF($B$14="su",CF93*EXP(BQ93),IF($B$14="b",CF93*(1+EXP(BQ93))^2/(($C$23-$C$22)*EXP(BQ93)),NA()))))) ->  | BB93: =IF(CG93="",NA(),IF($B$14="u",CG93,IF($B$14="sl",CG93*EXP(-BR93),IF($B$14="su",CG93*EXP(BR93),IF($B$14="b",CG93*(1+EXP(BR93))^2/(($C$23-$C$22)*EXP(BR93)),NA()))))) ->  | BC93: =IF(CH93="",NA(),IF($B$14="u",CH93,IF($B$14="sl",CH93*EXP(-BS93),IF($B$14="su",CH93*EXP(BS93),IF($B$14="b",CH93*(1+EXP(BS93))^2/(($C$23-$C$22)*EXP(BS93)),NA()))))) ->  | BD93: =IF(CI93="",NA(),IF($B$14="u",CI93,IF($B$14="sl",CI93*EXP(-BT93),IF($B$14="su",CI93*EXP(BT93),IF($B$14="b",CI93*(1+EXP(BT93))^2/(($C$23-$C$22)*EXP(BT93)),NA()))))) ->  | BE93: =IF(CJ93="",NA(),IF($B$14="u",CJ93,IF($B$14="sl",CJ93*EXP(-BU93),IF($B$14="su",CJ93*EXP(BU93),IF($B$14="b",CJ93*(1+EXP(BU93))^2/(($C$23-$C$22)*EXP(BU93)),NA()))))) ->  | BF93: =IF(CK93="",NA(),IF($B$14="u",CK93,IF($B$14="sl",CK93*EXP(-BV93),IF($B$14="su",CK93*EXP(BV93),IF($B$14="b",CK93*(1+EXP(BV93))^2/(($C$23-$C$22)*EXP(BV93)),NA()))))) ->  | BG93: =IF(CL93="",NA(),IF($B$14="u",CL93,IF($B$14="sl",CL93*EXP(-BW93),IF($B$14="su",CL93*EXP(BW93),IF($B$14="b",CL93*(1+EXP(BW93))^2/(($C$23-$C$22)*EXP(BW93)),NA()))))) ->  | BH93: =IF(CM93="",NA(),IF($B$14="u",CM93,IF($B$14="sl",CM93*EXP(-BX93),IF($B$14="su",CM93*EXP(BX93),IF($B$14="b",CM93*(1+EXP(BX93))^2/(($C$23-$C$22)*EXP(BX93)),NA()))))) ->  | BJ93: =IF(BY93="","",EA$90+EA$91*LN($AB93/(1-$AB93))) -> 49.1940202 | BK93: =IF(BZ93="","",EB$90+EB$91*LN($AB93/(1-$AB93))+EB$92*($AB93-0.5)*LN($AB93/(1-$AB93))) -> 43.56829135 | BL93: =IF(CA93="","",EC$90+EC$91*LN($AB93/(1-$AB93))+EC$92*($AB93-0.5)*LN($AB93/(1-$AB93))+EC$93*($AB93-0.5)) -> 42.97020087 | BM93: =IF(CB93="","",ED$90+ED$91*LN($AB93/(1-$AB93))+ED$92*($AB93-0.5)*LN($AB93/(1-$AB93))+ED$93*($AB93-0.5)+ED$94*($AB93-0.5)^2) -> 43.68457377 | BN93: =IF(CC93="","",EE$90+EE$91*LN($AB93/(1-$AB93))+EE$92*($AB93-0.5)*LN($AB93/(1-$AB93))+EE$93*($AB93-0.5)+EE$94*($AB93-0.5)^2+EE$95*($AB93-0.5)^2*LN($AB93/(1-$AB93))) ->  | BO93: =IF(CD93="","",EF$90+EF$91*LN($AB93/(1-$AB93))+EF$92*($AB93-0.5)*LN($AB93/(1-$AB93))+EF$93*($AB93-0.5)+EF$94*($AB93-0.5)^2+EF$95*($AB93-0.5)^2*LN($AB93/(1-$AB93))+EF$96*($AB93-0.5)^3) ->  | BP93: =IF(CE93="","",EG$90+EG$91*LN($AB93/(1-$AB93))+EG$92*($AB93-0.5)*LN($AB93/(1-$AB93))+EG$93*($AB93-0.5)+EG$94*($AB93-0.5)^2+EG$95*($AB93-0.5)^2*LN($AB93/(1-$AB93))+EG$96*($AB93-0.5)^3+EG$97*($AB93-0.5)^3*LN($AB93/(1-$AB93))) ->  | BQ93: =IF(CF93="","",EH$90+EH$91*LN($AB93/(1-$AB93))+EH$92*($AB93-0.5)*LN($AB93/(1-$AB93))+EH$93*($AB93-0.5)+EH$94*($AB93-0.5)^2+EH$95*($AB93-0.5)^2*LN($AB93/(1-$AB93))+EH$96*($AB93-0.5)^3+EH$97*($AB93-0.5)^3*LN($AB93/(1-$AB93))+EH$98*($AB93-0.5)^4) ->  | BR93: =IF(CG93="","",EI$90+EI$91*LN($AB93/(1-$AB93))+EI$92*($AB93-0.5)*LN($AB93/(1-$AB93))+EI$93*($AB93-0.5)+EI$94*($AB93-0.5)^2+EI$95*($AB93-0.5)^2*LN($AB93/(1-$AB93))+EI$96*($AB93-0.5)^3+EI$97*($AB93-0.5)^3*LN($AB93/(1-$AB93))+EI$98*($AB93-0.5)^4+EI$99*($AB93-0.5)^4*LN($AB93/(1-$AB93))+EI$100*($AB93-0.5)^5+EI$101*($AB93-0.5)^5*LN($AB93/(1-$AB93))+EI$102*($AB93-0.5)^6+EI$103*($AB93-0.5)^6*LN($AB93/(1-$AB93))+EI$104*($AB93-0.5)^7+EI$105*($AB93-0.5)^7*LN($AB93/(1-$AB93))) ->  | BU93: =IF(CJ93="","",EL$90+EL$91*LN($AB93/(1-$AB93))+EL$92*($AB93-0.5)*LN($AB93/(1-$AB93))+EL$93*($AB93-0.5)+EL$94*($AB93-0.5)^2+EL$95*($AB93-0.5)^2*LN($AB93/(1-$AB93))+EL$96*($AB93-0.5)^3+EL$97*($AB93-0.5)^3*LN($AB93/(1-$AB93))+EL$98*($AB93-0.5)^4+EL$99*($AB93-0.5)^4*LN($AB93/(1-$AB93))+EL$100*($AB93-0.5)^5+EL$101*($AB93-0.5)^5*LN($AB93/(1-$AB93))+EL$102*($AB93-0.5)^6+EL$103*($AB93-0.5)^6*LN($AB93/(1-$AB93))+EL$104*($AB93-0.5)^7+EL$105*($AB93-0.5)^7*LN($AB93/(1-$AB93))) ->  | BV93: =IF(CK93="","",EM$90+EM$91*LN($AB93/(1-$AB93))+EM$92*($AB93-0.5)*LN($AB93/(1-$AB93))+EM$93*($AB93-0.5)+EM$94*($AB93-0.5)^2+EM$95*($AB93-0.5)^2*LN($AB93/(1-$AB93))+EM$96*($AB93-0.5)^3+EM$97*($AB93-0.5)^3*LN($AB93/(1-$AB93))+EM$98*($AB93-0.5)^4+EM$99*($AB93-0.5)^4*LN($AB93/(1-$AB93))+EM$100*($AB93-0.5)^5+EM$101*($AB93-0.5)^5*LN($AB93/(1-$AB93))+EM$102*($AB93-0.5)^6+EM$103*($AB93-0.5)^6*LN($AB93/(1-$AB93))+EM$104*($AB93-0.5)^7+EM$105*($AB93-0.5)^7*LN($AB93/(1-$AB93))) ->  | BW93: =IF(CL93="","",EN$90+EN$91*LN($AB93/(1-$AB93))+EN$92*($AB93-0.5)*LN($AB93/(1-$AB93))+EN$93*($AB93-0.5)+EN$94*($AB93-0.5)^2+EN$95*($AB93-0.5)^2*LN($AB93/(1-$AB93))+EN$96*($AB93-0.5)^3+EN$97*($AB93-0.5)^3*LN($AB93/(1-$AB93))+EN$98*($AB93-0.5)^4+EN$99*($AB93-0.5)^4*LN($AB93/(1-$AB93))+EN$100*($AB93-0.5)^5+EN$101*($AB93-0.5)^5*LN($AB93/(1-$AB93))+EN$102*($AB93-0.5)^6+EN$103*($AB93-0.5)^6*LN($AB93/(1-$AB93))+EN$104*($AB93-0.5)^7+EN$105*($AB93-0.5)^7*LN($AB93/(1-$AB93))) ->  | BX93: =IF(CM93="","",EO$90+EO$91*LN($AB93/(1-$AB93))+EO$92*($AB93-0.5)*LN($AB93/(1-$AB93))+EO$93*($AB93-0.5)+EO$94*($AB93-0.5)^2+EO$95*($AB93-0.5)^2*LN($AB93/(1-$AB93))+EO$96*($AB93-0.5)^3+EO$97*($AB93-0.5)^3*LN($AB93/(1-$AB93))+EO$98*($AB93-0.5)^4+EO$99*($AB93-0.5)^4*LN($AB93/(1-$AB93))+EO$100*($AB93-0.5)^5+EO$101*($AB93-0.5)^5*LN($AB93/(1-$AB93))+EO$102*($AB93-0.5)^6+EO$103*($AB93-0.5)^6*LN($AB93/(1-$AB93))+EO$104*($AB93-0.5)^7+EO$105*($AB93-0.5)^7*LN($AB93/(1-$AB93))) ->  | BY93: 0.02750047839 | BZ93: 0.02434773887 | CA93: 0.02756124096 | CB93: 0.03013478808 | CO93: 0.02801406967 | CP93: 0.02527056426 | CQ93: 0.02882607254 | CR93: 0.03116404926 | DZ93: a4 | EA93: 0 | EB93: 0 | EC93: -9.816532957 | ED93: -9.816532957
AB94: 0.63 | AC94: 44.0195192 | AD94: 0.02957310223 | AE94: 49.55956727 | AF94: 43.98306204 | AG94: 43.33734923 | AH94: 44.0195192 | AT94: 0.02720866517 | AU94: 0.02387166138 | AV94: 0.02691365608 | AW94: 0.02957310223 | BJ94: 49.55956727 | BK94: 43.98306204 | BL94: 43.33734923 | BM94: 44.0195192 | BY94: 0.02720866517 | BZ94: 0.02387166138 | CA94: 0.02691365608 | CB94: 0.02957310223 | CO94: 0.02776894656 | CP94: 0.02481415887 | CQ94: 0.02819902006 | CR94: 0.03066541847 | DE94: =IF(B94="","",1) ->  | DF94: =IF(B94="","",LN(B94/(1-B94))) ->  | DG94: =IF(B94="","",(B94-0.5)*DF94) ->  | DH94: =IF(B94="","",B94-0.5) ->  | DI94: =IF(B94="","",DH94^2) ->  | DJ94: =IF(B94="","",DF94*DI94) ->  | DK94: =IF(B94="","",DH94^3) ->  | DL94: =IF(B94="","",DF94*DK94) ->  | DM94: =IF(B94="","",DH94^4) ->  | DO94: =IF(B94="","",DH94^5) ->  | DP94: =IF($B94="","",DF94*DO94) ->  | DQ94: =IF(B94="","",DH94^6) ->  | DR94: =IF($B94="","",DF94*DQ94) ->  | DS94: =IF(B94="","",DH94^7) ->  | DT94: =IF($B94="","",DF94*DS94) ->  | DU94: =IF(B94="","",IF($B$14="u",C94,IF($B$14="sl",LN(C94-$C$22),IF($B$14="su",-LN($C$23-C94),IF($B$14="b",LN((C94-$C$22)/($C$23-C94)),""))))) ->  | DZ94: a5 | EA94: 0 | EB94: 0 | EC94: 0 | ED94: -21.17369534
AB95: 0.64 | AC95: 44.36106427 | AD95: 0.02898140761 | AE95: 49.9292158 | AF95: 44.40627276 | AG95: 43.71350472 | AH95: 44.36106427 | AT95: 0.02689350689 | AU95: 0.02338625315 | AV95: 0.02625712658 | AW95: 0.02898140761 | BJ95: 49.9292158 | BK95: 44.40627276 | BL95: 43.71350472 | BM95: 44.36106427 | BY95: 0.02689350689 | BZ95: 0.02338625315 | CA95: 0.02625712658 | CB95: 0.02898140761 | CO95: =IF(OR(DF$26="",DF$26="no"),"",(EA$91/($AB93*(1-$AB93)))^-1) -> 0.02750047839 | CP95: =IF(OR(DG$26="",DG$26="no"),"",(EB$91/($AB93*(1-$AB93))+EB$92*(($AB93-0.5)/($AB93*(1-$AB93))+LN($AB93/(1-$AB93))))^-1) -> 0.02434773887 | CQ95: =IF(OR(DH$26="",DH$26="no"),"",(EC$91/($AB93*(1-$AB93))+EC$92*(($AB93-0.5)/($AB93*(1-$AB93))+LN($AB93/(1-$AB93)))+EC$93)^-1) -> 0.02756124096 | CR95: =IF(OR(DI$26="",DI$26="no"),"",(ED$91/($AB93*(1-$AB93))+ED$92*(($AB93-0.5)/($AB93*(1-$AB93))+LN($AB93/(1-$AB93)))+ED$93+2*ED$94*($AB93-0.5))^-1) -> 0.03013478808 | CS95: =IF(OR(DJ$26="",DJ$26="no"),"",(EE$91/($AB93*(1-$AB93))+EE$92*(($AB93-0.5)/($AB93*(1-$AB93))+LN($AB93/(1-$AB93)))+EE$93+2*EE$94*($AB93-0.5)+EE$95*(($AB93-0.5)^2/($AB93*(1-$AB93))+2*($AB93-0.5)*LN($AB93/(1-$AB93))))^-1) ->  | CT95: =IF(OR(DK$26="",DK$26="no"),"",(EF$91/($AB93*(1-$AB93))+EF$92*(($AB93-0.5)/($AB93*(1-$AB93))+LN($AB93/(1-$AB93)))+EF$93+2*EF$94*($AB93-0.5)+EF$95*(($AB93-0.5)^2/($AB93*(1-$AB93))+2*($AB93-0.5)*LN($AB93/(1-$AB93)))+3*EF$96*($AB93-0.5)^2)^-1) ->  | CU95: =IF(OR(DL$26="",DL$26="no"),"",(EG$91/($AB93*(1-$AB93))+EG$92*(($AB93-0.5)/($AB93*(1-$AB93))+LN($AB93/(1-$AB93)))+EG$93+2*EG$94*($AB93-0.5)+EG$95*(($AB93-0.5)^2/($AB93*(1-$AB93))+2*($AB93-0.5)*LN($AB93/(1-$AB93)))+3*EG$96*($AB93-0.5)^2+EG$97*(($AB93-0.5)^3/($AB93*(1-$AB93))+3*($AB93-0.5)^2*LN($AB93/(1-$AB93))))^-1) ->  | CV95: =IF(OR(DM$26="",DM$26="no"),"",(EH$91/($AB93*(1-$AB93))+EH$92*(($AB93-0.5)/($AB93*(1-$AB93))+LN($AB93/(1-$AB93)))+EH$93+2*EH$94*($AB93-0.5)+EH$95*(($AB93-0.5)^2/($AB93*(1-$AB93))+2*($AB93-0.5)*LN($AB93/(1-$AB93)))+3*EH$96*($AB93-0.5)^2+EH$97*(($AB93-0.5)^3/($AB93*(1-$AB93))+3*($AB93-0.5)^2*LN($AB93/(1-$AB93)))+4*EH$98*($AB93-0.5)^3)^-1) ->  | CW95: =IF(OR(DN$26="",DN$26="no"),"",(EI$91/($AB93*(1-$AB93))+EI$92*(($AB93-0.5)/($AB93*(1-$AB93))+LN($AB93/(1-$AB93)))+EI$93+2*EI$94*($AB93-0.5)+EI$95*(($AB93-0.5)^2/($AB93*(1-$AB93))+2*($AB93-0.5)*LN($AB93/(1-$AB93)))+3*EI$96*($AB93-0.5)^2+EI$97*(($AB93-0.5)^3/($AB93*(1-$AB93))+3*($AB93-0.5)^2*LN($AB93/(1-$AB93)))+4*EI$98*($AB93-0.5)^3+EI$99*(($AB93-0.5)^4/($AB93*(1-$AB93))+4*($AB93-0.5)^3*LN($AB93/(1-$AB93)))+5*EI$100*($AB93-0.5)^4+EI$101*(($AB93-0.5)^5/($AB93*(1-$AB93))+5*($AB93-0.5)^4*LN($AB93/(1-$AB93)))+6*EI$102*($AB93-0.5)^5+EI$103*(($AB93-0.5)^6/($AB93*(1-$AB93))+6*($AB93-0.5)^5*LN($AB93/(1-$AB93)))+7*EI$104*($AB93-0.5)^6+EI$105*(($AB93-0.5)^7/($AB93*(1-$AB93))+7*($AB93-0.5)^6*LN($AB93/(1-$AB93))))^-1) ->  | CZ95: =IF(OR(DQ$26="",DQ$26="no"),"",(EL$91/($AB93*(1-$AB93))+EL$92*(($AB93-0.5)/($AB93*(1-$AB93))+LN($AB93/(1-$AB93)))+EL$93+2*EL$94*($AB93-0.5)+EL$95*(($AB93-0.5)^2/($AB93*(1-$AB93))+2*($AB93-0.5)*LN($AB93/(1-$AB93)))+3*EL$96*($AB93-0.5)^2+EL$97*(($AB93-0.5)^3/($AB93*(1-$AB93))+3*($AB93-0.5)^2*LN($AB93/(1-$AB93)))+4*EL$98*($AB93-0.5)^3+EL$99*(($AB93-0.5)^4/($AB93*(1-$AB93))+4*($AB93-0.5)^3*LN($AB93/(1-$AB93)))+5*EL$100*($AB93-0.5)^4+EL$101*(($AB93-0.5)^5/($AB93*(1-$AB93))+5*($AB93-0.5)^4*LN($AB93/(1-$AB93)))+6*EL$102*($AB93-0.5)^5+EL$103*(($AB93-0.5)^6/($AB93*(1-$AB93))+6*($AB93-0.5)^5*LN($AB93/(1-$AB93)))+7*EL$104*($AB93-0.5)^6+EL$105*(($AB93-0.5)^7/($AB93*(1-$AB93))+7*($AB93-0.5)^6*LN($AB93/(1-$AB93))))^-1) ->  | DA95: =IF(OR(DR$26="",DR$26="no"),"",(EM$91/($AB93*(1-$AB93))+EM$92*(($AB93-0.5)/($AB93*(1-$AB93))+LN($AB93/(1-$AB93)))+EM$93+2*EM$94*($AB93-0.5)+EM$95*(($AB93-0.5)^2/($AB93*(1-$AB93))+2*($AB93-0.5)*LN($AB93/(1-$AB93)))+3*EM$96*($AB93-0.5)^2+EM$97*(($AB93-0.5)^3/($AB93*(1-$AB93))+3*($AB93-0.5)^2*LN($AB93/(1-$AB93)))+4*EM$98*($AB93-0.5)^3+EM$99*(($AB93-0.5)^4/($AB93*(1-$AB93))+4*($AB93-0.5)^3*LN($AB93/(1-$AB93)))+5*EM$100*($AB93-0.5)^4+EM$101*(($AB93-0.5)^5/($AB93*(1-$AB93))+5*($AB93-0.5)^4*LN($AB93/(1-$AB93)))+6*EM$102*($AB93-0.5)^5+EM$103*(($AB93-0.5)^6/($AB93*(1-$AB93))+6*($AB93-0.5)^5*LN($AB93/(1-$AB93)))+7*EM$104*($AB93-0.5)^6+EM$105*(($AB93-0.5)^7/($AB93*(1-$AB93))+7*($AB93-0.5)^6*LN($AB93/(1-$AB93))))^-1) ->  | DB95: =IF(OR(DS$26="",DS$26="no"),"",(EN$91/($AB93*(1-$AB93))+EN$92*(($AB93-0.5)/($AB93*(1-$AB93))+LN($AB93/(1-$AB93)))+EN$93+2*EN$94*($AB93-0.5)+EN$95*(($AB93-0.5)^2/($AB93*(1-$AB93))+2*($AB93-0.5)*LN($AB93/(1-$AB93)))+3*EN$96*($AB93-0.5)^2+EN$97*(($AB93-0.5)^3/($AB93*(1-$AB93))+3*($AB93-0.5)^2*LN($AB93/(1-$AB93)))+4*EN$98*($AB93-0.5)^3+EN$99*(($AB93-0.5)^4/($AB93*(1-$AB93))+4*($AB93-0.5)^3*LN($AB93/(1-$AB93)))+5*EN$100*($AB93-0.5)^4+EN$101*(($AB93-0.5)^5/($AB93*(1-$AB93))+5*($AB93-0.5)^4*LN($AB93/(1-$AB93)))+6*EN$102*($AB93-0.5)^5+EN$103*(($AB93-0.5)^6/($AB93*(1-$AB93))+6*($AB93-0.5)^5*LN($AB93/(1-$AB93)))+7*EN$104*($AB93-0.5)^6+EN$105*(($AB93-0.5)^7/($AB93*(1-$AB93))+7*($AB93-0.5)^6*LN($AB93/(1-$AB93))))^-1) ->  | DC95: =IF(OR(DT$26="",DT$26="no"),"",(EO$91/($AB93*(1-$AB93))+EO$92*(($AB93-0.5)/($AB93*(1-$AB93))+LN($AB93/(1-$AB93)))+EO$93+2*EO$94*($AB93-0.5)+EO$95*(($AB93-0.5)^2/($AB93*(1-$AB93))+2*($AB93-0.5)*LN($AB93/(1-$AB93)))+3*EO$96*($AB93-0.5)^2+EO$97*(($AB93-0.5)^3/($AB93*(1-$AB93))+3*($AB93-0.5)^2*LN($AB93/(1-$AB93)))+4*EO$98*($AB93-0.5)^3+EO$99*(($AB93-0.5)^4/($AB93*(1-$AB93))+4*($AB93-0.5)^3*LN($AB93/(1-$AB93)))+5*EO$100*($AB93-0.5)^4+EO$101*(($AB93-0.5)^5/($AB93*(1-$AB93))+5*($AB93-0.5)^4*LN($AB93/(1-$AB93)))+6*EO$102*($AB93-0.5)^5+EO$103*(($AB93-0.5)^6/($AB93*(1-$AB93))+6*($AB93-0.5)^5*LN($AB93/(1-$AB93)))+7*EO$104*($AB93-0.5)^6+EO$105*(($AB93-0.5)^7/($AB93*(1-$AB93))+7*($AB93-0.5)^6*LN($AB93/(1-$AB93))))^-1) ->  | DN95: =IF(B95="","",DF95*DM95) ->  | DZ95: a6 | EA95: 0 | EB95: 0 | EC95: 0 | ED95: 0
AB96: 0.65 | AC96: 44.70983216 | AD96: 0.02836084962 | AE96: 50.30338547 | AF96: 44.83844556 | AG96: 44.0992474 | AH96: 44.70983216 | AT96: 0.02655500354 | AU96: 0.02289181147 | AV96: 0.02559245576 | AW96: 0.02836084962 | BJ96: 50.30338547 | BK96: 44.83844556 | BL96: 44.0992474 | BM96: 44.70983216 | BY96: 0.02655500354 | BZ96: 0.02289181147 | CA96: 0.02559245576 | CB96: 0.02836084962 | CO96: 0.02720866517 | CP96: 0.02387166138 | CQ96: 0.02691365608 | CR96: 0.02957310223 | DZ96: a7 | EA96: 0 | EB96: 0 | EC96: 0 | ED96: 0 | EE96: 0
AB97: 0.66 | AC97: 45.06649406 | AD97: 0.02771266758 | AE97: 50.6825236 | AF97: 45.28014175 | AG97: 44.49520045 | AH97: 45.06649406 | AT97: 0.02619315514 | AU97: 0.02238860497 | AV97: 0.02492039105 | AW97: 0.02771266758 | BJ97: 50.6825236 | BK97: 45.28014175 | BL97: 44.49520045 | BM97: 45.06649406 | BY97: =IF(AND($EA$41=0,CO$26="yes"),CO99,"") -> 0.02619315514 | BZ97: 0.02238860497 | CA97: 0.02492039105 | CB97: 0.02771266758 | CO97: 0.02689350689 | CP97: 0.02338625315 | CQ97: 0.02625712658 | CR97: 0.02898140761 | DZ97: a8 | EA97: 0 | EB97: 0 | EC97: 0 | ED97: 0 | EE97: 0 | EF97: 0
AB98: 0.67 | AC98: 45.43177516 | AD98: 0.02703818891 | AE98: 51.06710899 | AF98: 45.73196691 | AG98: 44.90203565 | AH98: 45.43177516 | AT98: 0.02580796169 | AU98: 0.02187687439 | AV98: 0.02424162592 | AW98: 0.02703818891 | BJ98: 51.06710899 | BK98: 45.73196691 | BL98: 44.90203565 | BM98: 45.43177516 | BY98: 0.02580796169 | BZ98: 0.02187687439 | CA98: 0.02424162592 | CB98: 0.02703818891 | CO98: 0.02655500354 | CP98: 0.02289181147 | CQ98: 0.02559245576 | CR98: 0.02836084962 | DZ98: a9 | EA98: 0 | EB98: 0 | EC98: 0 | ED98: 0 | EE98: 0 | EF98: 0 | EG98: 0
AB99: 0.68 | AC99: 45.80646148 | AD99: 0.0263388223 | AE99: 51.45765627 | AF99: 46.19457659 | AG99: 45.3204797 | AH99: 45.80646148 | AT99: 0.02539942317 | AU99: 0.0213568332 | AV99: 0.02355680182 | AW99: 0.0263388223 | BJ99: 51.45765627 | BK99: 46.19457659 | BL99: 45.3204797 | BM99: 45.80646148 | BY99: 0.02539942317 | BZ99: 0.0213568332 | CA99: 0.02355680182 | CB99: 0.0263388223 | CO99: 0.02619315514 | CP99: 0.02238860497 | CQ99: 0.02492039105 | CR99: 0.02771266758 | DZ99: a10 | EA99: 0 | EB99: 0 | EC99: 0 | ED99: 0 | EE99: 0 | EF99: 0 | EG99: 0 | EH99: 0
AB100: 0.69 | AC100: 46.19140781 | AD100: 0.02561605007 | AE100: 51.85472101 | AF100: 46.66868284 | AG100: 45.75132146 | AH100: 46.19140781 | AT100: 0.0249675396 | AU100: 0.02082866815 | AV100: 0.0228665101 | AW100: 0.02561605007 | BJ100: 51.85472101 | BK100: 46.66868284 | BL100: 45.75132146 | BM100: 46.19140781 | BY100: 0.0249675396 | BZ100: 0.02082866815 | CA100: 0.0228665101 | CB100: 0.02561605007 | CO100: 0.02580796169 | CP100: 0.02187687439 | CQ100: 0.02424162592 | CR100: 0.02703818891 | DZ100: a11 | EA100: 0 | EB100: 0 | EC100: 0 | ED100: 0 | EE100: 0 | EF100: 0 | EG100: 0 | EH100: 0 | EI100: 0
AB101: 0.7 | AC101: 46.58754689 | AD101: 0.02487141981 | AE101: 52.25890557 | AF101: 47.15506188 | AG101: 46.19542045 | AH101: 46.58754689 | AT101: 0.02451231096 | AU101: 0.0202925397 | AV101: 0.02217129388 | AW101: 0.02487141981 | BJ101: 52.25890557 | BK101: 47.15506188 | BL101: 46.19542045 | BM101: 46.58754689 | BY101: 0.02451231096 | BZ101: 0.0202925397 | CA101: 0.02217129388 | CB101: 0.02487141981 | CO101: 0.02539942317 | CP101: 0.0213568332 | CQ101: 0.02355680182 | CR101: 0.0263388223 | DZ101: a12 | EA101: 0 | EB101: 0 | EC101: 0 | ED101: 0 | EE101: 0 | EF101: 0 | EG101: 0 | EH101: 0 | EI101: 0 | EJ101: 0
AB102: 0.71 | AC102: 46.99590006 | AD102: 0.02410653522 | AE102: 52.67086588 | AF102: 47.65456296 | AG102: 46.65371661 | AH102: 46.99590006 | AT102: 0.02403373727 | AU102: 0.01974858239 | AV102: 0.02147164979 | AW102: 0.02410653522 | BJ102: 52.67086588 | BK102: 47.65456296 | BL102: 46.65371661 | BM102: 46.99590006 | BY102: 0.02403373727 | BZ102: 0.01974858239 | CA102: 0.02147164979 | CB102: 0.02410653522 | CO102: 0.0249675396 | CP102: 0.02082866815 | CQ102: 0.0228665101 | CR102: 0.02561605007 | DZ102: a13 | EA102: 0 | EB102: 0 | EC102: 0 | ED102: 0 | EE102: 0 | EF102: 0 | EG102: 0 | EH102: 0 | EI102: 0 | EJ102: 0 | EK102: 0
AB103: 0.72 | AC103: 47.41758986 | AD103: 0.02332304654 | AE103: 53.09131943 | AF103: 48.16811876 | AG103: 47.12724182 | AH103: 47.41758986 | AT103: 0.02353181852 | AU103: 0.01919690502 | AV103: 0.02076802973 | AW103: 0.02332304654 | BJ103: 53.09131943 | BK103: 48.16811876 | BL103: 47.12724182 | BM103: 47.41758986 | BY103: 0.02353181852 | BZ103: 0.01919690502 | CA103: 0.02076802973 | CB103: 0.02332304654 | CO103: 0.02451231096 | CP103: 0.0202925397 | CQ103: 0.02217129388 | CR103: 0.02487141981 | DZ103: a14 | EA103: 0 | EB103: 0 | EC103: 0 | ED103: 0 | EE103: 0 | EF103: 0 | EG103: 0 | EH103: 0 | EI103: 0 | EJ103: 0 | EK103: 0 | EL103: 0
AB104: 0.73 | AC104: 47.85385477 | AD104: 0.02252264045 | AE104: 53.52105463 | AF104: 48.69675768 | AG104: 47.6171335 | AH104: 47.85385477 | AT104: 0.02300655472 | AU104: 0.01863759073 | AV104: 0.02006084246 | AW104: 0.02252264045 | BJ104: 53.52105463 | BK104: 48.69675768 | BL104: 47.6171335 | BM104: 47.85385477 | BY104: 0.02300655472 | BZ104: 0.01863759073 | CA104: 0.02006084246 | CB104: 0.02252264045 | CO104: 0.02403373727 | CP104: 0.01974858239 | CQ104: 0.02147164979 | CR104: 0.02410653522 | DZ104: a15 | EA104: 0 | EB104: 0 | EC104: 0 | ED104: 0 | EE104: 0 | EF104: 0 | EG104: 0 | EH104: 0 | EI104: 0 | EJ104: 0 | EK104: 0 | EL104: 0 | EM104: 0
AB105: 0.74 | AC105: 48.30606674 | AD105: 0.02170702973 | AE105: 53.96094199 | AF105: 49.24161839 | AG105: 48.12465067 | AH105: 48.30606674 | AT105: 0.02245794585 | AU105: 0.01807069701 | AV105: 0.0193504551 | AW105: 0.02170702973 | BJ105: 53.96094199 | BK105: 49.24161839 | BL105: 48.12465067 | BM105: 48.30606674 | BY105: 0.02245794585 | BZ105: 0.01807069701 | CA105: 0.0193504551 | CB105: 0.02170702973 | CO105: 0.02353181852 | CP105: 0.01919690502 | CQ105: 0.02076802973 | CR105: 0.02332304654 | DZ105: a16 | EA105: 0 | EB105: 0 | EC105: 0 | ED105: 0 | EE105: 0 | EF105: 0 | EG105: 0 | EH105: 0 | EI105: 0 | EJ105: 0 | EK105: 0 | EL105: 0 | EM105: 0 | EN105: 0
AB106: 0.75 | AC106: 48.77575216 | AD106: 0.02087794274 | AE106: 54.41194737 | AF106: 49.80396718 | AG106: 48.65119317 | AH106: 48.77575216 | AT106: 0.02188599193 | AU106: 0.01749625545 | AV106: 0.01863719452 | AW106: 0.02087794274 | BJ106: 54.41194737 | BK106: 49.80396718 | BL106: 48.65119317 | BM106: 48.77575216 | BY106: 0.02188599193 | BZ106: 0.01749625545 | CA106: 0.01863719452 | CB106: 0.02087794274 | CO106: 0.02300655472 | CP106: 0.01863759073 | CQ106: 0.02006084246 | CR106: 0.02252264045 | DW106: =IF(B94="",NA(),B94) ->  | DX106: =IF(C94="",NA(),C94) -> 
AB107: 0.76 | AC107: 49.26461695 | AD107: 0.02003711282 | AE107: 54.87514794 | AF107: 50.38521885 | AG107: 49.19832473 | AH107: 49.26461695 | AT107: 0.02129069295 | AU107: 0.01691427143 | AV107: 0.01792134857 | AW107: 0.02003711282 | BJ107: 54.87514794 | BK107: 50.38521885 | BL107: 49.19832473 | BM107: 49.26461695 | BY107: 0.02129069295 | BZ107: 0.01691427143 | CA107: 0.01792134857 | CB107: 0.02003711282 | CO107: 0.02245794585 | CP107: 0.01807069701 | CQ107: 0.0193504551 | CR107: 0.02170702973 | EA107: Central moments (unbounded metalog only). Skewness and kurtosis are standardized.
AB108: 0.77 | AC108: 49.77457707 | AD108: 0.0191862678 | AE108: 55.35175156 | AF108: 50.98696198 | AG108: 49.76780096 | AH108: 49.77457707 | AT108: 0.02067204891 | AU108: 0.01632472352 | AV108: 0.01720316718 | AW108: 0.0191862678 | BJ108: 55.35175156 | BK108: 50.98696198 | BL108: 49.76780096 | BM108: 49.77457707 | BY108: 0.02067204891 | BZ108: 0.01632472352 | CA108: 0.01720316718 | CB108: 0.0191862678 | CO108: 0.02188599193 | CP108: 0.01749625545 | CQ108: 0.01863719452 | CR108: 0.02087794274 | EA108: M2 | EB108: M3 | EC108: M4 | ED108: M5 | EE108: M6 | EF108: M7 | EG108: M8 | EH108: M9 | EI108: M10 | EJ108: M11 | EK108: M12 | EL108: M13 | EM108: M14 | EN108: M15 | EO108: M16
AB109: 0.78 | AC109: 50.30779566 | AD109: 0.01832711968 | AE109: 55.84312037 | AF109: 51.61098983 | AG109: 50.36160344 | AH109: 50.30779566 | AT109: 0.02003005982 | AU109: 0.0157275628 | AV109: 0.01648286324 | AW109: 0.01832711968 | BJ109: 55.84312037 | BK109: 51.61098983 | BL109: 50.36160344 | BM109: 50.30779566 | BY109: 0.02003005982 | BZ109: 0.0157275628 | CA109: 0.01648286324 | CB109: 0.01832711968 | CO109: 0.02129069295 | CP109: 0.01691427143 | CQ109: 0.01792134857 | CR109: 0.02003711282 | DZ109: mean | EA109: =IF(OR(ISERROR(AT29),$B$14<>"u"),"",EA90 + (322*EA101 + 45*EA102 + 66*EA105 + 10080*EA92 + 1680*EA94 + 1680*EA97 + 252*EA98)/20160) -> 45 | EB109: 41.45426528 | EC109: 41.45426528 | ED109: 41.58508699
E110: m_PDF_formula | AB110: 0.79 | AC110: 50.8667288 | AD110: 0.01746135455 | AE110: 56.35079991 | AF110: 52.25933825 | AG110: 50.98198173 | AH110: 50.8667288 | AT110: 0.01936472566 | AU110: 0.01512271182 | AV110: 0.01576061337 | AW110: 0.01746135455 | BJ110: 56.35079991 | BK110: 52.25933825 | BL110: 50.98198173 | BM110: 50.8667288 | BY110: 0.01936472566 | BZ110: 0.01512271182 | CA110: 0.01576061337 | CB110: 0.01746135455 | CO110: 0.02067204891 | CP110: 0.01632472352 | CQ110: 0.01720316718 | CR110: 0.0191862678 | DZ110: std dev | EA110: =IF(OR(ISERROR(AT29),$B$14<>"u"),"",SQRT(EA100^2/11264 + (461*EA101^2)/580608 + (499*EA101*EA102)/2128896 + (9*EA102^2)/652288 + (1627*EA100*EA103)/5322240 + (13063*EA103^2)/53222400 + (EA100*EA104)/26624 + (88069*EA103*EA104)/1291530240 + EA104^2/245760 + (257*EA101*EA105)/665280 + (69193*EA102*EA105)/1291530240 + (34847*EA105^2)/741312000 + (23*EA100*EA91)/720 + (7*EA103*EA91)/180 + (11*EA104*EA91)/1680 + (11*EA101*EA92)/480 + (29*EA102*EA92)/6720 + (521*EA105*EA92)/90720 + EA92^2/12 + (EA100*EA93)/224 + (11*EA103*EA93)/1680 + (EA104*EA93)/1152 + EA91*EA93 + EA93^2/12 + (47*EA101*EA94)/12096 + (EA102*EA94)/2016 + (49*EA105*EA94)/57600 + (EA92*EA94)/12 + EA94^2/180 + (11*EA100*EA95)/1680 + (409*EA103*EA95)/45360 + (563*EA104*EA95)/403200 + (2*EA91*EA95)/3 + (EA93*EA95)/6 + EA95^2/12 + (EA100*EA96)/1152 + (563*EA103*EA96)/403200 + (EA104*EA96)/5632 + (EA91*EA96)/6 + (EA93*EA96)/40 + (23*EA95*EA96)/720 + EA96^2/448 + (1153*EA101*EA97)/181440 + (59*EA102*EA97)/57600 + (313*EA105*EA97)/201600 + (EA92*EA97)/12 + (13*EA94*EA97)/720 + EA97^2/80 + (67*EA101*EA98)/67200 + (3*EA102*EA98)/24640 + (851*EA105*EA98)/3801600 + (7*EA92*EA98)/360 + (EA94*EA98)/420 + (EA97*EA98)/224 + EA98^2/3600 + (563*EA100*EA99)/403200 + (47*EA103*EA99)/22400 + (1627*EA104*EA99)/5322240 + (EA91*EA99)/6 + (23*EA93*EA99)/720 + (7*EA95*EA99)/180 + (11*EA96*EA99)/1680 + (409*EA99^2)/90720 + (EA101^2*PI()^2)/33792 + (EA103^2*PI()^2)/159744 + (EA101*EA105*PI()^2)/79872 + (EA105^2*PI()^2)/737280 + (EA103*EA91*PI()^2)/672 + (EA91^2*PI()^2)/3 + (EA101*EA92*PI()^2)/672 + (EA105*EA92*PI()^2)/3456 + (EA92^2*PI()^2)/36 + (EA103*EA95*PI()^2)/3456 + (EA91*EA95*PI()^2)/18 + (EA95^2*PI()^2)/240 + (EA101*EA97*PI()^2)/3456 + (EA105*EA97*PI()^2)/16896 + (EA92*EA97*PI()^2)/120 + (EA97^2*PI()^2)/1344 + (EA103*EA99*PI()^2)/16896 + (EA91*EA99*PI()^2)/120 + (EA95*EA99*PI()^2)/672 + (EA99^2*PI()^2)/6912)) -> 15.53904351 | EB110: 15.79257178 | EC110: 15.26750003 | ED110: 15.2271748
AB111: 0.8 | AC111: 51.45418232 | AD111: 0.016590623 | AE111: 56.87655527 | AF111: 52.93433294 | AG111: 51.63150557 | AH111: 51.45418232 | AT111: 0.01867604645 | AU111: 0.01451006339 | AV111: 0.01503655841 | AW111: 0.016590623 | BJ111: 56.87655527 | BK111: 52.93433294 | BL111: 51.63150557 | BM111: 51.45418232 | BY111: 0.01867604645 | BZ111: 0.01451006339 | CA111: 0.01503655841 | CB111: 0.016590623 | CO111: 0.02003005982 | CP111: 0.0157275628 | CQ111: 0.01648286324 | CR111: 0.01832711968 | CW111: =IF(OR(DN$26="",DN$26="no"),"",(EI$91/($AB109*(1-$AB109))+EI$92*(($AB109-0.5)/($AB109*(1-$AB109))+LN($AB109/(1-$AB109)))+EI$93+2*EI$94*($AB109-0.5)+EI$95*(($AB109-0.5)^2/($AB109*(1-$AB109))+2*($AB109-0.5)*LN($AB109/(1-$AB109)))+3*EI$96*($AB109-0.5)^2+EI$97*(($AB109-0.5)^3/($AB109*(1-$AB109))+3*($AB109-0.5)^2*LN($AB109/(1-$AB109)))+4*EI$98*($AB109-0.5)^3+EI$99*(($AB109-0.5)^4/($AB109*(1-$AB109))+4*($AB109-0.5)^3*LN($AB109/(1-$AB109)))+5*EI$100*($AB109-0.5)^4+EI$101*(($AB109-0.5)^5/($AB109*(1-$AB109))+5*($AB109-0.5)^4*LN($AB109/(1-$AB109)))+6*EI$102*($AB109-0.5)^5+EI$103*(($AB109-0.5)^6/($AB109*(1-$AB109))+6*($AB109-0.5)^5*LN($AB109/(1-$AB109)))+7*EI$104*($AB109-0.5)^6+EI$105*(($AB109-0.5)^7/($AB109*(1-$AB109))+7*($AB109-0.5)^6*LN($AB109/(1-$AB109))))^-1) ->  | DZ111: skewness | EA111: =IF(OR(ISERROR(AT29),$B$14<>"u"),"",(EA112+EA113+EA114)/EA110^3) -> 0 | EB111: 0.8778666829 | EC111: 0.9992494819 | ED111: 0.993095236
AB112: 0.81 | AC112: 52.07338316 | AD112: 0.01571653082 | AE112: 57.42241653 | AF112: 53.63864863 | AG112: 52.31313038 | AH112: 52.07338316 | AT112: 0.01796402218 | AU112: 0.013889479 | AV112: 0.01431080367 | AW112: 0.01571653082 | BJ112: 57.42241653 | BK112: 53.63864863 | BL112: 52.31313038 | BM112: 52.07338316 | BY112: 0.01796402218 | BZ112: 0.013889479 | CA112: 0.01431080367 | CB112: 0.01571653082 | CO112: 0.01936472566 | CP112: 0.01512271182 | CQ112: 0.01576061337 | CR112: 0.01746135455 | EA112: =IF(OR(ISERROR(AT29),$B$14<>"u"),"",(3097*EA100^2*EA101)/164003840+(4223867*EA101^3)/83691159552+(45*EA100^2*EA102)/21446656+(191609*EA101^2*EA102)/8453652480+(1486943*EA101*EA102^2)/526944337920+(135*EA102^3)/1388068864+(624865*EA100*EA101*EA103)/9299017728+(817771*EA100*EA102*EA103)/95808061440+(8800951*EA101*EA103^2)/154983628800+(189773*EA102*EA103^2)/23524300800+(661153*EA100*EA101*EA104)/75277762560+(27*EA100*EA102*EA104)/28327936+(11349647*EA101*EA103*EA104)/702592450560+(15851193*EA102*EA103*EA104)/7986734694400+(7824077*EA101*EA104^2)/7628146606080+(EA102*EA104^2)/9175040+(190103*EA100^2*EA105)/43015864320+(153949*EA101^2*EA105)/3874590720+(23744153*EA101*EA102*EA105)/2107777351680+(52753819*EA102^2*EA105)/77870663270400+(561811*EA100*EA103*EA105)/34217164800+(7624414019*EA103^2*EA105)/526944337920000+(940997*EA100*EA104*EA105)/454056345600+(8316926081*EA103*EA104*EA105)/2102507908300800+(45432693*EA104^2*EA105)/186465805926400+(998794747*EA101*EA105^2)/96785694720000+(58869774749*EA102*EA105^2)/42050158166016000+(543784817*EA105^3)/612976066560000+(461*EA100*EA101*EA91)/96768+(499*EA100*EA102*EA91)/709632+(17249*EA101*EA103*EA91)/2419200+(10753*EA102*EA103*EA91)/8870400+(257*EA101*EA104*EA91)/221760+(69193*EA102*EA104*EA91)/430510080+(257*EA100*EA105*EA91)/221760+(131*EA103*EA105*EA91)/70400+(34847*EA104*EA105*EA91)/123552000+(EA101*EA91^2)/4+(7*EA102*EA91^2)/120+(11*EA105*EA91^2)/160+(2309*EA100^2*EA92)/7096320+(883*EA101^2*EA92)/483840+(29*EA101*EA102*EA92)/44352+(9733*EA102^2*EA92)/215255040+(1999*EA100*EA103*EA92)/1971200+(1069*EA103^2*EA92)/1419264+(31907*EA100*EA104*EA92)/215255040+(47282731*EA103*EA104*EA92)/193729536000+(8381*EA104^2*EA92)/492011520+(481951*EA101*EA105*EA92)/479001600+(10540457*EA102*EA105*EA92)/64576512000+(44761*EA105^2*EA92)/332107776+(11*EA100*EA91*EA92)/160+(19*EA103*EA91*EA92)/240+(521*EA104*EA91*EA92)/30240+(53*EA101*EA92^2)/2880+(583*EA102*EA92^2)/120960+(179*EA105*EA92^2)/30240+(499*EA100*EA101*EA93)/709632+(27*EA100*EA102*EA93)/326144+(257*EA101*EA103*EA93)/221760+(69193*EA102*EA103*EA93)/430510080+(31573*EA101*EA104*EA93)/193729536+(EA102*EA104*EA93)/53760+(69193*EA100*EA105*EA93)/430510080+(34847*EA103*EA105*EA93)/123552000+(199*EA104*EA105*EA93)/5271552+(11*EA101*EA91*EA93)/160+(29*EA102*EA91*EA93)/2240+(521*EA105*EA91*EA93)/30240+(29*EA100*EA92*EA93)/2240+(521*EA103*EA92*EA93)/30240+(97*EA104*EA92*EA93)/33600+(EA91*EA92*EA93)/2+(47*EA101*EA93^2)/8064+(EA102*EA93^2)/1344+(49*EA105*EA93^2)/38400+(EA92*EA93^2)/8+(5*EA100^2*EA94)/146432+(3677*EA101^2*EA94)/12773376+(115*EA101*EA102*EA94)/1467648+(41*EA102^2*EA94)/9784320+(45137*EA100*EA103*EA94)/352235520+(10830899*EA103^2*EA94)/96864768000+(EA100*EA104*EA94)/66560+(2323*EA103*EA104*EA94)/79478784+(7*EA104^2*EA94)/4177920+(4004801*EA101*EA105*EA94)/27675648000+(9269*EA102*EA105*EA94)/496742400+(215113*EA105^2*EA94)/11860992000+(47*EA100*EA91*EA94)/4032+(131*EA103*EA91*EA94)/7560+(49*EA104*EA91*EA94)/19200+EA91^2*EA94+(227*EA101*EA92*EA94)/30240+(EA102*EA92*EA94)/800+(14123*EA105*EA92*EA94)/7257600+(EA92^2*EA94)/24+(EA100*EA93*EA94)/672+(49*EA103*EA93*EA94)/19200+(EA104*EA93*EA94)/3168+(EA91*EA93*EA94)/4+(EA93^2*EA94)/60+(317*EA101*EA94^2)/604800+(13*EA102*EA94^2)/221760+(13*EA105*EA94^2)/105600+(EA92*EA94^2)/120+EA94^3/3780+(257*EA100*EA101*EA95)/221760+(69193*EA100*EA102*EA95)/430510080+(433661*EA101*EA103*EA95)/239500800+(329767*EA102*EA103*EA95)/1153152000+(54136307*EA101*EA104*EA95)/193729536000+(105977*EA102*EA104*EA95)/2870067200+(34847*EA100*EA105*EA95)/123552000+(67851241*EA103*EA105*EA95)/145297152000+(89789*EA104*EA105*EA95)/1317888000+(19*EA101*EA91*EA95)/180+(683*EA102*EA91*EA95)/30240+(293*EA105*EA91*EA95)/10080+(521*EA100*EA92*EA95)/30240+(167*EA103*EA92*EA95)/7560+(1129*EA104*EA92*EA95)/268800+(EA91*EA92*EA95)/2+(1153*EA101*EA93*EA95)/60480+(59*EA102*EA93*EA95)/19200+(313*EA105*EA93*EA95)/67200+(EA92*EA93*EA95)/4+(49*EA100*EA94*EA95)/19200+(7331*EA103*EA94*EA95)/1814400+(3359*EA104*EA94*EA95)/5913600+(EA91*EA94*EA95)/3+(13*EA93*EA94*EA95)/240+(557*EA101*EA95^2)/40320+(29*EA102*EA95^2)/11200+(17797*EA105*EA95^2)/4838400+(EA92*EA95^2)/8+(3*EA94*EA95^2)/80+(31573*EA100*EA101*EA96)/193729536+(EA100*EA102*EA96)/53760+(54136307*EA101*EA103*EA96)/193729536000+(105977*EA102*EA103*EA96)/2870067200+(3097*EA101*EA104*EA96)/82001920+(45*EA102*EA104*EA96)/10723328+(199*EA100*EA105*EA96)/5271552+(89789*EA103*EA105*EA96)/1317888000+(190103*EA104*EA105*EA96)/21507932160+(1153*EA101*EA91*EA96)/60480+(59*EA102*EA91*EA96)/19200+(313*EA105*EA91*EA96)/67200+(97*EA100*EA92*EA96)/33600) -> 0 | EB112: 0 | EC112: -168.8409481 | ED112: -1797.821761
AB113: 0.82 | AC113: 52.72806983 | AD113: 0.01484063029 | AE113: 57.9907365 | AF113: 54.37538426 | AG113: 53.03028042 | AH113: 52.72806983 | AT113: 0.01722865285 | AU113: 0.01326078684 | AV113: 0.01358341894 | AW113: 0.01484063029 | BJ113: 57.9907365 | BK113: 54.37538426 | BL113: 53.03028042 | BM113: 52.72806983 | BY113: 0.01722865285 | BZ113: 0.01326078684 | CA113: 0.01358341894 | CB113: 0.01484063029 | CO113: 0.01867604645 | CP113: 0.01451006339 | CQ113: 0.01503655841 | CR113: 0.016590623 | EA113: =IF(OR(ISERROR(AT29),$B$14<>"u"),"", (1129*EA103*EA92*EA96)/268800 + (2309*EA104*EA92*EA96)/3548160 + (EA91*EA92*EA96)/4 + (67*EA101*EA93*EA96)/22400 + (9*EA102*EA93*EA96)/24640 + (851*EA105*EA93*EA96)/1267200 + (7*EA92*EA93*EA96)/120 + (EA100*EA94*EA96)/3168 + (3359*EA103*EA94*EA96)/5913600 + (5*EA104*EA94*EA96)/73216 + (13*EA91*EA94*EA96)/240 + (EA93*EA94*EA96)/140 + (461*EA101*EA95*EA96)/96768 + (499*EA102*EA95*EA96)/709632 + (257*EA105*EA95*EA96)/221760 + (11*EA92*EA95*EA96)/160 + (47*EA94*EA95*EA96)/4032 + (499*EA101*EA96^2)/1419264 + (27*EA102*EA96^2)/652288 + (69193*EA105*EA96^2)/861020160 + (29*EA92*EA96^2)/4480 + (EA94*EA96^2)/1344 + (6269*EA100^2*EA97)/78274560 + (106261*EA101^2*EA97)/191600640 + (1644767*EA101*EA102*EA97)/9225216000 + (137*EA102^2*EA97)/11827200 + (1452571*EA100*EA103*EA97)/5381376000 + (10481231*EA103^2*EA97)/48432384000 + (349*EA100*EA104*EA97)/9461760 + (1673759*EA103*EA104*EA97)/25830604800 + (1286963*EA104^2*EA97)/301111050240 + (17203897*EA101*EA105*EA97)/58118860800 + (636303*EA102*EA105*EA97)/14350336000 + (358559*EA105^2*EA97)/9225216000 + (1153*EA100*EA91*EA97)/60480 + (29*EA103*EA91*EA97)/1120 + (313*EA104*EA91*EA97)/67200 + (3*EA91^2*EA97)/4 + (187*EA101*EA92*EA97)/15120 + (689*EA102*EA92*EA97)/268800 + (26069*EA105*EA92*EA97)/7257600 + (EA92^2*EA97)/24 + (59*EA100*EA93*EA97)/19200 + (313*EA103*EA93*EA97)/67200 + (69*EA104*EA93*EA97)/98560 + (EA91*EA93*EA97)/4 + (13*EA93^2*EA97)/480 + (457*EA101*EA94*EA97)/207360 + (1433*EA102*EA94*EA97)/4435200 + (9901*EA105*EA94*EA97)/17740800 + (13*EA92*EA94*EA97)/480 + (11*EA94^2*EA97)/5040 + (313*EA100*EA95*EA97)/67200 + (48911*EA103*EA95*EA97)/7257600 + (19933*EA104*EA95*EA97)/17740800 + (EA91*EA95*EA97)/3 + (3*EA93*EA95*EA97)/40 + (23*EA95^2*EA97)/480 + (69*EA100*EA96*EA97)/98560 + (19933*EA103*EA96*EA97)/17740800 + (6269*EA104*EA96*EA97)/39137280 + (3*EA91*EA96*EA97)/40 + (3*EA93*EA96*EA97)/224 + (1153*EA95*EA96*EA97)/60480 + (59*EA96^2*EA97)/38400 + (28687*EA101*EA97^2)/14515200 + (69*EA102*EA97^2)/197120 + (481*EA105*EA97^2)/887040 + (3*EA92*EA97^2)/160 + (251*EA94*EA97^2)/60480 + EA97^3/448 + (EA100^2*EA98)/112640 + (4168067*EA101^2*EA98)/48432384000 + (144013*EA101*EA102*EA98)/6457651200 + (1431*EA102^2*EA98)/1219778560 + (5839*EA100*EA103*EA98)/167731200 + (1365509*EA103^2*EA98)/43051008000 + (9*EA100*EA104*EA98)/2263040 + (1626533*EA103*EA104*EA98)/202670899200 + (7*EA104^2*EA98)/15564800 + (7126751*EA101*EA105*EA98)/166053888000 + (540187*EA102*EA105*EA98)/101335449600 + (14376553*EA105^2*EA98)/2688491520000 + (67*EA100*EA91*EA98)/22400 + (13*EA103*EA91*EA98)/2688 + (851*EA104*EA91*EA98)/1267200 + (EA91^2*EA98)/4 + (1457*EA101*EA92*EA98)/604800 + (1591*EA102*EA92*EA98)/4435200 + (4621*EA105*EA92*EA98)/7603200 + (EA92^2*EA98)/60 + (9*EA100*EA93*EA98)/24640 + (851*EA103*EA93*EA98)/1267200 + (EA104*EA93*EA98)/12480 + (7*EA91*EA93*EA98)/120 + (EA93^2*EA98)/280 + (1367*EA101*EA94*EA98)/4435200 + (227*EA102*EA94*EA98)/6726720 + (160397*EA105*EA94*EA98)/2201472000 + (5*EA92*EA94*EA98)/1008 + (EA94^2*EA98)/4200 + (851*EA100*EA95*EA98)/1267200 + (4313*EA103*EA95*EA98)/3801600 + (273027*EA104*EA95*EA98)/1793792000 + (11*EA91*EA95*EA98)/120 + (3*EA93*EA95*EA98)/224 + (629*EA95^2*EA98)/60480 + (EA100*EA96*EA98)/12480 + (273027*EA103*EA96*EA98)/1793792000 + (EA104*EA96*EA98)/56320 + (3*EA91*EA96*EA98)/224 + (EA93*EA96*EA98)/600 + (67*EA95*EA96*EA98)/22400 + (9*EA96^2*EA98)/49280 + (35731*EA101*EA97*EA98)/53222400 + (7491*EA102*EA97*EA98)/81536000 + (32261*EA105*EA97*EA98)/192192000 + (559*EA92*EA97*EA98)/60480 + (43*EA94*EA97*EA98)/33600 + (EA97^2*EA98)/768 + (266977*EA101*EA98^2)/6054048000 + (EA102*EA98^2)/211200 + (1151*EA105*EA98^2)/109824000 + (EA92*EA98^2)/1400 + (19*EA94*EA98^2)/277200 + (9*EA97*EA98^2)/49280 + EA98^3/156000 + (54136307*EA100*EA101*EA99)/193729536000 + (105977*EA100*EA102*EA99)/2870067200 + (587647*EA101*EA103*EA99)/1291530240 + (175117*EA102*EA103*EA99)/2583060480 + (624865*EA101*EA104*EA99)/9299017728 + (817771*EA102*EA104*EA99)/95808061440 + (89789*EA100*EA105*EA99)/1317888000 + (3385037*EA103*EA105*EA99)/29059430400 + (561811*EA104*EA105*EA99)/34217164800 + (557*EA101*EA91*EA99)/20160 + (29*EA102*EA91*EA99)/5600 + (17797*EA105*EA91*EA99)/2419200 + (1129*EA100*EA92*EA99)/268800 + (14143*EA103*EA92*EA99)/2419200 + (1999*EA104*EA92*EA99)/1971200 + (EA91*EA92*EA99)/4 + (461*EA101*EA93*EA99)/96768 + (499*EA102*EA93*EA99)/709632 + (257*EA105*EA93*EA99)/221760 + (11*EA92*EA93*EA99)/160 + (3359*EA100*EA94*EA99)/5913600 + (841*EA103*EA94*EA99)/887040 + (45137*EA104*EA94*EA99)/352235520 + (3*EA91*EA94*EA99)/40 + (47*EA93*EA94*EA99)/4032 + (17249*EA101*EA95*EA99)/2419200 + (10753*EA102*EA95*EA99)/8870400 + (131*EA105*EA95*EA99)/70400 + (19*EA92*EA95*EA99)/240 + (131*EA94*EA95*EA99)/7560 + (257*EA101*EA96*EA99)/221760 + (69193*EA102*EA96*EA99)/430510080 + (34847*EA105*EA96*EA99)/123552000 + (521*EA92*EA96*EA99)/30240 + (49*EA94*EA96*EA99)/19200 + (19933*EA100*EA97*EA99)/17740800 + (15241*EA103*EA97*EA99)/8870400 + (1452571*EA104*EA97*EA99)/5381376000 + (23*EA91*EA97*EA99)/240 + (1153*EA93*EA97*EA99)/60480 + (29*EA95*EA97*EA99)/1120 + (313*EA96*EA97*EA99)/67200 + (273027*EA100*EA98*EA99)/1793792000 + (12963757*EA103*EA98*EA99)/48432384000 + (5839*EA104*EA98*EA99)/167731200 + (629*EA91*EA98*EA99)/30240 + (67*EA93*EA98*EA99)/22400 + (13*EA95*EA98*EA99)/2688 + (851*EA96*EA98*EA99)/1267200 + (433661*EA101*EA99^2)/479001600 + (329767*EA102*EA99^2)/2306304000 + (67851241*EA105*EA99^2)/290594304000 + (167*EA92*EA99^2)/15120 + (7331*EA94*EA99^2)/3628800 + (48911*EA97*EA99^2)/14515200 + (4313*EA98*EA99^2)/7603200 + (3097*EA101^3*PI()^2)/492011520 + (15*EA101^2*EA102*PI()^2)/21446656 + (EA100*EA101*EA103*PI()^2)/557056 + (375737*EA101*EA103^2*PI()^2)/75277762560) -> 0 | EB113: 0 | EC113: 0 | ED113: 0
AB114: 0.83 | AC114: 53.42260863 | AD114: 0.01396441195 | AE114: 58.5842649 | AF114: 55.14815954 | AG114: 53.78695561 | AH114: 53.42260863 | AT114: 0.01646993846 | AU114: 0.01262377947 | AV114: 0.01285443811 | AW114: 0.01396441195 | BJ114: 58.5842649 | BK114: 55.14815954 | BL114: 53.78695561 | BM114: 53.42260863 | BY114: =IF(AND($EA$41=0,CO$26="yes"),CO116,"") -> 0.01646993846 | BZ114: 0.01262377947 | CA114: 0.01285443811 | CB114: 0.01396441195 | CO114: 0.01796402218 | CP114: 0.013889479 | CQ114: 0.01431080367 | CR114: 0.01571653082 | EA114: =IF(OR(ISERROR(AT29),$B$14<>"u"),"", (9*EA102*EA103^2*PI()^2)/56655872 + (EA101*EA103*EA104*PI()^2)/2490368 + (1325111*EA101^2*EA105*PI()^2)/301111050240 + (9*EA101*EA102*EA105*PI()^2)/28327936 + (EA100*EA103*EA105*PI()^2)/2490368 + (2456213*EA103^2*EA105*PI()^2)/2118929612800 + (EA103*EA104*EA105*PI()^2)/11010048 + (118164133*EA101*EA105^2*PI()^2)/114422199091200 + (EA102*EA105^2*PI()^2)/27525120 + (15144231*EA105^3*PI()^2)/186465805926400 + (EA100*EA101*EA91*PI()^2)/5632 + (3001*EA101*EA103*EA91*PI()^2)/3548160 + (9*EA102*EA103*EA91*PI()^2)/326144 + (EA101*EA104*EA91*PI()^2)/26624 + (EA100*EA105*EA91*PI()^2)/26624 + (27259*EA103*EA105*EA91*PI()^2)/143503360 + (EA104*EA105*EA91*PI()^2)/122880 + (23*EA101*EA91^2*PI()^2)/720 + (11*EA105*EA91^2*PI()^2)/1680 + (811*EA101^2*EA92*PI()^2)/2365440 + (9*EA101*EA102*EA92*PI()^2)/326144 + (EA100*EA103*EA92*PI()^2)/26624 + (4999*EA103^2*EA92*PI()^2)/53813760 + (EA103*EA104*EA92*PI()^2)/122880 + (1828523*EA101*EA105*EA92*PI()^2)/11623772160 + (EA102*EA105*EA92*PI()^2)/161280 + (80863*EA105^2*EA92*PI()^2)/4428103680 + (EA100*EA91*EA92*PI()^2)/224 + (39*EA103*EA91*EA92*PI()^2)/2240 + (EA104*EA91*EA92*PI()^2)/1152 + EA91^2*EA92*PI()^2 + (757*EA101*EA92^2*PI()^2)/120960 + (EA102*EA92^2*PI()^2)/4032 + (373*EA105*EA92^2*PI()^2)/268800 + (EA92^3*PI()^2)/24 + (EA101*EA103*EA93*PI()^2)/26624 + (EA103*EA105*EA93*PI()^2)/122880 + (EA101*EA91*EA93*PI()^2)/224 + (EA105*EA91*EA93*PI()^2)/1152 + (EA103*EA92*EA93*PI()^2)/1152 + (EA91*EA92*EA93*PI()^2)/6 + (5*EA101^2*EA94*PI()^2)/439296 + (EA103^2*EA94*PI()^2)/399360 + (EA101*EA105*EA94*PI()^2)/199680 + (7*EA105^2*EA94*PI()^2)/12533760 + (EA103*EA91*EA94*PI()^2)/2016 + (EA101*EA92*EA94*PI()^2)/2016 + (EA105*EA92*EA94*PI()^2)/9504 + (EA92^2*EA94*PI()^2)/180 + (EA100*EA101*EA95*PI()^2)/26624 + (1108351*EA101*EA103*EA95*PI()^2)/5811886080 + (EA102*EA103*EA95*PI()^2)/161280 + (EA101*EA104*EA95*PI()^2)/122880 + (EA100*EA105*EA95*PI()^2)/122880 + (24041*EA103*EA105*EA95*PI()^2)/553512960 + (EA104*EA105*EA95*PI()^2)/557056 + (1027*EA101*EA91*EA95*PI()^2)/60480 + (EA102*EA91*EA95*PI()^2)/2016 + (1469*EA105*EA91*EA95*PI()^2)/403200 + (EA100*EA92*EA95*PI()^2)/1152 + (757*EA103*EA92*EA95*PI()^2)/201600 + (EA104*EA92*EA95*PI()^2)/5632 + (5*EA91*EA92*EA95*PI()^2)/12 + (EA101*EA93*EA95*PI()^2)/1152 + (EA105*EA93*EA95*PI()^2)/5632 + (EA92*EA93*EA95*PI()^2)/40 + (EA103*EA94*EA95*PI()^2)/9504 + (EA91*EA94*EA95*PI()^2)/90 + (191*EA101*EA95^2*PI()^2)/100800 + (3*EA102*EA95^2*PI()^2)/49280 + (7409*EA105*EA95^2*PI()^2)/17740800 + (EA92*EA95^2*PI()^2)/24 + (EA94*EA95^2*PI()^2)/840 + (EA101*EA103*EA96*PI()^2)/122880 + (EA103*EA105*EA96*PI()^2)/557056 + (EA101*EA91*EA96*PI()^2)/1152 + (EA105*EA91*EA96*PI()^2)/5632 + (EA103*EA92*EA96*PI()^2)/5632 + (EA91*EA92*EA96*PI()^2)/40 + (EA101*EA95*EA96*PI()^2)/5632 + (EA105*EA95*EA96*PI()^2)/26624 + (EA92*EA95*EA96*PI()^2)/224 + (1883551*EA101^2*EA97*PI()^2)/23247544320 + (EA101*EA102*EA97*PI()^2)/161280 + (EA100*EA103*EA97*PI()^2)/122880 + (1769*EA103^2*EA97*PI()^2)/82001920 + (EA103*EA104*EA97*PI()^2)/557056 + (16591*EA101*EA105*EA97*PI()^2)/442810368 + (15*EA102*EA105*EA97*PI()^2)/10723328 + (263227*EA105^2*EA97*PI()^2)/60222210048 + (EA100*EA91*EA97*PI()^2)/1152 + (171*EA103*EA91*EA97*PI()^2)/44800 + (EA104*EA91*EA97*PI()^2)/5632 + (EA91^2*EA97*PI()^2)/6 + (401*EA101*EA92*EA97*PI()^2)/134400 + (3*EA102*EA92*EA97*PI()^2)/24640 + (35879*EA105*EA92*EA97*PI()^2)/53222400 + (41*EA92^2*EA97*PI()^2)/1440 + (EA103*EA93*EA97*PI()^2)/5632 + (EA91*EA93*EA97*PI()^2)/40 + (EA101*EA94*EA97*PI()^2)/9504 + (5*EA105*EA94*EA97*PI()^2)/219648 + (EA92*EA94*EA97*PI()^2)/420 + (EA100*EA95*EA97*PI()^2)/5632 + (281*EA103*EA95*EA97*PI()^2)/332640 + (EA104*EA95*EA97*PI()^2)/26624 + (59*EA91*EA95*EA97*PI()^2)/720 + (EA93*EA95*EA97*PI()^2)/224 + (59*EA95^2*EA97*PI()^2)/6720 + (EA103*EA96*EA97*PI()^2)/26624 + (EA91*EA96*EA97*PI()^2)/224 + (EA95*EA96*EA97*PI()^2)/1152 + (7463*EA101*EA97^2*PI()^2)/21288960 + (9*EA102*EA97^2*PI()^2)/652288 + (69037*EA105*EA97^2*PI()^2)/861020160 + (89*EA92*EA97^2*PI()^2)/13440 + (EA94*EA97^2*PI()^2)/4032 + (59*EA97^3*PI()^2)/115200 + (EA101^2*EA98*PI()^2)/337920 + (3*EA103^2*EA98*PI()^2)/4526080 + (3*EA101*EA105*EA98*PI()^2)/2263040 + (7*EA105^2*EA98*PI()^2)/46694400 + (3*EA103*EA91*EA98*PI()^2)/24640 + (3*EA101*EA92*EA98*PI()^2)/24640 + (EA105*EA92*EA98*PI()^2)/37440 + (EA92^2*EA98*PI()^2)/840 + (EA103*EA95*EA98*PI()^2)/37440 + (EA91*EA95*EA98*PI()^2)/420 + (EA95^2*EA98*PI()^2)/3600 + (EA101*EA97*EA98*PI()^2)/37440 + (EA105*EA97*EA98*PI()^2)/168960 + (EA92*EA97*EA98*PI()^2)/1800 + (3*EA97^2*EA98*PI()^2)/49280 + (EA100*EA101*EA99*PI()^2)/122880 + (32059*EA101*EA103*EA99*PI()^2)/738017280 + (15*EA102*EA103*EA99*PI()^2)/10723328 + (EA101*EA104*EA99*PI()^2)/557056 + (EA100*EA105*EA99*PI()^2)/557056 + (1505753*EA103*EA105*EA99*PI()^2)/150555525120 + (EA104*EA105*EA99*PI()^2)/2490368 + (191*EA101*EA91*EA99*PI()^2)/50400 + (3*EA102*EA91*EA99*PI()^2)/24640 + (7409*EA105*EA91*EA99*PI()^2)/8870400 + (EA100*EA92*EA99*PI()^2)/5632 + (2939*EA103*EA92*EA99*PI()^2)/3548160 + (EA104*EA92*EA99*PI()^2)/26624 + (EA91*EA92*EA99*PI()^2)/12 + (EA101*EA93*EA99*PI()^2)/5632 + (EA105*EA93*EA99*PI()^2)/26624 + (EA92*EA93*EA99*PI()^2)/224 + (5*EA103*EA94*EA99*PI()^2)/219648 + (EA91*EA94*EA99*PI()^2)/420 + (3001*EA101*EA95*EA99*PI()^2)/3548160 + (9*EA102*EA95*EA99*PI()^2)/326144 + (27259*EA105*EA95*EA99*PI()^2)/143503360 + (39*EA92*EA95*EA99*PI()^2)/2240 + (EA94*EA95*EA99*PI()^2)/2016 + (EA101*EA96*EA99*PI()^2)/26624 + (EA105*EA96*EA99*PI()^2)/122880 + (EA92*EA96*EA99*PI()^2)/1152 + (EA100*EA97*EA99*PI()^2)/26624 + (27233*EA103*EA97*EA99*PI()^2)/143503360 + (EA104*EA97*EA99*PI()^2)/122880 + (59*EA91*EA97*EA99*PI()^2)/3360 + (EA93*EA97*EA99*PI()^2)/1152 + (171*EA95*EA97*EA99*PI()^2)/44800 + (EA96*EA97*EA99*PI()^2)/5632 + (EA103*EA98*EA99*PI()^2)/168960 + (EA91*EA98*EA99*PI()^2)/1800 + (3*EA95*EA98*EA99*PI()^2)/24640 + (1108351*EA101*EA99^2*PI()^2)/11623772160 + (EA102*EA99^2*PI()^2)/322560 + (24041*EA105*EA99^2*PI()^2)/1107025920 + (757*EA92*EA99^2*PI()^2)/403200 + (EA94*EA99^2*PI()^2)/19008 + (281*EA97*EA99^2*PI()^2)/665280 + (EA98*EA99^2*PI()^2)/74880) -> 0 | EB114: 3457.69869 | EC114: 3724.971696 | ED114: 5304.120359
AB115: 0.84 | AC115: 54.16214498 | AD115: 0.01308929689 | AE115: 59.20624504 | AF115: 55.96124064 | AG115: 54.58787054 | AH115: 54.16214498 | AT115: 0.01568787902 | AU115: 0.01197821085 | AV115: 0.01212385851 | AW115: 0.01308929689 | BJ115: 59.20624504 | BK115: 55.96124064 | BL115: 54.58787054 | BM115: 54.16214498 | BY115: 0.01568787902 | BZ115: 0.01197821085 | CA115: 0.01212385851 | CB115: 0.01308929689 | CO115: 0.01722865285 | CP115: 0.01326078684 | CQ115: 0.01358341894 | CR115: 0.01484063029 | DZ115: kurtosis | EA115: =IF(EA116="","",SUM(EA116:EA131)/EA110^4) -> 4.2 | EB115: 4.928655629 | EC115: 6.025023095 | ED115: 6.310429609
AB116: 0.85 | AC116: 54.95280333 | AD116: 0.01221662953 | AE116: 59.8605418 | AF116: 56.81970637 | AG116: 55.43863842 | AH116: 54.95280333 | AT116: 0.01488247451 | AU116: 0.01132379279 | AV116: 0.01139163966 | AW116: 0.01221662953 | BJ116: 59.8605418 | BK116: 56.81970637 | BL116: 55.43863842 | BM116: 54.95280333 | BY116: 0.01488247451 | BZ116: 0.01132379279 | CA116: 0.01139163966 | CB116: 0.01221662953 | CO116: 0.01646993846 | CP116: 0.01262377947 | CQ116: 0.01285443811 | CR116: 0.01396441195 | EA116: =IF(OR(ISERROR(AT29),$B$14<>"u"),"",EA100^4/22020096 + (10361427*EA100^2*EA101*EA102)/13052606414848 + (4509*EA100^2*EA102^2)/110493171712 + (31730711*EA100^3*EA103)/83909612666880 + (EA100^3*EA104)/24117248 + (162523243*EA100*EA101*EA102*EA104)/433458213027840 + (46522243*EA100^2*EA103*EA104)/175447371939840 + (3*EA100^2*EA104^2)/209715200 + (400952597*EA100^2*EA102*EA105)/2105368463278080 + (1423*EA100^3*EA91)/46126080 + (1593269*EA100^2*EA104*EA91)/75277762560 + (6784181*EA100^2*EA102*EA92)/526944337920 + (EA100^3*EA93)/278528 + (691087*EA100*EA101*EA102*EA93)/23952015360 + (1593269*EA100^2*EA103*EA93)/75277762560 + (3*EA100^2*EA104*EA93)/1245184 + (1627*EA100^2*EA91*EA93)/887040 + (3*EA100^2*EA93^2)/26624 + (169693*EA100^2*EA101*EA94)/15055552512 + (6393*EA100^2*EA102*EA94)/5297324032 + (2664287*EA100*EA101*EA104*EA94)/504803819520 + (1926709*EA100^2*EA105*EA94)/721148313600 + (364207*EA100^2*EA92*EA94)/1937295360 + (41*EA100^2*EA94^2)/4392960 + (1593269*EA100^3*EA95)/225833287680 + (7759469*EA100^2*EA104*EA95)/1589197209600 + (88069*EA100^2*EA93*EA95)/215255040 + (EA100^3*EA96)/1245184 + (72782903*EA100*EA101*EA102*EA96)/10782091837440 + (7759469*EA100^2*EA103*EA96)/1589197209600 + (EA100^2*EA104*EA96)/1835008 + (88069*EA100^2*EA91*EA96)/215255040 + (EA100^2*EA93*EA96)/20480 + (1423*EA100^2*EA95*EA96)/15375360 + (3*EA100^2*EA96^2)/557056 + (768129*EA100^2*EA102*EA97)/234903961600 + (24319*EA100^2*EA94*EA97)/516612096 + (1368973*EA100^2*EA101*EA98)/433417420800 + (71*EA100^2*EA102*EA98)/214466560 + (66784909*EA100*EA101*EA104*EA98)/44951578214400 + (27898883*EA100^2*EA105*EA98)/37018946764800 + (47849*EA100^2*EA92*EA98)/922521600 + (373*EA100^2*EA94*EA98)/74680320 + (1326653*EA100^2*EA97*EA98)/101335449600 + (29*EA100^2*EA98^2)/42803200 + (7759469*EA100^3*EA99)/4767591628800 + (31730711*EA100^2*EA104*EA99)/27969870888960 + (1423*EA100^2*EA93*EA99)/15375360 + (1593269*EA100^2*EA96*EA99)/75277762560 + EA100^2*EA105^2*(2569694549/12771536633856000 + PI()^2/209715200) + EA100*EA101*EA104*EA105*(19556822521/24813271174348800 + PI()^2/52428800) + EA100^2*EA103^2*(973676323/881050933002240 + PI()^2/48234496) + EA100*EA101^2*EA104*(2969615213/1865754916945920 + PI()^2/24117248) + EA100^2*EA101*EA105*(1472540521/906223816802304 + PI()^2/24117248) + EA100*EA101*EA102*EA103*(1745359172143/555062087791411000 + (3*PI()^2)/44843008) + EA100^2*EA101^2*(2208869431/672802530656256 + PI()^2/11010048) + EA100^2*EA105*EA97*(27073198069/4205015816601600 + PI()^2/5505024) + EA100^2*EA103*EA99*(778001383/84100316332032 + PI()^2/5505024) + EA100*EA101*EA103*EA98*(25619947729/2102507908300800 + PI()^2/3655680) + EA100*EA101*EA102*EA99*(274382384057/21025079083008000 + PI()^2/3440640) + EA100*EA101*EA104*EA97*(6632178031/525626977075200 + PI()^2/2752512) + EA100*EA101*EA105*EA96*(14098445897/1051253954150400 + PI()^2/2752512) + EA100^2*EA99^2*(4651811/239520153600 + PI()^2/2490368) + EA100*EA101*EA103*EA105*(8556993119/1415974713753600 + (56279389*PI()^2)/116964914626560) + EA100^2*EA105*EA92*(18066079/752777625600 + PI()^2/1245184) + EA100^2*EA101*EA97*(702953/27022786560 + PI()^2/1245184) + EA100*EA101^2*EA96*(19773869/729615237120 + PI()^2/1245184) + EA100^2*EA103*EA95*(4651811/119760076800 + PI()^2/1245184) + EA100*EA101*EA103*EA94*(28601917/677499863040 + PI()^2/992256) + EA100*EA101^2*EA103*(896597057437/75690284698828800 + (85568519*PI()^2)/83909612666880) + EA100*EA101*EA102*EA95*(1059127/19516456960 + (9*PI()^2)/7081984) + EA100*EA101*EA104*EA92*(24792799/526944337920 + PI()^2/622592) + EA100*EA101*EA105*EA93*(5839333/105388867584 + PI()^2/622592) + EA100^2*EA97^2*(1217/23654400 + PI()^2/557056) + EA100*EA101*EA105*EA99*(2899288219/119189790720000 + (214773077*PI()^2)/104887015833600) + EA100^2*EA101*EA92*(4492651/46495088640 + PI()^2/278528) + EA100*EA101^2*EA93*(473113/4226826240 + PI()^2/278528) + EA100^2*EA103*EA91*(264263/1614412800 + PI()^2/278528) + EA100^2*EA95*EA99*(264263/1614412800 + PI()^2/278528) + EA100*EA101^2*EA99*(1391372449/29274685440000 + (7799849*PI()^2)/1787846860800) + EA100*EA101*EA102*EA91*(1051961/4649508864 + (15*PI()^2)/2680832) + EA100^2*EA95^2*(4193641/12108096000 + PI()^2/122880) + EA100*EA101*EA103*EA97*(220805971/2439557120000 + (123675463*PI()^2)/14302774886400) + EA100*EA101*EA105*EA95*(57937587403/592812380160000 + (125199073*PI()^2)/14302774886400) + EA100^2*EA92*EA97*(1362103/3587584000 + PI()^2/61440) + EA100^2*EA91*EA99*(4193641/6054048000 + PI()^2/61440) + EA100*EA101^2*EA95*(4419929/23247544320 + (1412627*PI()^2)/75277762560) + EA100*EA101*EA91*EA98*(21299891/24216192000 + PI()^2/42240) + EA100*EA101*EA92*EA96*(12783269/16144128000 + PI()^2/30720) + EA100*EA101*EA103*EA92*(3380371/10567065600 + (1367813*PI()^2)/37638881280) + EA100^2*EA92^2*(3491/5068800 + PI()^2/26624) + EA100*EA101*EA105*EA91*(88973/227026800 + (176929*PI()^2)/4704860160) + EA100^2*EA91*EA95*(13063/4435200 + PI()^2/13312) + EA100*EA101^2*EA91*(52852273/69742632960 + (14983*PI()^2)/184504320) + EA100*EA101*EA91*EA94*(48661/15966720 + (5*PI()^2)/54912) + EA100*EA101*EA92*EA93*(5729/1774080 + PI()^2/6656) + EA100^2*EA91^2*(141/22400 + PI()^2/5632) + EA100*EA101*EA92*EA95*(294881/59875200 + (1998407*PI()^2)/2905943040) + EA100*EA101*EA91*EA97*(1354319/239500800 + (255589*PI()^2)/363242880) + EA100*EA101*EA91*EA92*(22973/1209600 + (1343*PI()^2)/443520)) -> 0 | EB116: 0 | EC116: 0 | ED116: 0
AB117: 0.86 | AC117: 55.80195579 | AD117: 0.01134767082 | AE117: 60.55181368 | AF117: 57.72967143 | AG117: 56.34601805 | AH117: 55.80195579 | AT117: 0.01405372495 | AU117: 0.01066019051 | AV117: 0.01065770154 | AW117: 0.01134767082 | BJ117: 60.55181368 | BK117: 57.72967143 | BL117: 56.34601805 | BM117: 55.80195579 | BY117: 0.01405372495 | BZ117: 0.01066019051 | CA117: 0.01065770154 | CB117: 0.01134767082 | CO117: 0.01568787902 | CP117: 0.01197821085 | CQ117: 0.01212385851 | CR117: 0.01308929689 | EA117: =IF(OR(ISERROR(AT29),$B$14<>"u"),"",(178367729*EA100*EA102^2*EA103)/991952449044480 + (6021*EA100*EA102^2*EA104)/317272883200 + (3788707301*EA100*EA103*EA104^2)/60821755605811200 + (EA100*EA104^3)/452984832 + (183083837*EA100*EA102*EA104*EA105)/2027391853527040 + (458831*EA100*EA102^2*EA91)/32934021120 + (7759469*EA100*EA104^2*EA91)/1589197209600 + (156585309*EA100*EA102*EA104*EA92)/25956887756800 + (2133*EA100*EA102^2*EA93)/1388068864 + (7759469*EA100*EA103*EA104*EA93)/794598604800 + (177925749*EA100*EA102*EA105*EA93)/25956887756800 + (7339*EA100*EA102*EA92*EA93)/15375360 + (88069*EA100*EA103*EA93^2)/215255040 + (157489873*EA100*EA102*EA103*EA94)/30919233945600 + (157*EA100*EA102*EA104*EA94)/283279360 + (8993*EA100*EA102*EA91*EA94)/22014720 + (817*EA100*EA101*EA93*EA94)/1956864 + (229*EA100*EA102*EA93*EA94)/4892160 + (53903*EA100*EA103*EA94^2)/1452971520 + (9043747*EA100*EA102^2*EA95)/2781095116800 + (11689*EA100*EA102*EA94*EA95)/124185600 + (17*EA100*EA102^2*EA96)/48168960 + (31730711*EA100*EA103*EA104*EA96)/13984935444480 + (48312791*EA100*EA102*EA105*EA96)/29967718809600 + (237851*EA100*EA102*EA92*EA96)/2152550400 + (1423*EA100*EA103*EA93*EA96)/7687680 + (86503*EA100*EA101*EA94*EA96)/894136320 + (1277*EA100*EA102*EA94*EA96)/120637440 + (1593269*EA100*EA103*EA96^2)/75277762560 + (528301*EA100*EA102*EA104*EA97)/343489642496 + (947*EA100*EA102*EA93*EA97)/7884800 + (669259*EA100*EA102*EA96*EA97)/23952015360 + (92573347*EA100*EA102*EA103*EA98)/64783156838400 + (33903*EA100*EA102*EA104*EA98)/221524459520 + (16517*EA100*EA102*EA91*EA98)/146764800 + (10693*EA100*EA101*EA93*EA98)/92252160 + (7713*EA100*EA102*EA93*EA98)/609889280 + (6750839*EA100*EA103*EA94*EA98)/329340211200 + (661363*EA100*EA102*EA95*EA98)/25333862400 + (1184863*EA100*EA101*EA96*EA98)/43912028160 + (1531*EA100*EA102*EA96*EA98)/531148800 + (8508541*EA100*EA103*EA98^2)/2979744768000 + (108932459*EA100*EA102^2*EA99)/142762882662400 + (7190731*EA100*EA102*EA94*EA99)/329340211200 + (197678387*EA100*EA102*EA98*EA99)/32446109696000 + EA100*EA103^2*EA104*(536568051133/1013208572952570000 + PI()^2/104857600) + EA100*EA102*EA103*EA105*(18379442801/23747075928576000 + (27*PI()^2)/1743257600) + EA100*EA103*EA105^2*(222451385227/289488163700736000 + (3468884941*PI()^2)/60821755605811200) + EA100*EA103*EA105*EA98*(4709825521/1573305237504000 + (9*PI()^2)/143196160) + EA100*EA102*EA105*EA99*(5044368059/1573305237504000 + (3*PI()^2)/44843008) + EA100*EA103*EA104*EA99*(973676323/220262733250560 + PI()^2/12058624) + EA100*EA103^3*(3776249956033/2775310438957050000 + (46522243*PI()^2)/526342115819520) + EA100*EA103^2*EA96*(778001383/84100316332032 + PI()^2/5505024) + EA100*EA103*EA105*EA94*(10880345711/1051253954150400 + PI()^2/4358144) + EA100*EA102*EA103*EA97*(132081266393/10512539541504000 + PI()^2/3440640) + EA100*EA102*EA105*EA95*(34966348777/2628134885376000 + PI()^2/3440640) + EA100*EA103*EA104*EA95*(778001383/42050158166016 + PI()^2/2752512) + EA100*EA103^2*EA93*(4651811/119760076800 + PI()^2/1245184) + EA100*EA103^2*EA99*(58192725971/3504179847168000 + (31730711*PI()^2)/27969870888960) + EA100*EA103*EA97*EA98*(8193869/168030720000 + (7*PI()^2)/5836800) + EA100*EA101*EA98*EA99*(1667900203/32934021120000 + (7*PI()^2)/5836800) + EA100*EA102*EA103*EA92*(13895467/292746854400 + (9*PI()^2)/7081984) + EA100*EA102*EA97*EA99*(6254893/119760076800 + (9*PI()^2)/7081984) + EA100*EA102*EA105*EA91*(36443807/658680422400 + (9*PI()^2)/7081984) + EA100*EA103*EA104*EA91*(4651811/59880038400 + PI()^2/622592) + EA100*EA103*EA96*EA99*(4651811/59880038400 + PI()^2/622592) + EA100*EA103*EA105*EA97*(6222991597/268177029120000 + (425527139*PI()^2)/209774031667200) + EA100*EA103*EA94*EA97*(420281/2483712000 + (7*PI()^2)/1566720) + EA100*EA101*EA94*EA99*(14582849/83026944000 + (7*PI()^2)/1566720) + EA100*EA103^2*EA95*(329431857/4879114240000 + (7759469*PI()^2)/1589197209600) + EA100*EA103*EA99^2*(329431857/4879114240000 + (7759469*PI()^2)/1589197209600) + EA100*EA103*EA92*EA98*(5945039/32288256000 + (3*PI()^2)/565760) + EA100*EA101*EA95*EA98*(12253897/58118860800 + (3*PI()^2)/565760) + EA100*EA102*EA92*EA99*(2548547/12915302400 + (15*PI()^2)/2680832) + EA100*EA102*EA95*EA97*(281041/1291530240 + (15*PI()^2)/2680832) + EA100*EA101*EA96*EA97*(55397/258306048 + PI()^2/139264) + EA100*EA103*EA95*EA96*(264263/807206400 + PI()^2/139264) + EA100*EA103*EA93*EA99*(264263/807206400 + PI()^2/139264) + EA100*EA103*EA105*EA92*(5461441669/65868042240000 + (4487001*PI()^2)/529732403200) + EA100*EA103*EA97^2*(5536651/32288256000 + (277813*PI()^2)/15055552512) + EA100*EA103*EA92*EA94*(30910921/48432384000 + PI()^2/49920) + EA100*EA101*EA94*EA95*(35426707/48432384000 + PI()^2/49920) + EA100*EA103^2*EA91*(39838781/145297152000 + (1593269*PI()^2)/75277762560) + EA100*EA102*EA92*EA95*(13277477/16144128000 + PI()^2/40320) + EA100*EA102*EA91*EA97*(3146329/3459456000 + PI()^2/40320) + EA100*EA101*EA93*EA97*(42784057/48432384000 + PI()^2/30720) + EA100*EA103*EA93*EA95*(4193641/3027024000 + PI()^2/30720) + EA100*EA103*EA91*EA96*(4193641/3027024000 + PI()^2/30720) + EA100*EA101*EA97*EA99*(209892223/581188608000 + (700423*PI()^2)/18819440640) + EA100*EA103*EA95*EA99*(39838781/72648576000 + (1593269*PI()^2)/37638881280) + EA100*EA103*EA95^2*(8968709/8072064000 + (1423*PI()^2)/15375360) + EA100*EA102*EA91*EA92*(3393/985600 + (9*PI()^2)/81536) + EA100*EA103*EA91*EA93*(13063/2217600 + PI()^2/6656) + EA100*EA103*EA92*EA97*(5770357/4843238400 + (9613*PI()^2)/61501440) + EA100*EA101*EA92*EA99*(122157793/96864768000 + (227*PI()^2)/1441440) + EA100*EA101*EA95*EA97*(1388749/968647680 + (29749*PI()^2)/184504320) + EA100*EA103*EA91*EA99*(8968709/4036032000 + (1423*PI()^2)/7687680) + EA100*EA103*EA92^2*(35459/17740800 + (71899*PI()^2)/215255040) + EA100*EA103*EA91*EA95*(1421/158400 + (88069*PI()^2)/107627520) + EA100*EA103*EA91^2*(21757/1209600 + (1627*PI()^2)/887040)) -> 0 | EB117: 0 | EC117: 0 | ED117: 0
AB118: 0.87 | AC118: 56.71859013 | AD118: 0.01048359171 | AE118: 61.28574884 | AF118: 58.69859232 | AG118: 57.31825243 | AH118: 56.71859013 | AT118: 0.01320163033 | AU118: 0.009987017228 | AV118: 0.009921922158 | AW118: 0.01048359171 | BJ118: 61.28574884 | BK118: 58.69859232 | BL118: 57.31825243 | BM118: 56.71859013 | BY118: 0.01320163033 | BZ118: 0.009987017228 | CA118: 0.009921922158 | CB118: 0.01048359171 | CO118: 0.01488247451 | CP118: 0.01132379279 | CQ118: 0.01139163966 | CR118: 0.01221662953 | EA118: =IF(OR(ISERROR(AT29),$B$14<>"u"),"",(EA100*EA104^2*EA93)/1835008 + (88069*EA100*EA104*EA91*EA93)/107627520 + (EA100*EA104*EA93^2)/20480 + (11*EA100*EA91*EA93^2)/280 + (13893721*EA100*EA104*EA105*EA94)/11040738508800 + (112187*EA100*EA104*EA92*EA94)/1291530240 + (9679*EA100*EA105*EA93*EA94)/99348480 + (81*EA100*EA92*EA93*EA94)/11200 + (19*EA100*EA104*EA94^2)/4526080 + (239*EA100*EA91*EA94^2)/75600 + (31730711*EA100*EA104^2*EA95)/27969870888960 + (1423*EA100*EA104*EA93*EA95)/7687680 + (3*EA100*EA104^2*EA96)/24117248 + (1423*EA100*EA104*EA91*EA96)/7687680 + (3*EA100*EA104*EA93*EA96)/139264 + (563*EA100*EA91*EA93*EA96)/33600 + (122443*EA100*EA105*EA94*EA96)/5376983040 + (7277*EA100*EA92*EA94*EA96)/4435200 + (1593269*EA100*EA104*EA95*EA96)/37638881280 + (3*EA100*EA104*EA96^2)/1245184 + (1627*EA100*EA91*EA96^2)/887040 + (824189*EA100*EA104*EA94*EA97)/37638881280 + (82225271*EA100*EA104*EA105*EA98)/230851805184000 + (15905849*EA100*EA104*EA92*EA98)/658680422400 + (1384181*EA100*EA105*EA93*EA98)/50667724800 + (4337*EA100*EA92*EA93*EA98)/2217600 + (977*EA100*EA104*EA94*EA98)/429977600 + (1873*EA100*EA91*EA94*EA98)/1108800 + (2180221*EA100*EA105*EA96*EA98)/340542259200 + (603481*EA100*EA92*EA96*EA98)/1345344000 + (95443*EA100*EA104*EA97*EA98)/15580364800 + (197*EA100*EA104*EA98^2)/633651200 + (5149*EA100*EA91*EA98^2)/22422400 + (46522243*EA100*EA104^2*EA99)/175447371939840 + (1593269*EA100*EA104*EA93*EA99)/37638881280 + (7759469*EA100*EA104*EA96*EA99)/794598604800 + EA100*EA104*EA105^2*(2088816548867/21391651675570100000 + PI()^2/452984832) + EA100*EA105^2*EA96*(19346953/11654112870400 + PI()^2/24117248) + EA100*EA104*EA105*EA97*(196583099/62932209500160 + PI()^2/12058624) + EA100*EA105^2*EA93*(1109328277/161731377561600 + PI()^2/5505024) + EA100*EA104*EA99^2*(778001383/84100316332032 + PI()^2/5505024) + EA100*EA105^2*EA99*(292633889201/94398314250240000 + (42397837*PI()^2)/175447371939840) + EA100*EA105*EA98*EA99*(326317602361/26281348853760000 + PI()^2/3655680) + EA100*EA104*EA105*EA92*(24553131107/2102507908300800 + PI()^2/2752512) + EA100*EA104*EA97^2*(8227789/329340211200 + PI()^2/1245184) + EA100*EA105*EA94*EA99*(259163/6031872000 + PI()^2/992256) + EA100*EA105^2*EA95*(13400463413/1072708116480000 + (431249713*PI()^2)/419548063334400) + EA100*EA105*EA95*EA98*(13480409/261381120000 + (7*PI()^2)/5836800) + EA100*EA105*EA96*EA97*(4995871/94097203200 + PI()^2/622592) + EA100*EA104*EA95*EA99*(4651811/59880038400 + PI()^2/622592) + EA100*EA104*EA95^2*(264263/1614412800 + PI()^2/278528) + EA100*EA105^2*EA91*(45066577/896163840000 + (6977809*PI()^2)/1589197209600) + EA100*EA105*EA94*EA95*(21173/118609920 + (7*PI()^2)/1566720) + EA100*EA105*EA91*EA98*(54987/256256000 + (3*PI()^2)/565760) + EA100*EA104*EA92*EA97*(598687/3228825600 + PI()^2/139264) + EA100*EA105*EA92*EA96*(10819/54912000 + PI()^2/139264) + EA100*EA105*EA93*EA97*(2356499/10762752000 + PI()^2/139264) + EA100*EA104*EA91*EA99*(264263/807206400 + PI()^2/139264) + EA100*EA105*EA97*EA99*(2042843093/21956014080000 + (1723291*PI()^2)/198649651200) + EA100*EA104*EA92^2*(32924581/96864768000 + PI()^2/61440) + EA100*EA105*EA91*EA94*(13367/18018000 + PI()^2/49920) + EA100*EA92*EA98*EA99*(3711157/4843238400 + PI()^2/42240) + EA100*EA105*EA92*EA93*(39071671/48432384000 + PI()^2/30720) + EA100*EA104*EA91*EA95*(4193641/3027024000 + PI()^2/30720) + EA100*EA105*EA92*EA99*(95804531/290594304000 + (685309*PI()^2)/18819440640) + EA100*EA105*EA95*EA97*(500377/1345344000 + (1403651*PI()^2)/37638881280) + EA100*EA104*EA91^2*(13063/4435200 + PI()^2/13312) + EA100*EA92*EA94*EA99*(23563/8870400 + (5*PI()^2)/54912) + EA100*EA92*EA95*EA98*(6073/1900800 + PI()^2/9360) + EA100*EA91*EA97*EA98*(11779/3326400 + PI()^2/9360) + EA100*EA92*EA96*EA97*(13723/4435200 + PI()^2/6656) + EA100*EA91*EA96*EA99*(13063/2217600 + PI()^2/6656) + EA100*EA105*EA92*EA95*(9472241/7264857600 + (17431*PI()^2)/110702592) + EA100*EA105*EA91*EA97*(53819041/36324288000 + (44617*PI()^2)/276756480) + EA100*EA92^2*EA96*(247/44800 + PI()^2/2816) + EA100*EA91*EA99^2*(1421/316800 + (88069*PI()^2)/215255040) + EA100*EA92*EA94*EA95*(20063/1814400 + PI()^2/2376) + EA100*EA91*EA94*EA97*(1591/129600 + PI()^2/2376) + EA100*EA91*EA92*EA98*(449/33600 + (3*PI()^2)/6160) + EA100*EA92*EA97*EA99*(4559/985600 + (12269*PI()^2)/17937920) + EA100*EA105*EA91*EA92*(5683/1108800 + (6141*PI()^2)/8968960) + EA100*EA92*EA93*EA97*(839/67200 + PI()^2/1408) + EA100*EA91*EA95*EA96*(141/5600 + PI()^2/1408) + EA100*EA91*EA93*EA99*(141/5600 + PI()^2/1408) + EA100*EA92^2*EA99*(725/96768 + (41*PI()^2)/27720) + EA100*EA91*EA97^2*(37381/3628800 + (4111*PI()^2)/2661120) + EA100*EA92^2*EA93*(1301/60480 + PI()^2/576) + EA100*EA91^2*EA96*(409/7560 + PI()^2/576) + EA100*EA91*EA92*EA94*(1391/30240 + PI()^2/504) + EA100*EA92*EA95*EA97*(32009/1814400 + (8047*PI()^2)/2661120) + EA100*EA91*EA93*EA95*(409/3780 + PI()^2/288) + EA100*EA91*EA95*EA99*(21757/604800 + (1627*PI()^2)/443520) + EA100*EA92^2*EA95*(163/6048 + (1339*PI()^2)/201600) + EA100*EA91*EA95^2*(359/5040 + (563*PI()^2)/67200) + EA100*EA91^2*EA99*(359/5040 + (563*PI()^2)/67200) + EA100*EA91^2*EA93*(7/30 + PI()^2/112) + EA100*EA91*EA92*EA97*(1979/30240 + (341*PI()^2)/25200) + EA100*EA91*EA92^2*(43/480 + (17*PI()^2)/560) + EA100*EA91^2*EA95*(11/40 + (11*PI()^2)/280) + EA100*EA91^3*(1/3 + (23*PI()^2)/360)) -> 0 | EB118: 0 | EC118: 0 | ED118: 0
AB119: 0.88 | AC119: 57.71382448 | AD119: 0.009625466834 | AE119: 62.06939567 | AF119: 59.73569536 | AG119: 58.36554243 | AH119: 57.71382448 | AT119: 0.01232619066 | AU119: 0.0093038274 | AV119: 0.00918413414 | AW119: 0.009625466834 | BJ119: 62.06939567 | BK119: 59.73569536 | BL119: 58.36554243 | BM119: 57.71382448 | BY119: 0.01232619066 | BZ119: 0.0093038274 | CA119: 0.00918413414 | CB119: 0.009625466834 | CO119: 0.01405372495 | CP119: 0.01066019051 | CQ119: 0.01065770154 | CR119: 0.01134767082 | EA119: =IF(OR(ISERROR(AT29),$B$14<>"u"),"",(EA100*EA93^3)/576 + (17*EA100*EA93*EA94^2)/44352 + (563*EA100*EA93^2*EA95)/67200 + (197*EA100*EA94^2*EA95)/277200 + (3*EA100*EA93^2*EA96)/2816 + (83*EA100*EA94^2*EA96)/988416 + (1627*EA100*EA93*EA95*EA96)/443520 + (3*EA100*EA93*EA96^2)/13312 + (88069*EA100*EA95*EA96^2)/215255040 + (EA100*EA96^3)/61440 + (7877*EA100*EA93*EA94*EA97)/4435200 + (43843*EA100*EA94*EA96*EA97)/107627520 + (191*EA100*EA93*EA94*EA98)/960960 + (211877*EA100*EA94*EA95*EA98)/550368000 + (73*EA100*EA94*EA96*EA98)/1647360 + (19857*EA100*EA93*EA97*EA98)/40768000 + (121*EA100*EA96*EA97*EA98)/1075200 + (13*EA100*EA93*EA98^2)/492800 + (30463*EA100*EA95*EA98^2)/576576000 + (101*EA100*EA96*EA98^2)/16972800 + (1627*EA100*EA93^2*EA99)/887040 + (195691*EA100*EA94^2*EA99)/1210809600 + (88069*EA100*EA93*EA96*EA99)/107627520 + (1423*EA100*EA96^2*EA99)/15375360 + (54959*EA100*EA94*EA98*EA99)/620928000 + (50412979*EA100*EA98^2*EA99)/4116752640000 + EA101^2*EA104^2*(19763671327/102387392635207000 + PI()^2/209715200) + EA101^2*EA102^2*(66433891/116609682309120 + (1503*PI()^2)/110493171712) + EA101^2*EA102*EA98*(592832873/134776147968000 + (71*PI()^2)/643399680) + EA101^2*EA104*EA96*(2208869431/336401265328128 + PI()^2/5505024) + EA101^2*EA102*EA105*(182910802853/82231420413542400 + (2777486147*PI()^2)/14737579242946500) + EA101^2*EA98^2*(1260251299/148203095040000 + (29*PI()^2)/128409600) + EA101^2*EA103*EA104*(6539833741387/2220248351165640000 + (84042493*PI()^2)/350894743879680) + EA101^3*EA102*(87860767333/30276113879531500 + (3453809*PI()^2)/13052606414848) + EA101^2*EA102*EA94*(18026207/1185624760320 + (2131*PI()^2)/5297324032) + EA101^2*EA105*EA98*(2255050459933/270322445352960000 + (469756579*PI()^2)/629322095001600) + EA101^2*EA104*EA93*(19773869/729615237120 + PI()^2/1245184) + EA101^2*EA104*EA99*(896597057437/75690284698828800 + (85568519*PI()^2)/83909612666880) + EA101^3*EA98*(1608359141/148203095040000 + (1368973*PI()^2)/1300252262400) + EA101^2*EA94*EA98*(1223119/20756736000 + (373*PI()^2)/224040960) + EA101^2*EA96^2*(473113/8453652480 + PI()^2/557056) + EA101^2*EA105*EA94*(6017544079/215568138240000 + (13376611*PI()^2)/5048038195200) + EA101^2*EA94^2*(84727/825552000 + (41*PI()^2)/13178880) + EA101^2*EA102*EA97*(78841295119/2371249520640000 + (1080400241*PI()^2)/323462755123200) + EA100*EA96*EA99^2*(264263/1614412800 + PI()^2/278528) + EA101^3*EA94*(30291083/836911595520 + (169693*PI()^2)/45166657536) + EA101^2*EA104*EA95*(1391372449/29274685440000 + (7799849*PI()^2)/1787846860800) + EA101^2*EA103*EA96*(1391372449/29274685440000 + (7799849*PI()^2)/1787846860800) + EA100*EA97*EA98*EA99*(546241/2690688000 + (3*PI()^2)/565760) + EA100*EA99^3*(39838781/435891456000 + (1593269*PI()^2)/225833287680) + EA101^2*EA97*EA98*(39240787/317011968000 + (52792379*PI()^2)/3952082534400) + EA101^2*EA102*EA92*(81187/688816128 + (1465873*PI()^2)/105388867584) + EA100*EA96*EA97^2*(103511/244608000 + PI()^2/61440) + EA101^2*EA93*EA96*(44881061/96864768000 + PI()^2/61440) + EA100*EA93*EA99^2*(4193641/6054048000 + PI()^2/61440) + EA101^2*EA104*EA91*(4419929/23247544320 + (1412627*PI()^2)/75277762560) + EA101^2*EA103*EA93*(4419929/23247544320 + (1412627*PI()^2)/75277762560) + EA101^2*EA96*EA99*(4419929/23247544320 + (1412627*PI()^2)/75277762560) + EA100*EA94*EA97*EA99*(1552433/2201472000 + PI()^2/49920) + EA100*EA95*EA97*EA98*(569629/672672000 + PI()^2/42240) + EA100*EA95*EA96*EA99*(4193641/3027024000 + PI()^2/30720) + EA101^2*EA93^2*(1775/1824768 + PI()^2/26624) + EA101^2*EA94*EA97*(17191513/41845579776 + (3343433*PI()^2)/69742632960) + EA101^2*EA92*EA98*(11848099/27243216000 + (51593*PI()^2)/922521600) + EA100*EA93*EA97^2*(171/98560 + PI()^2/13312) + EA100*EA95^2*EA96*(13063/4435200 + PI()^2/13312) + EA100*EA97^2*EA99*(1216867/1793792000 + (2461*PI()^2)/30750720) + EA101^2*EA95*EA96*(52852273/69742632960 + (14983*PI()^2)/184504320) + EA101^2*EA93*EA99*(52852273/69742632960 + (14983*PI()^2)/184504320) + EA100*EA94*EA95*EA97*(4349/1478400 + (5*PI()^2)/54912) + EA100*EA95*EA99^2*(8968709/8072064000 + (1423*PI()^2)/15375360) + EA100*EA93*EA95*EA99*(13063/2217600 + PI()^2/6656) + EA101^2*EA92*EA94*(274243/191600640 + (1173037*PI()^2)/5811886080) + EA100*EA95*EA97^2*(5899/2217600 + (75329*PI()^2)/215255040) + EA101^2*EA93*EA95*(288587/95800320 + (2055541*PI()^2)/5811886080) + EA101^2*EA91*EA96*(288587/95800320 + (2055541*PI()^2)/5811886080) + EA100*EA93*EA95^2*(141/11200 + PI()^2/2816) + EA100*EA95^2*EA99*(1421/316800 + (88069*PI()^2)/215255040) + EA100*EA95^3*(21757/3628800 + (1627*PI()^2)/2661120) + EA101^2*EA91*EA93*(5837/483840 + (229*PI()^2)/147840) + EA101^2*EA105^2*(280531360795583/137240626102272000000 + (57504512864077*PI()^2)/145902034505170000000 + (7*PI()^4)/1048576000) + EA101^3*EA105*(7513656977/1455582398054400 + (4250932369*PI()^2)/3964729198510080 + (7*PI()^4)/361758720) + EA101^4*(6624515533/1365839723888640 + (2208869431*PI()^2)/2018407591968760 + PI()^4/47185920) + EA101^2*EA103^2*(1552054050709/151380569397657000 + (596862346727*PI()^2)/317178335880806000 + (7*PI()^4)/241172480) + EA101^2*EA105*EA97*(1618315711/28454994247680 + (65654109517*PI()^2)/5046018979921920 + PI()^4/3932160) + EA101^2*EA103*EA99*(3793008103/47424990412800 + (131498082169*PI()^2)/8410031633203200 + PI()^4/3932160) + EA101^3*EA97*(16082551/228248616960 + (121105*PI()^2)/6840142848 + (7*PI()^4)/18677760) + EA101^2*EA99^2*(972803389/6276836966400 + (9256228021*PI()^2)/284549942476800 + (7*PI()^4)/12451840) + EA101^2*EA105*EA92*(1198908791/6276836966400 + (3641258111*PI()^2)/71137485619200 + (7*PI()^4)/6225920) + EA101^2*EA103*EA95*(972803389/3138418483200 + (9256228021*PI()^2)/142274971238400 + (7*PI()^4)/6225920) + EA101^3*EA92*(32359693/139485265920 + (1616149*PI()^2)/23247544320 + (7*PI()^4)/4177920) + EA101^2*EA97^2*(197612951/523069747200 + (13605197*PI()^2)/126804787200 + (7*PI()^4)/2785280) + EA101^2*EA103*EA91*(23082611/19372953600 + (2333927*PI()^2)/8610201600 + (7*PI()^4)/1392640) + EA101^2*EA95*EA99*(23082611/19372953600 + (2333927*PI()^2)/8610201600 + (7*PI()^4)/1392640) + EA101^2*EA95^2*(723433/319334400 + (65704909*PI()^2)/116237721600 + (7*PI()^4)/614400) + EA101^2*EA92*EA97*(2314883/958003200 + (3484651*PI()^2)/4151347200 + (7*PI()^4)/307200) + EA101^2*EA91*EA99*(723433/159667200 + (65704909*PI()^2)/58118860800 + (7*PI()^4)/307200) + EA101^2*EA92^2*(105517/29030400 + (780889*PI()^2)/479001600 + (7*PI()^4)/133120) + EA101^2*EA91*EA95*(61513/3628800 + (2261213*PI()^2)/479001600 + (7*PI()^4)/66560) + EA101^2*EA91^2*(37/1260 + (72853*PI()^2)/7257600 + (7*PI()^4)/28160)) -> 0 | EB119: 0 | EC119: 0 | ED119: 0
AB120: 0.89 | AC120: 58.80164586 | AD120: 0.008774267936 | AE120: 62.91163759 | AF120: 60.85259083 | AG120: 59.50072661 | AH120: 58.80164586 | AT120: 0.01142740592 | AU120: 0.008610108201 | AV120: 0.008444120243 | AW120: 0.008774267936 | BJ120: 62.91163759 | BK120: 60.85259083 | BL120: 59.50072661 | BM120: 58.80164586 | BY120: 0.01142740592 | BZ120: 0.008610108201 | CA120: 0.008444120243 | CB120: 0.008774267936 | CO120: 0.01320163033 | CP120: 0.009987017228 | CQ120: 0.009921922158 | CR120: 0.01048359171 | EA120: =IF(OR(ISERROR(AT29),$B$14<>"u"),"",(62125159*EA101*EA102^3)/1432820204175360 + (2986757729*EA101*EA102*EA104^2)/67224045669580800 + (72782903*EA101*EA102*EA104*EA93)/10782091837440 + (106129*EA101*EA102*EA93^2)/387459072 + (1610593*EA101*EA102^2*EA94)/883406684160 + (8221331*EA101*EA104^2*EA94)/13248886210560 + (54583*EA101*EA102*EA94^2)/2075673600 + (10361427*EA101*EA102*EA104*EA96)/6526303207424 + (89233*EA101*EA102*EA93*EA96)/717516800 + (691087*EA101*EA102*EA96^2)/47904030720 + (990498163*EA101*EA102^2*EA98)/1927298915942400 + (307730597*EA101*EA104^2*EA98)/1754473719398400 + (599873*EA101*EA102*EA94*EA98)/41167526400 + (40624079*EA101*EA102*EA98^2)/19910112768000 + EA101*EA104^2*EA105*(6220123713731/65030621093733300000 + PI()^2/452984832) + EA101*EA102^2*EA105*(342810091697/1215850287543090000 + (2007*PI()^2)/317272883200) + EA101*EA102*EA103*EA104*(1435403271193/1891322669511470000 + (27*PI()^2)/1743257600) + EA101*EA104^2*EA97*(242690714089/158589167940403000 + PI()^2/24117248) + EA101*EA102*EA105^2*(4341112758126360/7.65985681152147E+21 + (172091214161*PI()^2)/3831770603166100000) + EA101*EA102*EA105*EA98*(215487560933/99118229962752000 + (11301*PI()^2)/221524459520) + EA101*EA103*EA104*EA98*(116432754839/39647291985100800 + (9*PI()^2)/143196160) + EA101*EA102*EA104*EA99*(1745359172143/555062087791411000 + (3*PI()^2)/44843008) + EA101*EA104*EA105*EA96*(1472540521/453111908401152 + PI()^2/12058624) + EA101*EA103*EA104*EA105*(4221775379593/2816123827765240000 + (7767739081*PI()^2)/68424475056537600) + EA101*EA102^2*EA97*(47590001581/10512539541504000 + (17*PI()^2)/144506880) + EA101*EA104^2*EA92*(48116003323/8410031633203200 + PI()^2/5505024) + EA101*EA102*EA105*EA94*(448083641/59730338304000 + (157*PI()^2)/849838080) + EA101*EA102*EA103^2*(1639958629147/555062087791411000 + (180119899*PI()^2)/866916426055680) + EA101*EA103*EA104*EA94*(42725547343/4205015816601600 + PI()^2/4358144) + EA101*EA102*EA104*EA95*(274382384057/21025079083008000 + PI()^2/3440640) + EA101*EA102*EA103*EA96*(274382384057/21025079083008000 + PI()^2/3440640) + EA101*EA104*EA105*EA93*(14098445897/1051253954150400 + PI()^2/2752512) + EA101*EA104*EA105*EA99*(8556993119/1415974713753600 + (56279389*PI()^2)/116964914626560) + EA101*EA102^2*EA92*(319967/18819440640 + (711*PI()^2)/1388068864) + EA101*EA103^2*EA98*(18037663849/1617313775616000 + (74399197*PI()^2)/89903156428800) + EA101*EA102*EA97*EA98*(192061613/5489003520000 + (1531*PI()^2)/1593446400) + EA101*EA103*EA96*EA98*(1667900203/32934021120000 + (7*PI()^2)/5836800) + EA101*EA102*EA104*EA91*(1059127/19516456960 + (9*PI()^2)/7081984) + EA101*EA102*EA103*EA93*(1059127/19516456960 + (9*PI()^2)/7081984) + EA101*EA102*EA96*EA99*(1059127/19516456960 + (9*PI()^2)/7081984) + EA101*EA102*EA105*EA97*(1793934716983/105125395415040000 + (6957134609*PI()^2)/4405254665011200) + EA101*EA102*EA103*EA99*(50295846989/2102507908300800 + (34583777*PI()^2)/19578909622272) + EA101*EA103*EA104*EA97*(95032046503/4205015816601600 + (21191179*PI()^2)/10488701583360) + EA101*EA104*EA105*EA95*(2899288219/119189790720000 + (214773077*PI()^2)/104887015833600) + EA101*EA103*EA105*EA96*(2899288219/119189790720000 + (214773077*PI()^2)/104887015833600) + EA101*EA103^2*EA94*(44491807153/1185624760320000 + (14936587*PI()^2)/5048038195200) + EA101*EA102*EA94*EA97*(37619/310464000 + (1277*PI()^2)/361912320) + EA101*EA102*EA99^2*(19116774701/395208253440000 + (1219878937*PI()^2)/323462755123200) + EA101*EA102*EA92*EA98*(86767/660441600 + (2571*PI()^2)/609889280) + EA101*EA103*EA94*EA96*(14582849/83026944000 + (7*PI()^2)/1566720) + EA101*EA104*EA91*EA98*(12253897/58118860800 + (3*PI()^2)/565760) + EA101*EA103*EA93*EA98*(12253897/58118860800 + (3*PI()^2)/565760) + EA101*EA102*EA95*EA96*(1051961/4649508864 + (15*PI()^2)/2680832) + EA101*EA102*EA93*EA99*(1051961/4649508864 + (15*PI()^2)/2680832) + EA101*EA102*EA105*EA92*(313323851/5132574720000 + (13762687261*PI()^2)/2102507908300800) + EA101*EA103*EA98*EA99*(53447733553/592812380160000 + (50584421*PI()^2)/7151387443200) + EA101*EA102*EA103*EA95*(19116774701/197604126720000 + (1219878937*PI()^2)/161731377561600) + EA101*EA103*EA104*EA92*(95563405781/1185624760320000 + (60373769*PI()^2)/7151387443200) + EA101*EA104*EA105*EA91*(57937587403/592812380160000 + (125199073*PI()^2)/14302774886400) + EA101*EA103*EA105*EA93*(57937587403/592812380160000 + (125199073*PI()^2)/14302774886400) + EA101*EA102*EA97^2*(20942423/166053888000 + (135307*PI()^2)/9580806144) + EA101*EA102*EA92*EA94*(102177/224224000 + (229*PI()^2)/14676480) + EA101*EA104*EA91*EA94*(35426707/48432384000 + PI()^2/49920) + EA101*EA103*EA93*EA94*(35426707/48432384000 + PI()^2/49920) + EA101*EA102*EA93*EA95*(6556051/6918912000 + PI()^2/40320) + EA101*EA102*EA91*EA96*(6556051/6918912000 + PI()^2/40320) + EA101*EA103*EA94*EA99*(1465679/4843238400 + (63863*PI()^2)/2509258752) + EA101*EA103*EA95*EA98*(317116493/871782912000 + (60062803*PI()^2)/1976041267200) + EA101*EA102*EA103*EA91*(432437/1107025920 + (775543*PI()^2)/23952015360) + EA101*EA102*EA95*EA99*(432437/1107025920 + (775543*PI()^2)/23952015360) + EA101*EA104*EA92*EA93*(12783269/16144128000 + PI()^2/30720) + EA101*EA103*EA96*EA97*(209892223/581188608000 + (700423*PI()^2)/18819440640) + EA101*EA102*EA95^2*(14111/17937920 + (301187*PI()^2)/4305100800) + EA101*EA103*EA94*EA95*(159070733/130767436800 + (295573*PI()^2)/2682408960) + EA101*EA102*EA91*EA93*(1427/354816 + (9*PI()^2)/81536) + EA101*EA102*EA92*EA97*(85394443/96864768000 + (764081*PI()^2)/6457651200) + EA101*EA103*EA91*EA98*(70880801/48432384000 + (8663*PI()^2)/65894400) + EA101*EA102*EA91*EA99*(14111/8968960 + (301187*PI()^2)/2152550400) + EA101*EA104*EA92*EA95*(122157793/96864768000 + (227*PI()^2)/1441440) + EA101*EA103*EA92*EA96*(122157793/96864768000 + (227*PI()^2)/1441440) + EA101*EA104*EA91*EA97*(1388749/968647680 + (29749*PI()^2)/184504320) + EA101*EA103*EA93*EA97*(1388749/968647680 + (29749*PI()^2)/184504320) + EA101*EA102*EA92^2*(1428223/958003200 + (1455359*PI()^2)/5811886080) + EA101*EA103*EA91*EA94*(1165427/239500800 + (127039*PI()^2)/264176640) + EA101*EA102*EA91*EA95*(377231/59875200 + (1776119*PI()^2)/2905943040) + EA101*EA104*EA91*EA92*(294881/59875200 + (1998407*PI()^2)/2905943040) + EA101*EA103*EA92*EA93*(294881/59875200 + (1998407*PI()^2)/2905943040) + EA101*EA102*EA91^2*(14549/1209600 + (499*PI()^2)/354816) + EA101*EA103^2*EA105*(2492686997250880/462551739826176000000 + (11134720060901*PI()^2)/12158502875430900000 + (7*PI()^4)/524288000) + EA101*EA103*EA105*EA99*(2001456632741/47306427936768000 + (602328415687*PI()^2)/79294583970201600 + (7*PI()^4)/60293120) + EA101*EA103^2*EA97*(448077629/5928123801600 + (5382324397*PI()^2)/350417984716800 + PI()^4/3932160) + EA101*EA103*EA105*EA95*(29400465691/177843714048000 + (153077279*PI()^2)/4851941326848 + PI()^4/1966080) + EA101*EA103^2*EA92*(98505601/387459072000 + (15348629*PI()^2)/250925875200 + (7*PI()^4)/6225920) + EA101*EA103*EA97*EA99*(56564003/96864768000 + (48110597*PI()^2)/376388812800 + (7*PI()^4)/3112960) + EA101*EA103*EA105*EA91*(186632857/290594304000 + (23049511*PI()^2)/175648112640 + (7*PI()^4)/3112960) + EA101*EA103*EA92*EA99*(1681235267/871782912000 + (59198537*PI()^2)/116237721600 + (7*PI()^4)/696320) + EA101*EA103*EA95*EA97*(5845150111/2615348736000 + (92862173*PI()^2)/174356582400 + (7*PI()^4)/696320) + EA101*EA103*EA92*EA95*(86287/11975040 + (44040877*PI()^2)/20756736000 + (7*PI()^4)/153600) + EA101*EA103*EA91*EA97*(134923/15966720 + (107580013*PI()^2)/48432384000 + (7*PI()^4)/153600) + EA101*EA103*EA91*EA92*(10639/403200 + (78367*PI()^2)/8870400 + (7*PI()^4)/33280)) -> 0 | EB120: 0 | EC120: 0 | ED120: 0
AB121: 0.9 | AC121: 60 | AD121: 0.007930856895 | AE121: 63.82389473 | AF121: 62.0641795 | AG121: 60.74028477 | AH121: 60 | AT121: 0.01050527613 | AU121: 0.00790526873 | AV121: 0.007701607243 | AW121: 0.007930856895 | BJ121: 63.82389473 | BK121: 62.0641795 | BL121: 60.74028477 | BM121: 60 | BY121: 0.01050527613 | BZ121: 0.00790526873 | CA121: 0.007701607243 | CB121: 0.007930856895 | CO121: 0.01232619066 | CP121: 0.0093038274 | CQ121: 0.00918413414 | CR121: 0.009625466834 | EA121: =IF(OR(ISERROR(AT29),$B$14<>"u"),"",(86503*EA101*EA104*EA93*EA94)/894136320 + (349*EA101*EA93^2*EA94)/86400 + (1319*EA101*EA94^3)/9979200 + (169693*EA101*EA104*EA94*EA96)/7527776256 + (8053*EA101*EA93*EA94*EA96)/4435200 + (1184863*EA101*EA104*EA93*EA98)/43912028160 + (989*EA101*EA93^2*EA98)/887040 + (53927*EA101*EA94^2*EA98)/504504000 + (1368973*EA101*EA104*EA96*EA98)/216708710400 + (6082441*EA101*EA93*EA96*EA98)/12108096000 + EA101*EA105*EA98^2*(55157494207/13140674426880000 + (197*PI()^2)/1900953600) + EA101*EA105^2*EA98*(6031328554159/2831949427507200000 + (4663213283*PI()^2)/26317105790976000) + EA101*EA104*EA98*EA99*(25619947729/2102507908300800 + PI()^2/3655680) + EA101*EA105^2*EA94*(55167303901/7723498438656000 + (1367791*PI()^2)/2183882342400) + EA101*EA105*EA94*EA98*(4303425941/148203095040000 + (977*PI()^2)/1289932800) + EA101*EA105*EA96^2*(5839333/210777735168 + PI()^2/1245184) + EA101*EA104*EA94*EA99*(28601917/677499863040 + PI()^2/992256) + EA101*EA104*EA95*EA98*(1667900203/32934021120000 + (7*PI()^2)/5836800) + EA101*EA105*EA94^2*(32239/638668800 + (19*PI()^2)/13578240) + EA101*EA104*EA96*EA97*(702953/13511393280 + PI()^2/622592) + EA101*EA104*EA94*EA95*(14582849/83026944000 + (7*PI()^2)/1566720) + EA101*EA105*EA97*EA98*(1800961783/28229160960000 + (14974343*PI()^2)/2383795814400) + EA101*EA104*EA92*EA96*(4492651/23247544320 + PI()^2/139264) + EA101*EA104*EA93*EA97*(55397/258306048 + PI()^2/139264) + EA101*EA105*EA93*EA96*(1361753/5930496000 + PI()^2/139264) + EA101*EA104*EA97*EA99*(220805971/2439557120000 + (123675463*PI()^2)/14302774886400) + EA101*EA105*EA96*EA99*(57937587403/592812380160000 + (125199073*PI()^2)/14302774886400) + EA101*EA92*EA98^2*(1537567/6054048000 + (13*PI()^2)/1478400) + EA101*EA105*EA93^2*(317981/658944000 + PI()^2/61440) + EA101*EA105*EA94*EA97*(371044049/1743565824000 + (505951*PI()^2)/22583328768) + EA101*EA93*EA98*EA99*(21299891/24216192000 + PI()^2/42240) + EA101*EA105*EA92*EA98*(395419867/1743565824000 + (51673147*PI()^2)/1976041267200) + EA101*EA94^2*EA97*(98183/119750400 + (83*PI()^2)/2965248) + EA101*EA104*EA92*EA99*(3380371/10567065600 + (1367813*PI()^2)/37638881280) + EA101*EA104*EA95*EA97*(209892223/581188608000 + (700423*PI()^2)/18819440640) + EA101*EA105*EA95*EA96*(88973/227026800 + (176929*PI()^2)/4704860160) + EA101*EA105*EA93*EA99*(88973/227026800 + (176929*PI()^2)/4704860160) + EA101*EA92*EA94*EA98*(2201/1247400 + (191*PI()^2)/2882880) + EA101*EA92*EA96^2*(5729/3548160 + PI()^2/13312) + EA101*EA93*EA94*EA99*(48661/15966720 + (5*PI()^2)/54912) + EA101*EA105*EA92*EA94*(1967802451/2615348736000 + (653333*PI()^2)/6974263296) + EA101*EA93*EA95*EA98*(48997/13305600 + PI()^2/9360) + EA101*EA91*EA96*EA98*(48997/13305600 + PI()^2/9360) + EA101*EA92*EA94^2*(1397/453600 + (17*PI()^2)/133056) + EA101*EA93*EA96*EA97*(8069/2217600 + PI()^2/6656) + EA101*EA105*EA93*EA95*(22816777/14529715200 + (17977*PI()^2)/110702592) + EA101*EA105*EA91*EA96*(22816777/14529715200 + (17977*PI()^2)/110702592) + EA101*EA93^2*EA97*(367/48384 + PI()^2/2816) + EA101*EA93*EA94*EA95*(4609/362880 + PI()^2/2376) + EA101*EA91*EA94*EA96*(4609/362880 + PI()^2/2376) + EA101*EA92*EA97*EA98*(770489/239500800 + (17411299*PI()^2)/36324288000) + EA101*EA91*EA93*EA98*(4723/302400 + (3*PI()^2)/6160) + EA101*EA91*EA98*EA99*(701893/119750400 + (20825899*PI()^2)/36324288000) + EA101*EA92*EA96*EA99*(294881/59875200 + (1998407*PI()^2)/2905943040) + EA101*EA93*EA97*EA99*(1354319/239500800 + (255589*PI()^2)/363242880) + EA101*EA105*EA91*EA93*(759511/119750400 + (1023409*PI()^2)/1452971520) + EA101*EA92*EA93*EA96*(7907/604800 + PI()^2/1408) + EA101*EA92^2*EA98*(107/20160 + (13619*PI()^2)/13305600) + EA101*EA94*EA95^2*(3893/403200 + (28207*PI()^2)/26611200) + EA101*EA92*EA93^2*(1601/60480 + PI()^2/576) + EA101*EA92*EA94*EA97*(37949/3628800 + (23207*PI()^2)/13305600) + EA101*EA91*EA93*EA94*(1613/30240 + PI()^2/504) + EA101*EA91*EA94*EA99*(3893/201600 + (28207*PI()^2)/13305600) + EA101*EA91*EA95*EA98*(14057/604800 + (16859*PI()^2)/6652800) + EA101*EA92*EA95*EA96*(22973/1209600 + (1343*PI()^2)/443520) + EA101*EA92*EA93*EA99*(22973/1209600 + (1343*PI()^2)/443520) + EA101*EA93*EA95*EA97*(40217/1814400 + (8233*PI()^2)/2661120) + EA101*EA91*EA96*EA97*(40217/1814400 + (8233*PI()^2)/2661120) + EA101*EA92^2*EA94*(407/24192 + (6817*PI()^2)/1814400) + EA101*EA91^2*EA98*(431/10080 + (67*PI()^2)/11200) + EA101*EA91*EA94*EA95*(1139/15120 + (1231*PI()^2)/129600) + EA101*EA92*EA93*EA95*(2189/30240 + (451*PI()^2)/33600) + EA101*EA91*EA92*EA96*(2189/30240 + (451*PI()^2)/33600) + EA101*EA91*EA93*EA97*(883/10080 + (689*PI()^2)/50400) + EA101*EA91^2*EA94*(23/180 + (47*PI()^2)/2016) + EA101*EA91*EA92*EA93*(41/144 + (223*PI()^2)/3780) + EA101*EA105^3*(29942800949887/83744790213427200000 + (314253150557167*PI()^2)/4.87729658203E+21 + (7*PI()^4)/6794772480) + EA101*EA105^2*EA97*(104966691457/6931344752640000 + (505580880781*PI()^2)/158589167940403000 + (7*PI()^4)/120586240) + EA101*EA105^2*EA92*(52475948053/1016249794560000 + (45257309333*PI()^2)/3604299271372800 + PI()^4/3932160) + EA101*EA105*EA99^2*(29400465691/355687428096000 + (153077279*PI()^2)/9703882653696 + PI()^4/3932160) + EA101*EA105*EA97^2*(359795201/1743565824000 + (166309679*PI()^2)/3161666027520 + (7*PI()^4)/6225920) + EA101*EA105*EA95*EA99*(186632857/290594304000 + (23049511*PI()^2)/175648112640 + (7*PI()^4)/3112960) + EA101*EA105*EA95^2*(2159140757/1743565824000 + (158821541*PI()^2)/581188608000 + (7*PI()^4)/1392640) + EA101*EA105*EA92*EA97*(3546761521/2615348736000 + (719934221*PI()^2)/1743565824000 + (7*PI()^4)/696320) + EA101*EA105*EA91*EA99*(2159140757/871782912000 + (158821541*PI()^2)/290594304000 + (7*PI()^4)/696320) + EA101*EA105*EA92^2*(1139/534600 + (751637*PI()^2)/931392000 + (7*PI()^4)/307200) + EA101*EA92*EA99^2*(86287/23950080 + (44040877*PI()^2)/41513472000 + (7*PI()^4)/307200) + EA101*EA105*EA91*EA95*(13963/1478400 + (331394269*PI()^2)/145297152000 + (7*PI()^4)/153600) + EA101*EA92*EA97^2*(58901/7257600 + (59623*PI()^2)/17740800 + (7*PI()^4)/66560) + EA101*EA105*EA91^2*(20623/1209600 + (9209*PI()^2)/1900800 + (7*PI()^4)/66560) + EA101*EA92*EA95*EA99*(10639/403200 + (78367*PI()^2)/8870400 + (7*PI()^4)/33280) + EA101*EA91*EA97*EA99*(19013/604800 + (2465*PI()^2)/266112 + (7*PI()^4)/33280) + EA101*EA92^2*EA97*(307/13440 + (167*PI()^2)/12960 + (7*PI()^4)/14080) + EA101*EA92*EA95^2*(949/20160 + (3167*PI()^2)/172800 + (7*PI()^4)/14080) + EA101*EA92^3*(53/2880 + (1451*PI()^2)/90720 + (7*PI()^4)/8640) + EA101*EA91*EA92*EA99*(949/10080 + (3167*PI()^2)/86400 + (7*PI()^4)/7040) + EA101*EA91*EA95*EA97*(1727/15120 + (69989*PI()^2)/1814400 + (7*PI()^4)/7040) + EA101*EA91^2*EA97*(89/480 + (2467*PI()^2)/30240 + (7*PI()^4)/2880) + EA101*EA91*EA92*EA95*(47/144 + (1517*PI()^2)/10080 + (7*PI()^4)/1440) + EA101*EA91^2*EA92*(1/2 + (221*PI()^2)/720 + PI()^4/80)) -> 0 | EB121: 0 | EC121: 0 | ED121: 0
AB122: 0.91 | AC122: 61.33245547 | AD122: 0.007095977592 | AE122: 64.82119662 | AF122: 63.39003714 | AG122: 62.10587075 | AH122: 61.33245547 | AT122: 0.009559801276 | AU122: 0.007188626036 | AV122: 0.006956257696 | AW122: 0.007095977592 | BJ122: 64.82119662 | BK122: 63.39003714 | BL122: 62.10587075 | BM122: 61.33245547 | BY122: 0.009559801276 | BZ122: 0.007188626036 | CA122: 0.006956257696 | CB122: 0.007095977592 | CO122: 0.01142740592 | CP122: 0.008610108201 | CQ122: 0.008444120243 | CR122: 0.008774267936 | EA122: =IF(OR(ISERROR(AT29),$B$14<>"u"),"",(16767*EA102^4)/15546371276800 + (18485789209*EA102^2*EA103*EA104)/434622128599859000 + (41*EA102^2*EA104^2)/18496880640 + (82022476183*EA102^3*EA105)/7823198314797460000 + (9043747*EA102^2*EA104*EA91)/2781095116800 + (5784167*EA102^3*EA92)/8343285350400 + (9043747*EA102^2*EA103*EA93)/2781095116800 + (17*EA102^2*EA104*EA93)/48168960 + (3547*EA102^2*EA91*EA93)/13453440 + (23*EA102^2*EA93^2)/1505280 + (1301*EA102^3*EA94)/20821032960 + (17945817*EA102*EA103*EA104*EA94)/15027671859200 + (19708847*EA102^2*EA105*EA94)/45083015577600 + (48077*EA102^2*EA92*EA94)/1614412800 + (11689*EA102*EA103*EA93*EA94)/124185600 + (15473*EA102^2*EA94^2)/10978007040 + (108932459*EA102^2*EA104*EA95)/142762882662400 + (32359*EA102^2*EA93*EA95)/538137600 + (108932459*EA102^2*EA103*EA96)/142762882662400 + (4509*EA102^2*EA104*EA96)/55246585856 + (32359*EA102^2*EA91*EA96)/538137600 + (1269*EA102^2*EA93*EA96)/187658240 + (458831*EA102^2*EA95*EA96)/32934021120 + (2133*EA102^2*EA96^2)/2776137728 + (817*EA101*EA94*EA96^2)/3913728 + (3423419*EA102^3*EA97)/19321292390400 + (225271*EA102^2*EA94*EA97)/29940019200 + (1033479*EA102^3*EA98)/59700841840640 + (5711382161*EA102*EA103*EA104*EA98)/16967607681024000 + (95484149*EA102^2*EA105*EA98)/771254894592000 + (682547*EA102^2*EA92*EA98)/82335052800 + (661363*EA102*EA103*EA93*EA98)/25333862400 + (1858247*EA102^2*EA94*EA98)/2433458227200 + (10693*EA101*EA96^2*EA98)/184504320 + (41077*EA102^2*EA97*EA98)/19475456000 + (307*EA102^2*EA98^2)/2927468544 + (40961*EA101*EA94*EA98^2)/1397088000 + (16376*EA101*EA98^3)/6030399375 + (178367729*EA102^2*EA104*EA99)/991952449044480 + (458831*EA102^2*EA93*EA99)/32934021120 + (9043747*EA102^2*EA96*EA99)/2781095116800 + EA102^2*EA105^2*(1947158707067010/5.57637575878763E+22 + (41*PI()^2)/55490641920) + EA102^2*EA103^2*(5260376196307/28369840042672100000 + (2007*PI()^2)/634545766400) + EA102*EA103*EA104*EA105*(13042631426236400/6.97046969848454E+22 + (5*PI()^2)/1387266048) + EA102*EA103^2*EA98*(4115930321/2855257653248000 + (11301*PI()^2)/443048919040) + EA102^2*EA105*EA97*(1896888137/1694328717312000 + (1503*PI()^2)/55246585856) + EA102^2*EA103*EA99*(6793909261/4405254665011200 + (1503*PI()^2)/55246585856) + EA102*EA103^2*EA105*(635552589160141/851095201280163000000 + (279935023*PI()^2)/5676697189875710) + EA102^2*EA99^2*(67574762993/21025079083008000 + (17*PI()^2)/289013760) + EA102*EA103*EA104*EA97*(93379965293/30836782655078400 + (3*PI()^2)/44843008) + EA102*EA103*EA105*EA96*(5044368059/1573305237504000 + (3*PI()^2)/44843008) + EA102*EA103^2*EA94*(17575678093/3504179847168000 + (157*PI()^2)/1699676160) + EA102^2*EA105*EA92*(44257438343/10512539541504000 + (17*PI()^2)/144506880) + EA102^2*EA103*EA95*(67574762993/10512539541504000 + (17*PI()^2)/144506880) + EA102^2*EA97^2*(2153831/239520153600 + (711*PI()^2)/2776137728) + EA102*EA103*EA104*EA92*(21865995481/1911370825728000 + PI()^2/3440640) + EA102*EA103*EA105*EA93*(34966348777/2628134885376000 + PI()^2/3440640) + EA102*EA103*EA105*EA99*(2799415337801/462551739826176000 + (3076629299*PI()^2)/7368789621473280) + EA102^2*EA103*EA91*(35379913/1317360844800 + (711*PI()^2)/1388068864) + EA102^2*EA95*EA99*(35379913/1317360844800 + (711*PI()^2)/1388068864) + EA102*EA103^2*EA97*(12023755477/1051253954150400 + (11420023*PI()^2)/13052606414848) + EA102^2*EA95^2*(726293/12915302400 + (423*PI()^2)/375316480) + EA102*EA103*EA105*EA95*(3975994343/162230548480000 + (7817355509*PI()^2)/4405254665011200) + EA101*EA97*EA98^2*(327917/4843238400 + (101*PI()^2)/50918400) + EA102^2*EA92*EA97*(434809/6457651200 + (423*PI()^2)/187658240) + EA102^2*EA91*EA99*(726293/6457651200 + (423*PI()^2)/187658240) + EA102*EA103*EA94*EA95*(8517037/48432384000 + (1277*PI()^2)/361912320) + EA102*EA103^2*EA92*(5450230339/131736084480000 + (189572109*PI()^2)/51913775513600) + EA102*EA103*EA91*EA98*(566567/2690688000 + (2571*PI()^2)/609889280) + EA102^2*EA92^2*(753283/6054048000 + (23*PI()^2)/4515840) + EA101*EA96*EA98*EA99*(12253897/58118860800 + (3*PI()^2)/565760) + EA102*EA103*EA92*EA96*(2548547/12915302400 + (15*PI()^2)/2680832) + EA102*EA103*EA93*EA97*(281041/1291530240 + (15*PI()^2)/2680832) + EA102*EA103*EA105*EA91*(6530066219/65868042240000 + (196685589*PI()^2)/25956887756800) + EA102^2*EA91*EA95*(11408489/24216192000 + (23*PI()^2)/2257920) + EA101*EA94*EA97*EA98*(1551919/3302208000 + (73*PI()^2)/4942080) + EA101*EA98*EA99^2*(317116493/1743565824000 + (60062803*PI()^2)/3952082534400) + EA102*EA103*EA91*EA94*(1279657/1729728000 + (229*PI()^2)/14676480) + EA101*EA96^2*EA97*(42784057/96864768000 + PI()^2/61440) + EA101*EA94*EA96*EA99*(35426707/48432384000 + PI()^2/49920) + EA101*EA95*EA96*EA98*(21299891/24216192000 + PI()^2/42240) + EA102*EA103*EA92*EA93*(13277477/16144128000 + PI()^2/40320) + EA102^2*EA91^2*(8443/8870400 + (9*PI()^2)/326144) + EA102*EA103*EA92*EA99*(193238833/581188608000 + (8258381*PI()^2)/263472168960) + EA101*EA94*EA99^2*(159070733/261534873600 + (295573*PI()^2)/5364817920) + EA101*EA97^2*EA98*(135539923/290594304000 + (22469*PI()^2)/395366400) + EA101*EA94*EA95*EA96*(48661/15966720 + (5*PI()^2)/54912) + EA101*EA95*EA98*EA99*(70880801/48432384000 + (8663*PI()^2)/65894400) + EA102*EA103*EA92*EA95*(119487/89689600 + (873713*PI()^2)/6457651200) + EA102*EA103*EA91*EA97*(18163237/12108096000 + (99377*PI()^2)/717516800) + EA101*EA96*EA97*EA99*(1388749/968647680 + (29749*PI()^2)/184504320) + EA101*EA94*EA97^2*(35047/22809600 + (44207*PI()^2)/215255040) + EA101*EA95^2*EA98*(701893/239500800 + (20825899*PI()^2)/72648576000) + EA101*EA94*EA95*EA99*(1165427/239500800 + (127039*PI()^2)/264176640) + EA102*EA103*EA91*EA92*(337/63360 + (63253*PI()^2)/107627520) + EA101*EA95*EA96*EA97*(1354319/239500800 + (255589*PI()^2)/363242880) + EA101*EA97*EA99^2*(5845150111/5230697472000 + (92862173*PI()^2)/348713164800 + (7*PI()^4)/1392640) + EA101*EA97^3*(60281/68428800 + (83774413*PI()^2)/290594304000 + (7*PI()^4)/921600) + EA101*EA95*EA97*EA99*(134923/15966720 + (107580013*PI()^2)/48432384000 + (7*PI()^4)/153600) + EA101*EA95^2*EA97*(19013/1209600 + (2465*PI()^2)/532224 + (7*PI()^4)/66560)) -> 0 | EB122: 0 | EC122: 0 | ED122: 0
AB123: 0.92 | AC123: 62.83084842 | AD123: 0.006270245801 | AE123: 65.92388915 | AF123: 64.85661526 | AG123: 63.62674924 | AH123: 62.83084842 | AT123: 0.008590981366 | AU123: 0.00645938668 | AV123: 0.00620765865 | AW123: 0.006270245801 | BJ123: 65.92388915 | BK123: 64.85661526 | BL123: 63.62674924 | BM123: 62.83084842 | BY123: 0.008590981366 | BZ123: 0.00645938668 | CA123: 0.00620765865 | CB123: 0.006270245801 | CO123: 0.01050527613 | CP123: 0.00790526873 | CQ123: 0.007701607243 | CR123: 0.007930856895 | EA123: =IF(OR(ISERROR(AT29),$B$14<>"u"),"",(46418972783*EA102*EA104^2*EA105)/4323023244597650000 + (46329663*EA102*EA104^2*EA92)/65263032074240 + (48312791*EA102*EA104*EA105*EA93)/29967718809600 + (237851*EA102*EA104*EA92*EA93)/2152550400 + (16897*EA102*EA105*EA93^2)/263577600 + (313*EA102*EA92*EA93^2)/67200 + (689*EA102*EA104^2*EA94)/10762321920 + (11689*EA102*EA104*EA91*EA94)/124185600 + (1277*EA102*EA104*EA93*EA94)/120637440 + (67*EA102*EA91*EA93*EA94)/8400 + (2050907*EA102*EA105*EA94^2)/329340211200 + (493*EA102*EA92*EA94^2)/1108800 + (7190731*EA102*EA104*EA94*EA95)/329340211200 + (400952597*EA102*EA104*EA105*EA96)/1052684231639040 + (6784181*EA102*EA104*EA92*EA96)/263472168960 + (502289*EA102*EA105*EA93*EA96)/17108582400 + (1847*EA102*EA92*EA93*EA96)/887040 + (7190731*EA102*EA103*EA94*EA96)/329340211200 + (6393*EA102*EA104*EA94*EA96)/2648662016 + (661*EA102*EA91*EA94*EA96)/369600 + (177925749*EA102*EA105*EA96^2)/51913775513600 + (157422763*EA102*EA104^2*EA97)/866916426055680 + (669259*EA102*EA104*EA93*EA97)/23952015360 + (768129*EA102*EA104*EA96*EA97)/117451980800 + (31*EA102*EA104^2*EA98)/1743257600 + (661363*EA102*EA104*EA91*EA98)/25333862400 + (1531*EA102*EA104*EA93*EA98)/531148800 + (343*EA102*EA91*EA93*EA98)/158400 + (134309729*EA102*EA105*EA94*EA98)/38649042432000 + (26087*EA102*EA92*EA94*EA98)/108108000 + (197678387*EA102*EA104*EA95*EA98)/32446109696000 + (197678387*EA102*EA103*EA96*EA98)/32446109696000 + (71*EA102*EA104*EA96*EA98)/107233280 + (109701*EA102*EA91*EA96*EA98)/224224000 + (673619131*EA102*EA105*EA98^2)/1376642082816000 + (157489873*EA102*EA104*EA94*EA99)/30919233945600 + (92573347*EA102*EA104*EA98*EA99)/64783156838400 + EA102*EA105^3*(133914109106538000/2.78818787939381E+24 + (46418972783*PI()^2)/12969069733792900000) + EA102*EA105^2*EA98*(28610214793789/106386900160020000000 + (31*PI()^2)/5229772800) + EA102*EA104*EA105*EA99*(18379442801/23747075928576000 + (27*PI()^2)/1743257600) + EA102*EA105^2*EA94*(1285768807889/1387655219478520000 + (689*PI()^2)/32286965760) + EA102*EA104*EA105*EA95*(5044368059/1573305237504000 + (3*PI()^2)/44843008) + EA102*EA105^2*EA97*(30269915251937/13876552194785200000 + (2763174443*PI()^2)/14737579242946500) + EA102*EA105*EA97*EA98*(14193602081/1642584303360000 + (71*PI()^2)/321699840) + EA102*EA103*EA98*EA99*(31589170597/2628134885376000 + (71*PI()^2)/321699840) + EA102*EA104*EA97*EA99*(132081266393/10512539541504000 + PI()^2/3440640) + EA102*EA104*EA105*EA91*(34966348777/2628134885376000 + PI()^2/3440640) + EA102*EA105*EA96*EA99*(34966348777/2628134885376000 + PI()^2/3440640) + EA102*EA105^2*EA92*(826207948199/105125395415040000 + (6819488353*PI()^2)/8810509330022400) + EA102*EA105*EA94*EA97*(7565681/253338624000 + (2131*PI()^2)/2648662016) + EA102*EA103*EA94*EA99*(708313/16889241600 + (2131*PI()^2)/2648662016) + EA102*EA105*EA99^2*(3975994343/324461096960000 + (7817355509*PI()^2)/8810509330022400) + EA102*EA105*EA92*EA98*(534977767/16467010560000 + (1531*PI()^2)/1593446400) + EA102*EA103*EA95*EA98*(59091083/1176215040000 + (1531*PI()^2)/1593446400) + EA102*EA104*EA92*EA99*(13895467/292746854400 + (9*PI()^2)/7081984) + EA102*EA104*EA95*EA97*(6254893/119760076800 + (9*PI()^2)/7081984) + EA102*EA103*EA96*EA97*(6254893/119760076800 + (9*PI()^2)/7081984) + EA102*EA105*EA95*EA96*(36443807/658680422400 + (9*PI()^2)/7081984) + EA102*EA105*EA93*EA99*(36443807/658680422400 + (9*PI()^2)/7081984) + EA102*EA105*EA97^2*(43322311/1330667520000 + (172479589*PI()^2)/51913775513600) + EA102*EA105*EA92*EA94*(49499/440294400 + (1277*PI()^2)/361912320) + EA102*EA104*EA92*EA95*(2548547/12915302400 + (15*PI()^2)/2680832) + EA102*EA104*EA91*EA97*(281041/1291530240 + (15*PI()^2)/2680832) + EA102*EA105*EA93*EA95*(932069/4036032000 + (15*PI()^2)/2680832) + EA102*EA105*EA91*EA96*(932069/4036032000 + (15*PI()^2)/2680832) + EA102*EA103*EA97*EA99*(6087193439/65868042240000 + (14920193*PI()^2)/1996683673600) + EA102*EA105*EA95*EA99*(6530066219/65868042240000 + (196685589*PI()^2)/25956887756800) + EA102*EA105*EA95^2*(46525679/232475443200 + (3897911*PI()^2)/239520153600) + EA102*EA91*EA98*EA99*(255121/288288000 + (83*PI()^2)/4435200) + EA102*EA104*EA91*EA92*(13277477/16144128000 + PI()^2/40320) + EA102*EA105*EA91*EA93*(3932483/4036032000 + PI()^2/40320) + EA102*EA105*EA92*EA97*(16737257/72648576000 + (4052089*PI()^2)/146373427200) + EA102*EA103*EA95*EA97*(30948661/83026944000 + (85363*PI()^2)/2661335040) + EA102*EA105*EA91*EA99*(46525679/116237721600 + (3897911*PI()^2)/119760076800) + EA102*EA92^2*EA98*(1277/1330560 + (157*PI()^2)/3669120) + EA102*EA105*EA92^2*(230958227/581188608000 + (2255059*PI()^2)/38745907200) + EA102*EA92*EA94*EA97*(287/158400 + (313*PI()^2)/4484480) + EA102*EA91*EA94*EA99*(277/88704 + (313*PI()^2)/4484480) + EA102*EA91*EA95*EA98*(12373/3326400 + (157*PI()^2)/1834560) + EA102*EA92*EA93*EA99*(3393/985600 + (9*PI()^2)/81536) + EA102*EA91*EA96*EA97*(16963/4435200 + (9*PI()^2)/81536) + EA102*EA105*EA91*EA95*(29211983/18162144000 + (2735539*PI()^2)/19372953600) + EA102*EA92^2*EA94*(217/64800 + (107*PI()^2)/665280) + EA102*EA91^2*EA98*(5/672 + (3*PI()^2)/12320) + EA102*EA105*EA91^2*(3063/985600 + (69193*PI()^2)/215255040) + EA102*EA91*EA94*EA95*(5981/453600 + (107*PI()^2)/332640) + EA102*EA92*EA93*EA95*(979/67200 + (3*PI()^2)/6160) + EA102*EA91*EA92*EA96*(979/67200 + (3*PI()^2)/6160) + EA102*EA91*EA93*EA97*(551/33600 + (3*PI()^2)/6160) + EA102*EA91*EA97*EA99*(26687/4435200 + (12965*PI()^2)/21525504) + EA102*EA91^2*EA94*(389/15120 + PI()^2/1008) + EA102*EA92^2*EA97*(7733/1451520 + (5749*PI()^2)/5322240) + EA102*EA92*EA95^2*(12793/1209600 + (2279*PI()^2)/1774080) + EA102*EA92^3*(653/120960 + (313*PI()^2)/201600) + EA102*EA91*EA92*EA93*(1949/30240 + PI()^2/504) + EA102*EA91*EA92*EA99*(12793/604800 + (2279*PI()^2)/887040) + EA102*EA91*EA95*EA97*(43511/1814400 + (1409*PI()^2)/532224) + EA102*EA91^2*EA97*(101/2240 + (59*PI()^2)/9600) + EA102*EA91*EA92*EA95*(2537/30240 + (1139*PI()^2)/100800) + EA102*EA91^2*EA92*(19/120 + (29*PI()^2)/1120)) -> 0 | EB123: 0 | EC123: 0 | ED123: 0
AB124: 0.93 | AC124: 64.53969712 | AD124: 0.005454135665 | AE124: 67.16048756 | AF124: 66.50091533 | AG124: 65.3438644 | AH124: 64.53969712 | AT124: 0.007598816399 | AU124: 0.005716621815 | AV124: 0.005455305876 | AW124: 0.005454135665 | BJ124: 67.16048756 | BK124: 66.50091533 | BL124: 65.3438644 | BM124: 64.53969712 | BY124: 0.007598816399 | BZ124: 0.005716621815 | CA124: 0.005455305876 | CB124: 0.005454135665 | CO124: 0.009559801276 | CP124: 0.007188626036 | CQ124: 0.006956257696 | CR124: 0.007095977592 | EA124: =IF(OR(ISERROR(AT29),$B$14<>"u"),"",(2888008157*EA103*EA104^3)/589503169717862000 + (31730711*EA103*EA104^2*EA93)/27969870888960 + (107*EA102*EA93^2*EA94)/221760 + (907*EA102*EA94^3)/60540480 + (661*EA102*EA93*EA94*EA95)/369600 + (46522243*EA103*EA104^2*EA96)/175447371939840 + (939*EA102*EA93*EA94*EA96)/4484480 + (8993*EA102*EA94*EA95*EA96)/22014720 + (7339*EA102*EA92*EA96^2)/30750720 + (229*EA102*EA94*EA96^2)/9784320 + (137*EA102*EA93^2*EA97)/118272 + (133421*EA102*EA94^2*EA97)/1210809600 + (5099*EA102*EA93*EA96*EA97)/9784320 + (947*EA102*EA96^2*EA97)/15769600 + (157*EA102*EA93^2*EA98)/1223040 + (2371*EA102*EA94^2*EA98)/201801600 + (109701*EA102*EA93*EA95*EA98)/224224000 + (83*EA102*EA93*EA96*EA98)/1478400 + (16517*EA102*EA95*EA96*EA98)/146764800 + (7713*EA102*EA96^2*EA98)/1219778560 + (3701*EA102*EA94*EA97*EA98)/61152000 + (6103*EA102*EA92*EA98^2)/183456000 + (21547*EA102*EA94*EA98^2)/6861254400 + (32143*EA102*EA97*EA98^2)/3818880000 + (1039*EA102*EA98^3)/3651648000 + (8993*EA102*EA93*EA94*EA99)/22014720 + (11689*EA102*EA94*EA96*EA99)/124185600 + (16517*EA102*EA93*EA98*EA99)/146764800 + (661363*EA102*EA96*EA98*EA99)/25333862400 + EA103^2*EA104^2*(72379420806883/1.13803586914033E+21 + PI()^2/905969664) + EA103*EA104^2*EA99*(536568051133/1013208572952570000 + PI()^2/104857600) + EA103*EA104*EA105^2*(786082181159651/4.13064871021306E+21 + (294921313*PI()^2)/21833450730291200) + EA103^3*EA104*(14228879003947/42554760064008100000 + (3788707301*PI()^2)/182465266817433000) + EA103*EA104^2*EA95*(973676323/440525466501120 + PI()^2/24117248) + EA103^2*EA104*EA96*(973676323/440525466501120 + PI()^2/24117248) + EA103^2*EA98^2*(36917610089/13140674426880000 + (197*PI()^2)/3801907200) + EA103*EA104*EA105*EA94*(3463536649/1387655219478520 + (5*PI()^2)/94961664) + EA103*EA104^2*EA91*(778001383/84100316332032 + PI()^2/5505024) + EA103^2*EA104*EA93*(778001383/84100316332032 + PI()^2/5505024) + EA103^2*EA105*EA98*(18651612383237/6607881997516800000 + (12891473*PI()^2)/65957658624000) + EA103^2*EA104*EA99*(3776249956033/925103479652352000 + (46522243*PI()^2)/175447371939840) + EA103^3*EA96*(58192725971/10512539541504000 + (31730711*PI()^2)/83909612666880) + EA103^2*EA94*EA98*(322937821/16467010560000 + (977*PI()^2)/2579865600) + EA103^2*EA96^2*(4651811/239520153600 + PI()^2/2490368) + EA102*EA98*EA99^2*(59091083/2352430080000 + (1531*PI()^2)/3186892800) + EA103^2*EA105*EA94*(285816612371/30035827261440000 + (15341849*PI()^2)/22081477017600) + EA103^2*EA94^2*(511843/14902272000 + (19*PI()^2)/27156480) + EA103^2*EA104*EA95*(58192725971/3504179847168000 + (31730711*PI()^2)/27969870888960) + EA103^3*EA93*(109810619/4879114240000 + (7759469*PI()^2)/4767591628800) + EA102*EA94*EA99^2*(8517037/96864768000 + (1277*PI()^2)/723824640) + EA103*EA104*EA105*EA92*(136441921439/6570337213440000 + (405761*PI()^2)/204857452800) + EA102*EA97^2*EA98*(823/11827200 + (2571*PI()^2)/1219778560) + EA103^2*EA97*EA98*(630247147/14637342720000 + (1856611*PI()^2)/529732403200) + EA103^2*EA93*EA96*(264263/1614412800 + PI()^2/278528) + EA102*EA95*EA98*EA99*(566567/2690688000 + (2571*PI()^2)/609889280) + EA103^2*EA104*EA91*(329431857/4879114240000 + (7759469*PI()^2)/1589197209600) + EA103^2*EA96*EA99*(329431857/4879114240000 + (7759469*PI()^2)/1589197209600) + EA102*EA96*EA97*EA99*(281041/1291530240 + (15*PI()^2)/2680832) + EA102*EA94*EA97^2*(835577/3459456000 + (229*PI()^2)/29352960) + EA103^2*EA93^2*(4193641/12108096000 + PI()^2/122880) + EA102*EA95^2*EA98*(255121/576576000 + (83*PI()^2)/8870400) + EA103^2*EA94*EA97*(476597/3302208000 + (949853*PI()^2)/75277762560) + EA103^2*EA92*EA98*(89900009/581188608000 + (19398569*PI()^2)/1317360844800) + EA102*EA94*EA95*EA99*(1279657/1729728000 + (229*PI()^2)/14676480) + EA102*EA97*EA99^2*(30948661/166053888000 + (85363*PI()^2)/5322670080) + EA102*EA92*EA97*EA98*(1261069/2421619200 + (83*PI()^2)/4435200) + EA102*EA97^3*(77297/489216000 + (947*PI()^2)/47308800) + EA103^2*EA95*EA96*(39838781/145297152000 + (1593269*PI()^2)/75277762560) + EA103^2*EA93*EA99*(39838781/145297152000 + (1593269*PI()^2)/75277762560) + EA102*EA92*EA96*EA99*(13277477/16144128000 + PI()^2/40320) + EA102*EA95*EA96*EA97*(3146329/3459456000 + PI()^2/40320) + EA102*EA93*EA97*EA99*(3146329/3459456000 + PI()^2/40320) + EA102*EA94*EA95^2*(277/177408 + (313*PI()^2)/8968960) + EA103^2*EA92*EA94*(1658521/3228825600 + (138059*PI()^2)/2583060480) + EA102*EA92*EA99^2*(119487/179379200 + (873713*PI()^2)/12915302400) + EA103^2*EA93*EA95*(8968709/8072064000 + (1423*PI()^2)/15375360) + EA103^2*EA91*EA96*(8968709/8072064000 + (1423*PI()^2)/15375360) + EA102*EA92*EA95*EA96*(3393/985600 + (9*PI()^2)/81536) + EA102*EA93*EA95*EA97*(16963/4435200 + (9*PI()^2)/81536) + EA102*EA95*EA97*EA99*(18163237/12108096000 + (99377*PI()^2)/717516800) + EA102*EA92*EA97^2*(901/554400 + (54517*PI()^2)/215255040) + EA102*EA95^2*EA97*(26687/8870400 + (12965*PI()^2)/43051008) + EA103^2*EA91*EA93*(1421/316800 + (88069*PI()^2)/215255040) + EA102*EA92*EA95*EA99*(337/63360 + (63253*PI()^2)/107627520) + EA103^4*(46326137919619/77091956637696000000 + (536568051133*PI()^2)/6079251437715450000 + (7*PI()^4)/6291456000) + EA103^2*EA105^2*(68748722466973/97702255248998400000 + (317564198668523*PI()^2)/2.84508967285083E+21 + (7*PI()^4)/4529848320) + EA103^3*EA99*(1498706488997/157688093122560000 + (973676323*PI()^2)/660788199751680 + (7*PI()^4)/361758720) + EA103^2*EA105*EA97*(1405333045871/70083596943360000 + (3287321647*PI()^2)/881050933002240 + (7*PI()^4)/120586240) + EA103^3*EA95*(4753519363/127031224320000 + (778001383*PI()^2)/126150474498048 + PI()^4/11796480) + EA103^2*EA99^2*(4753519363/84687482880000 + (778001383*PI()^2)/84100316332032 + PI()^4/7864320) + EA103^2*EA105*EA92*(162756492077/2371249520640000 + (62419064077*PI()^2)/4205015816601600 + PI()^4/3932160) + EA103^3*EA91*(5804629/39626496000 + (4651811*PI()^2)/179640115200 + (7*PI()^4)/18677760) + EA103^2*EA97^2*(2956787/21525504000 + (82706627*PI()^2)/2634721689600 + (7*PI()^4)/12451840) + EA103^2*EA95*EA99*(5804629/13208832000 + (4651811*PI()^2)/59880038400 + (7*PI()^4)/6225920) + EA103^2*EA95^2*(20662987/24216192000 + (264263*PI()^2)/1614412800 + (7*PI()^4)/2785280) + EA103^2*EA92*EA97*(21792973/24216192000 + (269219*PI()^2)/1076275200 + (7*PI()^4)/1392640) + EA103^2*EA91*EA99*(20662987/12108096000 + (264263*PI()^2)/807206400 + (7*PI()^4)/1392640) + EA103^2*EA92^2*(63913/45619200 + (7414199*PI()^2)/14902272000 + (7*PI()^4)/614400) + EA103^2*EA91*EA95*(130751/19958400 + (4193641*PI()^2)/3027024000 + (7*PI()^4)/307200) + EA103^2*EA91^2*(3737/302400 + (13063*PI()^2)/4435200 + (7*PI()^4)/133120)) -> 0 | EB124: 0 | EC124: 0 | ED124: 0
AB125: 0.94 | AC125: =INDEX(AE125:AS125,1,$C$20-1) -> 66.52403227 | AD125: =INDEX(AT125:BH125,1,$C$20-1) -> 0.004647960312 | AE125: =IF(BJ125="",NA(),IF($B$14="u",BJ125,IF($B$14="sl",$C$22+EXP(BJ125),IF($B$14="su",$C$23-EXP(-BJ125),IF($B$14="b",($C$22+$C$23*EXP(BJ125))/(1+EXP(BJ125)),NA()))))) -> 68.57274337 | AF125: =IF(BK125="",NA(),IF($B$14="u",BK125,IF($B$14="sl",$C$22+EXP(BK125),IF($B$14="su",$C$23-EXP(-BK125),IF($B$14="b",($C$22+$C$23*EXP(BK125))/(1+EXP(BK125)),NA()))))) -> 68.37700714 | AG125: =IF(BL125="",NA(),IF($B$14="u",BL125,IF($B$14="sl",$C$22+EXP(BL125),IF($B$14="su",$C$23-EXP(-BL125),IF($B$14="b",($C$22+$C$23*EXP(BL125))/(1+EXP(BL125)),NA()))))) -> 67.31705888 | AH125: =IF(BM125="",NA(),IF($B$14="u",BM125,IF($B$14="sl",$C$22+EXP(BM125),IF($B$14="su",$C$23-EXP(-BM125),IF($B$14="b",($C$22+$C$23*EXP(BM125))/(1+EXP(BM125)),NA()))))) -> 66.52403227 | AI125: =IF(BN125="",NA(),IF($B$14="u",BN125,IF($B$14="sl",$C$22+EXP(BN125),IF($B$14="su",$C$23-EXP(-BN125),IF($B$14="b",($C$22+$C$23*EXP(BN125))/(1+EXP(BN125)),NA()))))) ->  | AJ125: =IF(BO125="",NA(),IF($B$14="u",BO125,IF($B$14="sl",$C$22+EXP(BO125),IF($B$14="su",$C$23-EXP(-BO125),IF($B$14="b",($C$22+$C$23*EXP(BO125))/(1+EXP(BO125)),NA()))))) ->  | AK125: =IF(BP125="",NA(),IF($B$14="u",BP125,IF($B$14="sl",$C$22+EXP(BP125),IF($B$14="su",$C$23-EXP(-BP125),IF($B$14="b",($C$22+$C$23*EXP(BP125))/(1+EXP(BP125)),NA()))))) ->  | AL125: =IF(BQ125="",NA(),IF($B$14="u",BQ125,IF($B$14="sl",$C$22+EXP(BQ125),IF($B$14="su",$C$23-EXP(-BQ125),IF($B$14="b",($C$22+$C$23*EXP(BQ125))/(1+EXP(BQ125)),NA()))))) ->  | AM125: =IF(BR125="",NA(),IF($B$14="u",BR125,IF($B$14="sl",$C$22+EXP(BR125),IF($B$14="su",$C$23-EXP(-BR125),IF($B$14="b",($C$22+$C$23*EXP(BR125))/(1+EXP(BR125)),NA()))))) ->  | AN125: =IF(BS125="",NA(),IF($B$14="u",BS125,IF($B$14="sl",$C$22+EXP(BS125),IF($B$14="su",$C$23-EXP(-BS125),IF($B$14="b",($C$22+$C$23*EXP(BS125))/(1+EXP(BS125)),NA()))))) ->  | AO125: =IF(BT125="",NA(),IF($B$14="u",BT125,IF($B$14="sl",$C$22+EXP(BT125),IF($B$14="su",$C$23-EXP(-BT125),IF($B$14="b",($C$22+$C$23*EXP(BT125))/(1+EXP(BT125)),NA()))))) ->  | AP125: =IF(BU125="",NA(),IF($B$14="u",BU125,IF($B$14="sl",$C$22+EXP(BU125),IF($B$14="su",$C$23-EXP(-BU125),IF($B$14="b",($C$22+$C$23*EXP(BU125))/(1+EXP(BU125)),NA()))))) ->  | AQ125: =IF(BV125="",NA(),IF($B$14="u",BV125,IF($B$14="sl",$C$22+EXP(BV125),IF($B$14="su",$C$23-EXP(-BV125),IF($B$14="b",($C$22+$C$23*EXP(BV125))/(1+EXP(BV125)),NA()))))) ->  | AR125: =IF(BW125="",NA(),IF($B$14="u",BW125,IF($B$14="sl",$C$22+EXP(BW125),IF($B$14="su",$C$23-EXP(-BW125),IF($B$14="b",($C$22+$C$23*EXP(BW125))/(1+EXP(BW125)),NA()))))) ->  | AS125: =IF(BX125="",NA(),IF($B$14="u",BX125,IF($B$14="sl",$C$22+EXP(BX125),IF($B$14="su",$C$23-EXP(-BX125),IF($B$14="b",($C$22+$C$23*EXP(BX125))/(1+EXP(BX125)),NA()))))) ->  | AT125: =IF(BY125="",NA(),IF($B$14="u",BY125,IF($B$14="sl",BY125*EXP(-BJ125),IF($B$14="su",BY125*EXP(BJ125),IF($B$14="b",BY125*(1+EXP(BJ125))^2/(($C$23-$C$22)*EXP(BJ125)),NA()))))) -> 0.006583306373 | AU125: =IF(BZ125="",NA(),IF($B$14="u",BZ125,IF($B$14="sl",BZ125*EXP(-BK125),IF($B$14="su",BZ125*EXP(BK125),IF($B$14="b",BZ125*(1+EXP(BK125))^2/(($C$23-$C$22)*EXP(BK125)),NA()))))) -> 0.0049592324 | AV125: =IF(CA125="",NA(),IF($B$14="u",CA125,IF($B$14="sl",CA125*EXP(-BL125),IF($B$14="su",CA125*EXP(BL125),IF($B$14="b",CA125*(1+EXP(BL125))^2/(($C$23-$C$22)*EXP(BL125)),NA()))))) -> 0.004698581217 | AW125: =IF(CB125="",NA(),IF($B$14="u",CB125,IF($B$14="sl",CB125*EXP(-BM125),IF($B$14="su",CB125*EXP(BM125),IF($B$14="b",CB125*(1+EXP(BM125))^2/(($C$23-$C$22)*EXP(BM125)),NA()))))) -> 0.004647960312 | AX125: =IF(CC125="",NA(),IF($B$14="u",CC125,IF($B$14="sl",CC125*EXP(-BN125),IF($B$14="su",CC125*EXP(BN125),IF($B$14="b",CC125*(1+EXP(BN125))^2/(($C$23-$C$22)*EXP(BN125)),NA()))))) ->  | AY125: =IF(CD125="",NA(),IF($B$14="u",CD125,IF($B$14="sl",CD125*EXP(-BO125),IF($B$14="su",CD125*EXP(BO125),IF($B$14="b",CD125*(1+EXP(BO125))^2/(($C$23-$C$22)*EXP(BO125)),NA()))))) ->  | AZ125: =IF(CE125="",NA(),IF($B$14="u",CE125,IF($B$14="sl",CE125*EXP(-BP125),IF($B$14="su",CE125*EXP(BP125),IF($B$14="b",CE125*(1+EXP(BP125))^2/(($C$23-$C$22)*EXP(BP125)),NA()))))) ->  | BA125: =IF(CF125="",NA(),IF($B$14="u",CF125,IF($B$14="sl",CF125*EXP(-BQ125),IF($B$14="su",CF125*EXP(BQ125),IF($B$14="b",CF125*(1+EXP(BQ125))^2/(($C$23-$C$22)*EXP(BQ125)),NA()))))) ->  | BB125: =IF(CG125="",NA(),IF($B$14="u",CG125,IF($B$14="sl",CG125*EXP(-BR125),IF($B$14="su",CG125*EXP(BR125),IF($B$14="b",CG125*(1+EXP(BR125))^2/(($C$23-$C$22)*EXP(BR125)),NA()))))) ->  | BC125: =IF(CH125="",NA(),IF($B$14="u",CH125,IF($B$14="sl",CH125*EXP(-BS125),IF($B$14="su",CH125*EXP(BS125),IF($B$14="b",CH125*(1+EXP(BS125))^2/(($C$23-$C$22)*EXP(BS125)),NA()))))) ->  | BD125: =IF(CI125="",NA(),IF($B$14="u",CI125,IF($B$14="sl",CI125*EXP(-BT125),IF($B$14="su",CI125*EXP(BT125),IF($B$14="b",CI125*(1+EXP(BT125))^2/(($C$23-$C$22)*EXP(BT125)),NA()))))) ->  | BE125: =IF(CJ125="",NA(),IF($B$14="u",CJ125,IF($B$14="sl",CJ125*EXP(-BU125),IF($B$14="su",CJ125*EXP(BU125),IF($B$14="b",CJ125*(1+EXP(BU125))^2/(($C$23-$C$22)*EXP(BU125)),NA()))))) ->  | BF125: =IF(CK125="",NA(),IF($B$14="u",CK125,IF($B$14="sl",CK125*EXP(-BV125),IF($B$14="su",CK125*EXP(BV125),IF($B$14="b",CK125*(1+EXP(BV125))^2/(($C$23-$C$22)*EXP(BV125)),NA()))))) ->  | BG125: =IF(CL125="",NA(),IF($B$14="u",CL125,IF($B$14="sl",CL125*EXP(-BW125),IF($B$14="su",CL125*EXP(BW125),IF($B$14="b",CL125*(1+EXP(BW125))^2/(($C$23-$C$22)*EXP(BW125)),NA()))))) ->  | BH125: =IF(CM125="",NA(),IF($B$14="u",CM125,IF($B$14="sl",CM125*EXP(-BX125),IF($B$14="su",CM125*EXP(BX125),IF($B$14="b",CM125*(1+EXP(BX125))^2/(($C$23-$C$22)*EXP(BX125)),NA()))))) ->  | BJ125: 68.57274337 | BK125: 68.37700714 | BL125: 67.31705888 | BM125: 66.52403227 | BR125: =IF(CG125="","",EI$90+EI$91*LN($AB125/(1-$AB125))+EI$92*($AB125-0.5)*LN($AB125/(1-$AB125))+EI$93*($AB125-0.5)+EI$94*($AB125-0.5)^2+EI$95*($AB125-0.5)^2*LN($AB125/(1-$AB125))+EI$96*($AB125-0.5)^3+EI$97*($AB125-0.5)^3*LN($AB125/(1-$AB125))+EI$98*($AB125-0.5)^4+EI$99*($AB125-0.5)^4*LN($AB125/(1-$AB125))+EI$100*($AB125-0.5)^5+EI$101*($AB125-0.5)^5*LN($AB125/(1-$AB125))+EI$102*($AB125-0.5)^6+EI$103*($AB125-0.5)^6*LN($AB125/(1-$AB125))+EI$104*($AB125-0.5)^7+EI$105*($AB125-0.5)^7*LN($AB125/(1-$AB125))) ->  | BU125: =IF(CJ125="","",EL$90+EL$91*LN($AB125/(1-$AB125))+EL$92*($AB125-0.5)*LN($AB125/(1-$AB125))+EL$93*($AB125-0.5)+EL$94*($AB125-0.5)^2+EL$95*($AB125-0.5)^2*LN($AB125/(1-$AB125))+EL$96*($AB125-0.5)^3+EL$97*($AB125-0.5)^3*LN($AB125/(1-$AB125))+EL$98*($AB125-0.5)^4+EL$99*($AB125-0.5)^4*LN($AB125/(1-$AB125))+EL$100*($AB125-0.5)^5+EL$101*($AB125-0.5)^5*LN($AB125/(1-$AB125))+EL$102*($AB125-0.5)^6+EL$103*($AB125-0.5)^6*LN($AB125/(1-$AB125))+EL$104*($AB125-0.5)^7+EL$105*($AB125-0.5)^7*LN($AB125/(1-$AB125))) ->  | BV125: =IF(CK125="","",EM$90+EM$91*LN($AB125/(1-$AB125))+EM$92*($AB125-0.5)*LN($AB125/(1-$AB125))+EM$93*($AB125-0.5)+EM$94*($AB125-0.5)^2+EM$95*($AB125-0.5)^2*LN($AB125/(1-$AB125))+EM$96*($AB125-0.5)^3+EM$97*($AB125-0.5)^3*LN($AB125/(1-$AB125))+EM$98*($AB125-0.5)^4+EM$99*($AB125-0.5)^4*LN($AB125/(1-$AB125))+EM$100*($AB125-0.5)^5+EM$101*($AB125-0.5)^5*LN($AB125/(1-$AB125))+EM$102*($AB125-0.5)^6+EM$103*($AB125-0.5)^6*LN($AB125/(1-$AB125))+EM$104*($AB125-0.5)^7+EM$105*($AB125-0.5)^7*LN($AB125/(1-$AB125))) ->  | BW125: =IF(CL125="","",EN$90+EN$91*LN($AB125/(1-$AB125))+EN$92*($AB125-0.5)*LN($AB125/(1-$AB125))+EN$93*($AB125-0.5)+EN$94*($AB125-0.5)^2+EN$95*($AB125-0.5)^2*LN($AB125/(1-$AB125))+EN$96*($AB125-0.5)^3+EN$97*($AB125-0.5)^3*LN($AB125/(1-$AB125))+EN$98*($AB125-0.5)^4+EN$99*($AB125-0.5)^4*LN($AB125/(1-$AB125))+EN$100*($AB125-0.5)^5+EN$101*($AB125-0.5)^5*LN($AB125/(1-$AB125))+EN$102*($AB125-0.5)^6+EN$103*($AB125-0.5)^6*LN($AB125/(1-$AB125))+EN$104*($AB125-0.5)^7+EN$105*($AB125-0.5)^7*LN($AB125/(1-$AB125))) ->  | BX125: =IF(CM125="","",EO$90+EO$91*LN($AB125/(1-$AB125))+EO$92*($AB125-0.5)*LN($AB125/(1-$AB125))+EO$93*($AB125-0.5)+EO$94*($AB125-0.5)^2+EO$95*($AB125-0.5)^2*LN($AB125/(1-$AB125))+EO$96*($AB125-0.5)^3+EO$97*($AB125-0.5)^3*LN($AB125/(1-$AB125))+EO$98*($AB125-0.5)^4+EO$99*($AB125-0.5)^4*LN($AB125/(1-$AB125))+EO$100*($AB125-0.5)^5+EO$101*($AB125-0.5)^5*LN($AB125/(1-$AB125))+EO$102*($AB125-0.5)^6+EO$103*($AB125-0.5)^6*LN($AB125/(1-$AB125))+EO$104*($AB125-0.5)^7+EO$105*($AB125-0.5)^7*LN($AB125/(1-$AB125))) ->  | BY125: 0.006583306373 | BZ125: 0.0049592324 | CA125: 0.004698581217 | CB125: 0.004647960312 | CO125: 0.008590981366 | CP125: 0.00645938668 | CQ125: 0.00620765865 | CR125: 0.006270245801 | EA125: =IF(OR(ISERROR(AT29),$B$14<>"u"),"",(1423*EA103*EA104*EA93^2)/15375360 + (563*EA103*EA93^3)/201600 + (10277*EA103*EA104*EA94^2)/1197600768 + (197*EA103*EA93*EA94^2)/277200 + (1593269*EA103*EA104*EA93*EA96)/37638881280 + (1627*EA103*EA93^2*EA96)/887040 + (7759469*EA103*EA104*EA96^2)/1589197209600 + (21097249*EA103*EA104*EA94*EA98)/4417033420800 + (211877*EA103*EA93*EA94*EA98)/550368000 + (1842657923*EA103*EA104*EA98^2)/2753284165632000 + EA103*EA104*EA105*EA98*(1025255905243/1418492002133600000 + PI()^2/68812800) + EA103*EA105^2*EA96*(292633889201/94398314250240000 + (42397837*PI()^2)/175447371939840) + EA103*EA104*EA97*EA98*(30839421971/2628134885376000 + PI()^2/3655680) + EA103*EA105*EA96*EA98*(326317602361/26281348853760000 + PI()^2/3655680) + EA103*EA104*EA96*EA99*(778001383/42050158166016 + PI()^2/2752512) + EA103*EA104*EA105*EA97*(8011766650903/1387655219478520000 + (16721669*PI()^2)/35089474387968) + EA103*EA104*EA94*EA97*(4120423/101335449600 + PI()^2/992256) + EA103*EA105*EA94*EA96*(259163/6031872000 + PI()^2/992256) + EA103*EA105^2*EA93*(13400463413/1072708116480000 + (431249713*PI()^2)/419548063334400) + EA103*EA104*EA99^2*(58192725971/3504179847168000 + (31730711*PI()^2)/27969870888960) + EA103*EA104*EA92*EA98*(1459537649/32934021120000 + (7*PI()^2)/5836800) + EA103*EA105*EA93*EA98*(13480409/261381120000 + (7*PI()^2)/5836800) + EA103*EA104*EA95*EA96*(4651811/59880038400 + PI()^2/622592) + EA103*EA104*EA93*EA99*(4651811/59880038400 + PI()^2/622592) + EA103*EA105*EA98*EA99*(85802780663/3754478407680000 + (6153607*PI()^2)/3701894676480) + EA103*EA104*EA97^2*(1891658863/43912028160000 + (6808519*PI()^2)/1589197209600) + EA103*EA104*EA92*EA94*(8108839/52835328000 + (7*PI()^2)/1566720) + EA103*EA105*EA93*EA94*(21173/118609920 + (7*PI()^2)/1566720) + EA103*EA105*EA94*EA99*(45601474571/592812380160000 + (14991763*PI()^2)/2524019097600) + EA103*EA105*EA95*EA98*(2608479667/28229160960000 + (10157453*PI()^2)/1430277488640) + EA103*EA104*EA93*EA95*(264263/807206400 + PI()^2/139264) + EA103*EA104*EA91*EA96*(264263/807206400 + PI()^2/139264) + EA103*EA105*EA96*EA97*(2042843093/21956014080000 + (1723291*PI()^2)/198649651200) + EA103*EA91*EA98^2*(1254479/3027024000 + (13*PI()^2)/1478400) + EA103*EA104*EA95*EA99*(329431857/2439557120000 + (7759469*PI()^2)/794598604800) + EA103*EA104*EA95^2*(39838781/145297152000 + (1593269*PI()^2)/75277762560) + EA103*EA92*EA96*EA98*(3711157/4843238400 + PI()^2/42240) + EA103*EA105*EA94*EA95*(135250979/435891456000 + (2882471*PI()^2)/112916643840) + EA103*EA105*EA91*EA98*(2462833/6604416000 + (1545749*PI()^2)/50667724800) + EA103*EA104*EA91*EA93*(4193641/3027024000 + PI()^2/30720) + EA103*EA104*EA92*EA97*(399757/1317888000 + (5297*PI()^2)/147026880) + EA103*EA105*EA92*EA96*(95804531/290594304000 + (685309*PI()^2)/18819440640) + EA103*EA105*EA93*EA97*(500377/1345344000 + (1403651*PI()^2)/37638881280) + EA103*EA104*EA91*EA99*(39838781/72648576000 + (1593269*PI()^2)/37638881280) + EA103*EA91*EA94*EA98*(9733/3326400 + (191*PI()^2)/2882880) + EA103*EA91*EA96^2*(13063/4435200 + PI()^2/13312) + EA103*EA93^2*EA99*(13063/4435200 + PI()^2/13312) + EA103*EA104*EA92^2*(100868029/193729536000 + (4691*PI()^2)/61501440) + EA103*EA92*EA94*EA96*(23563/8870400 + (5*PI()^2)/54912) + EA103*EA93*EA94*EA97*(4349/1478400 + (5*PI()^2)/54912) + EA103*EA92*EA93*EA98*(6073/1900800 + PI()^2/9360) + EA103*EA105*EA91*EA94*(45320551/36324288000 + (32909*PI()^2)/298045440) + EA103*EA92*EA98*EA99*(59918237/48432384000 + (58769*PI()^2)/461260800) + EA103*EA91*EA94^2*(673/129600 + (17*PI()^2)/133056) + EA103*EA105*EA92*EA93*(9472241/7264857600 + (17431*PI()^2)/110702592) + EA103*EA104*EA91*EA95*(8968709/4036032000 + (1423*PI()^2)/7687680) + EA103*EA93^2*EA95*(141/11200 + PI()^2/2816) + EA103*EA104*EA91^2*(1421/316800 + (88069*PI()^2)/215255040) + EA103*EA92*EA93*EA94*(20063/1814400 + PI()^2/2376) + EA103*EA92*EA94*EA99*(325477/79833600 + (452407*PI()^2)/968647680) + EA103*EA92*EA95*EA98*(65479/13305600 + (2241643*PI()^2)/4036032000) + EA103*EA91*EA97*EA98*(1237/221760 + (254827*PI()^2)/448448000) + EA103*EA92*EA96*EA97*(4559/985600 + (12269*PI()^2)/17937920) + EA103*EA91*EA93*EA96*(141/5600 + PI()^2/1408) + EA103*EA91*EA96*EA99*(1421/158400 + (88069*PI()^2)/107627520) + EA103*EA92^2*EA96*(725/96768 + (41*PI()^2)/27720) + EA103*EA91*EA93^2*(409/7560 + PI()^2/576) + EA103*EA92*EA94*EA95*(29069/1814400 + (27431*PI()^2)/13305600) + EA103*EA91*EA94*EA97*(33251/1814400 + (28031*PI()^2)/13305600) + EA103*EA91*EA92*EA98*(11749/604800 + (5417*PI()^2)/2217600) + EA103*EA92*EA93*EA97*(32009/1814400 + (8047*PI()^2)/2661120) + EA103*EA91*EA95*EA96*(21757/604800 + (1627*PI()^2)/443520) + EA103*EA91*EA93*EA99*(21757/604800 + (1627*PI()^2)/443520) + EA103*EA92^2*EA93*(163/6048 + (1339*PI()^2)/201600) + EA103*EA91^2*EA96*(359/5040 + (563*PI()^2)/67200) + EA103*EA91*EA92*EA94*(937/15120 + (929*PI()^2)/100800) + EA103*EA91*EA93*EA95*(359/2520 + (563*PI()^2)/33600) + EA103*EA91^2*EA93*(11/40 + (11*PI()^2)/280) + EA103*EA105^2*EA99*(137543773568059/24779557490688000000 + (216133910851*PI()^2)/233817362989056000 + (7*PI()^4)/524288000) + EA103*EA105^2*EA95*(37806414649/1732836188160000 + (158305981*PI()^2)/41299262484480 + (7*PI()^4)/120586240) + EA103*EA105^2*EA91*(3615811363/42343741440000 + (597658993*PI()^2)/37544784076800 + PI()^4/3932160) + EA103*EA105*EA97*EA99*(2574162709/16467010560000 + (21719497753*PI()^2)/700835969433600 + PI()^4/1966080) + EA103*EA105*EA92*EA99*(2046389/3874590720 + (325016117*PI()^2)/2634721689600 + (7*PI()^4)/3112960) + EA103*EA105*EA95*EA97*(527837263/871782912000 + (127339657*PI()^2)/988020633600 + (7*PI()^4)/3112960) + EA103*EA105*EA92*EA95*(146222183/72648576000 + (6211897*PI()^2)/12108096000 + (7*PI()^4)/696320) + EA103*EA105*EA91*EA97*(4694779/2018016000 + (5775139*PI()^2)/10762752000 + (7*PI()^4)/696320) + EA103*EA91*EA99^2*(130751/19958400 + (4193641*PI()^2)/3027024000 + (7*PI()^4)/307200) + EA103*EA92*EA97*EA99*(76049/11404800 + (14429791*PI()^2)/6918912000 + (7*PI()^4)/153600) + EA103*EA105*EA91*EA92*(18911/2494800 + (103338527*PI()^2)/48432384000 + (7*PI()^4)/153600) + EA103*EA92^2*EA99*(1991/201600 + (8171*PI()^2)/1971200 + (7*PI()^4)/66560) + EA103*EA91*EA97^2*(81/5600 + (421*PI()^2)/92400 + (7*PI()^4)/66560) + EA103*EA92*EA95*EA97*(17477/725760 + (115697*PI()^2)/13305600 + (7*PI()^4)/33280) + EA103*EA91*EA95*EA99*(3737/75600 + (13063*PI()^2)/1108800 + (7*PI()^4)/33280) + EA103*EA92^2*EA95*(997/30240 + (6949*PI()^2)/403200 + (7*PI()^4)/14080) + EA103*EA91*EA95^2*(457/5040 + (141*PI()^2)/5600 + (7*PI()^4)/14080) + EA103*EA91^2*EA99*(457/5040 + (141*PI()^2)/5600 + (7*PI()^4)/14080) + EA103*EA91*EA92*EA97*(211/2520 + (2431*PI()^2)/67200 + (7*PI()^4)/7040) + EA103*EA91*EA92^2*(1/10 + (4303*PI()^2)/60480 + (7*PI()^4)/2880) + EA103*EA91^2*EA95*(19/60 + (409*PI()^2)/3780 + (7*PI()^4)/2880) + EA103*EA91^3*(1/3 + (7*PI()^2)/45 + PI()^4/240)) -> 0 | EB125: 0 | EC125: 0 | ED125: 0
AB126: 0.95 | AC126: 68.8844115 | AD126: 0.003851842213 | AE126: 70.22537294 | AF126: 70.56853036 | AG126: 69.63892046 | AH126: 68.8844115 | AT126: 0.005544451289 | AU126: 0.004185898606 | AV126: 0.003936718757 | AW126: 0.003851842213 | BJ126: 70.22537294 | BK126: 70.56853036 | BL126: 69.63892046 | BM126: 68.8844115 | BY126: 0.005544451289 | BZ126: 0.004185898606 | CA126: 0.003936718757 | CB126: 0.003851842213 | CO126: 0.007598816399 | CP126: 0.005716621815 | CQ126: 0.005455305876 | CR126: 0.005454135665 | EA126: =IF(OR(ISERROR(AT29),$B$14<>"u"),"",EA104^4/7784628224 + (31730711*EA104^3*EA91)/83909612666880 + (EA104^3*EA93)/24117248 + (1423*EA104^2*EA91*EA93)/15375360 + (3*EA104^2*EA93^2)/557056 + (819854809*EA104^2*EA105*EA94)/5514060260966400 + (760433*EA104^2*EA92*EA94)/75277762560 + (122443*EA104*EA105*EA93*EA94)/5376983040 + (227*EA104^2*EA94^2)/476282880 + (46522243*EA104^3*EA95)/526342115819520 + (1593269*EA104^2*EA93*EA95)/75277762560 + (EA104^3*EA96)/104857600 + (1593269*EA104^2*EA91*EA96)/75277762560 + (3*EA104^2*EA93*EA96)/1245184 + (1926709*EA104*EA105*EA94*EA96)/360574156800 + (195691*EA103*EA94^2*EA96)/1210809600 + (7759469*EA104^2*EA95*EA96)/1589197209600 + (EA104^2*EA96^2)/3670016 + (88069*EA103*EA93*EA96^2)/215255040 + (1423*EA103*EA96^3)/46126080 + (219722891*EA104^2*EA94*EA97)/85816649318400 + (10088602231*EA104^2*EA105*EA98)/238942611308544000 + (59887*EA104^2*EA92*EA98)/21189296128 + (2180221*EA104*EA105*EA93*EA98)/340542259200 + (1447*EA104^2*EA94*EA98)/5556633600 + (27898883*EA104*EA105*EA96*EA98)/18509473382400 + (54959*EA103*EA94*EA96*EA98)/620928000 + (200399*EA104^2*EA97*EA98)/278337945600 + (257*EA104^2*EA98^2)/7159808000 + (30463*EA103*EA93*EA98^2)/576576000 + (50412979*EA103*EA96*EA98^2)/4116752640000 + (3788707301*EA104^3*EA99)/182465266817433000 + (7759469*EA104^2*EA93*EA99)/1589197209600 + (31730711*EA104^2*EA96*EA99)/27969870888960 + EA104^2*EA105^2*(8869697201/747994261487616000 + PI()^2/3892314112) + EA104^2*EA105*EA97*(658409168873/1736928982204410000 + PI()^2/104857600) + EA104*EA105^2*EA96*(2569694549/6385768316928000 + PI()^2/104857600) + EA104^2*EA99^2*(973676323/881050933002240 + PI()^2/48234496) + EA104^2*EA105*EA92*(3574460497/2517288380006400 + PI()^2/24117248) + EA104*EA105^2*EA93*(19346953/11654112870400 + PI()^2/24117248) + EA104*EA105^2*EA99*(222451385227/289488163700736000 + (3468884941*PI()^2)/60821755605811200) + EA104*EA105*EA98*EA99*(4709825521/1573305237504000 + (9*PI()^2)/143196160) + EA104^2*EA97^2*(5553941/1832250900480 + PI()^2/11010048) + EA104^2*EA95*EA99*(778001383/84100316332032 + PI()^2/5505024) + EA104*EA105*EA94*EA99*(10880345711/1051253954150400 + PI()^2/4358144) + EA104*EA105^2*EA95*(292633889201/94398314250240000 + (42397837*PI()^2)/175447371939840) + EA104*EA105*EA95*EA98*(326317602361/26281348853760000 + PI()^2/3655680) + EA104*EA105*EA96*EA97*(27073198069/2102507908300800 + PI()^2/2752512) + EA104^2*EA95^2*(4651811/239520153600 + PI()^2/2490368) + EA103*EA98^2*EA99*(32237357/1372250880000 + (29*PI()^2)/64204800) + EA104^2*EA92*EA97*(39665033/1756481126400 + PI()^2/1245184) + EA104^2*EA91*EA99*(4651811/119760076800 + PI()^2/1245184) + EA104*EA105*EA94*EA95*(259163/6031872000 + PI()^2/992256) + EA104*EA105^2*EA91*(13400463413/1072708116480000 + (431249713*PI()^2)/419548063334400) + EA104*EA105*EA91*EA98*(13480409/261381120000 + (7*PI()^2)/5836800) + EA104*EA105*EA92*EA96*(18066079/376388812800 + PI()^2/622592) + EA104*EA105*EA93*EA97*(4995871/94097203200 + PI()^2/622592) + EA104^2*EA92^2*(2152883/51661209600 + PI()^2/557056) + EA103*EA95*EA98^2*(47711/484323840 + (101*PI()^2)/50918400) + EA104*EA105*EA97*EA99*(6222991597/268177029120000 + (425527139*PI()^2)/209774031667200) + EA103*EA94*EA98*EA99*(1707499/10378368000 + (373*PI()^2)/112020480) + EA104^2*EA91*EA95*(264263/1614412800 + PI()^2/278528) + EA103*EA96^2*EA99*(264263/1614412800 + PI()^2/278528) + EA104*EA105*EA91*EA94*(21173/118609920 + (7*PI()^2)/1566720) + EA103*EA96*EA97*EA98*(546241/2690688000 + (3*PI()^2)/565760) + EA103*EA94^2*EA99*(70751/244608000 + (41*PI()^2)/6589440) + EA104*EA105*EA92*EA93*(10819/54912000 + PI()^2/139264) + EA104^2*EA91^2*(4193641/12108096000 + PI()^2/122880) + EA104*EA105*EA92*EA99*(5461441669/65868042240000 + (4487001*PI()^2)/529732403200) + EA104*EA105*EA95*EA97*(2042843093/21956014080000 + (1723291*PI()^2)/198649651200) + EA103*EA94*EA95*EA98*(12577183/18162144000 + (73*PI()^2)/4942080) + EA103*EA95*EA96^2*(4193641/6054048000 + PI()^2/61440) + EA103*EA94*EA96*EA97*(1552433/2201472000 + PI()^2/49920) + EA103*EA96*EA99^2*(39838781/145297152000 + (1593269*PI()^2)/75277762560) + EA103*EA93*EA97*EA98*(569629/672672000 + PI()^2/42240) + EA103*EA94^2*EA95*(146429/119750400 + (83*PI()^2)/2965248) + EA103*EA97*EA98*EA99*(5602291/16144128000 + (1526573*PI()^2)/50667724800) + EA103*EA93*EA96*EA99*(4193641/3027024000 + PI()^2/30720) + EA104*EA105*EA92*EA95*(95804531/290594304000 + (685309*PI()^2)/18819440640) + EA104*EA105*EA91*EA97*(500377/1345344000 + (1403651*PI()^2)/37638881280) + EA103*EA96*EA97^2*(1216867/1793792000 + (2461*PI()^2)/30750720) + EA103*EA93*EA99^2*(8968709/8072064000 + (1423*PI()^2)/15375360) + EA103*EA94*EA97*EA99*(14027807/12108096000 + (9413*PI()^2)/86102016) + EA103*EA95*EA97*EA98*(202589633/145297152000 + (16397*PI()^2)/125798400) + EA103*EA93*EA95*EA96*(13063/2217600 + PI()^2/6656) + EA104*EA105*EA91*EA92*(9472241/7264857600 + (17431*PI()^2)/110702592) + EA103*EA95*EA96*EA99*(8968709/4036032000 + (1423*PI()^2)/7687680) + EA103*EA93*EA97^2*(5899/2217600 + (75329*PI()^2)/215255040) + EA103*EA95^2*EA96*(1421/316800 + (88069*PI()^2)/215255040) + EA103*EA94*EA95*EA97*(1108007/239500800 + (1387601*PI()^2)/2905943040) + EA103*EA93*EA95*EA99*(1421/158400 + (88069*PI()^2)/107627520) + EA104*EA91^2*EA93*(409/7560 + PI()^2/576) + EA103*EA93*EA95^2*(21757/1209600 + (1627*PI()^2)/887040) + EA104*EA91^3*(11/120 + (11*PI()^2)/840) + EA103*EA99^3*(5804629/39626496000 + (4651811*PI()^2)/179640115200 + (7*PI()^4)/18677760) + EA103*EA97^2*EA99*(25339549/24216192000 + (140807*PI()^2)/538137600 + (7*PI()^4)/1392640) + EA103*EA95*EA99^2*(20662987/12108096000 + (264263*PI()^2)/807206400 + (7*PI()^4)/1392640) + EA103*EA95*EA97^2*(941011/239500800 + (79314709*PI()^2)/72648576000 + (7*PI()^4)/307200) + EA103*EA95^2*EA99*(130751/19958400 + (4193641*PI()^2)/3027024000 + (7*PI()^4)/307200) + EA103*EA95^3*(3737/453600 + (13063*PI()^2)/6652800 + (7*PI()^4)/199680)) -> 0 | EB126: 0 | EC126: 0 | ED126: 0
AB127: 0.96 | AC127: 71.78885926 | AD127: 0.003065664598 | AE127: 72.22678026 | AF127: 73.21529405 | AG127: 72.46424688 | AH127: 71.78885926 | AT127: 0.004482251148 | AU127: 0.003395002079 | AV127: 0.003168751482 | AW127: 0.003065664598 | BJ127: 72.22678026 | BK127: 73.21529405 | BL127: 72.46424688 | BM127: 71.78885926 | BY127: 0.004482251148 | BZ127: 0.003395002079 | CA127: 0.003168751482 | CB127: 0.003065664598 | CO127: 0.006583306373 | CP127: 0.0049592324 | CQ127: 0.004698581217 | CR127: 0.004647960312 | CW127: =IF(OR(DN$26="",DN$26="no"),"",(EI$91/($AB125*(1-$AB125))+EI$92*(($AB125-0.5)/($AB125*(1-$AB125))+LN($AB125/(1-$AB125)))+EI$93+2*EI$94*($AB125-0.5)+EI$95*(($AB125-0.5)^2/($AB125*(1-$AB125))+2*($AB125-0.5)*LN($AB125/(1-$AB125)))+3*EI$96*($AB125-0.5)^2+EI$97*(($AB125-0.5)^3/($AB125*(1-$AB125))+3*($AB125-0.5)^2*LN($AB125/(1-$AB125)))+4*EI$98*($AB125-0.5)^3+EI$99*(($AB125-0.5)^4/($AB125*(1-$AB125))+4*($AB125-0.5)^3*LN($AB125/(1-$AB125)))+5*EI$100*($AB125-0.5)^4+EI$101*(($AB125-0.5)^5/($AB125*(1-$AB125))+5*($AB125-0.5)^4*LN($AB125/(1-$AB125)))+6*EI$102*($AB125-0.5)^5+EI$103*(($AB125-0.5)^6/($AB125*(1-$AB125))+6*($AB125-0.5)^5*LN($AB125/(1-$AB125)))+7*EI$104*($AB125-0.5)^6+EI$105*(($AB125-0.5)^7/($AB125*(1-$AB125))+7*($AB125-0.5)^6*LN($AB125/(1-$AB125))))^-1) ->  | CZ127: =IF(OR(DQ$26="",DQ$26="no"),"",(EL$91/($AB125*(1-$AB125))+EL$92*(($AB125-0.5)/($AB125*(1-$AB125))+LN($AB125/(1-$AB125)))+EL$93+2*EL$94*($AB125-0.5)+EL$95*(($AB125-0.5)^2/($AB125*(1-$AB125))+2*($AB125-0.5)*LN($AB125/(1-$AB125)))+3*EL$96*($AB125-0.5)^2+EL$97*(($AB125-0.5)^3/($AB125*(1-$AB125))+3*($AB125-0.5)^2*LN($AB125/(1-$AB125)))+4*EL$98*($AB125-0.5)^3+EL$99*(($AB125-0.5)^4/($AB125*(1-$AB125))+4*($AB125-0.5)^3*LN($AB125/(1-$AB125)))+5*EL$100*($AB125-0.5)^4+EL$101*(($AB125-0.5)^5/($AB125*(1-$AB125))+5*($AB125-0.5)^4*LN($AB125/(1-$AB125)))+6*EL$102*($AB125-0.5)^5+EL$103*(($AB125-0.5)^6/($AB125*(1-$AB125))+6*($AB125-0.5)^5*LN($AB125/(1-$AB125)))+7*EL$104*($AB125-0.5)^6+EL$105*(($AB125-0.5)^7/($AB125*(1-$AB125))+7*($AB125-0.5)^6*LN($AB125/(1-$AB125))))^-1) ->  | DA127: =IF(OR(DR$26="",DR$26="no"),"",(EM$91/($AB125*(1-$AB125))+EM$92*(($AB125-0.5)/($AB125*(1-$AB125))+LN($AB125/(1-$AB125)))+EM$93+2*EM$94*($AB125-0.5)+EM$95*(($AB125-0.5)^2/($AB125*(1-$AB125))+2*($AB125-0.5)*LN($AB125/(1-$AB125)))+3*EM$96*($AB125-0.5)^2+EM$97*(($AB125-0.5)^3/($AB125*(1-$AB125))+3*($AB125-0.5)^2*LN($AB125/(1-$AB125)))+4*EM$98*($AB125-0.5)^3+EM$99*(($AB125-0.5)^4/($AB125*(1-$AB125))+4*($AB125-0.5)^3*LN($AB125/(1-$AB125)))+5*EM$100*($AB125-0.5)^4+EM$101*(($AB125-0.5)^5/($AB125*(1-$AB125))+5*($AB125-0.5)^4*LN($AB125/(1-$AB125)))+6*EM$102*($AB125-0.5)^5+EM$103*(($AB125-0.5)^6/($AB125*(1-$AB125))+6*($AB125-0.5)^5*LN($AB125/(1-$AB125)))+7*EM$104*($AB125-0.5)^6+EM$105*(($AB125-0.5)^7/($AB125*(1-$AB125))+7*($AB125-0.5)^6*LN($AB125/(1-$AB125))))^-1) ->  | DB127: =IF(OR(DS$26="",DS$26="no"),"",(EN$91/($AB125*(1-$AB125))+EN$92*(($AB125-0.5)/($AB125*(1-$AB125))+LN($AB125/(1-$AB125)))+EN$93+2*EN$94*($AB125-0.5)+EN$95*(($AB125-0.5)^2/($AB125*(1-$AB125))+2*($AB125-0.5)*LN($AB125/(1-$AB125)))+3*EN$96*($AB125-0.5)^2+EN$97*(($AB125-0.5)^3/($AB125*(1-$AB125))+3*($AB125-0.5)^2*LN($AB125/(1-$AB125)))+4*EN$98*($AB125-0.5)^3+EN$99*(($AB125-0.5)^4/($AB125*(1-$AB125))+4*($AB125-0.5)^3*LN($AB125/(1-$AB125)))+5*EN$100*($AB125-0.5)^4+EN$101*(($AB125-0.5)^5/($AB125*(1-$AB125))+5*($AB125-0.5)^4*LN($AB125/(1-$AB125)))+6*EN$102*($AB125-0.5)^5+EN$103*(($AB125-0.5)^6/($AB125*(1-$AB125))+6*($AB125-0.5)^5*LN($AB125/(1-$AB125)))+7*EN$104*($AB125-0.5)^6+EN$105*(($AB125-0.5)^7/($AB125*(1-$AB125))+7*($AB125-0.5)^6*LN($AB125/(1-$AB125))))^-1) ->  | DC127: =IF(OR(DT$26="",DT$26="no"),"",(EO$91/($AB125*(1-$AB125))+EO$92*(($AB125-0.5)/($AB125*(1-$AB125))+LN($AB125/(1-$AB125)))+EO$93+2*EO$94*($AB125-0.5)+EO$95*(($AB125-0.5)^2/($AB125*(1-$AB125))+2*($AB125-0.5)*LN($AB125/(1-$AB125)))+3*EO$96*($AB125-0.5)^2+EO$97*(($AB125-0.5)^3/($AB125*(1-$AB125))+3*($AB125-0.5)^2*LN($AB125/(1-$AB125)))+4*EO$98*($AB125-0.5)^3+EO$99*(($AB125-0.5)^4/($AB125*(1-$AB125))+4*($AB125-0.5)^3*LN($AB125/(1-$AB125)))+5*EO$100*($AB125-0.5)^4+EO$101*(($AB125-0.5)^5/($AB125*(1-$AB125))+5*($AB125-0.5)^4*LN($AB125/(1-$AB125)))+6*EO$102*($AB125-0.5)^5+EO$103*(($AB125-0.5)^6/($AB125*(1-$AB125))+6*($AB125-0.5)^5*LN($AB125/(1-$AB125)))+7*EO$104*($AB125-0.5)^6+EO$105*(($AB125-0.5)^7/($AB125*(1-$AB125))+7*($AB125-0.5)^6*LN($AB125/(1-$AB125))))^-1) ->  | EA127: =IF(OR(ISERROR(AT29),$B$14<>"u"),"",(563*EA104*EA91*EA93^2)/67200 + (EA104*EA93^3)/2816 + (7277*EA104*EA92*EA93*EA94)/4435200 + (197*EA104*EA91*EA94^2)/277200 + (83*EA104*EA93*EA94^2)/988416 + (1627*EA104*EA93^2*EA95)/887040 + (195691*EA104*EA94^2*EA95)/1210809600 + (1627*EA104*EA91*EA93*EA96)/443520 + (3*EA104*EA93^2*EA96)/13312 + (364207*EA104*EA92*EA94*EA96)/968647680 + (41*EA104*EA94^2*EA96)/2196480 + (88069*EA104*EA93*EA95*EA96)/107627520 + (88069*EA104*EA91*EA96^2)/215255040 + (EA104*EA93*EA96^2)/20480 + (1423*EA104*EA95*EA96^2)/15375360 + (EA104*EA96^3)/278528 + (43843*EA104*EA93*EA94*EA97)/107627520 + (24319*EA104*EA94*EA96*EA97)/258306048 + (603481*EA104*EA92*EA93*EA98)/1345344000 + (211877*EA104*EA91*EA94*EA98)/550368000 + (73*EA104*EA93*EA94*EA98)/1647360 + (54959*EA104*EA94*EA95*EA98)/620928000 + (47849*EA104*EA92*EA96*EA98)/461260800 + (373*EA104*EA94*EA96*EA98)/37340160 + (121*EA104*EA93*EA97*EA98)/1075200 + (1326653*EA104*EA96*EA97*EA98)/50667724800 + (30463*EA104*EA91*EA98^2)/576576000 + (101*EA104*EA93*EA98^2)/16972800 + (50412979*EA104*EA95*EA98^2)/4116752640000 + (29*EA104*EA96*EA98^2)/21401600 + (88069*EA104*EA93^2*EA99)/215255040 + (53903*EA104*EA94^2*EA99)/1452971520 + (1423*EA104*EA93*EA96*EA99)/7687680 + (1593269*EA104*EA96^2*EA99)/75277762560 + (6750839*EA104*EA94*EA98*EA99)/329340211200 + (8508541*EA104*EA98^2*EA99)/2979744768000 + EA105^3*EA98*(654064370143/3618602046259200000 + (10088602231*PI()^2)/716827833925632000) + EA105^3*EA94*(3820988011/6293220950016000 + (819854809*PI()^2)/16542180782899200) + EA105^2*EA93*EA96*(115853/4073472000 + PI()^2/1245184) + EA104*EA96*EA99^2*(4651811/119760076800 + PI()^2/1245184) + EA104*EA97*EA98*EA99*(8193869/168030720000 + (7*PI()^2)/5836800) + EA104*EA99^3*(109810619/4879114240000 + (7759469*PI()^2)/4767591628800) + EA105^2*EA93^2*(39389/658944000 + PI()^2/557056) + EA105^2*EA92*EA98*(127374197/4342947840000 + (43997669*PI()^2)/14302774886400) + EA104*EA96*EA97^2*(1217/11827200 + PI()^2/278528) + EA104*EA93*EA99^2*(264263/1614412800 + PI()^2/278528) + EA104*EA94*EA97*EA99*(420281/2483712000 + (7*PI()^2)/1566720) + EA104*EA92*EA98*EA99*(5945039/32288256000 + (3*PI()^2)/565760) + EA104*EA95*EA97*EA98*(546241/2690688000 + (3*PI()^2)/565760) + EA104*EA95*EA96*EA99*(264263/807206400 + PI()^2/139264) + EA105^2*EA92*EA94*(434887/4447872000 + (494927*PI()^2)/45166657536) + EA104*EA93*EA97^2*(103511/244608000 + PI()^2/61440) + EA104*EA95^2*EA96*(4193641/6054048000 + PI()^2/61440) + EA104*EA97^2*EA99*(5536651/32288256000 + (277813*PI()^2)/15055552512) + EA105^2*EA93*EA95*(4202747/20756736000 + (1418237*PI()^2)/75277762560) + EA105^2*EA91*EA96*(4202747/20756736000 + (1418237*PI()^2)/75277762560) + EA104*EA92*EA94*EA99*(30910921/48432384000 + PI()^2/49920) + EA104*EA94*EA95*EA97*(1552433/2201472000 + PI()^2/49920) + EA104*EA95*EA99^2*(39838781/145297152000 + (1593269*PI()^2)/75277762560) + EA104*EA92*EA95*EA98*(3711157/4843238400 + PI()^2/42240) + EA104*EA91*EA97*EA98*(569629/672672000 + PI()^2/42240) + EA104*EA92*EA96*EA97*(1362103/1793792000 + PI()^2/30720) + EA104*EA93*EA95*EA99*(4193641/3027024000 + PI()^2/30720) + EA104*EA91*EA96*EA99*(4193641/3027024000 + PI()^2/30720) + EA104*EA92^2*EA96*(3491/2534400 + PI()^2/13312) + EA104*EA93*EA95^2*(13063/4435200 + PI()^2/13312) + EA104*EA95*EA97^2*(1216867/1793792000 + (2461*PI()^2)/30750720) + EA105^2*EA91*EA93*(8522273/10378368000 + (5617*PI()^2)/69189120) + EA104*EA92*EA94*EA95*(23563/8870400 + (5*PI()^2)/54912) + EA104*EA91*EA94*EA97*(4349/1478400 + (5*PI()^2)/54912) + EA104*EA95^2*EA99*(8968709/8072064000 + (1423*PI()^2)/15375360) + EA104*EA91*EA99^2*(8968709/8072064000 + (1423*PI()^2)/15375360) + EA104*EA91*EA92*EA98*(6073/1900800 + PI()^2/9360) + EA104*EA95^3*(1421/950400 + (88069*PI()^2)/645765120) + EA104*EA92*EA93*EA97*(13723/4435200 + PI()^2/6656) + EA104*EA91*EA95*EA96*(13063/2217600 + PI()^2/6656) + EA104*EA91*EA93*EA99*(13063/2217600 + PI()^2/6656) + EA104*EA92*EA97*EA99*(5770357/4843238400 + (9613*PI()^2)/61501440) + EA104*EA92^2*EA99*(35459/17740800 + (71899*PI()^2)/215255040) + EA104*EA91*EA97^2*(5899/2217600 + (75329*PI()^2)/215255040) + EA104*EA92^2*EA93*(247/44800 + PI()^2/2816) + EA104*EA91^2*EA96*(141/11200 + PI()^2/2816) + EA104*EA91*EA92*EA94*(20063/1814400 + PI()^2/2376) + EA104*EA92*EA95*EA97*(4559/985600 + (12269*PI()^2)/17937920) + EA104*EA91*EA93*EA95*(141/5600 + PI()^2/1408) + EA104*EA91*EA95*EA99*(1421/158400 + (88069*PI()^2)/107627520) + EA104*EA92^2*EA95*(725/96768 + (41*PI()^2)/27720) + EA104*EA91*EA95^2*(21757/1209600 + (1627*PI()^2)/887040) + EA104*EA91^2*EA99*(21757/1209600 + (1627*PI()^2)/887040) + EA104*EA91*EA92*EA97*(32009/1814400 + (8047*PI()^2)/2661120) + EA104*EA91*EA92^2*(163/6048 + (1339*PI()^2)/201600) + EA104*EA91^2*EA95*(359/5040 + (563*PI()^2)/67200) + EA105^4*(13949329966703/597707914464460000000 + (8869697201*PI()^2)/2243982784462840000 + (7*PI()^4)/116769423360) + EA105^3*EA97*(138845484931/104115787776000000 + (452455362067*PI()^2)/1736928982204410000 + (7*PI()^4)/1572864000) + EA105^3*EA92*(9873637027/2145416232960000 + (119283113*PI()^2)/116182540615680 + (7*PI()^4)/361758720) + EA105^2*EA92*EA97*(162354289/871782912000 + (4007782109*PI()^2)/79041650688000 + (7*PI()^4)/6225920) + EA105^2*EA91*EA99*(975683/2935296000 + (19823831*PI()^2)/299400192000 + (7*PI()^4)/6225920) + EA105^2*EA92^2*(43799149/145297152000 + (77097479*PI()^2)/774918144000 + (7*PI()^4)/2785280) + EA105^2*EA91*EA95*(15535007/12108096000 + (13372013*PI()^2)/48432384000 + (7*PI()^4)/1392640) + EA105^2*EA91^2*(47407/19958400 + (7089557*PI()^2)/12108096000 + (7*PI()^4)/614400)) -> 0 | EB127: 0 | EC127: 0 | ED127: 0
AB128: 0.97 | AC128: 75.55153643 | AD128: 0.002288984766 | AE128: 74.78016744 | AF128: 76.57880645 | AG128: 76.08264245 | AH128: 75.55153643 | AT128: 0.003396705948 | AU128: 0.002584496927 | AV128: 0.002393420469 | AW128: 0.002288984766 | BJ128: 74.78016744 | BK128: 76.57880645 | BL128: 76.08264245 | BM128: 75.55153643 | BY128: 0.003396705948 | BZ128: 0.002584496927 | CA128: 0.002393420469 | CB128: 0.002288984766 | CO128: 0.005544451289 | CP128: 0.004185898606 | CQ128: 0.003936718757 | CR128: 0.003851842213 | EA128: =IF(OR(ISERROR(AT29),$B$14<>"u"),"",(1163*EA105*EA93^2*EA94)/1267200 + (37133*EA105*EA94^3)/1210809600 + (184501*EA105*EA93*EA94*EA96)/440294400 + (9679*EA105*EA94*EA96^2)/198696960 + (693241*EA105*EA93^2*EA98)/2690688000 + (911633*EA105*EA94^2*EA98)/36324288000 + (3517*EA105*EA93*EA96*EA98)/29952000 + (1384181*EA105*EA96^2*EA98)/101335449600 + (14296187*EA105*EA94*EA98^2)/2058376320000 + (344657*EA105*EA98^3)/532097280000 + 2*EA91^3*EA93*PI()^2 + (7*EA91^4*PI()^4)/15 + EA105^2*EA98^2*(10199087597/19666315468800000 + (257*PI()^2)/21479424000) + EA105^2*EA94*EA98*(31381678591/8760449617920000 + (1447*PI()^2)/16669900800) + EA105^2*EA96^2*(1109328277/323462755123200 + PI()^2/11010048) + EA105^2*EA94^2*(3008293/483928473600 + (227*PI()^2)/1428848640) + EA105*EA97*EA98^2*(188849/11309760000 + (29*PI()^2)/64204800) + EA105^2*EA97*EA98*(398791241/48759459840000 + (27483611*PI()^2)/37018946764800) + EA105^2*EA96*EA99*(13400463413/1072708116480000 + (431249713*PI()^2)/419548063334400) + EA105*EA96*EA98*EA99*(13480409/261381120000 + (7*PI()^2)/5836800) + EA105*EA92*EA98^2*(43409/691891200 + (101*PI()^2)/50918400) + EA105^2*EA94*EA97*(515086357/18819440640000 + (226093211*PI()^2)/85816649318400) + EA105*EA94*EA97*EA98*(2993/25872000 + (373*PI()^2)/112020480) + EA105*EA98*EA99^2*(2608479667/56458321920000 + (10157453*PI()^2)/2860554977280) + EA105*EA96^2*EA97*(2356499/21525504000 + PI()^2/278528) + EA105^2*EA95*EA96*(45066577/896163840000 + (6977809*PI()^2)/1589197209600) + EA105^2*EA93*EA99*(45066577/896163840000 + (6977809*PI()^2)/1589197209600) + EA105*EA94*EA96*EA99*(21173/118609920 + (7*PI()^2)/1566720) + EA105*EA95*EA96*EA98*(54987/256256000 + (3*PI()^2)/565760) + EA105*EA93*EA98*EA99*(54987/256256000 + (3*PI()^2)/565760) + EA105*EA94^2*EA97*(232289/1153152000 + (41*PI()^2)/6589440) + EA105*EA94*EA99^2*(135250979/871782912000 + (2882471*PI()^2)/225833287680) + EA105*EA97^2*EA98*(1304161/10762752000 + (1345829*PI()^2)/101335449600) + EA105*EA92*EA94*EA98*(632117/1452971520 + (73*PI()^2)/4942080) + EA105*EA92*EA96^2*(39071671/96864768000 + PI()^2/61440) + EA105*EA94*EA95*EA96*(13367/18018000 + PI()^2/49920) + EA105*EA93*EA94*EA99*(13367/18018000 + PI()^2/49920) + EA105*EA93*EA95*EA98*(1548601/1729728000 + PI()^2/42240) + EA105*EA91*EA96*EA98*(1548601/1729728000 + PI()^2/42240) + EA105*EA92*EA94^2*(90809/119750400 + (83*PI()^2)/2965248) + EA105*EA95*EA98*EA99*(2462833/6604416000 + (1545749*PI()^2)/50667724800) + EA105*EA93*EA96*EA97*(24829/27456000 + PI()^2/30720) + EA105*EA96*EA97*EA99*(500377/1345344000 + (1403651*PI()^2)/37638881280) + EA105*EA94*EA97^2*(5314657/13208832000 + (33547*PI()^2)/704471040) + EA105*EA95^2*EA98*(217960573/290594304000 + (83009*PI()^2)/1257984000) + EA105*EA93^2*EA97*(16787/8870400 + PI()^2/13312) + EA105*EA93*EA94*EA95*(2279/739200 + (5*PI()^2)/54912) + EA105*EA91*EA94*EA96*(2279/739200 + (5*PI()^2)/54912) + EA105*EA91*EA93*EA98*(3587/950400 + PI()^2/9360) + EA105*EA94*EA95*EA99*(45320551/36324288000 + (32909*PI()^2)/298045440) + EA105*EA92*EA97*EA98*(41161187/48432384000 + (85511*PI()^2)/768768000) + EA105*EA91*EA98*EA99*(217960573/145297152000 + (83009*PI()^2)/628992000) + EA105*EA92*EA93*EA96*(14603/4435200 + PI()^2/6656) + EA105*EA92*EA96*EA99*(9472241/7264857600 + (17431*PI()^2)/110702592) + EA105*EA95*EA96*EA97*(53819041/36324288000 + (44617*PI()^2)/276756480) + EA105*EA93*EA97*EA99*(53819041/36324288000 + (44617*PI()^2)/276756480) + EA105*EA92^2*EA98*(76831/53222400 + (633401*PI()^2)/2690688000) + EA105*EA94*EA95^2*(398449/159667200 + (211957*PI()^2)/880588800) + EA105*EA92*EA93^2*(303/44800 + PI()^2/2816) + EA105*EA92*EA94*EA97*(23957/8553600 + (5823481*PI()^2)/14529715200) + EA105*EA91*EA93*EA94*(2923/226800 + PI()^2/2376) + EA105*EA91*EA94*EA99*(398449/79833600 + (211957*PI()^2)/440294400) + EA105*EA91*EA95*EA98*(13283/2217600 + (2331403*PI()^2)/4036032000) + EA105*EA92*EA95*EA96*(5683/1108800 + (6141*PI()^2)/8968960) + EA105*EA92*EA93*EA99*(5683/1108800 + (6141*PI()^2)/8968960) + EA105*EA93*EA95*EA97*(13063/2217600 + (75407*PI()^2)/107627520) + EA105*EA91*EA96*EA97*(13063/2217600 + (75407*PI()^2)/107627520) + EA105*EA92^2*EA94*(6823/1451520 + (1513*PI()^2)/1774080) + EA105*EA91^2*EA98*(13639/1209600 + (851*PI()^2)/633600) + EA105*EA91*EA94*EA95*(3979/201600 + (5659*PI()^2)/2661120) + EA105*EA92*EA93*EA95*(12163/604800 + (13243*PI()^2)/4435200) + EA105*EA91*EA92*EA96*(12163/604800 + (13243*PI()^2)/4435200) + EA105*EA91*EA93*EA97*(42971/1814400 + (10151*PI()^2)/3326400) + EA105*EA91^2*EA94*(71/2016 + (49*PI()^2)/9600) + EA105*EA91*EA92*EA93*(1237/15120 + (647*PI()^2)/50400) + EA91^3*EA96*(1 + PI()^2/3) + EA91^2*EA92*EA94*(1 + PI()^2/2) + EA105^2*EA99^2*(37806414649/3465672376320000 + (158305981*PI()^2)/82598524968960 + (7*PI()^4)/241172480) + EA105^2*EA97^2*(261416567/9409720320000 + (1936046627*PI()^2)/300358272614400 + PI()^4/7864320) + EA105^2*EA95*EA99*(3615811363/42343741440000 + (597658993*PI()^2)/37544784076800 + PI()^4/3932160) + EA105^2*EA95^2*(975683/5870592000 + (19823831*PI()^2)/598800384000 + (7*PI()^4)/12451840) + EA105*EA97*EA99^2*(527837263/1743565824000 + (127339657*PI()^2)/1976041267200 + (7*PI()^4)/6225920) + EA105*EA97^3*(1983101/8072064000 + (1523813*PI()^2)/21525504000 + (7*PI()^4)/4177920) + EA105*EA92*EA99^2*(146222183/145297152000 + (6211897*PI()^2)/24216192000 + (7*PI()^4)/1392640) + EA105*EA95*EA97*EA99*(4694779/2018016000 + (5775139*PI()^2)/10762752000 + (7*PI()^4)/696320) + EA105*EA92*EA97^2*(563659/239500800 + (21928391*PI()^2)/26417664000 + (7*PI()^4)/307200) + EA105*EA95^2*EA97*(706493/159667200 + (27063493*PI()^2)/24216192000 + (7*PI()^4)/307200) + EA105*EA92*EA95*EA99*(18911/2494800 + (103338527*PI()^2)/48432384000 + (7*PI()^4)/153600) + EA105*EA91*EA97*EA99*(706493/79833600 + (27063493*PI()^2)/12108096000 + (7*PI()^4)/153600) + EA105*EA92^2*EA97*(6427/907200 + (1269*PI()^2)/394240 + (7*PI()^4)/66560) + EA105*EA92*EA95^2*(1363/96768 + (5611*PI()^2)/1267200 + (7*PI()^4)/66560) + EA105*EA92^3*(131/20160 + (11*PI()^2)/2688 + (7*PI()^4)/42240) + EA105*EA91*EA92*EA99*(1363/48384 + (5611*PI()^2)/633600 + (7*PI()^4)/33280) + EA105*EA91*EA95*EA97*(239/7200 + (123899*PI()^2)/13305600 + (7*PI()^4)/33280) + EA105*EA91^2*EA97*(73/1260 + (71*PI()^2)/3600 + (7*PI()^4)/14080) + EA105*EA91*EA92*EA95*(29/280 + (7363*PI()^2)/201600 + (7*PI()^4)/7040) + EA105*EA91^2*EA92*(43/240 + (163*PI()^2)/2160 + (7*PI()^4)/2880) + EA91^3*EA99*(4/5 + (2*PI()^2)/3 + (7*PI()^4)/300) + EA91^3*EA95*((8*PI()^2)/3 + (7*PI()^4)/45) + EA91^2*EA92^2*((3*PI()^2)/2 + (7*PI()^4)/30)) -> 244876.1118 | EB128: 306087.4808 | EC128: 310694.5314 | ED128: 311513.179
AB129: 0.98 | AC129: 80.87585559 | AD129: 0.001520859476 | AE129: 78.34170588 | AF129: 81.24482824 | AG129: 81.1429412 | AH129: 80.87585559 | AT129: 0.00228781569 | AU129: 0.001751669174 | AV129: 0.001609000996 | AW129: 0.001520859476 | BJ129: 78.34170588 | BK129: 81.24482824 | BL129: 81.1429412 | BM129: 80.87585559 | BY129: 0.00228781569 | BZ129: 0.001751669174 | CA129: 0.001609000996 | CB129: 0.001520859476 | CO129: 0.004482251148 | CP129: 0.003395002079 | CQ129: 0.003168751482 | CR129: 0.003065664598 | EA129: =IF(OR(ISERROR(AT29),$B$14<>"u"),"",(EA91*EA93^3)/3 + (3*EA92*EA93^2*EA94)/40 + (EA91*EA93*EA94^2)/15 + (23*EA91*EA93^2*EA96)/120 + (EA91*EA94^2*EA96)/70 + (11*EA91*EA93*EA96^2)/280 + (563*EA91*EA96^3)/201600 + (43*EA91*EA93*EA94*EA98)/1260 + (3*EA91*EA94*EA96*EA98)/400 + (19*EA91*EA93*EA98^2)/4200 + (559*EA91*EA96*EA98^2)/554400 + EA91*EA98^2*EA99*(2909/1663200 + (37*PI()^2)/936000) + EA92^2*EA98^2*(31/16800 + (17*PI()^2)/184800) + EA91*EA95*EA98^2*(31/4200 + (17*PI()^2)/92400) + EA91*EA94*EA98*EA99*(563/45360 + (251*PI()^2)/831600) + EA91*EA96^2*EA99*(141/11200 + PI()^2/2816) + EA91*EA96*EA97*EA98*(5/336 + (3*PI()^2)/6160) + EA91^2*EA98^2*(11/756 + PI()^2/1800) + EA91*EA94^2*EA99*(67/3024 + PI()^2/1680) + EA92^2*EA94*EA98*(97/7560 + PI()^2/1400) + EA92^2*EA96^2*(1301/120960 + PI()^2/1152) + EA91*EA94*EA95*EA98*(199/3780 + PI()^2/700) + EA92^2*EA94^2*(1/45 + (11*PI()^2)/7560) + EA91*EA95*EA96^2*(409/7560 + PI()^2/576) + EA91*EA96*EA99^2*(21757/1209600 + (1627*PI()^2)/887040) + EA91*EA94*EA96*EA97*(155/3024 + PI()^2/504) + EA91*EA92*EA96*EA98*(853/15120 + PI()^2/450) + EA91*EA93*EA97*EA98*(241/3780 + PI()^2/450) + EA91*EA97*EA98*EA99*(40217/1814400 + (2377*PI()^2)/950400) + EA91*EA94^2*EA95*(17/180 + (11*PI()^2)/3780) + EA91*EA93*EA96*EA99*(409/3780 + PI()^2/288) + EA91^2*EA96^2*(7/60 + PI()^2/224) + EA92^2*EA97*EA98*(221/12096 + (451*PI()^2)/100800) + EA91^2*EA94*EA98*(1/10 + PI()^2/210) + EA92^3*EA98*(1/60 + (11*PI()^2)/1680) + EA92^2*EA96*EA99*(163/6048 + (1339*PI()^2)/201600) + EA91*EA96*EA97^2*(11/280 + (463*PI()^2)/67200) + EA91*EA93*EA99^2*(359/5040 + (563*PI()^2)/67200) + EA92^2*EA93*EA96*(19/240 + PI()^2/112) + EA92*EA93^2*EA97*(23/240 + PI()^2/112) + EA91*EA93^2*EA99*(7/30 + PI()^2/112) + EA91*EA94*EA97*EA99*(361/5040 + (949*PI()^2)/100800) + EA91*EA92*EA94*EA96*(23/120 + PI()^2/105) + EA91*EA93*EA94*EA97*(13/60 + PI()^2/105) + EA91*EA92*EA93*EA98*(1/4 + PI()^2/105) + EA91*EA92*EA98*EA99*(1147/15120 + (547*PI()^2)/50400) + EA91^2*EA94^2*(1/6 + PI()^2/90) + EA91*EA95*EA97*EA98*(73/840 + (563*PI()^2)/50400) + EA92^2*EA94*EA97*(79/1440 + (101*PI()^2)/6048) + EA91*EA95*EA96*EA99*(359/2520 + (563*PI()^2)/33600) + EA91*EA93*EA95*EA96*(7/15 + PI()^2/56) + EA92^3*EA94*(1/24 + PI()^2/40) + EA92^2*EA93^2*(1/8 + PI()^2/40) + EA91^2*EA97*EA98*(37/240 + (3*PI()^2)/112) + EA92^2*EA95*EA96*(43/480 + (17*PI()^2)/560) + EA92^2*EA93*EA99*(43/480 + (17*PI()^2)/560) + EA91*EA93*EA97^2*(3/20 + (13*PI()^2)/420) + EA91*EA95^2*EA96*(11/40 + (11*PI()^2)/280) + EA91^2*EA96*EA99*(11/40 + (11*PI()^2)/280) + EA91*EA92*EA94*EA99*(7/30 + (211*PI()^2)/5040) + EA91*EA94*EA95*EA97*(49/180 + (649*PI()^2)/15120) + EA91*EA92*EA93*EA94*(5/6 + (2*PI()^2)/45) + EA91*EA92*EA95*EA98*(7/24 + (41*PI()^2)/840) + EA91*EA93^2*EA95*(1 + PI()^2/20) + EA91^2*EA93*EA96*(1 + PI()^2/20) + EA91*EA92*EA96*EA97*(7/30 + (103*PI()^2)/1680) + EA91*EA93*EA95*EA99*(11/20 + (11*PI()^2)/140) + EA91^2*EA94*EA97*(5/12 + (13*PI()^2)/120) + EA91^2*EA92*EA98*(1/2 + (7*PI()^2)/60) + EA92^2*EA93*EA95*(1/4 + (17*PI()^2)/120) + EA91*EA92^2*EA96*(1/4 + (17*PI()^2)/120) + EA91^2*EA93^2*(2 + PI()^2/6) + EA91*EA93*EA95^2*(1 + (23*PI()^2)/120) + EA91^2*EA95*EA96*(1 + (23*PI()^2)/120) + EA91^2*EA93*EA99*(1 + (23*PI()^2)/120) + EA91*EA92*EA94*EA95*(5/6 + (7*PI()^2)/36) + EA91*EA92*EA93*EA97*(5/6 + (5*PI()^2)/18) + EA91*EA92^2*EA93*(1/2 + (2*PI()^2)/3) + EA91^2*EA93*EA95*(3 + PI()^2) + EA91*EA99^3*(3737/453600 + (13063*PI()^2)/6652800 + (7*PI()^4)/199680) + EA92^2*EA99^2*(997/60480 + (6949*PI()^2)/806400 + (7*PI()^4)/28160) + EA91*EA97^2*EA99*(29/560 + (1913*PI()^2)/100800 + (7*PI()^4)/14080) + EA91*EA95*EA99^2*(457/5040 + (141*PI()^2)/5600 + (7*PI()^4)/14080) + EA92^2*EA97^2*(47/1440 + (67*PI()^2)/2688 + (7*PI()^4)/5760) + EA91^2*EA99^2*(19/120 + (409*PI()^2)/7560 + (7*PI()^4)/5760) + EA92^2*EA95*EA99*(1/10 + (4303*PI()^2)/60480 + (7*PI()^4)/2880) + EA91*EA95*EA97^2*(8/45 + (11*PI()^2)/140 + (7*PI()^4)/2880) + EA91*EA95^2*EA99*(19/60 + (409*PI()^2)/3780 + (7*PI()^4)/2880) + EA92^3*EA97*(1/24 + (7*PI()^2)/120 + PI()^4/240) + EA91*EA95^3*(1/3 + (7*PI()^2)/45 + PI()^4/240) + EA91*EA92*EA97*EA99*(11/40 + (1129*PI()^2)/7560 + (7*PI()^4)/1440) + EA92^4*(1/80 + PI()^2/24 + (7*PI()^4)/1200) + EA92^2*EA95^2*(1/8 + (23*PI()^2)/160 + PI()^4/160) + EA91^2*EA97^2*(1/4 + (59*PI()^2)/360 + PI()^4/160) + EA91*EA92^2*EA99*(1/4 + (23*PI()^2)/80 + PI()^4/80) + EA91^2*EA95*EA99*(1 + (7*PI()^2)/15 + PI()^4/80) + EA91*EA92*EA95*EA97*(5/6 + (217*PI()^2)/360 + PI()^4/40) + EA91^2*EA95^2*(6/5 + PI()^2 + (7*PI()^4)/200) + EA91*EA92^2*EA95*(2/5 + (13*PI()^2)/12 + (7*PI()^4)/100) + EA91^2*EA92*EA97*(9/10 + (7*PI()^2)/6 + (7*PI()^4)/100)) -> 0 | EB129: 489.7609625 | EC129: 16553.02721 | ED129: 27583.09389
AB130: 0.99 | AC130: 90 | AD130: 0.0007594129339 | AE130: 84.36696014 | AF130: 89.07799841 | AG130: 89.71103827 | AH130: 90 | AT130: 0.001155580374 | AU130: 0.0008925885481 | AV130: 0.0008128945704 | AW130: 0.0007594129339 | BJ130: 84.36696014 | BK130: 89.07799841 | BL130: 89.71103827 | BM130: 90 | BY130: 0.001155580374 | BZ130: 0.0008925885481 | CA130: 0.0008128945704 | CB130: 0.0007594129339 | CO130: 0.003396705948 | CP130: 0.002584496927 | CQ130: 0.002393420469 | CR130: 0.002288984766 | EA130: =IF(OR(ISERROR(AT29),$B$14<>"u"),"",EA93^4/80 + (11*EA93^2*EA94^2)/2520 + (EA92*EA94^3)/420 + EA94^4/15120 + (23*EA93^3*EA95)/360 + (EA93*EA94^2*EA95)/70 + (EA93^3*EA96)/112 + (163*EA92*EA93*EA94*EA96)/5040 + (EA93*EA94^2*EA96)/560 + (11*EA93^2*EA95*EA96)/280 + (239*EA94^2*EA95*EA96)/75600 + (EA93^2*EA96^2)/384 + (81*EA92*EA94*EA96^2)/22400 + (17*EA94^2*EA96^2)/88704 + (563*EA93*EA95*EA96^2)/67200 + (EA93*EA96^3)/2816 + (179*EA93^2*EA94*EA97)/10080 + (43*EA94^3*EA97)/75600 + (263*EA93*EA94*EA96*EA97)/33600 + (11*EA92*EA93^2*EA98)/560 + (3*EA93^2*EA94*EA98)/1400 + (EA92*EA94^2*EA98)/540 + (EA94^3*EA98)/15400 + (3*EA93*EA94*EA95*EA98)/400 + (29*EA92*EA93*EA96*EA98)/3360 + (251*EA93*EA94*EA96*EA98)/277200 + (1873*EA94*EA95*EA96*EA98)/1108800 + (4337*EA92*EA96^2*EA98)/4435200 + (23*EA93^2*EA97*EA98)/4800 + (251*EA94^2*EA97*EA98)/554400 + (3*EA93*EA96*EA97*EA98)/1408 + (17*EA93^2*EA98^2)/61600 + (137*EA92*EA94*EA98^2)/277200 + (2689*EA94^2*EA98^2)/108108000 + (559*EA93*EA95*EA98^2)/554400 + (37*EA93*EA96*EA98^2)/312000 + (283*EA92*EA98^3)/6306300 + (11*EA93^3*EA99)/840 + (239*EA93*EA94^2*EA99)/75600 + (563*EA93^2*EA96*EA99)/67200 + (197*EA94^2*EA96*EA99)/277200 + (1627*EA93*EA96^2*EA99)/887040 + (1873*EA93*EA94*EA98*EA99)/1108800 + (5149*EA93*EA98^2*EA99)/22422400 + EA94^2*EA99^2*(146429/239500800 + (83*PI()^2)/5930496) + EA92*EA97*EA98^2*(3349/3326400 + (37*PI()^2)/936000) + EA94^2*EA97^2*(2971/1814400 + (17*PI()^2)/266112) + EA94*EA95*EA98*EA99*(9733/3326400 + (191*PI()^2)/2882880) + EA93*EA96*EA99^2*(13063/4435200 + PI()^2/13312) + EA92*EA96*EA98*EA99*(6073/1900800 + PI()^2/9360) + EA93*EA97*EA98*EA99*(11779/3326400 + PI()^2/9360) + EA94^2*EA95*EA99*(673/129600 + (17*PI()^2)/133056) + EA93*EA99^3*(1421/950400 + (88069*PI()^2)/645765120) + EA94*EA95^2*EA98*(563/90720 + (251*PI()^2)/1663200) + EA93^2*EA99^2*(141/22400 + PI()^2/5632) + EA92*EA98*EA99^2*(65479/26611200 + (2241643*PI()^2)/8072064000) + EA94^2*EA95^2*(67/6048 + PI()^2/3360) + EA92*EA94*EA97*EA98*(3179/453600 + (251*PI()^2)/831600) + EA92*EA96^2*EA97*(839/134400 + PI()^2/2816) + EA93*EA96*EA97^2*(17/2400 + PI()^2/2816) + EA92*EA94*EA96*EA99*(20063/1814400 + PI()^2/2376) + EA94*EA95*EA96*EA97*(1591/129600 + PI()^2/2376) + EA93*EA94*EA97*EA99*(1591/129600 + PI()^2/2376) + EA92*EA95*EA96*EA98*(449/33600 + (3*PI()^2)/6160) + EA92*EA93*EA98*EA99*(449/33600 + (3*PI()^2)/6160) + EA93*EA95*EA97*EA98*(5/336 + (3*PI()^2)/6160) + EA92*EA94^2*EA97*(37/3024 + PI()^2/1680) + EA93*EA95*EA96*EA99*(141/5600 + PI()^2/1408) + EA93^2*EA97^2*(11/756 + PI()^2/1152) + EA92*EA94*EA99^2*(29069/3628800 + (27431*PI()^2)/26611200) + EA92*EA97^2*EA98*(21127/3628800 + (13787*PI()^2)/13305600) + EA93*EA97^2*EA99*(37381/3628800 + (4111*PI()^2)/2661120) + EA93*EA95^2*EA96*(409/7560 + PI()^2/576) + EA93^2*EA95*EA99*(409/7560 + PI()^2/576) + EA93*EA95*EA99^2*(21757/1209600 + (1627*PI()^2)/887040) + EA92*EA94*EA95*EA96*(1391/30240 + PI()^2/504) + EA92*EA93*EA94*EA99*(1391/30240 + PI()^2/504) + EA93*EA94*EA95*EA97*(155/3024 + PI()^2/504) + EA94*EA95*EA97*EA99*(33251/1814400 + (28031*PI()^2)/13305600) + EA92*EA93*EA95*EA98*(853/15120 + PI()^2/450) + EA92*EA95*EA98*EA99*(11749/604800 + (5417*PI()^2)/2217600) + EA92*EA96*EA97*EA99*(32009/1814400 + (8047*PI()^2)/2661120) + EA92*EA93*EA96*EA97*(187/3780 + PI()^2/288) + EA92*EA94*EA97^2*(559/30240 + (769*PI()^2)/201600) + EA93^2*EA95^2*(7/60 + PI()^2/224) + EA94*EA95^2*EA97*(361/10080 + (949*PI()^2)/201600) + EA92*EA95^2*EA98*(1147/30240 + (547*PI()^2)/100800) + EA93*EA95*EA97^2*(11/280 + (463*PI()^2)/67200) + EA93*EA95^2*EA99*(359/5040 + (563*PI()^2)/67200) + EA92*EA94*EA95*EA99*(937/15120 + (929*PI()^2)/100800) + EA92*EA93*EA94*EA95*(23/120 + PI()^2/105) + EA93*EA95^3*(11/120 + (11*PI()^2)/840) + EA92*EA95*EA96*EA97*(1979/30240 + (341*PI()^2)/25200) + EA92*EA93*EA97*EA99*(1979/30240 + (341*PI()^2)/25200) + EA92*EA94*EA95^2*(7/60 + (211*PI()^2)/10080) + EA92*EA93*EA95*EA97*(7/30 + (103*PI()^2)/1680) + EA92*EA97*EA99^2*(17477/1451520 + (115697*PI()^2)/26611200 + (7*PI()^4)/66560) + EA92*EA97^3*(29/3360 + (199*PI()^2)/44800 + (7*PI()^4)/42240) + EA92*EA95*EA97*EA99*(211/2520 + (2431*PI()^2)/67200 + (7*PI()^4)/7040) + EA92*EA95^2*EA97*(11/80 + (1129*PI()^2)/15120 + (7*PI()^4)/2880)) -> 0 | EB130: 0 | EC130: 116.0760254 | ED130: 166.5406052
AB131: 0.994 | AC131: 96.72510612 | AD131: 0.0004558974186 | AE131: 88.77781134 | AF131: 94.77440464 | AG131: 95.97805236 | AH131: 96.72510612 | AT131: 0.0006961496314 | AU131: 0.0005402462566 | AV131: 0.0004902423143 | AW131: 0.0004558974186 | BJ131: 88.77781134 | BK131: 94.77440464 | BL131: 95.97805236 | BM131: 96.72510612 | BY131: =IF(AND($EA$41=0,CO$26="yes"),CO133,"") -> 0.0006961496314 | BZ131: 0.0005402462566 | CA131: 0.0004902423143 | CB131: 0.0004558974186 | CO131: 0.00228781569 | CP131: 0.001751669174 | CQ131: 0.001609000996 | CR131: 0.001520859476 | EA131: =IF(OR(ISERROR(AT29),$B$14<>"u"),"",(1627*EA95*EA96^3)/2661120 + EA96^4/53248 + (7877*EA94*EA96^2*EA97)/8870400 + (191*EA94*EA96^2*EA98)/1921920 + (19857*EA96^2*EA97*EA98)/81536000 + (5149*EA95*EA96*EA98^2)/22422400 + (13*EA96^2*EA98^2)/985600 + (4129*EA94*EA97*EA98^2)/33633600 + (157*EA94*EA98^3)/36036000 + (EA97*EA98^3)/88704 + (31*EA98^4)/106080000 + (88069*EA96^3*EA99)/645765120 + (211877*EA94*EA96*EA98*EA99)/550368000 + (30463*EA96*EA98^2*EA99)/576576000 + EA98^2*EA99^2*(47711/968647680 + (101*PI()^2)/101836800) + EA97^2*EA98^2*(2747/20384000 + (13*PI()^2)/2956800) + EA94*EA98*EA99^2*(12577183/36324288000 + (73*PI()^2)/9884160) + EA96^2*EA99^2*(4193641/12108096000 + PI()^2/122880) + EA95*EA98^2*EA99*(1254479/3027024000 + (13*PI()^2)/1478400) + EA95^2*EA98^2*(2909/3326400 + (37*PI()^2)/1872000) + EA96*EA97*EA98*EA99*(569629/672672000 + PI()^2/42240) + EA96*EA99^3*(8968709/24216192000 + (1423*PI()^2)/46126080) + EA94*EA97^2*EA98*(1247/1330560 + (191*PI()^2)/5765760) + EA96^2*EA97^2*(171/197120 + PI()^2/26624) + EA97*EA98*EA99^2*(202589633/290594304000 + (16397*PI()^2)/251596800) + EA95*EA96^2*EA99*(13063/4435200 + PI()^2/13312) + EA97^3*EA98*(57/98560 + (6619*PI()^2)/81536000) + EA94*EA96*EA97*EA99*(4349/1478400 + (5*PI()^2)/54912) + EA95*EA96*EA97*EA98*(11779/3326400 + PI()^2/9360) + EA95^2*EA96^2*(141/22400 + PI()^2/5632) + EA94*EA97*EA99^2*(1108007/479001600 + (1387601*PI()^2)/5811886080) + EA94*EA97^3*(6827/3628800 + (7877*PI()^2)/26611200) + EA96*EA97^2*EA99*(5899/2217600 + (75329*PI()^2)/215255040) + EA95*EA96*EA99^2*(1421/316800 + (88069*PI()^2)/215255040) + EA95*EA97*EA98*EA99*(1237/221760 + (254827*PI()^2)/448448000) + EA95^2*EA97*EA98*(40217/3628800 + (2377*PI()^2)/1900800) + EA95*EA96*EA97^2*(37381/3628800 + (4111*PI()^2)/2661120) + EA95^2*EA96*EA99*(21757/1209600 + (1627*PI()^2)/887040) + EA95^3*EA96*(359/15120 + (563*PI()^2)/201600) + EA99^4*(20662987/145297152000 + (264263*PI()^2)/9686476800 + (7*PI()^4)/16711680) + EA95*EA99^3*(130751/59875200 + (4193641*PI()^2)/9081072000 + (7*PI()^4)/921600) + EA97^4*(43/57600 + (57*PI()^2)/197120 + (7*PI()^4)/798720) + EA97^2*EA99^2*(941011/479001600 + (79314709*PI()^2)/145297152000 + (7*PI()^4)/614400) + EA95^2*EA99^2*(3737/302400 + (13063*PI()^2)/4435200 + (7*PI()^4)/133120) + EA95*EA97^2*EA99*(81/5600 + (421*PI()^2)/92400 + (7*PI()^4)/66560) + EA95^3*EA99*(457/15120 + (47*PI()^2)/5600 + (7*PI()^4)/42240) + EA95^4*(19/720 + (409*PI()^2)/45360 + (7*PI()^4)/34560) + EA95^2*EA97^2*(29/1120 + (1913*PI()^2)/201600 + (7*PI()^4)/28160)) -> 0 | EB131: 0 | EC131: 0 | ED131: 0
AB132: 0.997 | AC132: 105.8419777 | AD132: 0.0002282306705 | AE132: 94.74190654 | AF132: 102.4417069 | AG132: 104.4405409 | AH132: 105.8419777 | AT132: 0.0003491253433 | AU132: 0.0002721130625 | AV132: 0.0002462348229 | AW132: 0.0002282306705 | BJ132: 94.74190654 | BK132: 102.4417069 | BL132: 104.4405409 | BM132: 105.8419777 | BY132: 0.0003491253433 | BZ132: 0.0002721130625 | CA132: 0.0002462348229 | CB132: 0.0002282306705 | CO132: 0.001155580374 | CP132: 0.0008925885481 | CQ132: 0.0008128945704 | CR132: 0.0007594129339 | DZ132: b1 | EA132: =IF(OR(ISERROR(AT29),$B$14<>"u"),"",EA111^2) -> 0 | EB132: =IF(OR(ISERROR(AU29),$B$14<>"u"),"",EB111^2) -> 0.770649913 | EC132: 0.998499527 | ED132: 0.9862381477
AB133: 0.999 | AC133: 120.2700167 | AD133: 7.620230079e-05 | AE133: 104.1710225 | AF133: 114.514428 | AG133: 117.7973621 | AH133: 120.2700167 | AT133: 0.000116608565 | AU133: 9.121749983e-05 | AV133: 8.238096742e-05 | AW133: 7.620230079e-05 | BJ133: 104.1710225 | BK133: 114.514428 | BL133: 117.7973621 | BM133: 120.2700167 | BY133: 0.000116608565 | BZ133: 9.121749983e-05 | CA133: 8.238096742e-05 | CB133: 7.620230079e-05 | CO133: 0.0006961496314 | CP133: 0.0005402462566 | CQ133: 0.0004902423143 | CR133: 0.0004558974186 | DZ133: b2 | EA133: =IF(EA132="","",EA115) -> 4.2 | EB133: =IF(EB132="","",EB115) -> 4.928655629 | EC133: 6.025023095 | ED133: 6.310429609
AB134: =IF(OR($B$14="su",$B$14="b"),1,NA()) ->  | AC134: =IF(OR($B$14="su",$B$14="b"),IF(INDEX(AE134:AS134,1,$C$20 -1)="",NA(),INDEX(AE134:AS134,1,$C$20 -1)),NA()) ->  | AD134: =IF(OR($B$14="su",$B$14="b"),IF(INDEX(AT134:BH134,1,$C$20-1)="",NA(),INDEX(AT134:BH134,1,$C$20-1)),NA()) ->  | AE134: =IF(OR($B$14="su",$B$14="b"),IF(BJ133="",NA(),$C$23),NA()) ->  | AT134: =IF(OR($B$14="su",$B$14="b"),IF(BY133="",NA(),0),NA()) ->  | CO134: 0.0003491253433 | CP134: 0.0002721130625 | CQ134: 0.0002462348229 | CR134: 0.0002282306705
CO135: 0.000116608565 | CP135: 9.121749983e-05 | CQ135: 8.238096742e-05 | CR135: 7.620230079e-05 | DZ135: y = M-1(x)
DZ136: use Newton's method to find a zero of f(y) = M(y) - x
DZ137: x | EA137: =IF(ISNUMBER(Y56),Y56,"") -> 10 | ED137: relax | EE137: 0.5
DZ138: y | EA138: =INDEX(EE141:EE151,MAX(DZ141:DZ151)+1,1) -> 0.01 | ED138: y criterion | EE138: 1e-06
EA139: unbounded | ED139: y guess | EE139: =IF(EA137="","",IF(B14="u",FORECAST(EA137,OFFSET(AB29:AB133,MATCH(EA137,AC29:AC133,1)-1,0,2),OFFSET(AC29:AC133,MATCH(EA137,AC29:AC133,1)-1,0,2)),IF(B14="sl",FORECAST(EA137,OFFSET(AB28:AB133,MATCH(EA137,AC28:AC133,1)-1,0,2),OFFSET(AC28:AC133,MATCH(EA137,AC28:AC133,1)-1,0,2)),IF(B14="su",FORECAST(EA137,OFFSET(AB29:AB134,MATCH(EA137,AC29:AC134,1)-1,0,2),OFFSET(AC29:AC134,MATCH(EA137,AC29:AC134,1)-1,0,2)),IF(B14="b",FORECAST(EA137,OFFSET(AB28:AB134,MATCH(EA137,AC28:AC134,1)-1,0,2),OFFSET(AC28:AC134,MATCH(EA137,AC28:AC134,1)-1,0,2)),""))))) -> 0.01
DZ140: k | EA140: Mn | EB140: mn | EC140: f(y_k) | ED140: f'(y_k) | EE140: y_k+1
DZ141: 0 | EE141: =EE139 -> 0.01
DZ142: =IF(ISNUMBER(EA$137),DZ141+1,"") -> 1 | EA142: =IF(DZ142="","",IF(INDEX($BJ$29:$BX$29,1,$C$20-1)="","",INDEX($EA$90:$EO$105,1,$C$20-1)+INDEX($EA$90:$EO$105,2,$C$20-1)*LN(EE141/(1-EE141))+INDEX($EA$90:$EO$105,3,$C$20-1)*(EE141-0.5)*LN(EE141/(1-EE141))+INDEX($EA$90:$EO$105,4,$C$20-1)*(EE141-0.5)+INDEX($EA$90:$EO$105,5,$C$20-1)*(EE141-0.5)^2+INDEX($EA$90:$EO$105,6,$C$20-1)*(EE141-0.5)^2*LN(EE141/(1-EE141))+INDEX($EA$90:$EO$105,7,$C$20-1)*(EE141-0.5)^3+INDEX($EA$90:$EO$105,8,$C$20-1)*(EE141-0.5)^3*LN(EE141/(1-EE141))+INDEX($EA$90:$EO$105,9,$C$20-1)*(EE141-0.5)^4+INDEX($EA$90:$EO$105,10,$C$20-1)*(EE141-0.5)^4*LN(EE141/(1-EE141))+INDEX($EA$90:$EO$105,11,$C$20-1)*(EE141-0.5)^5+INDEX($EA$90:$EO$105,12,$C$20-1)*(EE141-0.5)^5*LN(EE141/(1-EE141))+INDEX($EA$90:$EO$105,13,$C$20-1)*(EE141-0.5)^6+INDEX($EA$90:$EO$105,14,$C$20-1)*(EE141-0.5)^6*LN(EE141/(1-EE141))+INDEX($EA$90:$EO$105,15,$C$20-1)*(EE141-0.5)^7+INDEX($EA$90:$EO$105,16,$C$20-1)*(EE141-0.5)^7*LN(EE141/(1-EE141)))) -> 10 | EB142: =IF(EA142="","",(INDEX($EA$90:$EO$105,2,$C$20-1)/(EE141*(1-EE141))+INDEX($EA$90:$EO$105,3,$C$20-1)*((EE141-0.5)/(EE141*(1-EE141))+LN(EE141/(1-EE141)))+INDEX($EA$90:$EO$105,4,$C$20-1)+2*INDEX($EA$90:$EO$105,5,$C$20-1)*(EE141-0.5)+INDEX($EA$90:$EO$105,6,$C$20-1)*((EE141-0.5)^2/(EE141*(1-EE141))+2*(EE141-0.5)*LN(EE141/(1-EE141)))+3*INDEX($EA$90:$EO$105,7,$C$20-1)*(EE141-0.5)^2+INDEX($EA$90:$EO$105,8,$C$20-1)*((EE141-0.5)^3/(EE141*(1-EE141))+3*(EE141-0.5)^2*LN(EE141/(1-EE141)))+4*INDEX($EA$90:$EO$105,9,$C$20-1)*(EE141-0.5)^3+INDEX($EA$90:$EO$105,10,$C$20-1)*((EE141-0.5)^4/(EE141*(1-EE141))+4*(EE141-0.5)^3*LN(EE141/(1-EE141)))+5*INDEX($EA$90:$EO$105,11,$C$20-1)*(EE141-0.5)^4+INDEX($EA$90:$EO$105,12,$C$20-1)*((EE141-0.5)^5/(EE141*(1-EE141))+5*(EE141-0.5)^4*LN(EE141/(1-EE141)))+6*INDEX($EA$90:$EO$105,13,$C$20-1)*(EE141-0.5)^5+INDEX($EA$90:$EO$105,14,$C$20-1)*((EE141-0.5)^6/(EE141*(1-EE141))+6*(EE141-0.5)^5*LN(EE141/(1-EE141)))+7*INDEX($EA$90:$EO$105,15,$C$20-1)*(EE141-0.5)^6+INDEX($EA$90:$EO$105,16,$C$20-1)*((EE141-0.5)^7/(EE141*(1-EE141))+7*(EE141-0.5)^6*LN(EE141/(1-EE141))))^-1) -> 0.001578295247 | EC142: =IF(EA142="","",-EA$137+IF($B$14="u",EA142,IF($B$14="sl",$C$22+EXP(EA142),IF($B$14="su",$C$23-EXP(-EA142),IF($B$14="b",($C$22+$C$23*EXP(EA142))/(1+EXP(EA142)),NA()))))) -> 1.527666882e-13 | ED142: =IF(EA142="","",1/IF($B$14="u",EB142,IF($B$14="sl",EB142*EXP(-EA142),IF($B$14="su",EB142*EXP(EA142),IF($B$14="b",EB142*(1+EXP(EA142))^2/(($C$23-$C$22)*EXP(EA142)),NA()))))) -> 633.5950145 | EE142: =IF(DZ142="","",IF(AND(EE141-EC142/ED142>0,EE141-EC142/ED142<1),EE141-EC142/ED142,IF(AND(EE141-EE$137*EC142/ED142>0,EE141-EE$137*EC142/ED142<1),EE141-EE$137*EC142/ED142,EE141-(EE$137/4)*EC142/ED142))) -> 0.01
DZ143: =IF(DZ142="","",IF(ABS(EE142-EE141)<EE$138,"",DZ142+1)) -> 
DE158: =IF(B158="","",1) ->  | DF158: =IF(B158="","",LN(B158/(1-B158))) ->  | DG158: =IF(B158="","",(B158-0.5)*DF158) ->  | DH158: =IF(B158="","",B158-0.5) ->  | DI158: =IF(B158="","",DH158^2) ->  | DJ158: =IF(B158="","",DF158*DI158) ->  | DK158: =IF(B158="","",DH158^3) ->  | DL158: =IF(B158="","",DF158*DK158) ->  | DM158: =IF(B158="","",DH158^4) ->  | DO158: =IF(B158="","",DH158^5) ->  | DP158: =IF($B158="","",DF158*DO158) ->  | DQ158: =IF(B158="","",DH158^6) ->  | DR158: =IF($B158="","",DF158*DQ158) ->  | DS158: =IF(B158="","",DH158^7) ->  | DT158: =IF($B158="","",DF158*DS158) ->  | DU158: =IF(B158="","",IF($B$14="u",C158,IF($B$14="sl",LN(C158-$C$22),IF($B$14="su",-LN($C$23-C158),IF($B$14="b",LN((C158-$C$22)/($C$23-C158)),""))))) -> 
DN159: =IF(B159="","",DF159*DM159) -> 
DW170: =IF(B158="",NA(),B158) ->  | DX170: =IF(C158="",NA(),C158) -> 
DE222: =IF(B222="","",1) ->  | DF222: =IF(B222="","",LN(B222/(1-B222))) ->  | DG222: =IF(B222="","",(B222-0.5)*DF222) ->  | DH222: =IF(B222="","",B222-0.5) ->  | DI222: =IF(B222="","",DH222^2) ->  | DJ222: =IF(B222="","",DF222*DI222) ->  | DK222: =IF(B222="","",DH222^3) ->  | DL222: =IF(B222="","",DF222*DK222) ->  | DM222: =IF(B222="","",DH222^4) ->  | DO222: =IF(B222="","",DH222^5) ->  | DP222: =IF($B222="","",DF222*DO222) ->  | DQ222: =IF(B222="","",DH222^6) ->  | DR222: =IF($B222="","",DF222*DQ222) ->  | DS222: =IF(B222="","",DH222^7) ->  | DT222: =IF($B222="","",DF222*DS222) ->  | DU222: =IF(B222="","",IF($B$14="u",C222,IF($B$14="sl",LN(C222-$C$22),IF($B$14="su",-LN($C$23-C222),IF($B$14="b",LN((C222-$C$22)/($C$23-C222)),""))))) -> 
DN223: =IF(B223="","",DF223*DM223) -> 
DW234: =IF(B222="",NA(),B222) ->  | DX234: =IF(C222="",NA(),C222) -> 
... 18 more rows

Sheet documentation
B2: documentation and definitions
B3: full documentation | C3: The definitions, notation and formulas in this workbook implement that which is published in
C4: "The Metalog Distributions." Download from | E4: http://www.metalogs.org/publications.html
C5: Below are key definitions and documentation of the calcuations in this workbook.
B6: lower bound | C6: bl | D6: lower bound -- input x parameters must all be > bl
B7: upper bound | C7: bu | D7: upper bound -- input x parameters must all be < bu
B8: input parameters | C8: (x,y) coordinates of cdf (cumulative distribution function) input data used to parameterize the metalog distribution.
B9: metalog specifications | C9: m | D9: Number of cdf data points in use for input parameters. Calculated as the number of numeric y input-parameter cells.
C10: n | D10: Number of metalog terms in use. Must be an integer from 2-10. Controls which distribution from the "metalog panel" is displayed. If no curves are displayed, one of the requirements is not satisfied. The upper limit of 10 can be extended by extending the various calculations in this workbook beyond 10 according to the equations in "The Metalog Distributions". In such extended implementations, Excel may make computational errors for n>15 or so.
B11: probability density function (pdf) | C11: mn, mnlog, mnlogit | D11: y'-value on the pdf plot for unbounded, semibounded, and bounded metalog distributions respectively
B12: quantile function (inverse cdf) | C12: Mn, Mnlog, Mnlogit | D12: x-value on the cdf and pdf plots for unbounded, semibounded, and bounded metalog distributions respectively
B13: metalog panel | C13: Thumbnail pdf's (mn) for all n. Blank display occurs when either matrix inversion or data feasibility fails.
B14: matrix inversion successful | C14: If "no", Excel's attempt to invert the matrix YTY, which is used to calculate (a1, … an), was unsuccessful. Check input yi's to ensure that at least n are distinct and that 0<yi<1 for all i. Otherwise if still "no" (an extremely rare case), a minor perturbation of the yi input parameters may solve the problem. No matrix inversion is attempted if m<n, in which case a blank cell is displayed.
B16: data feasible | C16: Feasibility requires that the density function mn is strictly positive. If "no", input parameters are not feasible for the given choice of n. If "no", use a different n, or use a metalog distribution with different bounds. A blank cell is displayed if m<n.
B17: quantiles | C17: For user-input y-values on the cdf, displays corresponding metalog quantiles (x-values on the cdf).
B18: example simulation | C18: For random y-samples from a uniform distribution (Excel function RAND()), displays the associated x-samples. Formulas may be copied for use in larger simulations.
B19: Y-matrix | C19: Y16 | D19: Y-matrix for the 16-term metalog. The first n columns of this matrix are used to calculate scaling constants (a1, … an) according to a = [YTY]-1YTz.
B20: coefficients | C20: a1, … an | D20: Used for the calculating Mn and mn.
B21: quantile parameters | C21: Points on the CDF that, when used as metalog input data, produce this same set of coefficients. The metalog runs through each of these points exactly.
B22: regularization | C22: Regularization (optional) can help with feasibility and smoothness--espicially for larger numbers of terms. Blank or 0 turns this off. Integers 1-10 increase regularization. This works by adding a small positive number to the diagonal elements (except for the first diagonal element) of YTY before inversion. This adjustment effectively reduces the magnitude of the largest ai coefficients, effectively countering any potential Runge's phenomenon.
B24: additional information
B25: accuracy | C25: To the best of the author's knowledge, the formulas implemented on the metalog worksheet are robust and fully accurate. There are only two exceptions: 1) the "data feasible" calculation checks that 105 points on the pdf (mn) are strictly positive. In the unlikely event that mn for these 105 points is strictly positive but zero or negative for some other y in the open interval (0,1), this calculation will incorrectly indicate "yes" when it should say "no." 2) Because Excel calculates matrix determinants only to 16 significant figures, it can erroneously invert singular YTY matrices in calculating scaling constants a.
B26: portability | C26: This worksheet is programmed without any macros, named ranges, protected ranges, or external links. As such it may be copied into any other Excel workbook without harming that workbook and while still retaining its full functionality. To port to another workbook, open that workbook, right click on the "unbounded metalog" worksheet tab at bottom left of this workbook, select "Move or copy", "Create a copy", the "To" (destination) workbook, and click OK.
B27: liability | C27: The author has checked the accuracy of this worksheet to the best of his ability and provides it free of charge; but assumes no liability for possible errors or consequences thereof.
